Workbook

Sheet Title Sheet
C3: Spreadsheet for the South Carolina Synthetic Unit Hydrograph Method
C6: Developed by Michael E. Meadows Department of Civil and Environmental Engineering University of South Carolina
E10: January 2020
E13: Updated February 2023

Sheet Introduction
D2: Application of the South Carolina | P2: A Note to Template Users:
D3: Synthetic Unit Hydrograph Method | P3: Throughout this workbook there are several locations where users are asked to fill in information and where users have the option to select specific items. The authors recommend that a blank template be used when starting a new project to avoid mistakes possible when back-tracking through a previously populated template.
D4: Template
B7: The South Carolina Synthetic Hydrograph Method Template was designed to provide a consistent procedure to apply the method. This template was tested with data for a limited number of crossings and corrections were made as necessary. Although much effort was expended in the development and review of this template, no warranty, expressed or implied, is made by Dr. Michael E. Meadows or the South Carolina Department of Transportation as to the accuracy and functionality of the template and related materials.
P11: Abbreviations Used in the Template
P12: Abbreviation | Q12: Explanation
P13: Adj Tc = | Q13: Value of Tc adjusted to integer multiple of 6 minute computational time interval | S13: P | T13: References rainfall depths for a given duration
S14: PRF | T14: Peak Rate Factor
D15: References for Manual | P15: ARC | Q15: Average Runoff Condition | S15: Q* | T15: Q* = q*F*
P16: C | Q16: USLE cover-management factor | S16: q* | T16: Ratio of peak outflow divided by peak inflow.
P17: CN | Q17: NRCS Curve Number | S17: QCN | T17: Runoff depth computed with NRCS CN Model
D18: Manual Website | P18: D* | Q18: Ratio of characteristic particle diameters (D85/D15) | S18: Qp | T18: Peak flow rate
P19: D15 | Q19: The grain diameter at 15% passing a sieve | S19: R | T19: USLE rainfall factor
G20: Meadows, Michael E. and Ramsey, Elijah W. III, User's Manual for a Unit Hydrograph Optimization Program Project Completion Report Volume I, September, 1991. | P20: D85 | Q20: The grain diameter at 85% passing a sieve | S20: S | T20: Watershed retention S=1000/CN-10
P21: DHEC | Q21: Department of Health and Environmental Control | S21: S* | T21: Ratio of pond retention storage divided by runoff volume
P22: D-Hour | Q22: Storm duration
P23: Dstar | Q23: Ratio of D85/D15 | S23: Tc | T23: Time of concentration
P24: F* | Q24: Dimensionless parameter that divides the pond peak outflow rate by the surface area of the pond at the height of the riser and the settling velocity of the D15 particle | S24: TE | T24: Sediment pond trapping efficiency
S25: UH | T25: Unit Hydrograph
S26: UH_Qp = | T26: Unit hydrograph peak flow rate
S27: UH_Tp = | T27: Unit hydrograph time to peak
P28: G-fn n = | Q28: Two parameter gamma function shape parameter | S28: UofSC | T28: University of South Carolina
P29: HSG | Q29: Hydraulic Soils Group | S29: USLE | T29: Universal Soil Loss Equation
P30: Ia | Q30: Initial Abstractions | S30: W | T30: Width
D31: Meadows, Michael E. and Ramsey, Elijah W. III, South Carolina Regional Synthetic Unit Hydrograph Study: Methodology and Results, Project Completion Report Volume II, September, 1991. | P31: K | Q31: USLE soil erodibility factor
P32: Lag time = | Q32: Lag time is the delay between one-half of burst duration and unit hydrograph peak flow rate | S32: CL | T32: Clay Loam
S33: SiCL | T33: Silty Clay Loam
P34: LS | Q34: USLE topography factor; also known as length-slope or length-steepness factor | S34: SCL | T34: Sandy Clay Loam
S35: L | T35: Loam
P36: NOAA | Q36: National Oceanic and Atmospheric Administration | S36: S | T36: Sand
G37: Meadows, Michael E., Extension of SCS TR-55 and Development of Single Outlet Detention Pond Performance Charts for Various Unit Hydrograph Peak Rate Factors, Project Completion Report Volume III, September, 1991. | S37: LS | T37: Loamy Sand
S38: SL | T38: Sandy Loam
S39: SiL | T39: Silty Loam
P43: References Used in the Template
P45: See Reference Manual
P47: Application Guidance
P49: See Reference Manual

Sheet Watershed Information
B2: Site Information
B4: County: | C4: Aiken | G4: Rt. / Rd. No.:
B5: Stream: | G5: Project ID: | Q5: Data for Drop Down Menus
B6: Physiographic Region: | C6: Sand Hills | I6: Latitude: | M6: DMS
B7: Analysis Date: | I7: Longitude: | M7: DMS
Q8: COUNTY | S8: PHYSIOGRAPHIC REGION
Q9: Abbeville
B10: Project Information: | Q10: Aiken | S10: Blue Ridge
Q11: Allendale | S11: Piedmont
Q12: Anderson | S12: Sand Hills
Q13: Bamberg | S13: Coastal Plain
Q14: Barnwell
Q15: Beaufort
Q16: Berkeley
B17: Watershed Specifics: | Q17: Calhoun
Q18: Charleston
Q19: Cherokee
Q20: Chester
Q21: Chesterfield
Q22: Clarendon
B23: Existing Conditions: | Q23: Colleton
Q24: Darlington
Q25: Dillon
Q26: Dorchester
Q27: Edgefield
B28: Proposed Conditions: | Q28: Fairfield
Q29: Florence
Q30: Georgetown
Q31: Greenville
Q32: Greenwood
Q33: Hampton
Q34: Horry
B35: Draw Sketch of the Crossing and Stream Below: (Show north arrow and direction of flow.) | Q35: Jasper
Q36: Kershaw
Q37: Lancaster
Q38: Laurens
Q39: Lee
Q40: Lexington
Q41: Marion
Q42: Marlboro
Q43: McCormick
Q44: Newberry
Q45: Oconee
Q46: Orangeburg
Q47: Pickens
Q48: Richland
Q49: Saluda
Q50: Spartanburg
Q51: Sumter
Q52: Union
Q53: Williamsburg
Q54: York

Sheet Spreadsheet Organization & Use
B2: Worksheet Label | C2: Worksheet Purpose and Function
B3: Title Sheet | C3: Cites spreadsheet title and author
B4: Introduction | C4: Brief note to users about the spreadsheet and table of abbreviations
B5: Watershed Information | C5: SCDOT recommended form for site information
B6: Spreadsheet Organization and Use | C6: List and purpose of the active worksheets
B7: Rainfall Data | C7: User accesses on-line precipitation data and enters it into the spreadsheet
B8: SC Rainfall Distribution Map | C8: Map of South Carolina showing regions where NOAA A, B, C and D rainfall distributions apply
B9: Data for CN Determination | C9: User enters site land use and the NRCS curve number and area for each land use
B10: PRF Calculator | C10: User enters the unit hydrograph Peak Rate Factor for each land use and this worksheet computes the watershed average PRF
B11: Tc Calculator | C11: This worksheet has elements to compute watershed lag time and flow path travel time of concentration
B12: WS & UH Data & Runoff Results | C12: This worksheet reports summary watershed and unit hydrograph data, and the D-hour rainfall data, runoff depths, and peak runoff rates for storms with Annual Exceedance Probabilities of 10, 4, 2 and 1 percent. This worksheet includes drop down boxes for users to select CN, CN Modification Method, and Tc. One very important feature is this worksheet identifies the critical storm durations for runoff depth and peak flow for each AEP.
B16: D-hr Runoff Ordinates | C16: Tabular runoff hydrograph ordinates for 1, 2, 3, 6,12 and 24-hr storms with AEPs of 10%, 4%, 2% and 1%
B17: 10-yr D-hr Storm Hydrographs | C17: Tabular and graphical runoff hydrographs for D-hr storms with 10-year return period (10% AEP)
B18: 25-yr D-hr Storm Hydrographs | C18: Tabular and graphical runoff hydrographs for D-hr storms with 25-year return period (4% AEP)
B19: 50-yr D-hr Storm Hydrographs | C19: Tabular and graphical runoff hydrographs for D-hr storms with 50-year return period (2% AEP)
B20: 100-yr D-hr Storm Hydrographs | C20: Tabular and graphical runoff hydrographs for D-hr storms with 100-year return period (1% AEP)
B21: 24-hr Storm Hydrographs | C21: Tabular and graphical runoff hydrographs for 24-hr storms with AEP values of 100%, 50%, 20%, 10%, 4%, 2% and 1%
B22: Design Storm Pond Results | C22: User inputs the Design Storm AEP, data for calculation of pond stage-storage and stage-discharge ratings, and seepage rate through pond bottom. Pond performance results are shown for 1, 2, 3, 6, 12 and 24-hour design storms.
B24: D-hr Storm Pond Routing Results | C24: Tabular and graphical pond routing results for D-hour design storm events
B25: 24-hr Storm Pond Routing Results | C25: Tabular and graphical pond routing results for 24-hr storms with AEPS of 100%, 50%, 20%, 10%, 4%, 2% and 1%
B26: Pond Sediment Trap Efficiency | C26: Sediment Pond trapping efficiency computed with SCDHEC Design Aid Curves and equations developed at UofSC
B27: USLE & MUSLE Results | C27: Calculate Universal Soil Loss Equation annual erosion and Modified USLE (MUSLE) D-hour storm erosion
B28: R factor | C28: USLE Rainfall Factor: User selects value with Drop Down list of SC counties
B29: K factor | C29: USLE Soil Erodibility Factor: User selects value with Drop Down list of SC soils
B30: LS factor | C30: USLE Topography Factor: User enters erosion site length and slope and the value is calculated with an empirical equation
B31: C factor | C31: USLE Cover Factor: User selects value by selecting cover conditions from Drop Down list
B32: P factor | C32: USLE Conservation Practice Factor: User selects value by selecting conservation practice from Drop Down list

Sheet Rainfall Data
C2: Rain Gage Location | E2: Eutawville
C4: Click the cell below to access the Precipitation Frequency Data Server | M4: Use the Drop Down box and the SC Rainfall Map below to select the appropriate Rainfall Distribution Curve.
C5: https://hdsc.nws.noaa.gov/hdsc/pfds/pfds_map_cont.html?bkmrk=sc
C7: Rainfall Data and Peak Runoff Rates for 10 Year D-Hour Storms and Seven 24-Hour Storms With AEP Ranging from 1 to 100 Percent | M7: Rainfall Distribution Curve
M8: Six rainfall distributions apply in South Carolina: Type II, Type III, NOAA A, NOAA B, NOAA C and NOAA D. Check the SC Rainfall Distribution Map. | Q8: 2 | R8: Type II
C9: D-Hour Rainfall Data | G9: 24-Hour Rainfall Data | Q9: 3 | R9: Type III
C10: AEP (%) = | D10: 10 | G10: AEP (%) | H10: Depth (in) | I10: Peak Runoff, Qp (cfs) | Q10: 4 | R10: NOAA A
C11: Return Period (yrs) = | D11: =100/D10 -> 10 | E11: Peak Runoff, Qp (cfs) | Q11: 5 | R11: NOAA B
C12: Duration (hrs) | D12: Depth (in) | G12: 100 | H12: 3.09 | I12: =MAX('1 yr_Q_24_2'!$IL$5:$IL$353) -> 59.22486125 | M12: Select Distribution: | O12: 5 | Q12: 6 | R12: NOAA C
B13: Red Arrows flag rainfall durations with maximum peak runoff. | C13: 1 | D13: 2.66 | E13: =MAX(Q10_1!$P$5:$P$105) -> 132.3971686 | F13: =IF(E13=MAX(E$13:E$18),"<="," ") ->  | G13: 50 | H13: 3.76 | I13: =MAX('2 yr_Q_24_2'!$IL$5:$IL$353) -> 79.22997978 | M13: Click Yellow Box | Q13: 7 | R13: NOAA D
C14: 2 | D14: 3.22 | E14: =MAX(Q10_2!$Z$5:$Z$105) -> 148.5840215 | F14: <= | G14: 20 | H14: 4.84 | I14: =MAX('5 yr_Q_24_2'!$IL$5:$IL$353) -> 113.4252709
C15: 3 | D15: 3.45 | E15: =MAX(Q10_3!$AJ$5:$AJ$105) -> 145.9034264 | G15: 10 | H15: 5.74 | I15: =MAX('10 yr_Q_24_2'!$IL$5:$IL$353) -> 114.3662575
C16: 6 | D16: 4.07 | E16: =MAX(Q10_6!$BN$5:$BN$353) -> 147.4590275 | G16: 4 | H16: 7.04 | I16: =MAX('25 yr_Q_24_2'!$IL$5:$IL$353) -> 157.2134966 | M16: DO NOT CLICK ON THE MAP OR LEGEND
C17: 12 | D17: 4.78 | E17: =MAX(Q10_12!$DV$5:$DV$353) -> 139.1828527 | G17: 2 | H17: 8.12 | I17: =MAX('50 yr_Q_24_2'!$IL$5:$IL$353) -> 193.997371
C18: 24 | D18: 5.74 | E18: =MAX(Q10_24!$IL$4:$IL$352) -> 115.7079488 | G18: 1 | H18: 9.29 | I18: =MAX('100 yr_Q_24_2'!$IL$5:$IL$353) -> 234.6029815
C21: 25, 50 and 100 Year D-Hour Rainfall Data and Peak Runoff Rates
C22: D-Hour Rainfall Data
C23: AEP (%) = | D23: 4 | G23: 2 | J23: 1
C24: Return Period (yrs) = | D24: =100/D23 -> 25 | E24: Peak Runoff, Qp (cfs) | G24: =100/G23 -> 50 | H24: Peak Runoff, Qp (cfs) | J24: =100/J23 -> 100 | K24: Peak Runoff, Qp (cfs)
C25: Duration (hrs) | D25: Depth (in) | G25: Depth (in) | J25: Depth (in)
C26: 1 | D26: 3.13 | E26: =MAX(Q25_1!$P$5:$P$105) -> 162.544731 | F26: =IF(E26=MAX(E$26:E$31),"<="," ") ->  | G26: 3.56 | H26: =MAX(Q50_1!$P$5:$P$105) -> 190.51781 | I26: =IF(H26=MAX(H$26:H$31),"<="," ") ->  | J26: 3.98 | K26: =MAX(Q100_1!$P$5:$P$245) -> 217.9257107 | L26: =IF(K26=MAX(K$26:K$31),"<="," ") -> 
C27: 2 | D27: 3.85 | E27: =MAX(Q25_2!$Z$5:$Z$105) -> 184.787381 | G27: 4.43 | H27: =MAX(Q50_2!$Z$5:$Z$105) -> 218.4993898 | J27: 5 | K27: =MAX(Q100_2!$Z$5:$Z$245) -> 251.7210643
C28: 3 | D28: 4.17 | E28: =MAX(Q25_3!$AJ$5:$AJ$105) -> 183.7519014 | G28: 4.85 | H28: =MAX(Q50_3!$AJ$5:$AJ$105) -> 219.9163586 | J28: 5.54 | K28: =MAX(Q100_3!$AJ$5:$AJ$245) -> 256.7338122
C29: 6 | D29: 4.94 | E29: =MAX(Q25_6!$BN$5:$BN$353) -> 186.6264936 | F29: <= | G29: 5.77 | H29: =MAX(Q50_6!$BN$5:$BN$353) -> 224.5121523 | I29: <= | J29: 6.6 | K29: =MAX(Q100_6!$BN$5:$BN$353) -> 262.5561619 | L29: <=
C30: 12 | D30: 5.84 | E30: =MAX(Q25_12!$DV$5:$DV$353) -> 179.7329634 | G30: 6.86 | H30: =MAX(Q50_12!$DV$5:$DV$353) -> 219.6341155 | J30: 7.9 | K30: =MAX(Q100_12!$DV$5:$DV$353) -> 260.6882698
C31: 24 | D31: 7.04 | E31: =MAX(Q25_24!$IL$4:$IL$352) -> 157.2134966 | G31: 8.12 | H31: =MAX(Q50_24!$IL$4:$IL$352) -> 192.8989365 | J31: 9.29 | K31: =MAX(Q100_24!$IL$4:$IL$352) -> 232.3951276
C33: Use this worksheet to enter rainfall data for 1, 2, 3, 6, 12 and 24 hour durations for 10 year, 25 year, 50 year and 100 year events and for 1, 2, 5, 10, 25, 50 and 100 year return period 24 hour storms. Click the designated cell (Row 5) to open the Precipitation Frequency Data Server to access NOAA rainfall data. Move the crosshair over the desired site location. The data are listed in a table under the map. Write the Return Period rainfall depths for the different durations and the 24-hour rainfall depths for the different return periods on note paper. Close the Data Server and enter the rainfall depths in the appropriate Rainfall Data Table.

Sheet SC Rainfall Distribution Map
B2: SC Rainfall Distribution and Physiographic Region Maps
B6: For more information see the NRCS TR-20 website at | J6: https://www.nrcs.usda.gov/wps/portal/nrcs/detail/national/water/manage/hydrology/?cid=stelprdb1042793

Sheet Data for CN Determination
B2: Basic Data for CN Calculation | I2: Land Use | K2: Selected NRCS (SCS) Curve Numbers for Average Runoff Conditions (ARC II) | P2: Notes and Comments With Respect to Runoff Curve Numbers
B3: Land Use | D3: Condition | E3: HSG | F3: CN | G3: Area (ac)
B4: Woods | D4: Good | E4: B | F4: 58 | G4: 50 | K4: Hydrologic Soil Group Classification
B5: Industrial | D5: Good | E5: B | F5: 88 | G5: 50 | K5: A | L5: B | M5: C | N5: D
I6: Open Space 1 | P6: 1 | Q6: CN’s shown are equivalent to those of pasture. Composite CN’s may be computed for other combinations of open space cover type.
I7: Poor Condition (grass cover < 50%) | K7: 68 | L7: 79 | M7: 86 | N7: 89
I8: Fair Condition (grass cover 50-75%) | K8: 49 | L8: 69 | M8: 79 | N8: 84
I9: Good Condition (grass cover > 75%) | K9: 39 | L9: 61 | M9: 74 | N9: 80 | P9: 2 | Q9: The average percent impervious area shown was used to develop the composite CN’s. Other assumptions are as follows: impervious areas are directly connected to the drainage system, impervious areas have a CN of 98, and pervious areas are considered equivalent to open space in good hydrologic condition. CN’s for other combinations of conditions may be computed using figure 2-3 or 2-4 in NRCS Technical Release 55, Urban Hydrology for Small Watersheds.
I10: Impervious Areas (paved parking lots, roofs, etc.) | K10: 98 | L10: 98 | M10: 98 | N10: 98
I11: Streets and Roads
I12: Paved with curbs and storm sewers | K12: 98 | L12: 98 | M12: 98 | N12: 98
I13: Paved with open ditches | K13: 83 | L13: 89 | M13: 92 | N13: 93
I14: Gravel | K14: 76 | L14: 85 | M14: 89 | N14: 91
I15: Dirt | K15: 72 | L15: 82 | M15: 87 | N15: 89
J16: Average %
J17: Impervious2 | P17: 3 | Q17: Composite CN’s to use for the design of temporary measures during grading and construction should be computed using figure 2-3 or 2-4 in Technical Release 55, based on the degree of development (impervious area percentage) and the CN’s for the newly graded pervious areas.
I18: Urban Land Use
B19: Total Watershed Area = | D19: =G19 -> 100 | E19: This is the total watershed area. It is computed and entered into the speadsheet here. | G19: =SUM(G4:G18) -> 100 | I19: Commercial and Business | J19: 85 | K19: 89 | L19: 92 | M19: 94 | N19: 95
I20: Industrial | J20: 72 | K20: 81 | L20: 88 | M20: 91 | N20: 93
B21: Unshaded Cells are for User Input. | I21: Residential | P21: 4 | Q21: Poor: <50% ground cover or heavily grazed with no mulch.
I22: 1/8 Acre | J22: 65 | K22: 77 | L22: 85 | M22: 90 | N22: 92 | Q22: Fair: 50 to 75% ground cover and not heavily grazed.
I23: 1/4 Acre | J23: 38 | K23: 61 | L23: 75 | M23: 83 | N23: 87 | Q23: Good: >75% ground cover and lightly or only occasionally grazed.
B24: Shaded Cells are for Calculated Values. DO NOT TOUCH or CHANGE the shaded cells! | I24: 1/3 Acre | J24: 30 | K24: 57 | L24: 72 | M24: 81 | N24: 86 | P24: 5 | Q24: Poor: <50% ground cover.
I25: 1/2 Acre | J25: 25 | K25: 54 | L25: 70 | M25: 80 | N25: 85 | Q25: Fair: 50 to 75% ground cover.
I26: 1 Acre | J26: 20 | K26: 51 | L26: 68 | M26: 79 | N26: 84 | Q26: Good: >75% ground cover.
I27: 2 Acres | J27: 12 | K27: 46 | L27: 65 | M27: 77 | N27: 82 | P27: 6 | Q27: Actual curve number is less than 30; use CN = 30 for runoff computations.
B28: Basic data entered on this worksheet are used to compute the average CN value by two methods: area weighted average and runoff weighted average. The computations are on separate worksheets, which are hidden. The results are shown on the WS & UH Data & Runoff Results worksheet where a Drop Down menu allows the user to select which average CN method he/she prefers. | I28: Developing urban areas, newly graded, no grass cover 3 | K28: 77 | L28: 86 | M28: 91 | N28: 94 | P28: 7 | Q28: CN’s shown were computed for areas with 50% woods and 505 grass (pasture) cover. Other combinations of conditions may be computed from the CN’s for woods and pasture.
I29: Pasture 4 | P29: 8 | Q29: Poor: Forest litter, small trees, and brush destroyed by heavy grazing or regular burning.
I30: Poor | K30: 68 | L30: 79 | M30: 86 | N30: 89 | Q30: Fair: Woods are grazed but not burned, and some forest litter covers the soil.
I31: Fair | K31: 49 | L31: 69 | M31: 79 | N31: 84 | Q31: Good: Woods are protected from grazing, and litter and brush adequately cover the soil.
I32: Good | K32: 39 | L32: 61 | M32: 74 | N32: 80 | P32: 9 | Q32: Crop residue cover applies only if residue is on at least 5 percent of the surface throughout the year.
I33: Meadows (Continuous Grass, Protected From Grazing, & Generally Mowed For Hay) | K33: 30 | L33: 58 | M33: 71 | N33: 78
P34: 10 | Q34: Hydrologic condition is based on combination of factors that affect infiltration and runoff, including (a) density and canopy of vegetative areas, (b) amount of year-round cover, (c) amount of grass or close-seeded legumes in rotations, (d) percentage of residue cover on the land surface (good > 20%), and (e) degree of surface roughness. Poor: Factors impair infiltration and tend to increase runoff. Good: Factors encourage average and better than average infiltration and tend to decrease runoff.
I35: Brush (Brush/Weed/Grass Mixture With Brush The Major Element) 5
B36: To compute area weighted CN values, for each land use and HSG combination multiply the CN by the area. Do this for all land use and HSG combinations. Divide the sum of products by total watershed area.
I37: Poor Condition | K37: 48 | L37: 67 | M37: 77 | N37: 83
I38: Fair Condition | K38: 35 | L38: 56 | M38: 70 | N38: 77
I39: Good Condition 6 | K39: 30 | L39: 48 | M39: 65 | N39: 73
B40: To compute runoff weighted CN values, use the CN for each land use and HSG combination to compute the event runoff with the CN Runoff Model. Do this for all land use and HSG combinations. Multiply the computed runoff from each land use and HSG combination by the area of that combination. Sum the products and divide the sum by the total watershed area. | I40: Woods/Grass Combination (Orchard Or Tree Farm) 7
I41: Poor Condition | K41: 57 | L41: 73 | M41: 82 | N41: 86
I42: Fair Condition | K42: 43 | L42: 65 | M42: 76 | N42: 82 | P42: 11 | Q42: The NRCS has advised to use a CN of 98 for bodies of water that have an outflow. For bodies of water that do not have outflow (Ex Great Salt Lake) or is included the final receiving body in the model to use a CN of 0.
I43: Good Condition | K43: 32 | L43: 58 | M43: 65 | N43: 78
I44: Woods 8
I45: Poor Condition | K45: 45 | L45: 66 | M45: 77 | N45: 83
I46: Fair Condition | K46: 36 | L46: 60 | M46: 73 | N46: 79 | P46: 12 | Q46: The NRCS has advised that, due to differences found in the field, calculating CNs from the individual component instead of using the composite CNs (ex. Residential CNs) can give results that are more accurate. One of the issues with the composite CNs is that the amount of each component (ex. grass, impervious) may not be the same as found in the field.
I47: Good Condition 6 | K47: 30 | L47: 55 | M47: 70 | N47: 77
I48: Farmsteads (Buildings, Lanes, Driveways, & Surrounding Lots | K48: 59 | L48: 74 | M48: 82 | N48: 86
I50: Treatment 9 | J50: Hydrologic 10
J51: Condition
I52: Fallow
I53: Bare Soil | J53: - | K53: 77 | L53: 86 | M53: 91 | N53: 94
I54: Crop Residue Cover | J54: Poor | K54: 76 | L54: 85 | M54: 90 | N54: 93
J55: Good | K55: 74 | L55: 83 | M55: 88 | N55: 90
I56: Row Crop
I57: Straight Row | J57: Poor | K57: 72 | L57: 81 | M57: 88 | N57: 91
J58: Good | K58: 67 | L58: 78 | M58: 85 | N58: 89
I59: Straight Row + Crop Residue Cover | J59: Poor | K59: 71 | L59: 80 | M59: 87 | N59: 90
J60: Good | K60: 64 | L60: 75 | M60: 82 | N60: 85
I61: Contoured | J61: Poor | K61: 70 | L61: 79 | M61: 84 | N61: 88
J62: Good | K62: 65 | L62: 75 | M62: 82 | N62: 86
I63: Contoured + Crop Residue Cover | J63: Poor | K63: 69 | L63: 78 | M63: 83 | N63: 87
J64: Good | K64: 64 | L64: 74 | M64: 81 | N64: 85
I65: Contoured & Terraced | J65: Poor | K65: 66 | L65: 74 | M65: 80 | N65: 82
J66: Good | K66: 62 | L66: 71 | M66: 78 | N66: 81
I67: Contoured & Terraced + Crop Residue Cover | J67: Poor | K67: 65 | L67: 73 | M67: 79 | N67: 81
J68: Good | K68: 61 | L68: 70 | M68: 77 | N68: 80
I69: Small Grain
I70: Straight Row | J70: Poor | K70: 65 | L70: 76 | M70: 84 | N70: 88
J71: Good | K71: 63 | L71: 75 | M71: 83 | N71: 87
I72: Straight Row + Crop Residue Cover | J72: Poor | K72: 64 | L72: 75 | M72: 83 | N72: 86
J73: Good | K73: 60 | L73: 72 | M73: 80 | N73: 84
I74: Contoured | J74: Poor | K74: 63 | L74: 74 | M74: 82 | N74: 85
J75: Good | K75: 61 | L75: 73 | M75: 81 | N75: 84
I76: Contoured + Crop Residue Cover | J76: Poor | K76: 62 | L76: 73 | M76: 81 | N76: 84
J77: Good | K77: 60 | L77: 72 | M77: 80 | N77: 83
I78: Contoured & Terraced | J78: Poor | K78: 61 | L78: 72 | M78: 79 | N78: 82
J79: Good | K79: 59 | L79: 70 | M79: 78 | N79: 81
I80: Contoured & Terraced + Crop Residue Cover | J80: Poor | K80: 60 | L80: 71 | M80: 78 | N80: 81
J81: Good | K81: 58 | L81: 69 | M81: 77 | N81: 80
I82: Closed-Seeded/Broadcast Legumes/ Rotation Meadow
I83: Straight Row | J83: Poor | K83: 66 | L83: 77 | M83: 85 | N83: 89
J84: Good | K84: 58 | L84: 72 | M84: 81 | N84: 85
I85: Contoured | J85: Poor | K85: 64 | L85: 75 | M85: 83 | N85: 85
J86: Good | K86: 55 | L86: 69 | M86: 78 | N86: 83
I87: Contoured & Terraced | J87: Poor | K87: 63 | L87: 73 | M87: 80 | N87: 83

Sheet Area Weighted CN Calculator (hidden)
B2: Area Weighted Curve Number Calculator
B3: Land Use | D3: Condition | E3: HSG | F3: Standard CN | G3: Area (ac) | H3: Area*CN
B4: ='Data for CN Determination'!B4:C4 -> Woods | D4: ='Data for CN Determination'!D4 -> Good | E4: ='Data for CN Determination'!E4 -> B | F4: ='Data for CN Determination'!F4 -> 58 | G4: ='Data for CN Determination'!G4 -> 50 | H4: =F4*G4 -> 2900 | J4: To compute area weighted CN values, for each land use and HSG combination multiply the CN by the area. Do this for all land use and HSG combinations. Divide the sum of products by total watershed area.
B5: ='Data for CN Determination'!B5:C5 -> Industrial | D5: ='Data for CN Determination'!D5 -> Good | E5: ='Data for CN Determination'!E5 -> B | F5: ='Data for CN Determination'!F5 -> 88 | G5: ='Data for CN Determination'!G5 -> 50 | H5: =F5*G5 -> 4400
B6: ='Data for CN Determination'!B6:C6 -> 0 | D6: ='Data for CN Determination'!D6 -> 0 | E6: D | F6: ='Data for CN Determination'!F6 -> 0 | G6: ='Data for CN Determination'!G6 -> 0 | H6: =F6*G6 -> 0
B7: ='Data for CN Determination'!B7:C7 -> 0 | D7: ='Data for CN Determination'!D7 -> 0 | E7: D | F7: ='Data for CN Determination'!F7 -> 0 | G7: ='Data for CN Determination'!G7 -> 0 | H7: =F7*G7 -> 0
B8: ='Data for CN Determination'!B8:C8 -> 0 | D8: ='Data for CN Determination'!D8 -> 0 | E8: ='Data for CN Determination'!E8 -> 0 | F8: ='Data for CN Determination'!F8 -> 0 | G8: ='Data for CN Determination'!G8 -> 0 | H8: 0
B9: ='Data for CN Determination'!B9:C9 -> 0 | D9: ='Data for CN Determination'!D9 -> 0 | E9: ='Data for CN Determination'!E9 -> 0 | F9: ='Data for CN Determination'!F9 -> 0 | G9: ='Data for CN Determination'!G9 -> 0 | H9: 0
B10: ='Data for CN Determination'!B10:C10 -> 0 | D10: ='Data for CN Determination'!D10 -> 0 | E10: ='Data for CN Determination'!E10 -> 0 | F10: ='Data for CN Determination'!F10 -> 0 | G10: ='Data for CN Determination'!G10 -> 0 | H10: 0
B11: ='Data for CN Determination'!B11:C11 -> 0 | D11: ='Data for CN Determination'!D11 -> 0 | E11: ='Data for CN Determination'!E11 -> 0 | F11: ='Data for CN Determination'!F11 -> 0 | G11: ='Data for CN Determination'!G11 -> 0 | H11: 0
B12: ='Data for CN Determination'!B12:C12 -> 0 | D12: ='Data for CN Determination'!D12 -> 0 | E12: ='Data for CN Determination'!E12 -> 0 | F12: ='Data for CN Determination'!F12 -> 0 | G12: ='Data for CN Determination'!G12 -> 0 | H12: 0
B13: ='Data for CN Determination'!B13:C13 -> 0 | D13: ='Data for CN Determination'!D13 -> 0 | E13: ='Data for CN Determination'!E13 -> 0 | F13: ='Data for CN Determination'!F13 -> 0 | G13: ='Data for CN Determination'!G13 -> 0 | H13: 0
B14: ='Data for CN Determination'!B14:C14 -> 0 | D14: ='Data for CN Determination'!D14 -> 0 | E14: ='Data for CN Determination'!E14 -> 0 | F14: ='Data for CN Determination'!F14 -> 0 | G14: ='Data for CN Determination'!G14 -> 0 | H14: 0
B15: ='Data for CN Determination'!B15:C15 -> 0 | D15: ='Data for CN Determination'!D15 -> 0 | E15: ='Data for CN Determination'!E15 -> 0 | F15: ='Data for CN Determination'!F15 -> 0 | G15: ='Data for CN Determination'!G15 -> 0 | H15: 0 | J15: There are no unshaded Cells for User Input on this sheet.
B16: ='Data for CN Determination'!B16:C16 -> 0 | D16: ='Data for CN Determination'!D16 -> 0 | E16: ='Data for CN Determination'!E16 -> 0 | F16: ='Data for CN Determination'!F16 -> 0 | G16: ='Data for CN Determination'!G16 -> 0 | H16: 0
B17: ='Data for CN Determination'!B17:C17 -> 0 | D17: ='Data for CN Determination'!D17 -> 0 | E17: ='Data for CN Determination'!E17 -> 0 | F17: ='Data for CN Determination'!F17 -> 0 | G17: ='Data for CN Determination'!G17 -> 0 | H17: 0
B18: ='Data for CN Determination'!B18:C18 -> 0 | D18: ='Data for CN Determination'!D18 -> 0 | E18: ='Data for CN Determination'!E18 -> 0 | F18: ='Data for CN Determination'!F18 -> 0 | G18: ='Data for CN Determination'!G18 -> 0 | H18: 0
F19: Sum of Area*CN = | H19: =SUM(H4:H18) -> 7300
B21: Return Period (yrs) = | D21: 1 | E21: 2 | F21: 5 | G21: 10 | H21: 25 | I21: 50 | J21: 100
B22: 24-hour Rainfall Depth (P) = | D22: =P2_24_1 -> 3.09 | E22: =P2_24_2 -> 3.76 | F22: =P2_24_5 -> 4.84 | G22: =P10_24 -> 5.74 | H22: =P25_24 -> 7.04 | I22: =P50_24 -> 8.12 | J22: =P100_24 -> 9.29
B23: Area Weighted WS CN = | D23: =($H19/[0]!Area) -> 73 | E23: =($H19/[0]!Area) -> 73 | F23: =($H19/[0]!Area) -> 73 | G23: =($H19/[0]!Area) -> 73 | H23: =($H19/[0]!Area) -> 73 | I23: =($H19/[0]!Area) -> 73 | J23: =($H19/[0]!Area) -> 73
B24: WS Retention S (in) = | D24: =1000/D23-10 -> 3.698630137 | E24: 3.698630137 | F24: 3.698630137 | G24: =1000/G23-10 -> 3.698630137 | H24: =1000/H23-10 -> 3.698630137 | I24: 3.698630137 | J24: 3.698630137
B25: Initial Abstractions Ia=0.2S (in) = | D25: =0.2*D24 -> 0.7397260274 | E25: 0.7397260274 | F25: 0.7397260274 | G25: =0.2*G24 -> 0.7397260274 | H25: =0.2*H24 -> 0.7397260274 | I25: 0.7397260274 | J25: 0.7397260274
B26: 24-hour Runoff Depth (QCN) = | D26: =((D22-D25)^2)/(D22+0.8*D24) -> 0.9131881819 | E26: 1.357670049 | F26: 2.155719113 | G26: =((G22-G25)^2)/(G22+0.8*G24) -> 2.87424019 | H26: =((H22-H25)^2)/(H22+0.8*H24) -> 3.969780257 | I26: 4.916410808 | J26: 5.968467412
F39: j

Sheet Runoff Weighted CN Calculator (hidden)
B2: Runoff Weighted Curve Number Calculator
B3: Land Use | D3: Condition | E3: HSG | F3: Standard CN | G3: S | H3: Ia | I3: Area (ac) | J3: 1-yr 24-hr QCN | K3: Area*QCN | L3: 2-yr 24-hr QCN | M3: Area*QCN | N3: 5-yr 24-hr QCN | O3: Area*QCN | P3: 10-yr 24-hr QCN | Q3: Area*QCN | R3: 25-yr 24-hr QCN | S3: Area*QCN | T3: 50-yr 24-hr QCN | U3: Area*QCN | V3: 100-yr 24-hr QCN | W3: Area*QCN | Y3: The original CN method was developed for application to small drainage areas assumed to have uniform properties. Watersheds are mixtures of different land uses and soils, and therefore different contributing CNs. This mixture is particularly true at larger watersheds. Previous practice has been to average – on an area-weighted basis - the assigned CNs and use the average CN in the calculation of runoff from the entire watershed. Using area-weighted CNs does not account for the effects of extremes, especially for rainfall and CN conditions close to the threshold of runoff, such as found for smaller storms and higher CN portions of the watershed. This problem can be avoided using what is termed runoff-weighted CN values which is the approach suggested by the CN model update committee and is included as the recommended option in this spreadsheet.
B4: ='Data for CN Determination'!B4:C4 -> Woods | D4: ='Data for CN Determination'!D4 -> Good | E4: ='Data for CN Determination'!E4 -> B | F4: ='Data for CN Determination'!F4 -> 58 | G4: =IF(F4>0,1000/F4-10,0) -> 7.24137931 | H4: =0.2*G4 -> 1.448275862 | I4: ='Data for CN Determination'!G4 -> 50 | J4: =IF($F4>0,((P2_24_1-$H4)^2)/(P2_24_1+0.8*$G4),0) -> 0.303414022 | K4: =J4*$I4 -> 15.1707011 | L4: =IF($F4>0,((P2_24_2-$H4)^2)/(P2_24_2+0.8*$G4),0) -> 0.5594065341 | M4: =L4*$I4 -> 27.9703267 | N4: =IF($F4>0,((P2_24_5-$H4)^2)/(P2_24_5+0.8*$G4),0) -> 1.081884765 | O4: =N4*$I4 -> 54.09423826 | P4: =IF($F4>0,((P10_24-$H4)^2)/(P10_24+0.8*$G4),0) -> 1.597045943 | Q4: =P4*$I4 -> 79.85229717 | R4: =IF($F4>0,((P25_24-$H4)^2)/(P25_24+0.8*$G4),0) -> 2.436462775 | S4: =R4*$I4 -> 121.8231387 | T4: =IF($F4>0,((P50_24-$H4)^2)/(P50_24+0.8*$G4),0) -> 3.199279236 | U4: =T4*$I4 -> 159.9639618 | V4: =IF($F4>0,((P100_24-$H4)^2)/(P100_24+0.8*$G4),0) -> 4.076922078 | W4: =V4*$I4 -> 203.8461039
B5: ='Data for CN Determination'!B5:C5 -> Industrial | D5: ='Data for CN Determination'!D5 -> Good | E5: ='Data for CN Determination'!E5 -> B | F5: ='Data for CN Determination'!F5 -> 88 | G5: =IF(F5>0,1000/F5-10,0) -> 1.363636364 | H5: =0.2*G5 -> 0.2727272727 | I5: ='Data for CN Determination'!G5 -> 50 | J5: 1.898397082 | K5: =J5*$I5 -> 94.91985412 | L5: 2.506967425 | M5: =L5*$I5 -> 125.3483713 | N5: 3.517164038 | O5: =N5*$I5 -> 175.8582019 | P5: 4.375855494 | Q5: =P5*$I5 -> 218.7927747 | R5: =IF($F5>0,((P25_24-$H5)^2)/(P25_24+0.8*$G5),0) -> 5.632332087 | S5: =R5*$I5 -> 281.6166043 | T5: 6.685516994 | U5: =T5*$I5 -> 334.2758497 | V5: 7.832763655 | W5: =V5*$I5 -> 391.6381828
B6: ='Data for CN Determination'!B6:C6 -> 0 | D6: ='Data for CN Determination'!D6 -> 0 | E6: ='Data for CN Determination'!E6 -> 0 | F6: ='Data for CN Determination'!F6 -> 0 | G6: 0 | H6: =0.2*G6 -> 0 | I6: ='Data for CN Determination'!G6 -> 0 | J6: 0 | K6: =J6*I6 -> 0 | L6: 0 | M6: =L6*E6 -> 0 | N6: 0 | O6: =N6*G6 -> 0 | P6: 0 | Q6: 0 | R6: =IF(H6>0,((P25_24-J6)^2)/(P25_24+0.8*I6),0) -> 0 | S6: =R6*K6 -> 0 | T6: 0 | U6: =T6*$I6 -> 0 | V6: 0 | W6: =V6*$I6 -> 0
B7: ='Data for CN Determination'!B7:C7 -> 0 | D7: ='Data for CN Determination'!D7 -> 0 | E7: ='Data for CN Determination'!E7 -> 0 | F7: ='Data for CN Determination'!F7 -> 0 | G7: 0 | H7: 0 | I7: ='Data for CN Determination'!G7 -> 0 | J7: 0 | K7: 0 | L7: 0 | M7: 0 | N7: 0 | O7: 0 | P7: 0 | Q7: 0 | R7: 0 | S7: 0 | T7: 0 | U7: 0 | V7: 0 | W7: 0
B8: ='Data for CN Determination'!B8:C8 -> 0 | D8: ='Data for CN Determination'!D8 -> 0 | E8: ='Data for CN Determination'!E8 -> 0 | F8: ='Data for CN Determination'!F8 -> 0 | G8: 0 | H8: 0 | I8: ='Data for CN Determination'!G8 -> 0 | J8: 0 | K8: 0 | L8: 0 | M8: 0 | N8: 0 | O8: 0 | P8: 0 | Q8: 0 | R8: 0 | S8: 0 | T8: 0 | U8: 0 | V8: 0 | W8: 0
B9: ='Data for CN Determination'!B9:C9 -> 0 | D9: ='Data for CN Determination'!D9 -> 0 | E9: ='Data for CN Determination'!E9 -> 0 | F9: ='Data for CN Determination'!F9 -> 0 | G9: 0 | H9: 0 | I9: ='Data for CN Determination'!G9 -> 0 | J9: 0 | K9: 0 | L9: 0 | M9: 0 | N9: 0 | O9: 0 | P9: 0 | Q9: 0 | R9: 0 | S9: 0 | T9: 0 | U9: 0 | V9: 0 | W9: 0
B10: ='Data for CN Determination'!B10:C10 -> 0 | D10: ='Data for CN Determination'!D10 -> 0 | E10: ='Data for CN Determination'!E10 -> 0 | F10: ='Data for CN Determination'!F10 -> 0 | G10: 0 | H10: 0 | I10: ='Data for CN Determination'!G10 -> 0 | J10: 0 | K10: 0 | L10: 0 | M10: 0 | N10: 0 | O10: 0 | P10: 0 | Q10: 0 | R10: 0 | S10: 0 | T10: 0 | U10: 0 | V10: 0 | W10: 0
B11: ='Data for CN Determination'!B11:C11 -> 0 | D11: ='Data for CN Determination'!D11 -> 0 | E11: ='Data for CN Determination'!E11 -> 0 | F11: ='Data for CN Determination'!F11 -> 0 | G11: 0 | H11: 0 | I11: ='Data for CN Determination'!G11 -> 0 | J11: 0 | K11: 0 | L11: 0 | M11: 0 | N11: 0 | O11: 0 | P11: 0 | Q11: 0 | R11: =IF(H11>0,((P25_24-J11)^2)/(P25_24+0.8*I11),0) -> 0 | S11: 0 | T11: 0 | U11: 0 | V11: 0 | W11: 0
B12: ='Data for CN Determination'!B12:C12 -> 0 | D12: ='Data for CN Determination'!D12 -> 0 | E12: ='Data for CN Determination'!E12 -> 0 | F12: ='Data for CN Determination'!F12 -> 0 | G12: 0 | H12: 0 | I12: ='Data for CN Determination'!G12 -> 0 | J12: 0 | K12: 0 | L12: 0 | M12: 0 | N12: 0 | O12: 0 | P12: 0 | Q12: 0 | R12: 0 | S12: 0 | T12: 0 | U12: 0 | V12: 0 | W12: 0
B13: ='Data for CN Determination'!B13:C13 -> 0 | D13: ='Data for CN Determination'!D13 -> 0 | E13: ='Data for CN Determination'!E13 -> 0 | F13: ='Data for CN Determination'!F13 -> 0 | G13: 0 | H13: 0 | I13: ='Data for CN Determination'!G13 -> 0 | J13: 0 | K13: 0 | L13: 0 | M13: 0 | N13: 0 | O13: 0 | P13: 0 | Q13: 0 | R13: 0 | S13: 0 | T13: 0 | U13: 0 | V13: 0 | W13: 0
B14: ='Data for CN Determination'!B14:C14 -> 0 | D14: ='Data for CN Determination'!D14 -> 0 | E14: ='Data for CN Determination'!E14 -> 0 | F14: ='Data for CN Determination'!F14 -> 0 | G14: 0 | H14: 0 | I14: ='Data for CN Determination'!G14 -> 0 | J14: 0 | K14: 0 | L14: 0 | M14: 0 | N14: 0 | O14: 0 | P14: 0 | Q14: 0 | R14: 0 | S14: 0 | T14: 0 | U14: 0 | V14: 0 | W14: 0
B15: ='Data for CN Determination'!B15:C15 -> 0 | D15: ='Data for CN Determination'!D15 -> 0 | E15: ='Data for CN Determination'!E15 -> 0 | F15: ='Data for CN Determination'!F15 -> 0 | G15: 0 | H15: 0 | I15: ='Data for CN Determination'!G15 -> 0 | J15: 0 | K15: 0 | L15: 0 | M15: 0 | N15: 0 | O15: 0 | P15: 0 | Q15: 0 | R15: 0 | S15: 0 | T15: 0 | U15: 0 | V15: 0 | W15: 0
B16: ='Data for CN Determination'!B16:C16 -> 0 | D16: ='Data for CN Determination'!D16 -> 0 | E16: ='Data for CN Determination'!E16 -> 0 | F16: ='Data for CN Determination'!F16 -> 0 | G16: 0 | H16: 0 | I16: ='Data for CN Determination'!G16 -> 0 | J16: 0 | K16: 0 | L16: 0 | M16: 0 | N16: 0 | O16: 0 | P16: 0 | Q16: 0 | R16: 0 | S16: 0 | T16: 0 | U16: 0 | V16: 0 | W16: 0
B17: ='Data for CN Determination'!B17:C17 -> 0 | D17: ='Data for CN Determination'!D17 -> 0 | E17: ='Data for CN Determination'!E17 -> 0 | F17: ='Data for CN Determination'!F17 -> 0 | G17: 0 | H17: 0 | I17: ='Data for CN Determination'!G17 -> 0 | J17: 0 | K17: 0 | L17: 0 | M17: 0 | N17: 0 | O17: 0 | P17: 0 | Q17: 0 | R17: 0 | S17: 0 | T17: 0 | U17: 0 | V17: 0 | W17: 0
B18: ='Data for CN Determination'!B18:C18 -> 0 | D18: ='Data for CN Determination'!D18 -> 0 | E18: ='Data for CN Determination'!E18 -> 0 | F18: ='Data for CN Determination'!F18 -> 0 | G18: 0 | H18: 0 | I18: ='Data for CN Determination'!G18 -> 0 | J18: 0 | K18: 0 | L18: 0 | M18: 0 | N18: 0 | O18: 0 | P18: 0 | Q18: 0 | R18: 0 | S18: 0 | T18: 0 | U18: 0 | V18: 0 | W18: 0
I19: Sum of Area*QCN = | K19: =SUM(K4:K18) -> 110.0905552 | M19: =SUM(M4:M18) -> 153.318698 | O19: =SUM(O4:O18) -> 229.9524401 | Q19: =SUM(Q4:Q18) -> 298.6450719 | S19: =SUM(S4:S18) -> 403.4397431 | U19: =SUM(U4:U18) -> 494.2398115 | W19: =SUM(W4:W18) -> 595.4842867
B21: Return Period (yrs) = | D21: 1 | E21: 2 | F21: 5 | G21: 10 | H21: 25 | I21: 50 | J21: 100
B22: 24-hour Rainfall Depth (P) = | D22: =P2_24_1 -> 3.09 | E22: =P2_24_2 -> 3.76 | F22: =P2_24_5 -> 4.84 | G22: =P10_24 -> 5.74 | H22: =P25_24 -> 7.04 | I22: =P50_24 -> 8.12 | J22: =P100_24 -> 9.29
B23: 24-hour Runoff Depth (QCN) = | D23: =K19/[0]!Area -> 1.100905552 | E23: =M19/[0]!Area -> 1.53318698 | F23: =O19/[0]!Area -> 2.299524401 | G23: =Q19/[0]!Area -> 2.986450719 | H23: =S19/[0]!Area -> 4.034397431 | I23: =U19/[0]!Area -> 4.942398115 | J23: =W19/[0]!Area -> 5.954842867
B24: Runoff Weighted CN = | D24: =IF(1000 / (10 + 5*D22 + 10*D23 - 10*(D23^2 + 1.25*D22*D23)^0.5)>0,1000 / (10 + 5*D22 + 10*D23 - 10*(D23^2 + 1.25*D22*D23)^0.5),0) -> 76.43308168 | E24: 75.65411128 | F24: 74.75230747 | G24: 74.20217543 | H24: 73.60352303 | I24: 73.22278915 | J24: 72.89148309 | Y24: To compute runoff weighted CN values, use the CN for each land use and HSG combination to compute the event runoff with the CN Runoff Model. Do this for all land use and HSG combinations. Multiply the computed runoff from each land use and HSG combination by the area of that combination. Sum the products and divide the sum by the total watershed area.
B25: WS Retention S (in) = | D25: =1000/D24-10 -> 3.083340067 | E25: =1000/E24-10 -> 3.218052305 | F25: 3.377513469 | G25: =1000/G24-10 -> 3.476693832 | H25: =1000/H24-10 -> 3.586306183 | I25: 3.656950407 | J25: 3.719023919
B26: Initial Abstractions Ia=0.2S (in) = | D26: =0.2*D25 -> 0.6166680134 | E26: =0.2*E25 -> 0.643610461 | F26: 0.6755026938 | G26: =0.2*G25 -> 0.6953387665 | H26: =0.2*H25 -> 0.7172612366 | I26: 0.7313900813 | J26: 0.7438047837
G27: =IF(G21=DS_RP,G24,0) -> 0 | H27: =IF(H21=DS_RP,H24,0) -> 73.60352303 | I27: =IF(I21=DS_RP,I24,0) -> 0 | J27: =IF(J21=DS_RP,J24,0) -> 0
D29: There are no unshaded Cells for User Input on this sheet.

Sheet PRF Calculator
B2: PRF Calculator | I2: PRF Values for South Carolina | K2: Unit Hydrograph Peak Rate Factor (PRF) | M2: UH Parameters
B3: Land Use | D3: PRF | E3: Area (ac) | F3: Product | M3: PRF | N3: G-fn n
B4: ='Data for CN Determination'!B4:C4 -> Woods | D4: 200 | E4: ='Data for CN Determination'!G4 -> 50 | F4: =D4*E4 -> 10000 | I4: Land Use | M4: 50 | N4: 1.05
B5: ='Data for CN Determination'!B5:C5 -> Industrial | D5: 550 | E5: ='Data for CN Determination'!G5 -> 50 | F5: =D5*E5 -> 27500 | M5: 100 | N5: 1.25
B6: ='Data for CN Determination'!B6:C6 -> 0 | E6: ='Data for CN Determination'!G6 -> 0 | F6: =D6*E6 -> 0 | I6: Open Space | K6: 250 | M6: 156 | N6: 1.5
B7: ='Data for CN Determination'!B7:C7 -> 0 | E7: ='Data for CN Determination'!G7 -> 0 | F7: =D7*E7 -> 0 | I7: Impervious Areas (paved parking lots, roofs, etc.) | K7: 550 | M7: 237 | N7: 2
B8: ='Data for CN Determination'!B8:C8 -> 0 | E8: ='Data for CN Determination'!G8 -> 0 | F8: =D8*E8 -> 0 | I8: Streets and Roads | M8: 298 | N8: 2.5
B9: ='Data for CN Determination'!B9:C9 -> 0 | E9: ='Data for CN Determination'!G9 -> 0 | F9: =D9*E9 -> 0 | I9: Paved with curbs and storm sewers | K9: 550 | M9: 349 | N9: 3
B10: ='Data for CN Determination'!B10:C10 -> 0 | E10: ='Data for CN Determination'!G10 -> 0 | F10: 0 | I10: Paved with open ditches | K10: 500 | M10: 393 | N10: 3.5
B11: ='Data for CN Determination'!B11:C11 -> 0 | E11: ='Data for CN Determination'!G11 -> 0 | F11: 0 | I11: Gravel | K11: 450 | M11: 433 | N11: 4
B12: ='Data for CN Determination'!B12:C12 -> 0 | E12: ='Data for CN Determination'!G12 -> 0 | F12: 0 | I12: Dirt | K12: 350 | M12: 470 | N12: 4.5
B13: ='Data for CN Determination'!B13:C13 -> 0 | E13: ='Data for CN Determination'!G13 -> 0 | F13: 0 | I13: Urban Land Use | J13: % Impervious | M13: 484 | N13: 4.7
B14: ='Data for CN Determination'!B14:C14 -> 0 | E14: ='Data for CN Determination'!G14 -> 0 | F14: 0 | I14: Commercial and Business | J14: 85 | K14: 550 | M14: 504 | N14: 5
B15: 0 | I15: Industrial | J15: 72 | K15: 550 | M15: 566 | N15: 6
B16: ='Data for CN Determination'!B15:C15 -> 0 | E16: ='Data for CN Determination'!G15 -> 0 | F16: 0 | I16: Residential
B17: ='Data for CN Determination'!B16:C16 -> 0 | E17: ='Data for CN Determination'!G16 -> 0 | F17: 0 | I17: 1/8 Acre | J17: 65 | K17: 400 | N17: Unit Hydrograph for PRF = | R17: =PRF -> 375 | S17: and Tp = | T17: =UH_Tp -> 48 | U17: Minutes
B18: ='Data for CN Determination'!B17:C17 -> 0 | E18: ='Data for CN Determination'!G17 -> 0 | F18: 0 | I18: 1/4 Acre | J18: 38 | K18: 375
B19: ='Data for CN Determination'!B18:C18 -> 0 | E19: ='Data for CN Determination'!G18 -> 0 | F19: 0 | I19: 1/3 Acre | J19: 30 | K19: 350
B20: Total Watershed Area = | C20: =E20 -> 100 | E20: =SUM(E4:E19) -> 100 | F20: =SUM(F4:F19) -> 37500 | I20: 1/2 Acre | J20: 25 | K20: 350
B21: WS PRF = | C21: =INT(F20/E20) -> 375 | D21: This is the total watershed area computed on the Data for CN Determination sheet. | I21: 1 Acre | J21: 20 | K21: 325
B22: Shape Parameter, n = | C22: =IF(C$21<=M7,N6+((N7-N6)/(M7-M6))*(C$21-M6),IF(C$21<=M8,N7+((N8-N7)/(M8-M7))*(C$21-M7),IF(C$21<=M9,N8+((N9-N8)/(M9-M8))*(C$21-M8),IF(C$21<=M10,N9+((N10-N9)/(M10-M9))*(C$21-M9),IF(C$21<=M11,N10+((N11-N10)/(M11-M10))*(C$21-M10),IF(C$21<=M12,N11+((N12-N11)/(M12-M11))*(C$21-M11),IF(C$21<=M13,N12+((N13-N12)/(M13-M12))*(C$21-M12),IF(C$21<=M14,N13+((N14-N13)/(M14-M13))*(C$21-M13),IF(C$21<=M15,N14+((N15-N14)/(M15-M14))*(C$21-M14)))))))))) -> 3.295454545 | I22: 2 Acres | J22: 12 | K22: 300
I23: Developing urban areas, newly graded, no grass cover | K23: 400
I24: Pasture | K24: 200
I25: Woods | K25: 200
B26: Basic data entered on this worksheet are used to compute the average PRF value for the contributing watershed. The resultlng unit hydrograph is shown in the graph to the right. | I26: Row Crop | K26: 275
B31: Unshaded Cells are for User Input.
B32: Shaded Cells are for Calculated Values. DO NOT TOUCH the shaded cells!

Sheet Tc Calculator
B2: Time of Concentration
B3: If you are entering NEW DATA, clear any values from a previous application that are still in the unshaded cells.
B4: A calculated time result of #DIV/0! indicates division by zero slope or zero user input velocity and is not a problem with the spreadsheet.
B5: Enter non-zero slope or user input velocity such as 0.00001 for ALL flow path segments. For segments that do not exist, enter zero length.
B7: Lag Time Equation 3 | F7: Travel Time Method
B8: Length (feet) = | D8: 1320 | F8: Sheet Flow | K8: Excess Sheet Flow | N8: Channelized Flow - Open Channel5 6
B9: Slope (%) = | D9: 0.5 | F9: Surface = | H9: Short grass prairie | I9: Natural Range | J9: Dense underbrush | K9: Short-grass pasture | N9: Base Width (ft) = | P9: 3 | Q9: 3 | R9: 3 | S9: 3
B10: Curve Number = | D10: ='WS & UH Data & Runoff Results'!E11 -> 73.60352303 | N10: Front Slope (Z hor:1 vert) = | P10: 2 | Q10: 2 | R10: 2 | S10: 2
C11: Watershed Retention S = | D11: =1000/D10-10 -> 3.586306183 | N11: Back Slope (Z hor:1 vert) = | P11: 3 | Q11: 3 | R11: 3 | S11: 3
B12: Lag Time (min) = | D12: =60*((D8^0.8)*(D11+1)^0.7)/(1900*SQRT(D9)) -> 40.68140314 | N12: Channel Depth (ft) = | P12: 2 | Q12: 2 | R12: 2 | S12: 2
B13: Time of Concentration (min) = | D13: =1.67*D12 -> 67.93794324 | N13: Length (ft) = | P13: 1500 | Q13: 1500 | R13: 0 | S13: 0
F14: Length (ft) = | H14: 300 | K14: Length (ft) 2 = | L14: =MAX(0,SUM(H14:J14)-SUM(H16:J16)) -> 205.7190958 | N14: Channel Bed Slope (%) = | P14: 0.25 | Q14: 0.25 | R14: 0.25 | S14: 0.25
B15: Unshaded Cells are for User Input. | F15: Limit (ft) =1 | H15: =(100*SQRT(H18/100))/H17 -> 94.28090416 | I15: =(100*SQRT(I18/100))/I17 -> 0.07692307692 | J15: =(100*SQRT(J18/100))/J17 -> 0.0125 | K15: Slope (%) = | L15: 2 | N15: Manning n-value = | P15: 0.035 | Q15: 0.035 | R15: 0.035 | S15: 0.035
B16: Shaded Cells are for Calculated Values. DO NOT TOUCH the shaded cells! | F16: Corrected Length (ft) = | H16: =IF(H14>H15,H15,H14) -> 94.28090416 | I16: =IF(I14>I15,I15,I14) -> 0 | J16: =IF(J14>J15,J15,J14) -> 0 | K16: Velocity constant = | L16: =VLOOKUP($K9,$F127:$G134,2,0) -> 6.962 | N16: Stream Flow (cfs) = | P16: =(1.49/P15)*P18*((P18/(P9+2*P12*SQRT(1+P10*P11)))^(2/3))*SQRT(P14/100) -> 37.98606327 | Q16: =(1.49/Q15)*Q18*((Q18/(Q9+2*Q12*SQRT(1+Q10*Q11)))^(2/3))*SQRT(Q14/100) -> 37.98606327 | R16: =(1.49/R15)*R18*((R18/(R9+2*R12*SQRT(1+R10*R11)))^(2/3))*SQRT(R14/100) -> 37.98606327 | S16: =(1.49/S15)*S18*((S18/(S9+2*S12*SQRT(1+S10*S11)))^(2/3))*SQRT(S14/100) -> 37.98606327
F17: Manning's n-value = | H17: =VLOOKUP(H9,$B$128:$C$138,2,FALSE) -> 0.15 | I17: =VLOOKUP(I9,$B$128:$C$138,2,FALSE) -> 0.13 | J17: =VLOOKUP(J9,$B$128:$C$138,2,FALSE) -> 0.8 | K17: Velocity (fps) = | L17: =L16*SQRT(L15/100) -> 0.9845754821 | N17: Wetted Perimeter (ft) = | P17: =(SQRT(((P12^2)+((P12*P10)^2))))+(SQRT(((P12^2)+((P12*P11)^2))))+P9 -> 13.79669128 | Q17: =(SQRT(((Q12^2)+((Q12*Q10)^2))))+(SQRT(((Q12^2)+((Q12*Q11)^2))))+Q9 -> 13.79669128 | R17: =(SQRT(((R12^2)+((R12*R10)^2))))+(SQRT(((R12^2)+((R12*R11)^2))))+R9 -> 13.79669128 | S17: =(SQRT(((S12^2)+((S12*S10)^2))))+(SQRT(((S12^2)+((S12*S11)^2))))+S9 -> 13.79669128
F18: Overland Slope (%) = | H18: 2 | I18: 1e-06 | J18: 1e-06 | K18: Travel time (min) = | L18: =L14/L17/60 -> 3.482365405 | N18: Cross-sectional Area (sq ft) = | P18: =((0.5*P12^2)*(P10+P11))+(P9*P12) -> 16 | Q18: =((0.5*Q12^2)*(Q10+Q11))+(Q9*Q12) -> 16 | R18: =((0.5*R12^2)*(R10+R11))+(R9*R12) -> 16 | S18: =((0.5*S12^2)*(S10+S11))+(S9*S12) -> 16
F19: 2-yr 24-hr P (inches) = | H19: =P2_24_2 -> 3.76 | I19: =H19 -> 3.76 | J19: =H19 -> 3.76 | N19: Velocity (fps) = | P19: =P16/P18 -> 2.374128954 | Q19: =Q16/Q18 -> 2.374128954 | R19: =R16/R18 -> 2.374128954 | S19: =S16/S18 -> 2.374128954
F20: Travel time (min) = | H20: =(0.42/SQRT(H19))*(H17*H16/SQRT(H18/100))^0.8 -> 8.622940074 | I20: =(0.42/SQRT(I19))*(I17*I16/SQRT(I18/100))^0.8 -> 0 | J20: =(0.42/SQRT(J19))*(J17*J16/SQRT(J18/100))^0.8 -> 0 | N20: Travel time (min) = | P20: =P13/P19/60 -> 10.5301778 | Q20: =Q13/Q19/60 -> 10.5301778 | R20: =R13/R19/60 -> 0 | S20: =S13/S19/60 -> 0
B21: Sheet Flow Surface | D21: Manning's n | I21: Sum = | J21: =SUM(H20:J20) -> 8.622940074 | R21: Sum = | S21: =SUM(P20:S20) -> 21.06035559
B23: Smooth asphalt | D23: 0.011 | F23: Cells shaded with this color involve a Drop Down menu Click on the light green shaded cells.
B24: Smooth concrete | D24: 0.012 | F24: Use Drop Down to select Sheet Flow Surface, Shallow Concentrated Flow Type and Storm Sewer Pipe Material. Click on an appropriate cell and the Drop Down symbol will appear next to the upper right hand corner.
B25: Fallow (no residue) | D25: 0.05
B26: Grass
B27: Short grass prairie | D27: 0.15 | F27: Shallow Concentrated Flow | N27: Channelized Flow - Storm Sewer
B28: Dense grasses | D28: 0.24 | N28: Pipe Material = | P28: CMP | Q28: PVC | R28: Concrete | S28: Steel
B29: Bermuda grass | D29: 0.41 | F29: Shallow Flow Type = | H29: Forest with heavy ground litter and hay meadows | I29: Cultivated straight row crops | J29: Short-grass pasture | K29: Minimum cultivation, contour or strip-cropped, and woodlands | L29: Pavement and small upland gullies | N29: Diameter (in) = | P29: 36 | Q29: 24 | R29: 30 | S29: 36
B30: Woods | N30: Length (ft) = | P30: 300 | Q30: 300 | R30: 300 | S30: 300
B31: Light underbrush | D31: 0.4 | N31: Slope (%) = | P31: 0.5 | Q31: 0.5 | R31: 0.5 | S31: 0.5
B32: Dense underbrush | D32: 0.8 | N32: Manning n-value = | P32: =VLOOKUP(P28,$H$128:$I$133,2,FALSE) -> 0.024 | Q32: =VLOOKUP(Q28,$H$128:$I$133,2,FALSE) -> 0.01 | R32: =VLOOKUP(R28,$H$128:$I$133,2,FALSE) -> 0.013 | S32: =VLOOKUP(S28,$H$128:$I$133,2,FALSE) -> 0.013
B33: Agriculture | F33: Length (ft) = 2 | H33: 300 | I33: 250 | J33: 130 | K33: 120 | L33: 0 | N33: Pipe Flow (cfs) = | P33: =(1.486/P32)*3.14159*(((P29/12)^2)/4)*(((P29/12)/4)^(2/3))*SQRT(P31/100) -> 25.54654087 | Q33: =(1.486/Q32)*3.14159*(((Q29/12)^2)/4)*(((Q29/12)/4)^(2/3))*SQRT(Q31/100) -> 20.79537008 | R33: =(1.486/R32)*3.14159*(((R29/12)^2)/4)*(((R29/12)/4)^(2/3))*SQRT(R31/100) -> 29.00347283 | S33: =(1.486/S32)*3.14159*(((S29/12)^2)/4)*(((S29/12)/4)^(2/3))*SQRT(S31/100) -> 47.16284468
B34: Cultivated Soil with Residue cover <=20% | D34: 0.06 | F34: Slope (%) = | H34: 0.5 | I34: 1 | J34: 2 | K34: 2 | L34: 2 | N34: Cross-sectional Area (sq ft) = | P34: =3.14159*(((P29/12)*2)/4) -> 4.712385 | Q34: =3.14159*(((Q29/12)*2)/4) -> 3.14159 | R34: =3.14159*(((R29/12)*2)/4) -> 3.9269875 | S34: =3.14159*(((S29/12)*2)/4) -> 4.712385
F35: Velocity constant = | H35: =VLOOKUP($H29,$F127:$G134,2,0) -> 2.516 | I35: =VLOOKUP($I29,$F127:$G134,2,0) -> 8.762 | J35: =VLOOKUP($J29,$F127:$G134,2,0) -> 6.962 | K35: =VLOOKUP($K29,$F127:$G134,2,0) -> 5.032 | L35: =VLOOKUP($L29,$F127:$G134,2,0) -> 20.328 | N35: Velocity (fps) = | P35: =P33/P34 -> 5.421148923 | Q35: =Q33/Q34 -> 6.619377476 | R35: =R33/R34 -> 7.385679946 | S35: =S33/S34 -> 10.00827494
B36: Cultivated Soil with Residue cover >=20% | D36: 0.17 | F36: Velocity (fps) = | H36: =H35*SQRT(H34/100) -> 0.1779080661 | I36: =I35*SQRT(I34/100) -> 0.8762 | J36: =J35*SQRT(J34/100) -> 0.9845754821 | K36: =K35*SQRT(K34/100) -> 0.7116322646 | L36: =L35*SQRT(L34/100) -> 2.87481333 | N36: Travel time (min) = | P36: =P30/P35/60 -> 0.9223137144 | Q36: =Q30/Q35/60 -> 0.7553580406 | R36: =R30/R35/60 -> 0.6769857395 | S36: =S30/S35/60 -> 0.4995865953
F37: Travel time (min) = | H37: =H33/H36/60 -> 28.10440307 | I37: =I33/I36/60 -> 4.755383094 | J37: =J33/J36/60 -> 2.200610015 | K37: =K33/K36/60 -> 2.810440307 | L37: =L33/L36/60 -> 0 | R37: Sum = | S37: =SUM(P36:S36) -> 2.85424409
B38: Natural Range | D38: 0.13 | K38: Sum = | L38: =SUM(H37:L37) -> 37.87083648
N39: Channelized Flow (Storm Sewer and/or Open Channel) - User Input Velocity
F40: Method | K40: Time of Concentration | N40: Length (ft) = | P40: 0 | Q40: 300 | R40: 300 | S40: 300
N41: Velocity (fps) = | P41: 1e-05 | Q41: 2 | R41: 3 | S41: 4
F42: Travel Time Method Time of Concentration (min) = | K42: =SUM(J21,L18,L38,S21,S37,S43) -> 79.30740831 | N42: Travel time (min) = | P42: =P40/P41/60 -> 0 | Q42: =Q40/Q41/60 -> 2.5 | R42: =R40/R41/60 -> 1.666666667 | S42: =S40/S41/60 -> 1.25
F43: Lag Time Equation Time of Concentration (min) = | K43: =$D$13 -> 67.93794324 | R43: Sum = | S43: =SUM(P42:S42) -> 5.416666667
F44: User enters preferred tc value on Watershed & UH Data & Runoff Results worksheet with a Drop Down Menu.
F47: Shallow Flow Types | J47: Depth (ft) | K47: Manning's n | L47: Velocity Constant | O47: Storm Sewer Material | Q47: Manning's n
F49: Pavement and small upland gullies | J49: 0.2 | K49: 0.025 | L49: 20.328 | O49: Aluminum | Q49: 0.024
F50: Grassed waterways | J50: 0.4 | K50: 0.05 | L50: 16.135 | O50: CMP | Q50: 0.024
F51: Nearly bare and untilled (overland flow) | J51: 0.2 | K51: 0.051 | L51: 9.965 | O51: Concrete | Q51: 0.013
F52: Cultivated straight row crops | J52: 0.2 | K52: 0.058 | L52: 8.762 | O52: PVC | Q52: 0.01
F53: Short-grass pasture | J53: 0.2 | K53: 0.073 | L53: 6.962 | O53: Steel | Q53: 0.013
F54: Minimum tillage cultivation, contour or strip-cropped, and woodlands | J54: 0.2 | K54: 0.101 | L54: 5.032
F55: Forest with heavy ground litter and hay meadows | J55: 0.2 | K55: 0.202 | L55: 2.516
B57: Notes On Travel Time Method
B61: 1 | C61: McCuen-Spiess equation calculates the maximum sheet flow length for surface and slope. See Chapter 15 page 15-7 of the NRCS' National Engineering Handbook.
B63: 2 | C63: Guidance from the SC NRCS is to limit shallow concentrated flow to 1000 ft. except for areas of the sand hills with high infiltration sands without noticeable channels and in areas with rocky outcroppings or pavements that prevent the formation of channels.
B65: 3 | C65: The SCS method for watershed lag was developed by Mockus in 1961. It spans a broad set of conditions ranging from heavily forested watersheds with steep channels and a high percent of runoff resulting from subsurface flow, to meadows providing a high retardance to surface runoff, to smooth land surfaces and large paved areas. The watershed lag equation was developed using data from 24 watersheds ranging in size from 1.3 acres to 9.2 square miles, with the majority of the watersheds being less than 2,000 acres (Mockus 1961). Folmar and Miller (2000) revisited the development of this equation using additional watershed data and found a reasonable upper limit may be as much as 19 square miles. See Chapter 15 pages 15-5 to 15-6 of the NRCS' National Engineering Handbook.
B71: 4 | C71: For additional questions, see Chapter 15 of the NRCS' National Engineering Handbook (https://www.wcc.nrcs.usda.gov/ftpref/wntsc/H&H/NEHhydrology/ch15.pdf).
B73: 5 | C73: For roadside ditches use guidance in HEC-15. If HEC-15 does not apply, use the traditional guidance for using the Manning's Equation.
B74: 6 | C74: For ditches with variable channel slopes, side slopes, base width, depth, and Manning's n values, use the average n-value for each varable.
B126: Sheet Flow Surface | C126: Manning's n
F127: Shallow Flow Types | G127: Velocity Constant | H127: Storm Sewer Material | I127: Manning's n
B128: Smooth asphalt | C128: 0.011 | F128: Pavement and small upland gullies | G128: 20.328 | H128: Aluminum | I128: 0.024
B129: Smooth concrete | C129: 0.012 | F129: Grassed waterways | G129: 16.135 | H129: CMP | I129: 0.024
B130: Fallow (no residue) | C130: 0.05 | F130: Nearly bare and untilled (overland flow) | G130: 9.965 | H130: Concrete | I130: 0.013
B131: Short grass prairie | C131: 0.15 | F131: Cultivated straight row crops | G131: 8.762 | H131: Corrugated HDPE | I131: 0.02
B132: Dense grasses | C132: 0.24 | F132: Short-grass pasture | G132: 6.962 | H132: PVC | I132: 0.01
B133: Bermuda grass | C133: 0.41 | F133: Minimum cultivation, contour or strip-cropped, and woodlands | G133: 5.032 | H133: Steel | I133: 0.013
B134: Light underbrush | C134: 0.4 | F134: Forest with heavy ground litter and hay meadows | G134: 2.516
B135: Dense underbrush | C135: 0.8
B136: Cultivated Soil with Residue cover <=20% | C136: 0.06
B137: Cultivated Soil with Residue cover >=20% | C137: 0.17
B138: Natural Range | C138: 0.13

Sheet Adjust CN when D<24-hr (hidden)
B2: 10 Year Design Rainfall | I2: 25 Year Design Rainfall | P2: 50 Year Design Rainfall | W2: 100 Year Design Rainfall
B3: McCuen latest version | E3: Merkel version | I3: McCuen latest version | L3: Merkel version | P3: McCuen latest version | S3: Merkel version | W3: McCuen latest version | Z3: Merkel version
C4: D-hr WS CN | F4: D-hr WS CN | J4: D-hr WS CN | M4: D-hr WS CN | Q4: D-hr WS CN | T4: D-hr WS CN | X4: D-hr WS CN | AA4: D-hr WS CN
C6: 24 Hour | F6: 24 Hour | J6: 24 Hour | M6: 24 Hour | Q6: 24 Hour | T6: 24 Hour | X6: 24 Hour | AA6: 24 Hour
B7: 24-hr CN = | C7: =IF('WS & UH Data & Runoff Results'!M$3=1,'Area Weighted CN Calculator'!$G$23,'Runoff Weighted CN Calculator'!$G$24) -> 74.20217543 | E7: 24-hr CN = | F7: =IF('WS & UH Data & Runoff Results'!P$3=1,'Area Weighted CN Calculator'!$G$23,'Runoff Weighted CN Calculator'!$G$24) -> 74.20217543 | I7: 24-hr CN = | J7: =IF('WS & UH Data & Runoff Results'!S$3=1,'Area Weighted CN Calculator'!$H$23,'Runoff Weighted CN Calculator'!$H$24) -> 73.60352303 | L7: 24-hr CN = | M7: =IF('WS & UH Data & Runoff Results'!V$3=1,'Area Weighted CN Calculator'!$H$23,'Runoff Weighted CN Calculator'!$H$24) -> 73.60352303 | P7: 24-hr CN = | Q7: =IF('WS & UH Data & Runoff Results'!Y$3=1,'Area Weighted CN Calculator'!$I$23,'Runoff Weighted CN Calculator'!$I$24) -> 73.22278915 | S7: 24-hr CN = | T7: =IF('WS & UH Data & Runoff Results'!AB$3=1,'Area Weighted CN Calculator'!$I$23,'Runoff Weighted CN Calculator'!$I$24) -> 73.22278915 | W7: 24-hr CN = | X7: =IF('WS & UH Data & Runoff Results'!AE$3=1,'Area Weighted CN Calculator'!$J$23,'Runoff Weighted CN Calculator'!$J$24) -> 72.89148309 | Z7: 24-hr CN = | AA7: =IF('WS & UH Data & Runoff Results'!AH$3=1,'Area Weighted CN Calculator'!$J$23,'Runoff Weighted CN Calculator'!$J$24) -> 72.89148309
B8: S = | C8: =1000/C7-10 -> 3.476693832 | E8: S = | F8: =1000/F7-10 -> 3.476693832 | I8: S = | J8: =1000/J7-10 -> 3.586306183 | L8: S = | M8: =1000/M7-10 -> 3.586306183 | P8: S = | Q8: =1000/Q7-10 -> 3.656950407 | S8: S = | T8: =1000/T7-10 -> 3.656950407 | W8: S = | X8: =1000/X7-10 -> 3.719023919 | Z8: S = | AA8: =1000/AA7-10 -> 3.719023919
B9: Ia = | C9: =0.2*C8 -> 0.6953387665 | E9: Ia = | F9: =0.2*F8 -> 0.6953387665 | I9: Ia = | J9: =0.2*J8 -> 0.7172612366 | L9: Ia = | M9: =0.2*M8 -> 0.7172612366 | P9: Ia = | Q9: =0.2*Q8 -> 0.7313900813 | S9: Ia = | T9: =0.2*T8 -> 0.7313900813 | W9: Ia = | X9: =0.2*X8 -> 0.7438047837 | Z9: Ia = | AA9: =0.2*AA8 -> 0.7438047837
C10: 1 Hour | F10: 1 Hour | J10: 1 Hour | M10: 1 Hour | Q10: 1 Hour | T10: 1 Hour | X10: 1 Hour | AA10: 1 Hour
B11: D = | C11: 1 | E11: 1--hr P = | F11: =P10_1 -> 2.66 | I11: D = | J11: 1 | L11: 1--hr P = | M11: =P25_1 -> 3.13 | P11: D = | Q11: 1 | S11: 1--hr P = | T11: =P50_1 -> 3.56 | W11: D = | X11: 1 | Z11: 1--hr P = | AA11: =P100_1 -> 3.98
B12: 1-hr P = | C12: =P10_1 -> 2.66 | E12: 24-hr QCN = | F12: =((F11-F$9)^2)/(F11+0.8*F$8) -> 0.7093625973 | I12: 1-hr P = | J12: =P25_1 -> 3.13 | L12: 24-hr QCN = | M12: =((M11-M$9)^2)/(M11+0.8*M$8) -> 0.9703725164 | P12: 1-hr P = | Q12: =P50_1 -> 3.56 | S12: 24-hr QCN = | T12: =((T11-T$9)^2)/(T11+0.8*T$8) -> 1.2336689 | W12: 1-hr P = | X12: =P100_1 -> 3.98 | Z12: 24-hr QCN = | AA12: =((AA11-AA$9)^2)/(AA11+0.8*AA$8) -> 1.505769879
B13: 1-hr Gamma = | C13: =10+0.00256*((98-$C$7)^(5/3))*(24-C11)^0.5 -> 12.41731167 | E13: P-Ia-QCN = | F13: =F11-F$9-F12 -> 1.255298636 | I13: 1-hr Gamma = | J13: =10+0.00256*((98-$C$7)^(5/3))*(24-J11)^0.5 -> 12.41731167 | L13: P-Ia-QCN = | M13: =M11-M$9-M12 -> 1.442366247 | P13: 1-hr Gamma = | Q13: =10+0.00256*((98-$C$7)^(5/3))*(24-Q11)^0.5 -> 12.41731167 | S13: P-Ia-QCN = | T13: =T11-T$9-T12 -> 1.594941019 | W13: 1-hr Gamma = | X13: =10+0.00256*((98-$C$7)^(5/3))*(24-X11)^0.5 -> 12.41731167 | Z13: P-Ia-QCN = | AA13: =AA11-AA$9-AA12 -> 1.730425337
B14: 1-hr S = | C14: =1000/$C$7-C13 -> 1.059382167 | E14: 24-hr Infiltration Rate (in/hr) = | F14: =F13/24 -> 0.05230410984 | I14: 1-hr S = | J14: =1000/$C$7-J13 -> 1.059382167 | L14: 24-hr Infiltration Rate (in/hr) = | M14: =M13/24 -> 0.06009859363 | P14: 1-hr S = | Q14: =1000/$C$7-Q13 -> 1.059382167 | S14: 24-hr Infiltration Rate (in/hr) = | T14: =T13/24 -> 0.06645587578 | W14: 1-hr S = | X14: =1000/$C$7-X13 -> 1.059382167 | Z14: 24-hr Infiltration Rate (in/hr) = | AA14: =AA13/24 -> 0.0721010557
B15: 1-hr Ia = | C15: =0.2*C14 -> 0.2118764335 | E15: 1-hr Infiltration (inches) = | F15: =1*F14 -> 0.05230410984 | I15: 1-hr Ia = | J15: =0.2*J14 -> 0.2118764335 | L15: 1-hr Infiltration (inches) = | M15: =1*M14 -> 0.06009859363 | P15: 1-hr Ia = | Q15: =0.2*Q14 -> 0.2118764335 | S15: 1-hr Infiltration (inches) = | T15: =1*T14 -> 0.06645587578 | W15: 1-hr Ia = | X15: =0.2*X14 -> 0.2118764335 | Z15: 1-hr Infiltration (inches) = | AA15: =1*AA14 -> 0.0721010557
B16: 1-hr QCN = | C16: =((C12-0.2*C14)^2)/(C12+0.8*C14) -> 1.708709679 | E16: 1-hr Infiltration plus Ia = | F16: =F15+F$9 -> 0.7476428763 | I16: 1-hr QCN = | J16: =((J12-0.2*J14)^2)/(J12+0.8*J14) -> 2.140900785 | L16: 1-hr Infiltration plus Ia = | M16: =M15+M$9 -> 0.7773598302 | P16: 1-hr QCN = | Q16: =((Q12-0.2*Q14)^2)/(Q12+0.8*Q14) -> 2.543373076 | S16: 1-hr Infiltration plus Ia = | T16: =T15+T$9 -> 0.7978459571 | W16: 1-hr QCN = | X16: =((X12-0.2*X14)^2)/(X12+0.8*X14) -> 2.941219751 | Z16: 1-hr Infiltration plus Ia = | AA16: =AA15+AA$9 -> 0.8159058394
B17: 1-hr CN = | C17: =1000/(C14+10) -> 90.42096429 | E17: 1-hr Runoff (inches) = | F17: =F11-F16 -> 1.912357124 | I17: 1-hr CN = | J17: =1000/(J14+10) -> 90.42096429 | L17: 1-hr Runoff (inches) = | M17: =M11-M16 -> 2.35264017 | P17: 1-hr CN = | Q17: =1000/(Q14+10) -> 90.42096429 | S17: 1-hr Runoff (inches) = | T17: =T11-T16 -> 2.762154043 | W17: 1-hr CN = | X17: =1000/(X14+10) -> 90.42096429 | Z17: 1-hr Runoff (inches) = | AA17: =AA11-AA16 -> 3.164094161
C18: 2 Hour | E18: 1-hr CN = | F18: =IF(1000 / (10 + 5*F11 + 10*F17 - 10*(F17^2 + 1.25*F11*F17)^0.5)>0,1000 / (10 + 5*F11 + 10*F17 - 10*(F17^2 + 1.25*F11*F17)^0.5),0) -> 92.79894215 | J18: 2 Hour | L18: 1-hr CN = | M18: =IF(1000 / (10 + 5*M11 + 10*M17 - 10*(M17^2 + 1.25*M11*M17)^0.5)>0,1000 / (10 + 5*M11 + 10*M17 - 10*(M17^2 + 1.25*M11*M17)^0.5),0) -> 92.72835049 | Q18: 2 Hour | S18: 1-hr CN = | T18: =IF(1000 / (10 + 5*T11 + 10*T17 - 10*(T17^2 + 1.25*T11*T17)^0.5)>0,1000 / (10 + 5*T11 + 10*T17 - 10*(T17^2 + 1.25*T11*T17)^0.5),0) -> 92.69126729 | X18: 2 Hour | Z18: 1-hr CN = | AA18: =IF(1000 / (10 + 5*AA11 + 10*AA17 - 10*(AA17^2 + 1.25*AA11*AA17)^0.5)>0,1000 / (10 + 5*AA11 + 10*AA17 - 10*(AA17^2 + 1.25*AA11*AA17)^0.5),0) -> 92.64693246
B19: D = | C19: 2 | E19: 1-hr S = | F19: =1000/F18-10 -> 0.7759849075 | I19: D = | J19: 2 | L19: 1-hr S = | M19: =1000/M18-10 -> 0.7841883821 | P19: D = | Q19: 2 | S19: 1-hr S = | T19: =1000/T18-10 -> 0.7885028362 | W19: D = | X19: 2 | Z19: 1-hr S = | AA19: =1000/AA18-10 -> 0.7936655154
B20: 2-hr P = | C20: =P10_2 -> 3.22 | E20: 1-hr Ia = | F20: =0.2*F19 -> 0.1551969815 | I20: 2-hr P = | J20: =P25_2 -> 3.85 | L20: 1-hr Ia = | M20: =0.2*M19 -> 0.1568376764 | P20: 2-hr P = | Q20: =P50_2 -> 4.43 | S20: 1-hr Ia = | T20: =0.2*T19 -> 0.1577005672 | W20: 2-hr P = | X20: =P100_2 -> 5 | Z20: 1-hr Ia = | AA20: =0.2*AA19 -> 0.1587331031
B21: 2-hr Gamma = | C21: =10+0.00256*((98-$C$7)^(5/3))*(24-C19)^0.5 -> 12.36417745 | E21: 1-hr QCN = | F21: =((F11-F20)^2)/(F11+0.8*F19) -> 1.912357124 | I21: 2-hr Gamma = | J21: =10+0.00256*((98-$C$7)^(5/3))*(24-J19)^0.5 -> 12.36417745 | L21: 1-hr QCN = | M21: =((M11-M20)^2)/(M11+0.8*M19) -> 2.35264017 | P21: 2-hr Gamma = | Q21: =10+0.00256*((98-$C$7)^(5/3))*(24-Q19)^0.5 -> 12.36417745 | S21: 1-hr QCN = | T21: =((T11-T20)^2)/(T11+0.8*T19) -> 2.762154043 | W21: 2-hr Gamma = | X21: =10+0.00256*((98-$C$7)^(5/3))*(24-X19)^0.5 -> 12.36417745 | Z21: 1-hr QCN = | AA21: =((AA11-AA20)^2)/(AA11+0.8*AA19) -> 3.164094161
B22: 2-hr S = | C22: =1000/$C$7-C21 -> 1.112516385 | F22: 2 Hour | I22: 2-hr S = | J22: =1000/$C$7-J21 -> 1.112516385 | M22: 2 Hour | P22: 2-hr S = | Q22: =1000/$C$7-Q21 -> 1.112516385 | T22: 2 Hour | W22: 2-hr S = | X22: =1000/$C$7-X21 -> 1.112516385 | AA22: 2 Hour
B23: 2-hr Ia = | C23: =0.2*C22 -> 0.222503277 | E23: 2--hr P = | F23: =P10_2 -> 3.22 | I23: 2-hr Ia = | J23: =0.2*J22 -> 0.222503277 | L23: 2--hr P = | M23: =P25_2 -> 3.85 | P23: 2-hr Ia = | Q23: =0.2*Q22 -> 0.222503277 | S23: 2--hr P = | T23: =P50_2 -> 4.43 | W23: 2-hr Ia = | X23: =0.2*X22 -> 0.222503277 | Z23: 2--hr P = | AA23: =P100_2 -> 5
B24: 2-hr QCN = | C24: =((C20-0.2*C22)^2)/(C20+0.8*C22) -> 2.186121156 | E24: 24-hr QCN = | F24: =((F23-F$9)^2)/(F23+0.8*F$8) -> 1.062079193 | I24: 2-hr QCN = | J24: =((J20-0.2*J22)^2)/(J20+0.8*J22) -> 2.776096221 | L24: 24-hr QCN = | M24: =((M23-M$9)^2)/(M23+0.8*M$8) -> 1.460632015 | P24: 2-hr QCN = | Q24: =((Q20-0.2*Q22)^2)/(Q20+0.8*Q22) -> 3.32762877 | S24: 24-hr QCN = | T24: =((T23-T$9)^2)/(T23+0.8*T$8) -> 1.859778824 | W24: 2-hr QCN = | X24: =((X20-0.2*X22)^2)/(X20+0.8*X22) -> 3.875114456 | Z24: 24-hr QCN = | AA24: =((AA23-AA$9)^2)/(AA23+0.8*AA$8) -> 2.271435733
B25: 2-hr CN = | C25: =1000/(C22+10) -> 89.98861872 | E25: P-Ia-QCN = | F25: =F23-F$9-F24 -> 1.462582041 | I25: 2-hr CN = | J25: =1000/(J22+10) -> 89.98861872 | L25: P-Ia-QCN = | M25: =M23-M$9-M24 -> 1.672106748 | P25: 2-hr CN = | Q25: =1000/(Q22+10) -> 89.98861872 | S25: P-Ia-QCN = | T25: =T23-T$9-T24 -> 1.838831095 | W25: 2-hr CN = | X25: =1000/(X22+10) -> 89.98861872 | Z25: P-Ia-QCN = | AA25: =AA23-AA$9-AA24 -> 1.984759484
C26: 3 Hour | E26: 24-hr Infiltration Rate (in/hr) = | F26: =F25/24 -> 0.06094091836 | J26: 3 Hour | L26: 24-hr Infiltration Rate (in/hr) = | M26: =M25/24 -> 0.06967111451 | Q26: 3 Hour | S26: 24-hr Infiltration Rate (in/hr) = | T26: =T25/24 -> 0.07661796228 | X26: 3 Hour | Z26: 24-hr Infiltration Rate (in/hr) = | AA26: =AA25/24 -> 0.08269831182
B27: D = | C27: 3 | E27: 2-hr Infiltration (inches) = | F27: =2*F26 -> 0.1218818367 | I27: D = | J27: 3 | L27: 2-hr Infiltration (inches) = | M27: =2*M26 -> 0.139342229 | P27: D = | Q27: 3 | S27: 2-hr Infiltration (inches) = | T27: =2*T26 -> 0.1532359246 | W27: D = | X27: 3 | Z27: 2-hr Infiltration (inches) = | AA27: =2*AA26 -> 0.1653966236
B28: 3-hr P = | C28: =P10_3 -> 3.45 | E28: 2-hr Infiltration plus Ia = | F28: =F27+F$9 -> 0.8172206032 | I28: 3-hr P = | J28: =P25_3 -> 4.17 | L28: 2-hr Infiltration plus Ia = | M28: =M27+M$9 -> 0.8566034656 | P28: 3-hr P = | Q28: =P25_3 -> 4.17 | S28: 2-hr Infiltration plus Ia = | T28: =T27+T$9 -> 0.8846260059 | W28: 3-hr P = | X28: =P100_3 -> 5.54 | Z28: 2-hr Infiltration plus Ia = | AA28: =AA27+AA$9 -> 0.9092014073
B29: 3-hr Gamma = | C29: =10+0.00256*((98-$C$7)^(5/3))*(24-C27)^0.5 -> 12.30982127 | E29: 2-hr Runoff (inches) = | F29: =F23-F28 -> 2.402779397 | I29: 3-hr Gamma = | J29: =10+0.00256*((98-$C$7)^(5/3))*(24-J27)^0.5 -> 12.30982127 | L29: 2-hr Runoff (inches) = | M29: =M23-M28 -> 2.993396534 | P29: 3-hr Gamma = | Q29: =10+0.00256*((98-$C$7)^(5/3))*(24-Q27)^0.5 -> 12.30982127 | S29: 2-hr Runoff (inches) = | T29: =T23-T28 -> 3.545373994 | W29: 3-hr Gamma = | X29: =10+0.00256*((98-$C$7)^(5/3))*(24-X27)^0.5 -> 12.30982127 | Z29: 2-hr Runoff (inches) = | AA29: =AA23-AA28 -> 4.090798593
B30: 3-hr S = | C30: =1000/$C$7-C29 -> 1.166872558 | E30: 2-hr CN = | F30: =IF(1000 / (10 + 5*F23 + 10*F29 - 10*(F29^2 + 1.25*F23*F29)^0.5)>0,1000 / (10 + 5*F23 + 10*F29 - 10*(F29^2 + 1.25*F23*F29)^0.5),0) -> 92.35096484 | I30: 3-hr S = | J30: =1000/$C$7-J29 -> 1.166872558 | L30: 2-hr CN = | M30: =IF(1000 / (10 + 5*M23 + 10*M29 - 10*(M29^2 + 1.25*M23*M29)^0.5)>0,1000 / (10 + 5*M23 + 10*M29 - 10*(M29^2 + 1.25*M23*M29)^0.5),0) -> 92.20476711 | P30: 3-hr S = | Q30: =1000/$C$7-Q29 -> 1.166872558 | S30: 2-hr CN = | T30: =IF(1000 / (10 + 5*T23 + 10*T29 - 10*(T29^2 + 1.25*T23*T29)^0.5)>0,1000 / (10 + 5*T23 + 10*T29 - 10*(T29^2 + 1.25*T23*T29)^0.5),0) -> 92.10842094 | W30: 3-hr S = | X30: =1000/$C$7-X29 -> 1.166872558 | Z30: 2-hr CN = | AA30: =IF(1000 / (10 + 5*AA23 + 10*AA29 - 10*(AA29^2 + 1.25*AA23*AA29)^0.5)>0,1000 / (10 + 5*AA23 + 10*AA29 - 10*(AA29^2 + 1.25*AA23*AA29)^0.5),0) -> 92.01407415
B31: 3-hr Ia = | C31: =0.2*C30 -> 0.2333745115 | E31: 2-hr S = | F31: =1000/F30-10 -> 0.8282572 | I31: 3-hr Ia = | J31: =0.2*J30 -> 0.2333745115 | L31: 2-hr S = | M31: =1000/M30-10 -> 0.8454262329 | P31: 3-hr Ia = | Q31: =0.2*Q30 -> 0.2333745115 | S31: 2-hr S = | T31: =1000/T30-10 -> 0.8567706383 | W31: 3-hr Ia = | X31: =0.2*X30 -> 0.2333745115 | Z31: 2-hr S = | AA31: =1000/AA30-10 -> 0.8679026473
B32: 3-hr QCN = | C32: =((C28-0.2*C30)^2)/(C28+0.8*C30) -> 2.360370513 | E32: 2-hr Ia = | F32: =0.2*F31 -> 0.16565144 | I32: 3-hr QCN = | J32: =((J28-0.2*J30)^2)/(J28+0.8*J30) -> 3.036548676 | L32: 2-hr Ia = | M32: =0.2*M31 -> 0.1690852466 | P32: 3-hr QCN = | Q32: =((Q28-0.2*Q30)^2)/(Q28+0.8*Q30) -> 3.036548676 | S32: 2-hr Ia = | T32: =0.2*T31 -> 0.1713541277 | W32: 3-hr QCN = | X32: =((X28-0.2*X30)^2)/(X28+0.8*X30) -> 4.350086132 | Z32: 2-hr Ia = | AA32: =0.2*AA31 -> 0.1735805295
B33: 3-hr CN = | C33: =1000/(C30+10) -> 89.55058767 | E33: 2-hr QCN = | F33: =((F23-F32)^2)/(F23+0.8*F31) -> 2.402779397 | I33: 3-hr CN = | J33: =1000/(J30+10) -> 89.55058767 | L33: 2-hr QCN = | M33: =((M23-M32)^2)/(M23+0.8*M31) -> 2.993396534 | P33: 3-hr CN = | Q33: =1000/(Q30+10) -> 89.55058767 | S33: 2-hr QCN = | T33: =((T23-T32)^2)/(T23+0.8*T31) -> 3.545373994 | W33: 3-hr CN = | X33: =1000/(X30+10) -> 89.55058767 | Z33: 2-hr QCN = | AA33: =((AA23-AA32)^2)/(AA23+0.8*AA31) -> 4.090798593
C34: 6 Hour | F34: 3 Hour | J34: 6 Hour | M34: 3 Hour | Q34: 6 Hour | T34: 3 Hour | X34: 6 Hour | AA34: 3 Hour
B35: D = | C35: 6 | E35: 3--hr P = | F35: =P10_3 -> 3.45 | I35: D = | J35: 6 | L35: 3--hr P = | M35: =P25_3 -> 4.17 | P35: D = | Q35: 6 | S35: 3--hr P = | T35: =P50_3 -> 4.85 | W35: D = | X35: 6 | Z35: 3--hr P = | AA35: =P100_3 -> 5.54
B36: 6-hr P = | C36: =P10_6 -> 4.07 | E36: 24-hr QCN = | F36: =((F35-F$9)^2)/(F35+0.8*F$8) -> 1.217738105 | I36: 6-hr P = | J36: =P25_6 -> 4.94 | L36: 24-hr QCN = | M36: =((M35-M$9)^2)/(M35+0.8*M$8) -> 1.693611145 | P36: 6-hr P = | Q36: =P50_6 -> 5.77 | S36: 24-hr QCN = | T36: =((T35-T$9)^2)/(T35+0.8*T$8) -> 2.181572382 | W36: 6-hr P = | X36: =P100_6 -> 6.6 | Z36: 24-hr QCN = | AA36: =((AA35-AA$9)^2)/(AA35+0.8*AA$8) -> 2.701455851
B37: 6-hr Gamma = | C37: =10+0.00256*((98-$C$7)^(5/3))*(24-C35)^0.5 -> 12.13847896 | E37: P-Ia-QCN = | F37: =F35-F$9-F36 -> 1.536923128 | I37: 6-hr Gamma = | J37: =10+0.00256*((98-$C$7)^(5/3))*(24-J35)^0.5 -> 12.13847896 | L37: P-Ia-QCN = | M37: =M35-M$9-M36 -> 1.759127619 | P37: 6-hr Gamma = | Q37: =10+0.00256*((98-$C$7)^(5/3))*(24-Q35)^0.5 -> 12.13847896 | S37: P-Ia-QCN = | T37: =T35-T$9-T36 -> 1.937037536 | W37: 6-hr Gamma = | X37: =10+0.00256*((98-$C$7)^(5/3))*(24-X35)^0.5 -> 12.13847896 | Z37: P-Ia-QCN = | AA37: =AA35-AA$9-AA36 -> 2.094739365
B38: 6-hr S = | C38: =1000/$C$7-C37 -> 1.338214869 | E38: 24-hr Infiltration Rate (in/hr) = | F38: =F37/24 -> 0.06403846368 | I38: 6-hr S = | J38: =1000/$C$7-J37 -> 1.338214869 | L38: 24-hr Infiltration Rate (in/hr) = | M38: =M37/24 -> 0.07329698412 | P38: 6-hr S = | Q38: =1000/$C$7-Q37 -> 1.338214869 | S38: 24-hr Infiltration Rate (in/hr) = | T38: =T37/24 -> 0.08070989735 | W38: 6-hr S = | X38: =1000/$C$7-X37 -> 1.338214869 | Z38: 24-hr Infiltration Rate (in/hr) = | AA38: =AA37/24 -> 0.08728080689
B39: 6-hr Ia = | C39: =0.2*C38 -> 0.2676429739 | E39: 3-hr Infiltration (inches) = | F39: =3*F38 -> 0.192115391 | I39: 6-hr Ia = | J39: =0.2*J38 -> 0.2676429739 | L39: 3-hr Infiltration (inches) = | M39: =3*M38 -> 0.2198909524 | P39: 6-hr Ia = | Q39: =0.2*Q38 -> 0.2676429739 | S39: 3-hr Infiltration (inches) = | T39: =3*T38 -> 0.242129692 | W39: 6-hr Ia = | X39: =0.2*X38 -> 0.2676429739 | Z39: 3-hr Infiltration (inches) = | AA39: =3*AA38 -> 0.2618424207
B40: 6-hr QCN = | C40: =((C36-0.2*C38)^2)/(C36+0.8*C38) -> 2.812511769 | E40: 3-hr Infiltration plus Ia = | F40: =F39+F$9 -> 0.8874541575 | I40: 6-hr QCN = | J40: =((J36-0.2*J38)^2)/(J36+0.8*J38) -> 3.632087023 | L40: 3-hr Infiltration plus Ia = | M40: =M39+M$9 -> 0.9371521889 | P40: 6-hr QCN = | Q40: =((Q36-0.2*Q38)^2)/(Q36+0.8*Q38) -> 4.425935917 | S40: 3-hr Infiltration plus Ia = | T40: =T39+T$9 -> 0.9735197734 | W40: 6-hr QCN = | X40: =((X36-0.2*X38)^2)/(X36+0.8*X38) -> 5.227608326 | Z40: 3-hr Infiltration plus Ia = | AA40: =AA39+AA$9 -> 1.005647204
B41: 6-hr CN = | C41: =1000/(C38+10) -> 88.19730544 | E41: 3-hr Runoff (inches) = | F41: =F35-F40 -> 2.562545842 | I41: 6-hr CN = | J41: =1000/(J38+10) -> 88.19730544 | L41: 3-hr Runoff (inches) = | M41: =M35-M40 -> 3.232847811 | P41: 6-hr CN = | Q41: =1000/(Q38+10) -> 88.19730544 | S41: 3-hr Runoff (inches) = | T41: =T35-T40 -> 3.876480227 | W41: 6-hr CN = | X41: =1000/(X38+10) -> 88.19730544 | Z41: 3-hr Runoff (inches) = | AA41: =AA35-AA40 -> 4.534352796
C42: 12 Hour | E42: 3-hr CN = | F42: =IF(1000 / (10 + 5*F35 + 10*F41 - 10*(F41^2 + 1.25*F35*F41)^0.5)>0,1000 / (10 + 5*F35 + 10*F41 - 10*(F41^2 + 1.25*F35*F41)^0.5),0) -> 91.72536687 | J42: 12 Hour | L42: 3-hr CN = | M42: =IF(1000 / (10 + 5*M35 + 10*M41 - 10*(M41^2 + 1.25*M35*M41)^0.5)>0,1000 / (10 + 5*M35 + 10*M41 - 10*(M41^2 + 1.25*M35*M41)^0.5),0) -> 91.51926867 | Q42: 12 Hour | S42: 3-hr CN = | T42: =IF(1000 / (10 + 5*T35 + 10*T41 - 10*(T41^2 + 1.25*T35*T41)^0.5)>0,1000 / (10 + 5*T35 + 10*T41 - 10*(T41^2 + 1.25*T35*T41)^0.5),0) -> 91.37706277 | X42: 12 Hour | Z42: 3-hr CN = | AA42: =IF(1000 / (10 + 5*AA35 + 10*AA41 - 10*(AA41^2 + 1.25*AA35*AA41)^0.5)>0,1000 / (10 + 5*AA35 + 10*AA41 - 10*(AA41^2 + 1.25*AA35*AA41)^0.5),0) -> 91.24317628
B43: D = | C43: 12 | E43: 3-hr S = | F43: =1000/F42-10 -> 0.9021095704 | I43: D = | J43: 12 | L43: 3-hr S = | M43: =1000/M42-10 -> 0.9266607406 | P43: D = | Q43: 12 | S43: 3-hr S = | T43: =1000/T42-10 -> 0.9436653979 | W43: D = | X43: 12 | Z43: 3-hr S = | AA43: =1000/AA42-10 -> 0.9597236831
B44: 12-hr P = | C44: =P10_12 -> 4.78 | E44: 3-hr Ia = | F44: =0.2*F43 -> 0.1804219141 | I44: 12-hr P = | J44: =P25_12 -> 5.84 | L44: 3-hr Ia = | M44: =0.2*M43 -> 0.1853321481 | P44: 12-hr P = | Q44: =P50_12 -> 6.86 | S44: 3-hr Ia = | T44: =0.2*T43 -> 0.1887330796 | W44: 12-hr P = | X44: =P100_12 -> 7.9 | Z44: 3-hr Ia = | AA44: =0.2*AA43 -> 0.1919447366
B45: 12-hr Gamma = | C45: =10+0.00256*((98-$C$7)^(5/3))*(24-C43)^0.5 -> 11.74606076 | E45: 3-hr QCN = | F45: =((F35-F44)^2)/(F35+0.8*F43) -> 2.562545842 | I45: 12-hr Gamma = | J45: =10+0.00256*((98-$C$7)^(5/3))*(24-J43)^0.5 -> 11.74606076 | L45: 3-hr QCN = | M45: =((M35-M44)^2)/(M35+0.8*M43) -> 3.232847811 | P45: 12-hr Gamma = | Q45: =10+0.00256*((98-$C$7)^(5/3))*(24-Q43)^0.5 -> 11.74606076 | S45: 3-hr QCN = | T45: =((T35-T44)^2)/(T35+0.8*T43) -> 3.876480227 | W45: 12-hr Gamma = | X45: =10+0.00256*((98-$C$7)^(5/3))*(24-X43)^0.5 -> 11.74606076 | Z45: 3-hr QCN = | AA45: =((AA35-AA44)^2)/(AA35+0.8*AA43) -> 4.534352796
B46: 12-hr S = | C46: =1000/$C$7-C45 -> 1.730633071 | F46: 6 Hour | I46: 12-hr S = | J46: =1000/$C$7-J45 -> 1.730633071 | M46: 6 Hour | P46: 12-hr S = | Q46: =1000/$C$7-Q45 -> 1.730633071 | T46: 6 Hour | W46: 12-hr S = | X46: =1000/$C$7-X45 -> 1.730633071 | AA46: 6 Hour
B47: 12-hr Ia = | C47: =0.2*C46 -> 0.3461266141 | E47: 6--hr P = | F47: =P10_6 -> 4.07 | I47: 12-hr Ia = | J47: =0.2*J46 -> 0.3461266141 | L47: 6--hr P = | M47: =P25_6 -> 4.94 | P47: 12-hr Ia = | Q47: =0.2*Q46 -> 0.3461266141 | S47: 6--hr P = | T47: =P50_6 -> 5.77 | W47: 12-hr Ia = | X47: =0.2*X46 -> 0.3461266141 | Z47: 6--hr P = | AA47: =P100_6 -> 6.6
B48: 12-hr QCN = | C48: =((C44-0.2*C46)^2)/(C44+0.8*C46) -> 3.189100918 | E48: 24-hr QCN = | F48: =((F47-F$9)^2)/(F47+0.8*F$8) -> 1.662202343 | I48: 12-hr QCN = | J48: =((J44-0.2*J46)^2)/(J44+0.8*J46) -> 4.177814078 | L48: 24-hr QCN = | M48: =((M47-M$9)^2)/(M47+0.8*M$8) -> 2.283444747 | P48: 12-hr QCN = | Q48: =((Q44-0.2*Q46)^2)/(Q44+0.8*Q46) -> 5.146523532 | S48: 24-hr QCN = | T48: =((T47-T$9)^2)/(T47+0.8*T$8) -> 2.919603679 | W48: 12-hr QCN = | X48: =((X44-0.2*X46)^2)/(X44+0.8*X46) -> 6.145830518 | Z48: 24-hr QCN = | AA48: =((AA47-AA$9)^2)/(AA47+0.8*AA$8) -> 3.581643608
B49: 12-hr CN = | C49: =1000/(C46+10) -> 85.24689111 | E49: P-Ia-QCN = | F49: =F47-F$9-F48 -> 1.712458891 | I49: 12-hr CN = | J49: =1000/(J46+10) -> 85.24689111 | L49: P-Ia-QCN = | M49: =M47-M$9-M48 -> 1.939294016 | P49: 12-hr CN = | Q49: =1000/(Q46+10) -> 85.24689111 | S49: P-Ia-QCN = | T49: =T47-T$9-T48 -> 2.11900624 | W49: 12-hr CN = | X49: =1000/(X46+10) -> 85.24689111 | Z49: P-Ia-QCN = | AA49: =AA47-AA$9-AA48 -> 2.274551608
C50: 24 Hour | E50: 24-hr Infiltration Rate (in/hr) = | F50: =F49/24 -> 0.07135245379 | J50: 24 Hour | L50: 24-hr Infiltration Rate (in/hr) = | M50: =M49/24 -> 0.08080391734 | Q50: 24 Hour | S50: 24-hr Infiltration Rate (in/hr) = | T50: =T49/24 -> 0.08829192667 | X50: 24 Hour | Z50: 24-hr Infiltration Rate (in/hr) = | AA50: =AA49/24 -> 0.09477298367
B51: D = | C51: 24 | E51: 6-hr Infiltration (inches) = | F51: =6*F50 -> 0.4281147227 | I51: D = | J51: 24 | L51: 6-hr Infiltration (inches) = | M51: =6*M50 -> 0.484823504 | P51: D = | Q51: 24 | S51: 6-hr Infiltration (inches) = | T51: =6*T50 -> 0.52975156 | W51: D = | X51: 24 | Z51: 6-hr Infiltration (inches) = | AA51: =6*AA50 -> 0.568637902
B52: 24-hr P = | C52: =P10_24 -> 5.74 | E52: 6-hr Infiltration plus Ia = | F52: =F51+F$9 -> 1.123453489 | I52: 24-hr P = | J52: =P25_24 -> 7.04 | L52: 6-hr Infiltration plus Ia = | M52: =M51+M$9 -> 1.202084741 | P52: 24-hr P = | Q52: =P50_24 -> 8.12 | S52: 6-hr Infiltration plus Ia = | T52: =T51+T$9 -> 1.261141641 | W52: 24-hr P = | X52: =P100_24 -> 9.29 | Z52: 6-hr Infiltration plus Ia = | AA52: =AA51+AA$9 -> 1.312442686
B53: 24-hr Gamma = | C53: =10+0.00256*((98-$C$7)^(5/3))*(24-C51)^0.5 -> 10 | E53: 6-hr Runoff (inches) = | F53: =F47-F52 -> 2.946546511 | I53: 24-hr Gamma = | J53: =10+0.00256*((98-$C$7)^(5/3))*(24-J51)^0.5 -> 10 | L53: 6-hr Runoff (inches) = | M53: =M47-M52 -> 3.737915259 | P53: 24-hr Gamma = | Q53: =10+0.00256*((98-$C$7)^(5/3))*(24-Q51)^0.5 -> 10 | S53: 6-hr Runoff (inches) = | T53: =T47-T52 -> 4.508858359 | W53: 24-hr Gamma = | X53: =10+0.00256*((98-$C$7)^(5/3))*(24-X51)^0.5 -> 10 | Z53: 6-hr Runoff (inches) = | AA53: =AA47-AA52 -> 5.287557314
B54: 24-hr S = | C54: =1000/$C$7-C53 -> 3.476693832 | E54: 6-hr CN = | F54: =IF(1000 / (10 + 5*F47 + 10*F53 - 10*(F53^2 + 1.25*F47*F53)^0.5)>0,1000 / (10 + 5*F47 + 10*F53 - 10*(F53^2 + 1.25*F47*F53)^0.5),0) -> 89.59871249 | I54: 24-hr S = | J54: =1000/$C$7-J53 -> 3.476693832 | L54: 6-hr CN = | M54: =IF(1000 / (10 + 5*M47 + 10*M53 - 10*(M53^2 + 1.25*M47*M53)^0.5)>0,1000 / (10 + 5*M47 + 10*M53 - 10*(M53^2 + 1.25*M47*M53)^0.5),0) -> 89.22633304 | P54: 24-hr S = | Q54: =1000/$C$7-Q53 -> 3.476693832 | S54: 6-hr CN = | T54: =IF(1000 / (10 + 5*T47 + 10*T53 - 10*(T53^2 + 1.25*T47*T53)^0.5)>0,1000 / (10 + 5*T47 + 10*T53 - 10*(T53^2 + 1.25*T47*T53)^0.5),0) -> 88.96309433 | W54: 24-hr S = | X54: =1000/$C$7-X53 -> 3.476693832 | Z54: 6-hr CN = | AA54: =IF(1000 / (10 + 5*AA47 + 10*AA53 - 10*(AA53^2 + 1.25*AA47*AA53)^0.5)>0,1000 / (10 + 5*AA47 + 10*AA53 - 10*(AA53^2 + 1.25*AA47*AA53)^0.5),0) -> 88.72919104
B55: 24-hr Ia = | C55: =0.2*C54 -> 0.6953387665 | E55: 6-hr S = | F55: =1000/F54-10 -> 1.160874663 | I55: 24-hr Ia = | J55: =0.2*J54 -> 0.6953387665 | L55: 6-hr S = | M55: =1000/M54-10 -> 1.20745374 | P55: 24-hr Ia = | Q55: =0.2*Q54 -> 0.6953387665 | S55: 6-hr S = | T55: =1000/T54-10 -> 1.240616208 | W55: 24-hr Ia = | X55: =0.2*X54 -> 0.6953387665 | Z55: 6-hr S = | AA55: =1000/AA54-10 -> 1.270248136
B56: 24-hr QCN = | C56: =((C52-0.2*C54)^2)/(C52+0.8*C54) -> 2.986450719 | E56: 6-hr Ia = | F56: =0.2*F55 -> 0.2321749325 | I56: 24-hr QCN = | J56: =((J52-0.2*J54)^2)/(J52+0.8*J54) -> 4.098693703 | L56: 6-hr Ia = | M56: =0.2*M55 -> 0.2414907481 | P56: 24-hr QCN = | Q56: =((Q52-0.2*Q54)^2)/(Q52+0.8*Q54) -> 5.056765338 | S56: 6-hr Ia = | T56: =0.2*T55 -> 0.2481232415 | W56: 24-hr QCN = | X56: =((X52-0.2*X54)^2)/(X52+0.8*X54) -> 6.119296576 | Z56: 6-hr Ia = | AA56: =0.2*AA55 -> 0.2540496273
B57: 24-hr CN = | C57: =1000/(C54+10) -> 74.20217543 | E57: 6-hr QCN = | F57: =((F47-F56)^2)/(F47+0.8*F55) -> 2.946546511 | I57: 24-hr CN = | J57: =1000/(J54+10) -> 74.20217543 | L57: 6-hr QCN = | M57: =((M47-M56)^2)/(M47+0.8*M55) -> 3.737915259 | P57: 24-hr CN = | Q57: =1000/(Q54+10) -> 74.20217543 | S57: 6-hr QCN = | T57: =((T47-T56)^2)/(T47+0.8*T55) -> 4.508858359 | W57: 24-hr CN = | X57: =1000/(X54+10) -> 74.20217543 | Z57: 6-hr QCN = | AA57: =((AA47-AA56)^2)/(AA47+0.8*AA55) -> 5.287557314
F58: 12 Hour | M58: 12 Hour | T58: 12 Hour | AA58: 12 Hour
E59: 12--hr P = | F59: =P10_12 -> 4.78 | L59: 12--hr P = | M59: =P25_12 -> 5.84 | S59: 12--hr P = | T59: =P50_12 -> 6.86 | Z59: 12--hr P = | AA59: =P100_12 -> 7.9
E60: 24-hr QCN = | F60: =((F59-F$9)^2)/(F59+0.8*F$8) -> 2.206543304 | L60: 24-hr QCN = | M60: =((M59-M$9)^2)/(M59+0.8*M$8) -> 3.01324113 | S60: 24-hr QCN = | T60: =((T59-T$9)^2)/(T59+0.8*T$8) -> 3.83829421 | Z60: 24-hr QCN = | AA60: =((AA59-AA$9)^2)/(AA59+0.8*AA$8) -> 4.708974535
E61: P-Ia-QCN = | F61: =F59-F$9-F60 -> 1.878117929 | L61: P-Ia-QCN = | M61: =M59-M$9-M60 -> 2.109497633 | S61: P-Ia-QCN = | T61: =T59-T$9-T60 -> 2.290315709 | Z61: P-Ia-QCN = | AA61: =AA59-AA$9-AA60 -> 2.447220681
E62: 24-hr Infiltration Rate (in/hr) = | F62: =F61/24 -> 0.07825491372 | L62: 24-hr Infiltration Rate (in/hr) = | M62: =M61/24 -> 0.08789573471 | S62: 24-hr Infiltration Rate (in/hr) = | T62: =T61/24 -> 0.09542982121 | Z62: 24-hr Infiltration Rate (in/hr) = | AA62: =AA61/24 -> 0.1019675284
E63: 12-hr Infiltration (inches) = | F63: =12*F62 -> 0.9390589646 | L63: 12-hr Infiltration (inches) = | M63: =12*M62 -> 1.054748817 | S63: 12-hr Infiltration (inches) = | T63: =12*T62 -> 1.145157854 | Z63: 12-hr Infiltration (inches) = | AA63: =12*AA62 -> 1.22361034
E64: 12-hr Infiltration plus Ia = | F64: =F63+F$9 -> 1.634397731 | L64: 12-hr Infiltration plus Ia = | M64: =M63+M$9 -> 1.772010053 | S64: 12-hr Infiltration plus Ia = | T64: =T63+T$9 -> 1.876547936 | Z64: 12-hr Infiltration plus Ia = | AA64: =AA63+AA$9 -> 1.967415124
E65: 12-hr Runoff (inches) = | F65: =F59-F64 -> 3.145602269 | L65: 12-hr Runoff (inches) = | M65: =M59-M64 -> 4.067989947 | S65: 12-hr Runoff (inches) = | T65: =T59-T64 -> 4.983452064 | Z65: 12-hr Runoff (inches) = | AA65: =AA59-AA64 -> 5.932584876
E66: 12-hr CN = | F66: =IF(1000 / (10 + 5*F59 + 10*F65 - 10*(F65^2 + 1.25*F59*F65)^0.5)>0,1000 / (10 + 5*F59 + 10*F65 - 10*(F65^2 + 1.25*F59*F65)^0.5),0) -> 84.79481163 | L66: 12-hr CN = | M66: =IF(1000 / (10 + 5*M59 + 10*M65 - 10*(M65^2 + 1.25*M59*M65)^0.5)>0,1000 / (10 + 5*M59 + 10*M65 - 10*(M65^2 + 1.25*M59*M65)^0.5),0) -> 84.20116989 | S66: 12-hr CN = | T66: =IF(1000 / (10 + 5*T59 + 10*T65 - 10*(T65^2 + 1.25*T59*T65)^0.5)>0,1000 / (10 + 5*T59 + 10*T65 - 10*(T65^2 + 1.25*T59*T65)^0.5),0) -> 83.78839329 | Z66: 12-hr CN = | AA66: =IF(1000 / (10 + 5*AA59 + 10*AA65 - 10*(AA65^2 + 1.25*AA59*AA65)^0.5)>0,1000 / (10 + 5*AA59 + 10*AA65 - 10*(AA65^2 + 1.25*AA59*AA65)^0.5),0) -> 83.43166062
E67: 12-hr S = | F67: =1000/F66-10 -> 1.793174379 | L67: 12-hr S = | M67: =1000/M66-10 -> 1.876319548 | S67: 12-hr S = | T67: =1000/T66-10 -> 1.934827256 | Z67: 12-hr S = | AA67: =1000/AA66-10 -> 1.985857557
E68: 12-hr Ia = | F68: =0.2*F67 -> 0.3586348758 | L68: 12-hr Ia = | M68: =0.2*M67 -> 0.3752639096 | S68: 12-hr Ia = | T68: =0.2*T67 -> 0.3869654513 | Z68: 12-hr Ia = | AA68: =0.2*AA67 -> 0.3971715115
E69: 12-hr QCN = | F69: =((F59-F68)^2)/(F59+0.8*F67) -> 3.145602269 | L69: 12-hr QCN = | M69: =((M59-M68)^2)/(M59+0.8*M67) -> 4.067989947 | S69: 12-hr QCN = | T69: =((T59-T68)^2)/(T59+0.8*T67) -> 4.983452064 | Z69: 12-hr QCN = | AA69: =((AA59-AA68)^2)/(AA59+0.8*AA67) -> 5.932584876
F70: 24 Hour | M70: 24 Hour | T70: 24 Hour | AA70: 24 Hour
E71: 24--hr P = | F71: =P10_24 -> 5.74 | L71: 24--hr P = | M71: =P25_24 -> 7.04 | S71: 24--hr P = | T71: =P50_24 -> 8.12 | Z71: 24--hr P = | AA71: =P100_24 -> 9.29
E72: 24-hr QCN = | F72: =((F71-F$9)^2)/(F71+0.8*F$8) -> 2.986450719 | L72: 24-hr QCN = | M72: =((M71-M$9)^2)/(M71+0.8*M$8) -> 4.034397431 | S72: 24-hr QCN = | T72: =((T71-T$9)^2)/(T71+0.8*T$8) -> 4.942398115 | Z72: 24-hr QCN = | AA72: =((AA71-AA$9)^2)/(AA71+0.8*AA$8) -> 5.954842867
E73: P-Ia-QCN = | F73: =F71-F$9-F72 -> 2.058210515 | L73: P-Ia-QCN = | M73: =M71-M$9-M72 -> 2.288341333 | S73: P-Ia-QCN = | T73: =T71-T$9-T72 -> 2.446211804 | Z73: P-Ia-QCN = | AA73: =AA71-AA$9-AA72 -> 2.591352349
E74: 24-hr Infiltration Rate (in/hr) = | F74: =F73/24 -> 0.08575877145 | L74: 24-hr Infiltration Rate (in/hr) = | M74: =M73/24 -> 0.09534755554 | S74: 24-hr Infiltration Rate (in/hr) = | T74: =T73/24 -> 0.1019254918 | Z74: 24-hr Infiltration Rate (in/hr) = | AA74: =AA73/24 -> 0.1079730146
E75: 24-hr Infiltration (inches) = | F75: =24*F74 -> 2.058210515 | L75: 24-hr Infiltration (inches) = | M75: =24*M74 -> 2.288341333 | S75: 24-hr Infiltration (inches) = | T75: =24*T74 -> 2.446211804 | Z75: 24-hr Infiltration (inches) = | AA75: =24*AA74 -> 2.591352349
E76: 24-hr Infiltration plus Ia = | F76: =F75+F$9 -> 2.753549281 | L76: 24-hr Infiltration plus Ia = | M76: =M75+M$9 -> 3.005602569 | S76: 24-hr Infiltration plus Ia = | T76: =T75+T$9 -> 3.177601885 | Z76: 24-hr Infiltration plus Ia = | AA76: =AA75+AA$9 -> 3.335157133
E77: 24-hr Runoff (inches) = | F77: =F71-F76 -> 2.986450719 | L77: 24-hr Runoff (inches) = | M77: =M71-M76 -> 4.034397431 | S77: 24-hr Runoff (inches) = | T77: =T71-T76 -> 4.942398115 | Z77: 24-hr Runoff (inches) = | AA77: =AA71-AA76 -> 5.954842867
E78: 24-hr CN = | F78: =IF(1000 / (10 + 5*F71 + 10*F77 - 10*(F77^2 + 1.25*F71*F77)^0.5)>0,1000 / (10 + 5*F71 + 10*F77 - 10*(F77^2 + 1.25*F71*F77)^0.5),0) -> 74.20217543 | L78: 24-hr CN = | M78: =IF(1000 / (10 + 5*M71 + 10*M77 - 10*(M77^2 + 1.25*M71*M77)^0.5)>0,1000 / (10 + 5*M71 + 10*M77 - 10*(M77^2 + 1.25*M71*M77)^0.5),0) -> 73.60352303 | S78: 24-hr CN = | T78: =IF(1000 / (10 + 5*T71 + 10*T77 - 10*(T77^2 + 1.25*T71*T77)^0.5)>0,1000 / (10 + 5*T71 + 10*T77 - 10*(T77^2 + 1.25*T71*T77)^0.5),0) -> 73.22278915 | Z78: 24-hr CN = | AA78: =IF(1000 / (10 + 5*AA71 + 10*AA77 - 10*(AA77^2 + 1.25*AA71*AA77)^0.5)>0,1000 / (10 + 5*AA71 + 10*AA77 - 10*(AA77^2 + 1.25*AA71*AA77)^0.5),0) -> 72.89148309
E79: 24-hr S = | F79: =1000/F78-10 -> 3.476693832 | L79: 24-hr S = | M79: =1000/M78-10 -> 3.586306183 | S79: 24-hr S = | T79: =1000/T78-10 -> 3.656950407 | Z79: 24-hr S = | AA79: =1000/AA78-10 -> 3.719023919
E80: 24-hr Ia = | F80: =0.2*F79 -> 0.6953387665 | L80: 24-hr Ia = | M80: =0.2*M79 -> 0.7172612366 | S80: 24-hr Ia = | T80: =0.2*T79 -> 0.7313900813 | Z80: 24-hr Ia = | AA80: =0.2*AA79 -> 0.7438047837
E81: 24-hr QCN = | F81: =((F71-F80)^2)/(F71+0.8*F79) -> 2.986450719 | L81: 24-hr QCN = | M81: =((M71-M80)^2)/(M71+0.8*M79) -> 4.034397431 | S81: 24-hr QCN = | T81: =((T71-T80)^2)/(T71+0.8*T79) -> 4.942398115 | Z81: 24-hr QCN = | AA81: =((AA71-AA80)^2)/(AA71+0.8*AA79) -> 5.954842867
C83: 10 Yr Storm | D83: McCuen | E83: Merkel | F83: Selected | G83: S | H83: Ia | J83: 25 Yr Storm | K83: McCuen | L83: Merkel | M83: Selected | N83: S | O83: Ia | Q83: 50 Yr Storm | R83: McCuen | S83: Merkel | T83: Selected | U83: S | V83: Ia | X83: 100 Yr Storm | Y83: McCuen | Z83: Merkel | AA83: Selected | AB83: S | AC83: Ia
C84: 1 hr | D84: =C17 -> 90.42096429 | E84: =F18 -> 92.79894215 | F84: =IF('WS & UH Data & Runoff Results'!$M$6=1,D84,E84) -> 92.79894215 | G84: =1000/F84-10 -> 0.7759849075 | H84: =0.2*(1000/F84-10) -> 0.1551969815 | J84: 1 hr | K84: =J17 -> 90.42096429 | L84: =M18 -> 92.72835049 | M84: =IF('WS & UH Data & Runoff Results'!$M$6=1,K84,L84) -> 92.72835049 | N84: =1000/M84-10 -> 0.7841883821 | O84: =0.2*(1000/M84-10) -> 0.1568376764 | Q84: 1 hr | R84: =Q17 -> 90.42096429 | S84: =T18 -> 92.69126729 | T84: =IF('WS & UH Data & Runoff Results'!$M$6=1,R84,S84) -> 92.69126729 | U84: =1000/T84-10 -> 0.7885028362 | V84: =0.2*(1000/T84-10) -> 0.1577005672 | X84: 1 hr | Y84: =X17 -> 90.42096429 | Z84: =AA18 -> 92.64693246 | AA84: =IF('WS & UH Data & Runoff Results'!$M$6=1,Y84,Z84) -> 92.64693246 | AB84: =1000/AA84-10 -> 0.7936655154 | AC84: =0.2*(1000/AA84-10) -> 0.1587331031
C85: 2 hr | D85: =C25 -> 89.98861872 | E85: =F30 -> 92.35096484 | F85: =IF('WS & UH Data & Runoff Results'!$M$6=1,D85,E85) -> 92.35096484 | G85: =1000/F85-10 -> 0.8282572 | H85: 0.16565144 | J85: 2 hr | K85: =J25 -> 89.98861872 | L85: =M30 -> 92.20476711 | M85: =IF('WS & UH Data & Runoff Results'!$M$6=1,K85,L85) -> 92.20476711 | N85: =1000/M85-10 -> 0.8454262329 | O85: 0.1690852466 | Q85: 2 hr | R85: =Q25 -> 89.98861872 | S85: =T30 -> 92.10842094 | T85: =IF('WS & UH Data & Runoff Results'!$M$6=1,R85,S85) -> 92.10842094 | U85: =1000/T85-10 -> 0.8567706383 | V85: 0.1713541277 | X85: 2 hr | Y85: =X25 -> 89.98861872 | Z85: =AA30 -> 92.01407415 | AA85: =IF('WS & UH Data & Runoff Results'!$M$6=1,Y85,Z85) -> 92.01407415 | AB85: =1000/AA85-10 -> 0.8679026473 | AC85: 0.1735805295
C86: 3 hr | D86: =C33 -> 89.55058767 | E86: =F42 -> 91.72536687 | F86: =IF('WS & UH Data & Runoff Results'!$M$6=1,D86,E86) -> 91.72536687 | G86: 0.9021095704 | H86: 0.1804219141 | J86: 3 hr | K86: =J33 -> 89.55058767 | L86: =M42 -> 91.51926867 | M86: =IF('WS & UH Data & Runoff Results'!$M$6=1,K86,L86) -> 91.51926867 | N86: 0.9266607406 | O86: 0.1853321481 | Q86: 3 hr | R86: =Q33 -> 89.55058767 | S86: =T42 -> 91.37706277 | T86: =IF('WS & UH Data & Runoff Results'!$M$6=1,R86,S86) -> 91.37706277 | U86: 0.9436653979 | V86: 0.1887330796 | X86: 3 hr | Y86: =X33 -> 89.55058767 | Z86: =AA42 -> 91.24317628 | AA86: =IF('WS & UH Data & Runoff Results'!$M$6=1,Y86,Z86) -> 91.24317628 | AB86: 0.9597236831 | AC86: 0.1919447366
C87: 6 hr | D87: =C41 -> 88.19730544 | E87: =F54 -> 89.59871249 | F87: =IF('WS & UH Data & Runoff Results'!$M$6=1,D87,E87) -> 89.59871249 | G87: 1.160874663 | H87: 0.2321749325 | J87: 6 hr | K87: =J41 -> 88.19730544 | L87: =M54 -> 89.22633304 | M87: =IF('WS & UH Data & Runoff Results'!$M$6=1,K87,L87) -> 89.22633304 | N87: 1.20745374 | O87: 0.2414907481 | Q87: 6 hr | R87: =Q41 -> 88.19730544 | S87: =T54 -> 88.96309433 | T87: =IF('WS & UH Data & Runoff Results'!$M$6=1,R87,S87) -> 88.96309433 | U87: 1.240616208 | V87: 0.2481232415 | X87: 6 hr | Y87: =X41 -> 88.19730544 | Z87: =AA54 -> 88.72919104 | AA87: =IF('WS & UH Data & Runoff Results'!$M$6=1,Y87,Z87) -> 88.72919104 | AB87: 1.270248136 | AC87: 0.2540496273
C88: 12 hr | D88: =C49 -> 85.24689111 | E88: =F66 -> 84.79481163 | F88: =IF('WS & UH Data & Runoff Results'!$M$6=1,D88,E88) -> 84.79481163 | G88: 1.793174379 | H88: 0.3586348758 | J88: 12 hr | K88: =J49 -> 85.24689111 | L88: =M66 -> 84.20116989 | M88: =IF('WS & UH Data & Runoff Results'!$M$6=1,K88,L88) -> 84.20116989 | N88: 1.876319548 | O88: 0.3752639096 | Q88: 12 hr | R88: =Q49 -> 85.24689111 | S88: =T66 -> 83.78839329 | T88: =IF('WS & UH Data & Runoff Results'!$M$6=1,R88,S88) -> 83.78839329 | U88: 1.934827256 | V88: 0.3869654513 | X88: 12 hr | Y88: =X49 -> 85.24689111 | Z88: =AA66 -> 83.43166062 | AA88: =IF('WS & UH Data & Runoff Results'!$M$6=1,Y88,Z88) -> 83.43166062 | AB88: 1.985857557 | AC88: 0.3971715115
C89: 24 hr | D89: =C57 -> 74.20217543 | E89: =F78 -> 74.20217543 | F89: =IF('WS & UH Data & Runoff Results'!$M$6=1,D89,E89) -> 74.20217543 | G89: 3.476693832 | H89: 0.6953387665 | J89: 24 hr | K89: =J57 -> 74.20217543 | L89: =M78 -> 73.60352303 | M89: =IF('WS & UH Data & Runoff Results'!$M$6=1,K89,L89) -> 73.60352303 | N89: 3.586306183 | O89: 0.7172612366 | Q89: 24 hr | R89: =Q57 -> 74.20217543 | S89: =T78 -> 73.22278915 | T89: =IF('WS & UH Data & Runoff Results'!$M$6=1,R89,S89) -> 73.22278915 | U89: 3.656950407 | V89: 0.7313900813 | X89: 24 hr | Y89: =X57 -> 74.20217543 | Z89: =AA78 -> 72.89148309 | AA89: =IF('WS & UH Data & Runoff Results'!$M$6=1,Y89,Z89) -> 72.89148309 | AB89: 3.719023919 | AC89: 0.7438047837
C92: Design Storm | D92: Curve Number
C94: 1 hr | D94: =IF(DS_RP=10,F84,IF(DS_RP=25,M84,IF(DS_RP=50,T84,IF(DS_RP=100,AA84)))) -> 92.72835049
C95: 2 hr | D95: 92.20476711
C96: 3 hr | D96: 91.51926867
C97: 6 hr | D97: 89.22633304
C98: 12 hr | D98: 84.20116989
C99: 24 hr | D99: 73.60352303
C103: S_24 = | D103: =1000/D99-10 -> 3.586306183

Sheet WS & UH Data & Runoff Results
C2: Summary Watershed and Unit Hydrograph Data | K2: Drop Down boxes to select CN, CN Modification Method, and Tc
C3: Watershed Data | F3: Unit Hydrograph Data | K3: Select Standard CN Value | M3: 2 | O3: 1 | P3: Area Weighted CN
C4: Area (acres) = | E4: =Area -> 100 | F4: Burst Duration (min) = | H4: 6 | K4: Click Yellow Box | O4: 2 | P4: Runoff Weighted CN
C5: Tc (minutes) = | E5: =IF($M$9=1,'Tc Calculator'!$K$42,'Tc Calculator'!$K$43) -> 79.30740831 | F5: PRF = | H5: ='PRF Calculator'!PRF -> 375
C6: Area Weighted (Standard) CN = | E6: ='Area Weighted CN Calculator'!G23 -> 73 | F6: G-fn n = | H6: ='PRF Calculator'!Gamma_n -> 3.295454545 | K6: Select CN Modification Method | M6: 2 | O6: 1 | P6: McCuen
C7: 10-yr Runoff Weighted CN = | E7: ='Runoff Weighted CN Calculator'!G$24 -> 74.20217543 | F7: Lag time (min) = | H7: =0.6*TC -> 47.58444499 | K7: Click Yellow Box | O7: 2 | P7: Merkel
C8: 25-yr Runoff Weighted CN = | E8: ='Runoff Weighted CN Calculator'!H$24 -> 73.60352303 | F8: Adjusted Tc (min) = | H8: =BDur*(INT((TC+BDur/2)/BDur)) -> 78
C9: 50-yr Runoff Weighted CN = | E9: ='Runoff Weighted CN Calculator'!I$24 -> 73.22278915 | F9: UH_Tp = | H9: =BDur*(INT((0.6*AdjTC+BDur)/BDur)) -> 48 | K9: Select Time of Concentration | M9: 1 | O9: 1 | P9: Travel Time Method
C10: 100-yr Runoff Weighted CN = | E10: ='Runoff Weighted CN Calculator'!J$24 -> 72.89148309 | F10: UH_Qp = | H10: =('PRF Calculator'!PRF*Area*60)/(UH_Tp*640) -> 73.2421875 | K10: Click Yellow Box | O10: 2 | P10: Lag Time Equation
C11: CN Selected for Pond Design = | E11: =IF(M3=1,E6,MAX('Runoff Weighted CN Calculator'!G27:J27)) -> 73.60352303
G14: For the Following Tables
C15: Design Rainfall Distribution = | G15: =IF(RainPat=2,'Rainfall Data Curves'!$B$3,IF(RainPat=3,'Rainfall Data Curves'!$C$3,IF(RainPat=4,'Rainfall Data Curves'!$D$3,IF(RainPat=5,'Rainfall Data Curves'!$E$3,IF(RainPat=6,'Rainfall Data Curves'!$F$3,IF(RainPat=7,'Rainfall Data Curves'!$G$3,)))))) -> NOAA B | K15: Curve Number Adjustment Method = | O15: =IF($M$6=1,"McCuen","Merkel") -> Merkel
C16: In each table, the D-hr design storm duration with the maximum runoff volume is flagged with a Blue Arrow in the left side column and the duration with maximum peak runoff is flagged with a Red Arrow in the right side column. These are Critical Durations.
C20: D-Hour Rainfall Data, Runoff Depths, and Peak Runoff Rates
C21: The following cells report runoff data for storms with Annual Exceedance Probabilities of 10, 4, 2 and 1 percent.
C22: Annual Exceedance Probablity (AEP) = | G22: 10 | H22: % | K22: Annual Exceedance Probablity (AEP) = | O22: 4 | P22: %
C23: Design Storm Return Period = | G23: 10 | H23: Years | K23: Design Storm Return Period = | O23: =100/O22 -> 25 | P23: Years
C24: Runoff Results for 10 Year D-Hour Rainfall Events | K24: Runoff Results for 25 Year D-Hour Rainfall Events
C25: Storm Duration (hrs) | D25: Rainfall Depth (in) | E25: CN Adjusted for Rainfall Duration <24-hr | F25: Runoff Volume QCN (WS-in) | G25: Peak Runoff Qp (cfs) | H25: Time of Peak Runoff (min) | K25: Storm Duration (hrs) | L25: Rainfall Depth (in) | M25: CN Adjusted for Rainfall Duration <24-hr | N25: Runoff Volume QCN (WS-in) | O25: Peak Runoff Qp (cfs) | P25: Time of Peak Runoff (min)
B28: =IF(F28=MAX(F$28:F$33),"=>"," ") ->  | C28: 1 | D28: =P10_1 -> 2.66 | E28: ='Adjust CN when D<24-hr'!$F84 -> 92.79894215 | F28: ='P(t) Distribution 10yr'!$AV$15 -> 1.912357124 | G28: =MAX(Q10_1!$P$5:$P$105) -> 132.3971686 | H28: ='D-Hour Runoff Ordinates'!C4 -> 84 | I28: =IF(G28=MAX(G$28:G$33),"<="," ") ->  | J28: =IF(N28=MAX(N$28:N$33),"=>"," ") ->  | K28: 1 | L28: =P25_1 -> 3.13 | M28: ='Adjust CN when D<24-hr'!M84 -> 92.72835049 | N28: ='P(t) Distribution 25yr'!$AV$15 -> 2.35264017 | O28: =MAX(Q25_1!$P$5:$P$105) -> 162.544731 | P28: ='D-Hour Runoff Ordinates'!Q4 -> 84 | Q28: =IF(O28=MAX(O$28:O$33),"<="," ") -> 
C29: 2 | D29: =P10_2 -> 3.22 | E29: ='Adjust CN when D<24-hr'!$F85 -> 92.35096484 | F29: ='P(t) Distribution 10yr'!$AO$25 -> 2.402779397 | G29: =MAX(Q10_2!$Z$5:$Z$105) -> 148.5840215 | H29: ='D-Hour Runoff Ordinates'!E4 -> 114 | I29: <= | K29: 2 | L29: =P25_2 -> 3.85 | M29: ='Adjust CN when D<24-hr'!M85 -> 92.20476711 | N29: ='P(t) Distribution 25yr'!$AO$25 -> 2.993396534 | O29: =MAX(Q25_2!$Z$5:$Z$105) -> 184.787381 | P29: ='D-Hour Runoff Ordinates'!S4 -> 114
C30: 3 | D30: =P10_3 -> 3.45 | E30: ='Adjust CN when D<24-hr'!$F86 -> 91.72536687 | F30: ='P(t) Distribution 10yr'!$AG$35 -> 2.562545842 | G30: =MAX(Q10_3!$AJ$5:$AJ$105) -> 145.9034264 | H30: ='D-Hour Runoff Ordinates'!G4 -> 144 | K30: 3 | L30: =P25_3 -> 4.17 | M30: ='Adjust CN when D<24-hr'!M86 -> 91.51926867 | N30: ='P(t) Distribution 25yr'!$AG$35 -> 3.232847811 | O30: =MAX(Q25_3!$AJ$5:$AJ$105) -> 183.7519014 | P30: ='D-Hour Runoff Ordinates'!U4 -> 144
C31: 6 | D31: =P10_6 -> 4.07 | E31: ='Adjust CN when D<24-hr'!$F87 -> 89.59871249 | F31: ='P(t) Distribution 10yr'!$X$65 -> 2.946546511 | G31: =MAX(Q10_6!$BN$5:$BN$353) -> 147.4590275 | H31: ='D-Hour Runoff Ordinates'!I4 -> 234 | K31: 6 | L31: =P25_6 -> 4.94 | M31: ='Adjust CN when D<24-hr'!M87 -> 89.22633304 | N31: ='P(t) Distribution 25yr'!$X$65 -> 3.737915259 | O31: =MAX(Q25_6!$BN$5:$BN$353) -> 186.6264936 | P31: ='D-Hour Runoff Ordinates'!W4 -> 234 | Q31: <=
B32: => | C32: 12 | D32: =P10_12 -> 4.78 | E32: ='Adjust CN when D<24-hr'!$F88 -> 84.79481163 | F32: ='P(t) Distribution 10yr'!$O$125 -> 3.145602269 | G32: =MAX(Q10_12!$DV$5:$DV$353) -> 139.1828527 | H32: ='D-Hour Runoff Ordinates'!K4 -> 414 | J32: => | K32: 12 | L32: =P25_12 -> 5.84 | M32: ='Adjust CN when D<24-hr'!M88 -> 84.20116989 | N32: ='P(t) Distribution 25yr'!$O$125 -> 4.067989947 | O32: =MAX(Q25_12!$DV$5:$DV$353) -> 179.7329634 | P32: ='D-Hour Runoff Ordinates'!Y4 -> 414
C33: 24 | D33: =P10_24 -> 5.74 | E33: ='Adjust CN when D<24-hr'!$F89 -> 74.20217543 | F33: ='P(t) Distribution 10yr'!$F$245 -> 2.986450719 | G33: =MAX(Q10_24!$IL$4:$IL$352) -> 115.7079488 | H33: ='D-Hour Runoff Ordinates'!M4 -> 774 | K33: 24 | L33: =P25_24 -> 7.04 | M33: ='Adjust CN when D<24-hr'!M89 -> 73.60352303 | N33: ='P(t) Distribution 25yr'!$F$245 -> 4.034397431 | O33: =MAX(Q25_24!$IL$4:$IL$352) -> 157.2134966 | P33: ='D-Hour Runoff Ordinates'!AA4 -> 774
C35: Annual Exceedance Probablity (AEP) = | G35: 2 | H35: % | K35: Annual Exceedance Probablity (AEP) = | O35: 1 | P35: %
C36: Design Storm Return Period = | G36: =100/G35 -> 50 | H36: Years | K36: Design Storm Return Period = | O36: =100/O35 -> 100 | P36: Years
C37: Runoff Results for 50 Year D-Hour Rainfall Events | K37: Runoff Results for 100 Year D-Hour Rainfall Events
C38: Storm Duration (hrs) | D38: Rainfall Depth (in) | E38: CN Adjusted for Rainfall Duration <24-hr | F38: Runoff Volume QCN (WS-in) | G38: Peak Runoff Qp (cfs) | H38: Time of Peak Runoff (min) | K38: Storm Duration (hrs) | L38: Rainfall Depth (in) | M38: CN Adjusted for Rainfall Duration <24-hr | N38: Runoff Volume QCN (WS-in) | O38: Peak Runoff Qp (cfs) | P38: Time of Peak Runoff (min)
B41: =IF(F41=MAX(F$41:F$46),"=>"," ") ->  | C41: 1 | D41: =P50_1 -> 3.56 | E41: ='Adjust CN when D<24-hr'!T84 -> 92.69126729 | F41: ='P(t) Distribution 50yr'!$AV$15 -> 2.762154043 | G41: =MAX(Q50_1!$P$5:$P$105) -> 190.51781 | H41: ='D-Hour Runoff Ordinates'!AE4 -> 84 | I41: =IF(G41=MAX(G$41:G$46),"<="," ") ->  | J41: =IF(N41=MAX(N$41:N$46),"=>"," ") ->  | K41: 1 | L41: =P100_1 -> 3.98 | M41: ='Adjust CN when D<24-hr'!AA84 -> 92.64693246 | N41: ='P(t) Distribution 100yr'!$AV$15 -> 3.164094161 | O41: =MAX(Q100_1!$P$5:$P$245) -> 217.9257107 | P41: ='D-Hour Runoff Ordinates'!AS4 -> 84 | Q41: =IF(O41=MAX(O$41:O$46),"<="," ") -> 
C42: 2 | D42: =P50_2 -> 4.43 | E42: ='Adjust CN when D<24-hr'!T85 -> 92.10842094 | F42: ='P(t) Distribution 50yr'!$AO$25 -> 3.545373994 | G42: =MAX(Q50_2!$Z$5:$Z$105) -> 218.4993898 | H42: ='D-Hour Runoff Ordinates'!AG4 -> 114 | K42: 2 | L42: =P100_2 -> 5 | M42: ='Adjust CN when D<24-hr'!AA85 -> 92.01407415 | N42: ='P(t) Distribution 100yr'!$AO$25 -> 4.090798593 | O42: =MAX(Q100_2!$Z$5:$Z$245) -> 251.7210643 | P42: ='D-Hour Runoff Ordinates'!AU4 -> 114
C43: 3 | D43: =P50_3 -> 4.85 | E43: ='Adjust CN when D<24-hr'!T86 -> 91.37706277 | F43: ='P(t) Distribution 50yr'!$AG$35 -> 3.876480227 | G43: =MAX(Q50_3!$AJ$5:$AJ$105) -> 219.9163586 | H43: ='D-Hour Runoff Ordinates'!AI4 -> 144 | K43: 3 | L43: =P100_3 -> 5.54 | M43: ='Adjust CN when D<24-hr'!AA86 -> 91.24317628 | N43: ='P(t) Distribution 100yr'!$AG$35 -> 4.534352796 | O43: =MAX(Q100_3!$AJ$5:$AJ$245) -> 256.7338122 | P43: ='D-Hour Runoff Ordinates'!AW4 -> 144
C44: 6 | D44: =P50_6 -> 5.77 | E44: ='Adjust CN when D<24-hr'!T87 -> 88.96309433 | F44: ='P(t) Distribution 50yr'!$X$65 -> 4.508858359 | G44: =MAX(Q50_6!$BN$5:$BN$353) -> 224.5121523 | H44: ='D-Hour Runoff Ordinates'!AK4 -> 234 | I44: <= | K44: 6 | L44: =P100_6 -> 6.6 | M44: ='Adjust CN when D<24-hr'!AA87 -> 88.72919104 | N44: ='P(t) Distribution 100yr'!$X$65 -> 5.287557314 | O44: =MAX(Q100_6!$BN$5:$BN$353) -> 262.5561619 | P44: ='D-Hour Runoff Ordinates'!AY4 -> 234 | Q44: <=
B45: => | C45: 12 | D45: =P50_12 -> 6.86 | E45: ='Adjust CN when D<24-hr'!T88 -> 83.78839329 | F45: ='P(t) Distribution 50yr'!$O$125 -> 4.983452064 | G45: =MAX(Q50_12!$DV$5:$DV$353) -> 219.6341155 | H45: ='D-Hour Runoff Ordinates'!AM4 -> 414 | K45: 12 | L45: =P100_12 -> 7.9 | M45: ='Adjust CN when D<24-hr'!AA88 -> 83.43166062 | N45: ='P(t) Distribution 100yr'!$O$125 -> 5.932584876 | O45: =MAX(Q100_12!$DV$5:$DV$353) -> 260.6882698 | P45: ='D-Hour Runoff Ordinates'!BA4 -> 414
C46: 24 | D46: =P50_24 -> 8.12 | E46: ='Adjust CN when D<24-hr'!T89 -> 73.22278915 | F46: ='P(t) Distribution 50yr'!$F$245 -> 4.942398115 | G46: =MAX(Q50_24!$IL$4:$IL$352) -> 192.8989365 | H46: ='D-Hour Runoff Ordinates'!AO4 -> 774 | J46: => | K46: 24 | L46: =P100_24 -> 9.29 | M46: ='Adjust CN when D<24-hr'!AA89 -> 72.89148309 | N46: ='P(t) Distribution 100yr'!$F$245 -> 5.954842867 | O46: =MAX(Q100_24!$IL$4:$IL$352) -> 232.3951276 | P46: ='D-Hour Runoff Ordinates'!BC4 -> 774
C48: This worksheet shows the storm runoff volume (WS-inches), peak flow (cfs), and time of peak flow (min) for 1, 2, 3, 6, 12 and 24 hour rainfall events. User selects either McCuen method or Merkel method to modify the CN value for Rainfall Durations less than 24 hours.
C51: Summary watershed and unit hydrograph data are shown. The user has the option to change the Standard CN Value with the Drop Down Menu by selecting either Area Weighted CN or Runoff Weighted CN. NRCS recommends using the Runoff Weighted CN instead of the Area Weighted CN. The user also can choose between Time of Concentration values computed with the Travel Time Method and the Lag Time Equation.

Sheet Q10_1 (hidden)
F2: Runoff Hydrograph for a 10 Year 1-Hour Storm
A3: Burst Info. | F3: Burst | G3: Burst | H3: Burst | I3: Burst | J3: Burst | K3: Burst | L3: Burst | M3: Burst | N3: Burst | O3: Burst | P3: Summation
A4: Burst | B4: Increment | D4: Time, min | E4: UH, cfs | F4: 1 | G4: 2 | H4: 3 | I4: 4 | J4: 5 | K4: 6 | L4: 7 | M4: 8 | N4: 9 | O4: 10
A5: 1 | B5: ='P(t) Distribution 10yr'!AW5 -> 0 | D5: 0 | E5: =UH_Qp*((Q10_1!D5/UH_Tp)*EXP(1-Q10_1!D5/UH_Tp))^('WS & UH Data & Runoff Results'!$H$6-1) -> 0 | F5: =$E5*$B$5 -> 0 | P5: =SUM(F5:O5) -> 0
A6: 2 | B6: ='P(t) Distribution 10yr'!AW6 -> 0.01350263078 | D6: =D5+BDur -> 6 | E6: =UH_Qp*((Q10_1!D6/UH_Tp)*EXP(1-Q10_1!D6/UH_Tp))^('WS & UH Data & Runoff Results'!$H$6-1) -> 4.61370294 | F6: =$E6*$B$5 -> 0 | G6: =$E5*$B$6 -> 0 | P6: 0
A7: 3 | B7: ='P(t) Distribution 10yr'!AW7 -> 0.06831600874 | D7: 12 | E7: =UH_Qp*((Q10_1!D7/UH_Tp)*EXP(1-Q10_1!D7/UH_Tp))^('WS & UH Data & Runoff Results'!$H$6-1) -> 16.99954882 | F7: 0 | G7: 0.06229712732 | H7: =$E5*$B$7 -> 0 | P7: 0.06229712732
A8: 4 | B8: ='P(t) Distribution 10yr'!AW8 -> 0.1512873898 | D8: 18 | E8: =UH_Qp*((Q10_1!D8/UH_Tp)*EXP(1-Q10_1!D8/UH_Tp))^('WS & UH Data & Runoff Results'!$H$6-1) -> 32.36189695 | F8: 0 | G8: 0.2295386311 | H8: 0.3151897704 | I8: =$E5*$B$8 -> 0 | P8: 0.5447284014
A9: 5 | B9: ='P(t) Distribution 10yr'!AW9 -> 0.3426686831 | D9: 24 | E9: =UH_Qp*((Q10_1!D9/UH_Tp)*EXP(1-Q10_1!D9/UH_Tp))^('WS & UH Data & Runoff Results'!$H$6-1) -> 47.01238198 | F9: 0 | G9: 0.4369707458 | H9: 1.161341325 | I9: 0.6979950749 | J9: =$E5*$B$9 -> 0 | P9: 2.296307146
A10: 6 | B10: ='P(t) Distribution 10yr'!AW10 -> 0.6747829557 | D10: 30 | E10: =UH_Qp*((Q10_1!D10/UH_Tp)*EXP(1-Q10_1!D10/UH_Tp))^('WS & UH Data & Runoff Results'!$H$6-1) -> 58.89140027 | F10: 0 | G10: 0.6347908359 | H10: 2.210835635 | I10: 2.571817367 | J10: 1.580971511 | K10: =$E5*$B$10 -> 0 | P10: 6.998415349
A11: 7 | B11: ='P(t) Distribution 10yr'!AW11 -> 0.2397016486 | D11: 36 | E11: =UH_Qp*((Q10_1!D11/UH_Tp)*EXP(1-Q10_1!D11/UH_Tp))^('WS & UH Data & Runoff Results'!$H$6-1) -> 67.1731828 | F11: 0 | G11: 0.7951888339 | H11: 3.211698298 | I11: 4.895946917 | J11: 5.825213006 | K11: 3.113248106 | L11: =$E5*$B$11 -> 0 | P11: 17.84129516
A12: 8 | B12: ='P(t) Distribution 10yr'!AW12 -> 0.1736625568 | D12: 42 | E12: =UH_Qp*((Q10_1!D12/UH_Tp)*EXP(1-Q10_1!D12/UH_Tp))^('WS & UH Data & Runoff Results'!$H$6-1) -> 71.82180803 | F12: 0 | G12: 0.9070146856 | H12: 4.023225415 | I12: 7.112380556 | J12: 11.08940861 | K12: 11.47100579 | L12: =$E6*$B$11 -> 1.105912201 | M12: =$E5*$B$12 -> 0 | P12: 35.70894726
A13: 9 | B13: ='P(t) Distribution 10yr'!AW13 -> 0.1270510308 | D13: 48 | E13: =UH_Qp*((Q10_1!D13/UH_Tp)*EXP(1-Q10_1!D13/UH_Tp))^('WS & UH Data & Runoff Results'!$H$6-1) -> 73.2421875 | F13: 0 | G13: 0.9697833557 | H13: 4.589003743 | I13: 8.909526225 | J13: 16.10967102 | K13: 21.83725648 | L13: =$E7*$B$11 -> 4.074819877 | M13: =$E6*$B$12 -> 0.801227449 | N13: =$E5*$B$13 -> 0 | P13: 57.29128815
A14: 10 | B14: ='P(t) Distribution 10yr'!AW14 -> 0.1213842193 | D14: 54 | E14: =UH_Qp*((Q10_1!D14/UH_Tp)*EXP(1-Q10_1!D14/UH_Tp))^('WS & UH Data & Runoff Results'!$H$6-1) -> 72.03883678 | F14: 0 | G14: 0.9889622153 | H14: 4.906579265 | I14: 10.16245549 | J14: 20.18023858 | K14: 31.72315406 | L14: 7.757200052 | M14: =$E7*$B$12 -> 2.952185112 | N14: =$E6*$B$13 -> 0.5861757142 | O14: =$E5*$B$14 -> 0 | P14: 79.25695049
A15: Sum = | B15: =SUM(B5:B14) -> 1.912357124 | D15: 60 | E15: =UH_Qp*((Q10_1!D15/UH_Tp)*EXP(1-Q10_1!D15/UH_Tp))^('WS & UH Data & Runoff Results'!$H$6-1) -> 68.86333096 | F15: 0 | G15: 0.9727138148 | H15: 5.003613921 | I15: 10.86573386 | J15: 23.01814609 | K15: 39.73891314 | L15: 11.26894547 | M15: 5.620049768 | N15: =$E7*$B$13 -> 2.1598102 | O15: =$E6*$B$14 -> 0.5600307296 | P15: 99.20795699
D16: 66 | E16: =UH_Qp*((Q10_1!D16/UH_Tp)*EXP(1-Q10_1!D16/UH_Tp))^('WS & UH Data & Runoff Results'!$H$6-1) -> 64.32653345 | F16: 0 | G16: 0.9298361322 | H16: 4.921405803 | I16: 11.08061937 | J16: 24.61108438 | K16: 45.32731883 | L16: 14.11636573 | M16: 8.164290457 | N16: 4.111612365 | O16: =$E7*$B$14 -> 2.063476962 | P16: 115.32601
D17: 72 | E17: =UH_Qp*((Q10_1!D17/UH_Tp)*EXP(1-Q10_1!D17/UH_Tp))^('WS & UH Data & Runoff Results'!$H$6-1) -> 58.95479947 | F17: 0 | G17: 0.8685774305 | H17: 4.70446792 | I17: 10.89856758 | J17: 25.09780394 | K17: 48.4641319 | L17: 16.10152266 | M17: 10.22723115 | N17: 5.972971589 | O17: 3.928223598 | P17: 126.2634978
D18: 78 | E18: =UH_Qp*((Q10_1!D18/UH_Tp)*EXP(1-Q10_1!D18/UH_Tp))^('WS & UH Data & Runoff Results'!$H$6-1) -> 53.17421607 | F18: 0 | G18: 0.7960448899 | H18: 4.394532021 | I18: 10.41815359 | J18: 24.68545333 | K18: 49.42257976 | L18: 17.21580579 | M18: 11.66546668 | N18: 7.482213107 | O18: 5.706561286 | P18: 131.7868105
D19: 84 | E19: =UH_Qp*((Q10_1!D19/UH_Tp)*EXP(1-Q10_1!D19/UH_Tp))^('WS & UH Data & Runoff Results'!$H$6-1) -> 47.31149466 | F19: 0 | G19: 0.7179918066 | H19: 4.027556596 | I19: 9.731793338 | J19: 23.59730694 | K19: 48.61057921 | L19: 17.55627309 | M19: 12.47275882 | N19: 8.534422115 | O19: 7.148486647 | P19: 132.3971686
D20: 90 | E20: =UH_Qp*((Q10_1!D20/UH_Tp)*EXP(1-Q10_1!D20/UH_Tp))^('WS & UH Data & Runoff Results'!$H$6-1) -> 41.60379813 | F20: 0 | G20: 0.638829644 | H20: 3.63265021 | I20: 8.919117725 | J20: 22.04268851 | K20: 46.467802 | L20: 17.26782794 | M20: 12.71942555 | N20: 9.125034742 | O20: 8.153764355 | P20: 128.9671407
D21: 96 | E21: =UH_Qp*((Q10_1!D21/UH_Tp)*EXP(1-Q10_1!D21/UH_Tp))^('WS & UH Data & Runoff Results'!$H$6-1) -> 36.212519 | F21: 0 | G21: 0.5617607251 | H21: 3.232132482 | I21: 8.044588352 | J21: 20.2019635 | K21: 43.40644837 | L21: 16.50665396 | M21: 12.51044859 | N21: 9.305495418 | O21: 8.7180341 | P21: 122.4875255
D22: 102 | E22: =UH_Qp*((Q10_1!D22/UH_Tp)*EXP(1-Q10_1!D22/UH_Tp))^('WS & UH Data & Runoff Results'!$H$6-1) -> 31.23796348 | F22: 0 | G22: 0.4889642736 | H22: 2.842205436 | I22: 7.157632532 | J22: 18.2211386 | K22: 39.78169384 | L22: 15.41917612 | M22: 11.95898213 | N22: 9.152608468 | O22: 8.890445753 | P22: 113.9128471
D23: 108 | E23: =UH_Qp*((Q10_1!D23/UH_Tp)*EXP(1-Q10_1!D23/UH_Tp))^('WS & UH Data & Runoff Results'!$H$6-1) -> 26.7332165 | F23: 0 | G23: 0.4217946871 | H23: 2.473894764 | I23: 6.294130022 | J23: 16.21216757 | K23: 35.88105469 | L23: 14.13156263 | M23: 11.17111027 | N23: 8.749157181 | O23: 8.744377965 | P23: 104.0792498
D24: 114 | E24: =UH_Qp*((Q10_1!D24/UH_Tp)*EXP(1-Q10_1!D24/UH_Tp))^('WS & UH Data & Runoff Results'!$H$6-1) -> 22.71632631 | F24: 0 | G24: 0.360968752 | H24: 2.134052986 | I24: 5.478497476 | J24: 14.25631872 | K24: 31.9249902 | L24: 12.74594726 | M24: 10.23824121 | N24: 8.172752381 | O24: 8.35892167 | P24: 93.67069065
D25: 120 | E25: =UH_Qp*((Q10_1!D25/UH_Tp)*EXP(1-Q10_1!D25/UH_Tp))^('WS & UH Data & Runoff Results'!$H$6-1) -> 19.18048765 | F25: 0 | G25: 0.3067301668 | H25: 1.826306652 | I25: 4.725909956 | J25: 12.4088962 | K25: 28.07353387 | L25: 11.34064327 | M25: 9.234370321 | N25: 7.490268042 | O25: 7.808226046 | P25: 83.21488452
D26: 126 | E26: =UH_Qp*((Q10_1!D26/UH_Tp)*EXP(1-Q10_1!D26/UH_Tp))^('WS & UH Data & Runoff Results'!$H$6-1) -> 16.10222208 | F26: 0 | G26: 0.2589870429 | H26: 1.551888747 | I26: 4.044398544 | J26: 10.70427181 | K26: 24.4355906 | L26: 9.972499 | M26: 8.21623513 | N26: 6.755838963 | O26: 7.15618231 | P26: 73.09589215
D27: 132 | E27: =UH_Qp*((Q10_1!D27/UH_Tp)*EXP(1-Q10_1!D27/UH_Tp))^('WS & UH Data & Runoff Results'!$H$6-1) -> 13.4477263 | F27: 0 | G27: 0.2174223595 | H27: 1.310334362 | I27: 3.436693712 | J27: 9.160636095 | K27: 21.07884533 | L27: 8.680200505 | M27: 7.225021957 | N27: 6.010974163 | O27: 6.454510707 | P27: 63.57463919
D28: 138 | E28: =UH_Qp*((Q10_1!D28/UH_Tp)*EXP(1-Q10_1!D28/UH_Tp))^('WS & UH Data & Runoff Results'!$H$6-1) -> 11.17763856 | F28: 0 | G28: 0.181579683 | H28: 1.100039545 | I28: 2.901765911 | J28: 7.784173622 | K28: 18.03911885 | L28: 7.487791345 | M28: 6.288758639 | N28: 5.285805436 | O28: 5.742868845 | P28: 54.81190187
D29: 144 | E29: =UH_Qp*((Q10_1!D29/UH_Tp)*EXP(1-Q10_1!D29/UH_Tp))^('WS & UH Data & Runoff Results'!$H$6-1) -> 9.250495038 | F29: 0 | G29: 0.1509275265 | H29: 0.9186949873 | I29: 2.436063148 | J29: 6.572552446 | K29: 15.32858981 | L29: 6.407996069 | M29: 5.424864608 | N29: 4.600837866 | O29: 5.050044557 | P29: 46.89057102
D30: 150 | E30: =UH_Qp*((Q10_1!D30/UH_Tp)*EXP(1-Q10_1!D30/UH_Tp))^('WS & UH Data & Runoff Results'!$H$6-1) -> 7.625136946 | F30: 0 | G30: 0.124906019 | H30: 0.7636116537 | I30: 2.03447141 | J30: 5.517727237 | K30: 12.94266615 | L30: 5.445140867 | M30: 4.64255873 | N30: 3.968815459 | O30: 4.395628349 | P30: 39.83552587
D31: 156 | E31: =UH_Qp*((Q10_1!D31/UH_Tp)*EXP(1-Q10_1!D31/UH_Tp))^('WS & UH Data & Runoff Results'!$H$6-1) -> 6.262301871 | F31: 0 | G31: 0.1029594088 | H31: 0.6319568999 | I31: 1.691035762 | J31: 4.608114662 | K31: 10.86550501 | L31: 4.597594512 | M31: 3.944975309 | N31: 3.396482712 | O31: 3.791795811 | P31: 33.63042009
D32: 162 | E32: =UH_Qp*((Q10_1!D32/UH_Tp)*EXP(1-Q10_1!D32/UH_Tp))^('WS & UH Data & Runoff Results'!$H$6-1) -> 5.125598085 | F32: 0 | G32: 0.08455754999 | H32: 0.5209189222 | I32: 1.399483248 | J32: 3.830226686 | K32: 9.074296498 | L32: 3.85972918 | M32: 3.330932527 | N32: 2.886132673 | O32: 3.244990616 | P32: 28.2312679
D33: 168 | E33: =UH_Qp*((Q10_1!D33/UH_Tp)*EXP(1-Q10_1!D33/UH_Tp))^('WS & UH Data & Runoff Results'!$H$6-1) -> 4.182025396 | F33: 0 | G33: 0.06920905847 | H33: 0.4278154693 | I33: 1.153587065 | J33: 3.169854953 | K33: 7.542479986 | L33: 3.223442164 | M33: 2.796353058 | N33: 2.436900727 | O33: 2.757403535 | P33: 23.57704602
D34: 174 | E34: =UH_Qp*((Q10_1!D34/UH_Tp)*EXP(1-Q10_1!D34/UH_Tp))^('WS & UH Data & Runoff Results'!$H$6-1) -> 3.402173136 | F34: 0 | G34: 0.05646834483 | H34: 0.3501604036 | I34: 0.9474073039 | J34: 2.612895636 | K34: 6.242076383 | L34: 2.679298391 | M34: 2.335366533 | N34: 2.045803913 | O34: 2.32820852 | P34: 19.59768543
D35: 180 | E35: =UH_Qp*((Q10_1!D35/UH_Tp)*EXP(1-Q10_1!D35/UH_Tp))^('WS & UH Data & Runoff Results'!$H$6-1) -> 2.760196955 | F35: 0 | G35: 0.0459382877 | H35: 0.2856992835 | I35: 0.7754383552 | J35: 2.145894735 | K35: 5.145312446 | L35: 2.217358911 | M35: 1.941137292 | N35: 1.708547488 | O35: 1.954555657 | P35: 16.21988246
D36: 186 | E36: =UH_Qp*((Q10_1!D36/UH_Tp)*EXP(1-Q10_1!D36/UH_Tp))^('WS & UH Data & Runoff Results'!$H$6-1) -> 2.233651672 | F36: 0 | G36: 0.03726992037 | H36: 0.2324228897 | I36: 0.6326877061 | J36: 1.756381946 | K36: 4.225694566 | L36: 1.827757897 | M36: 1.60646462 | N36: 1.420130501 | O36: 1.632341759 | P36: 13.3711518
D37: 192 | E37: =UH_Qp*((Q10_1!D37/UH_Tp)*EXP(1-Q10_1!D37/UH_Tp))^('WS & UH Data & Runoff Results'!$H$6-1) -> 1.803237469 | F37: 0 | G37: 0.03016017382 | H37: 0.1885656393 | I37: 0.5147058932 | J37: 1.433049135 | K37: 3.458666226 | L37: 1.501084083 | M37: 1.324200778 | N37: 1.17528493 | O37: 1.356788931 | P37: =SUM(F37:O37) -> 10.98250579
D38: 198 | E38: =UH_Qp*((Q10_1!D38/UH_Tp)*EXP(1-Q10_1!D38/UH_Tp))^('WS & UH Data & Runoff Results'!$H$6-1) -> 1.452500812 | F38: 0 | G38: 0.02434844975 | H38: 0.1525941672 | I38: 0.4175829926 | J38: 1.165818188 | K38: 2.821959457 | L38: 1.228614311 | M38: 1.087527355 | N38: 0.9687815087 | O38: 1.122864119 | P38: 8.990090548
D39: 204 | E39: =UH_Qp*((Q10_1!D39/UH_Tp)*EXP(1-Q10_1!D39/UH_Tp))^('WS & UH Data & Runoff Results'!$H$6-1) -> 1.1675191 | F39: 0 | G39: 0.01961258217 | H39: 0.1231899867 | I39: 0.3379233311 | J39: 0.9458330558 | K39: 2.295728444 | L39: 1.002438382 | M39: 0.8901244688 | N39: 0.7956319077 | O39: 0.9255712956 | P39: 7.336053454
D40: 210 | E40: =UH_Qp*((Q10_1!D40/UH_Tp)*EXP(1-Q10_1!D40/UH_Tp))^('WS & UH Data & Runoff Results'!$H$6-1) -> 0.9365885809 | F40: 0 | G40: 0.01576457934 | H40: 0.09922905816 | I40: 0.2728070898 | J40: 0.7654024772 | K40: 1.86253386 | L40: 0.8155065096 | M40: 0.726261223 | N40: 0.65121252 | O40: 0.7601446239 | P40: 5.968861941
D41: 216 | E41: =UH_Qp*((Q10_1!D41/UH_Tp)*EXP(1-Q10_1!D41/UH_Tp))^('WS & UH Data & Runoff Results'!$H$6-1) -> 0.749928039 | F41: 0 | G41: 0.0126464098 | H41: 0.07976024506 | I41: 0.2197450564 | J41: 0.6179130088 | K41: 1.507230077 | L41: 0.6616237607 | M41: 0.5908300856 | N41: 0.5313306373 | O41: 0.6221667222 | P41: 4.843246003
D42: 222 | E42: =UH_Qp*((Q10_1!D42/UH_Tp)*EXP(1-Q10_1!D42/UH_Tp))^('WS & UH Data & Runoff Results'!$H$6-1) -> 0.5994056228 | F42: 0 | G42: 0.01012600142 | H42: 0.06398399367 | I42: 0.1766309172 | J42: 0.4977265405 | K42: 1.216793909 | L42: 0.5354099883 | M42: 0.4793428606 | N42: 0.4322496038 | O42: 0.507631888 | P42: 3.919895702
D43: 228 | E43: =UH_Qp*((Q10_1!D43/UH_Tp)*EXP(1-Q10_1!D43/UH_Tp))^('WS & UH Data & Runoff Results'!$H$6-1) -> 0.4782924983 | F43: 0 | G43: 0.008093552812 | H43: 0.05123209047 | I43: 0.1416940417 | J43: 0.4000722326 | K43: 0.980122791 | L43: 0.4322389941 | M43: 0.3879016605 | N43: 0.3506858683 | O43: 0.4129701302 | P43: 3.165011362
D44: 234 | E44: =UH_Qp*((Q10_1!D44/UH_Tp)*EXP(1-Q10_1!D44/UH_Tp))^('WS & UH Data & Runoff Results'!$H$6-1) -> 0.3810445116 | F44: 0 | G44: 0.006458207009 | H44: 0.04094899977 | I44: 0.1134546555 | J44: 0.3209395756 | K44: 0.7878219894 | L44: 0.3481668392 | M44: 0.3131548294 | N44: 0.2837877474 | O44: 0.3350443527 | P44: 2.549777196
D45: 240 | E45: =UH_Qp*((Q10_1!D45/UH_Tp)*EXP(1-Q10_1!D45/UH_Tp))^('WS & UH Data & Runoff Results'!$H$6-1) -> 0.3031113579 | F45: 0 | G45: 0.00514510335 | H45: 0.03267503449 | I45: 0.09068251208 | J45: 0.2569768536 | K45: 0.6319940108 | L45: 0.2798562532 | M45: 0.2522450048 | N45: 0.2291031791 | O45: 0.2711300645 | P45: 2.049808016
D46: 246 | E46: =UH_Qp*((Q10_1!D46/UH_Tp)*EXP(1-Q10_1!D46/UH_Tp))^('WS & UH Data & Runoff Results'!$H$6-1) -> 0.2407717062 | F46: 0 | G46: 0.004092800751 | H46: 0.02603144018 | I46: 0.0723596236 | J46: 0.2053975354 | K46: 0.5060386587 | L46: 0.2245018269 | M46: 0.2027543521 | N46: 0.1845417253 | O46: 0.2188845724 | P46: 1.644602536
D47: 252 | E47: =UH_Qp*((Q10_1!D47/UH_Tp)*EXP(1-Q10_1!D47/UH_Tp))^('WS & UH Data & Runoff Results'!$H$6-1) -> 0.1909921301 | F47: 0 | G47: 0.003251051451 | H47: 0.02070735817 | I47: 0.05764722954 | J47: 0.1638958605 | K47: 0.4044686978 | L47: 0.1797589873 | M47: 0.1626503677 | N47: 0.1483345051 | O47: 0.1763106771 | P47: 1.317024735
D48: 258 | E48: =UH_Qp*((Q10_1!D48/UH_Tp)*EXP(1-Q10_1!D48/UH_Tp))^('WS & UH Data & Runoff Results'!$H$6-1) -> 0.1513074096 | F48: 0 | G48: 0.002578896215 | H48: 0.01644856199 | I48: 0.04585692614 | J48: 0.130572021 | K48: 0.3227436257 | L48: 0.143678516 | M48: 0.1302344207 | N48: 0.1189945446 | O48: 0.1417183946 | P48: 1.052825907
D49: 264 | E49: =UH_Qp*((Q10_1!D49/UH_Tp)*EXP(1-Q10_1!D49/UH_Tp))^('WS & UH Data & Runoff Results'!$H$6-1) -> 0.119719699 | F49: 0 | G49: 0.002043048086 | H49: 0.01304782003 | I49: 0.03642572296 | J49: 0.1038667699 | K49: 0.2571223418 | L49: 0.1146475004 | M49: 0.104094313 | N49: 0.09527913036 | O49: 0.1136870737 | P49: 0.8402137202
D50: 270 | E50: =UH_Qp*((Q10_1!D50/UH_Tp)*EXP(1-Q10_1!D50/UH_Tp))^('WS & UH Data & Runoff Results'!$H$6-1) -> 0.09461412421 | F50: 0 | G50: 0.001616530892 | H50: 0.01033671832 | I50: 0.02889470083 | J50: 0.0825049235 | K50: 0.204534378 | L50: 0.09133699762 | M50: 0.08306149817 | N50: 0.07615510223 | O50: 0.09102942958 | P50: 0.6694702791
D51: 276 | E51: =UH_Qp*((Q10_1!D51/UH_Tp)*EXP(1-Q10_1!D51/UH_Tp))^('WS & UH Data & Runoff Results'!$H$6-1) -> 0.07468852998 | F51: 0 | G51: 0.001277539586 | H51: 0.008178772001 | I51: 0.02289090305 | J51: 0.06544702171 | K51: 0.1624686436 | L51: 0.07265629221 | M51: 0.06617316415 | N51: 0.06076755492 | O51: 0.0727583836 | P51: 0.5326182748
D52: 282 | E52: =UH_Qp*((Q10_1!D52/UH_Tp)*EXP(1-Q10_1!D52/UH_Tp))^('WS & UH Data & Runoff Results'!$H$6-1) -> 0.05889529645 | F52: 0 | G52: 0.001008491644 | H52: 0.006463659336 | I52: 0.01811208076 | J52: 0.0518483108 | K52: 0.1288782341 | L52: 0.05771337492 | M52: 0.05263909342 | N52: 0.04841209796 | O52: 0.05805716152 | P52: 0.4231325044
D53: 288 | E53: =UH_Qp*((Q10_1!D53/UH_Tp)*EXP(1-Q10_1!D53/UH_Tp))^('WS & UH Data & Runoff Results'!$H$6-1) -> 0.04639336979 | F53: 0 | G53: 0.0007952414426 | H53: 0.005102422267 | I53: 0.01431392389 | J53: 0.04102419159 | K53: 0.1020996611 | L53: 0.04578112846 | M53: 0.04181303012 | N53: 0.03851061046 | O53: 0.04625279057 | P53: 0.3356929999
D54: 294 | E54: =UH_Qp*((Q10_1!D54/UH_Tp)*EXP(1-Q10_1!D54/UH_Tp))^('WS & UH Data & Runoff Results'!$H$6-1) -> 0.03650887475 | F54: 0 | G54: 0.0006264325429 | H54: 0.004023491587 | I54: 0.01129943275 | J54: 0.03242129735 | K54: 0.08078481232 | L54: 0.03626863553 | M54: 0.03316818165 | N54: 0.03059029346 | O54: 0.03679293555 | P54: 0.2659755127
D55: 300 | E55: =UH_Qp*((Q10_1!D55/UH_Tp)*EXP(1-Q10_1!D55/UH_Tp))^('WS & UH Data & Runoff Results'!$H$6-1) -> 0.02870289398 | F55: 0 | G55: 0.000492965856 | H55: 0.003169409856 | I55: 0.008910115669 | J55: 0.02559342021 | K55: 0.06384399838 | L55: 0.02869700922 | M55: 0.02627643162 | N55: 0.024265747 | O55: 0.0292258856 | P55: 0.2104749834
D56: 306 | E56: =UH_Qp*((Q10_1!D56/UH_Tp)*EXP(1-Q10_1!D56/UH_Tp))^('WS & UH Data & Runoff Results'!$H$6-1) -> 0.02254519961 | F56: 0 | G56: 0.0003875645797 | H56: 0.002494140607 | I56: 0.007018731818 | J56: 0.02018157368 | K56: 0.05039854702 | L56: 0.02267916156 | M56: 0.02079082903 | N56: 0.01922376236 | O56: 0.02318343061 | P56: 0.1663577413
D57: 312 | E57: =UH_Qp*((Q10_1!D57/UH_Tp)*EXP(1-Q10_1!D57/UH_Tp))^('WS & UH Data & Runoff Results'!$H$6-1) -> 0.01769290446 | F57: 0 | G57: 0.0003044195062 | H57: 0.001960867156 | I57: 0.005523332364 | J57: 0.01589755493 | K57: 0.03974154222 | L57: 0.01790296377 | M57: 0.01643093072 | N57: 0.01521051116 | O57: 0.0183663318 | P57: 0.1313384536
D58: 318 | E58: =UH_Qp*((Q10_1!D58/UH_Tp)*EXP(1-Q10_1!D58/UH_Tp))^('WS & UH Data & Runoff Results'!$H$6-1) -> 0.01387316125 | F58: 0 | G58: 0.0002389007563 | H58: 0.001540198054 | I58: 0.004342385908 | J58: 0.01251044803 | K58: 0.03130545519 | L58: 0.01411729966 | M58: 0.01297060108 | N58: 0.01202082201 | O58: 0.0145320822 | P58: 0.1035781929
D59: 324 | E59: =UH_Qp*((Q10_1!D59/UH_Tp)*EXP(1-Q10_1!D59/UH_Tp))^('WS & UH Data & Runoff Results'!$H$6-1) -> 0.0108691799 | F59: 0 | G59: 0.0001873241742 | H59: 0.001208708615 | I59: 0.003410804401 | J59: 0.009835582881 | K59: 0.02463556642 | L59: 0.01112056722 | M59: 0.01022790777 | N59: 0.009489254721 | O59: 0.01148466161 | P59: 0.08160037781
D60: 330 | E60: =UH_Qp*((Q10_1!D60/UH_Tp)*EXP(1-Q10_1!D60/UH_Tp))^('WS & UH Data & Runoff Results'!$H$6-1) -> 0.008508954229 | F60: 0 | G60: 0.0001467625231 | H60: 0.0009477590054 | I60: 0.002676713332 | J60: 0.007725533862 | K60: 0.01936822363 | L60: 0.008751237468 | M60: 0.008056791218 | N60: 0.007482708122 | O60: 0.009066008906 | P60: 0.06422173807
D61: 336 | E61: =UH_Qp*((Q10_1!D61/UH_Tp)*EXP(1-Q10_1!D61/UH_Tp))^('WS & UH Data & Runoff Results'!$H$6-1) -> 0.006656194267 | F61: 0 | G61: 0.0001148932673 | H61: 0.000742538989 | I61: 0.002098834354 | J61: 0.006062804271 | K61: 0.01521311643 | L61: 0.006880131007 | M61: 0.006340224537 | N61: 0.005894325453 | O61: 0.007148959583 | P61: 0.05049582789
D62: 342 | E62: =UH_Qp*((Q10_1!D62/UH_Tp)*EXP(1-Q10_1!D62/UH_Tp))^('WS & UH Data & Runoff Results'!$H$6-1) -> 0.005203048201 | F62: 0 | G62: 8.987613359e-05 | H62: 0.0005812977914 | I62: 0.001644369856 | J62: 0.004753897898 | K62: 0.01193887036 | L62: 0.005404121516 | M62: 0.004984617957 | N62: 0.00463849017 | O62: 0.005631422975 | P62: 0.03966696466
... 77 more rows

Sheet Q10_2 (hidden)
F2: Runoff Hydrograph for a 2-Hour Storm
A3: Burst Info. | F3: Burst | G3: Burst | H3: Burst | I3: Burst | J3: Burst | K3: Burst | L3: Burst | M3: Burst | N3: Burst | O3: Burst | P3: Burst | Q3: Burst | R3: Burst | S3: Burst | T3: Burst | U3: Burst | V3: Burst | W3: Burst | X3: Burst | Y3: Burst | Z3: Summation
A4: Burst | B4: Increment | D4: Time, min | E4: UH, cfs | F4: 1 | G4: 2 | H4: 3 | I4: 4 | J4: 5 | K4: 6 | L4: 7 | M4: 8 | N4: 9 | O4: 10 | P4: 11 | Q4: 12 | R4: 13 | S4: 14 | T4: 15 | U4: 16 | V4: 17 | W4: 18 | X4: 19 | Y4: 20
A5: 1 | B5: ='P(t) Distribution 10yr'!AP5 -> 0 | D5: 0 | E5: =UH_Qp*((Q10_2!D5/UH_Tp)*EXP(1-Q10_2!D5/UH_Tp))^('WS & UH Data & Runoff Results'!$H$6-1) -> 0 | F5: =$E5*$B$5 -> 0 | Z5: =SUM(F5:Y5) -> 0
A6: =A5+1 -> 2 | B6: ='P(t) Distribution 10yr'!AP6 -> 0 | D6: =D5+BDur -> 6 | E6: =UH_Qp*((Q10_2!D6/UH_Tp)*EXP(1-Q10_2!D6/UH_Tp))^('WS & UH Data & Runoff Results'!$H$6-1) -> 4.61370294 | F6: =$E6*$B$5 -> 0 | G6: =$E5*$B$6 -> 0 | Z6: 0
A7: =A6+1 -> 3 | B7: ='P(t) Distribution 10yr'!AP7 -> 0.000140387601 | D7: 12 | E7: =UH_Qp*((Q10_2!D7/UH_Tp)*EXP(1-Q10_2!D7/UH_Tp))^('WS & UH Data & Runoff Results'!$H$6-1) -> 16.99954882 | F7: 0 | G7: 0 | H7: =$E5*$B$7 -> 0 | Z7: 0
A8: 4 | B8: ='P(t) Distribution 10yr'!AP8 -> 0.00752334489 | D8: 18 | E8: =UH_Qp*((Q10_2!D8/UH_Tp)*EXP(1-Q10_2!D8/UH_Tp))^('WS & UH Data & Runoff Results'!$H$6-1) -> 32.36189695 | F8: 0 | G8: 0 | H8: 0.0006477066876 | I8: =$E5*$B$8 -> 0 | Z8: 0.0006477066876
A9: 5 | B9: ='P(t) Distribution 10yr'!AP9 -> 0.01888893602 | D9: 24 | E9: =UH_Qp*((Q10_2!D9/UH_Tp)*EXP(1-Q10_2!D9/UH_Tp))^('WS & UH Data & Runoff Results'!$H$6-1) -> 47.01238198 | F9: 0 | G9: 0 | H9: 0.002386525877 | I9: 0.03471047844 | J9: =$E5*$B$9 -> 0 | Z9: 0.03709700432
A10: 6 | B10: ='P(t) Distribution 10yr'!AP10 -> 0.04704541407 | D10: 30 | E10: =UH_Qp*((Q10_2!D10/UH_Tp)*EXP(1-Q10_2!D10/UH_Tp))^('WS & UH Data & Runoff Results'!$H$6-1) -> 58.89140027 | F10: 0 | G10: 0 | H10: 0.004543209078 | I10: 0.1278934687 | J10: 0.08714793967 | K10: =$E5*$B$10 -> 0 | Z10: 0.2195846175
A11: 7 | B11: ='P(t) Distribution 10yr'!AP11 -> 0.06614825147 | D11: 36 | E11: =UH_Qp*((Q10_2!D11/UH_Tp)*EXP(1-Q10_2!D11/UH_Tp))^('WS & UH Data & Runoff Results'!$H$6-1) -> 67.1731828 | F11: 0 | G11: 0 | H11: 0.006599955525 | I11: 0.2434697121 | J11: 0.32110339 | K11: 0.2170535652 | L11: =$E5*$B$11 -> 0 | Z11: 0.7882266228
A12: 8 | B12: ='P(t) Distribution 10yr'!AP12 -> 0.110529954 | D12: 42 | E12: =UH_Qp*((Q10_2!D12/UH_Tp)*EXP(1-Q10_2!D12/UH_Tp))^('WS & UH Data & Runoff Results'!$H$6-1) -> 71.82180803 | F12: 0 | G12: 0 | H12: 0.008267622405 | I12: 0.3536903637 | J12: 0.6112818011 | K12: 0.7997508131 | L12: 0.3051883823 | M12: =$E5*$B$12 -> 0 | Z12: 2.078178983
A13: 9 | B13: ='P(t) Distribution 10yr'!AP13 -> 0.1796859385 | D13: 48 | E13: =UH_Qp*((Q10_2!D13/UH_Tp)*EXP(1-Q10_2!D13/UH_Tp))^('WS & UH Data & Runoff Results'!$H$6-1) -> 73.2421875 | F13: 0 | G13: 0 | H13: 0.009430281987 | I13: 0.4430603153 | J13: 0.8880138756 | K13: 1.522478842 | L13: 1.12449043 | M13: 0.5099523736 | N13: =$E5*$B$13 -> 0 | Z13: 4.497426119
A14: 10 | B14: ='P(t) Distribution 10yr'!AP14 -> 0.3564325613 | D14: 54 | E14: =UH_Qp*((Q10_2!D14/UH_Tp)*EXP(1-Q10_2!D14/UH_Tp))^('WS & UH Data & Runoff Results'!$H$6-1) -> 72.03883678 | F14: 0 | G14: 0 | H14: 0.01008289133 | I14: 0.5053670216 | J14: 1.112395892 | K14: 2.211716977 | L14: 2.140682898 | M14: 1.878959348 | N14: 0.8290175429 | O14: =$E5*$B$14 -> 0 | Z14: 8.688222571
A15: 11 | B15: ='P(t) Distribution 10yr'!AP15 -> 0.6639860513 | D15: 60 | E15: =UH_Qp*((Q10_2!D15/UH_Tp)*EXP(1-Q10_2!D15/UH_Tp))^('WS & UH Data & Runoff Results'!$H$6-1) -> 68.86333096 | F15: 0 | G15: 0 | H15: 0.010282295 | I15: 0.5403402325 | J15: 1.268829953 | K15: 2.770570311 | L15: 3.109786865 | M15: 3.576958981 | N15: 3.054579884 | O15: 1.644473956 | P15: =$E5*$B$15 -> 0 | Z15: 15.97582248
A16: 12 | B16: ='P(t) Distribution 10yr'!AP16 -> 0.232642816 | D16: 66 | E16: =UH_Qp*((Q10_2!D16/UH_Tp)*EXP(1-Q10_2!D16/UH_Tp))^('WS & UH Data & Runoff Results'!$H$6-1) -> 64.32653345 | F16: 0 | G16: 0 | H16: 0.01011335948 | I16: 0.5510262371 | J16: 1.356637537 | K16: 3.160190199 | L16: 3.895563154 | M16: 5.196276417 | N16: 5.814977827 | O16: 6.059192725 | P16: 3.063434397 | Q16: =$E5*$B$16 -> 0 | Z16: 29.10741185
A17: 13 | B17: ='P(t) Distribution 10yr'!AP17 -> 0.1681240276 | D17: 72 | E17: =UH_Qp*((Q10_2!D17/UH_Tp)*EXP(1-Q10_2!D17/UH_Tp))^('WS & UH Data & Runoff Results'!$H$6-1) -> 58.95479947 | F17: 0 | G17: 0 | H17: 0.009667557833 | I17: 0.5419730146 | J17: 1.383466994 | K17: 3.378886698 | L17: 4.443388588 | M17: 6.509263762 | N17: 8.447463979 | O17: 11.53483382 | P17: 11.28746329 | Q17: 1.073344844 | R17: =$E5*$B$17 -> 0 | Z17: 48.60975255
A18: 14 | B18: ='P(t) Distribution 10yr'!AP18 -> 0.1228408139 | D18: 78 | E18: =UH_Qp*((Q10_2!D18/UH_Tp)*EXP(1-Q10_2!D18/UH_Tp))^('WS & UH Data & Runoff Results'!$H$6-1) -> 53.17421607 | F18: 0 | G18: 0 | H18: 0.009030647714 | I18: 0.5180825891 | J18: 1.360736979 | K18: 3.445709038 | L18: 4.750887019 | M18: 7.424648804 | N18: 10.58195653 | O18: 16.75674372 | P18: 21.48784817 | Q18: 3.954822907 | R18: =$E6*$B$17 -> 0.7756743204 | S18: =$E5*$B$18 -> 0 | Z18: 71.06614072
A19: 15 | B19: ='P(t) Distribution 10yr'!AP19 -> 0.1172655736 | D19: 84 | E19: =UH_Qp*((Q10_2!D19/UH_Tp)*EXP(1-Q10_2!D19/UH_Tp))^('WS & UH Data & Runoff Results'!$H$6-1) -> 47.31149466 | F19: 0 | G19: 0 | H19: 0.008276522867 | I19: 0.4839506968 | J19: 1.300755053 | K19: 3.389096906 | L19: 4.844842637 | M19: 7.938461137 | N19: 12.0700764 | O19: 20.99081263 | P19: 31.21556587 | Q19: 7.528762837 | R19: =$E7*$B$17 -> 2.858032614 | S19: =$E6*$B$18 -> 0.566751024 | T19: =$E5*$B$19 -> 0 | Z19: 93.19538433
A20: 16 | B20: ='P(t) Distribution 10yr'!AP20 -> 0.07439918816 | D20: 90 | E20: =UH_Qp*((Q10_2!D20/UH_Tp)*EXP(1-Q10_2!D20/UH_Tp))^('WS & UH Data & Runoff Results'!$H$6-1) -> 41.60379813 | F20: 0 | G20: 0 | H20: 0.007465000631 | I20: 0.4435372894 | J20: 1.215059775 | K20: 3.23970392 | L20: 4.765243091 | M20: 8.095455614 | N20: 12.90536898 | O20: 23.94270959 | P20: 39.10306832 | Q20: 10.93709293 | R20: 5.440812456 | S20: =$E7*$B$18 -> 2.088238412 | T20: =$E6*$B$19 -> 0.5410285218 | U20: =$E5*$B$20 -> 0 | Z20: 112.7247839
A21: 17 | B21: ='P(t) Distribution 10yr'!AP21 -> 0.06903595591 | D21: 96 | E21: =UH_Qp*((Q10_2!D21/UH_Tp)*EXP(1-Q10_2!D21/UH_Tp))^('WS & UH Data & Runoff Results'!$H$6-1) -> 36.212519 | F21: 0 | G21: 0 | H21: 0.006641947236 | I21: 0.4000479668 | J21: 1.113593436 | K21: 3.026268402 | L21: 4.555188934 | M21: 7.962449314 | N21: 13.1605912 | O21: 25.59963099 | P21: 44.6020564 | Q21: 13.70066119 | R21: 7.903911005 | S21: 3.975361759 | T21: =$E7*$B$19 -> 1.993461843 | U21: =$E6*$B$20 -> 0.3432557531 | V21: =$E5*$B$21 -> 0 | Z21: 128.3431202
A22: 18 | B22: ='P(t) Distribution 10yr'!AP22 -> 0.06255091411 | D22: 102 | E22: =UH_Qp*((Q10_2!D22/UH_Tp)*EXP(1-Q10_2!D22/UH_Tp))^('WS & UH Data & Runoff Results'!$H$6-1) -> 31.23796348 | F22: 0 | G22: 0 | H22: 0.005840657413 | I22: 0.3559406916 | J22: 1.004404366 | K22: 2.773552953 | L22: 4.255087711 | M22: 7.611460803 | N22: 12.944366 | O22: 26.10590048 | P22: 47.68867871 | Q22: 15.62735841 | R22: 9.901059404 | S22: 5.775039263 | T22: 3.794936409 | U22: =$E7*$B$20 -> 1.264752631 | V22: =$E6*$B$21 -> 0.3185113927 | W22: =$E5*$B$22 -> 0 | Z22: 139.4268899
A23: 19 | B23: ='P(t) Distribution 10yr'!AP23 -> 0.05602365653 | D23: 108 | E23: =UH_Qp*((Q10_2!D23/UH_Tp)*EXP(1-Q10_2!D23/UH_Tp))^('WS & UH Data & Runoff Results'!$H$6-1) -> 26.7332165 | F23: 0 | G23: 0 | H23: 0.005083788669 | I23: 0.3129997221 | J23: 0.8936637958 | K23: 2.501603013 | L23: 3.899756901 | M23: 7.110008782 | N23: 12.37377226 | O23: 25.6769871 | P23: 48.63179087 | Q23: 16.70882767 | R23: 11.29342604 | S23: 7.234267538 | T23: 5.51293394 | U23: 2.40769886 | V23: =$E7*$B$21 -> 1.173580103 | W23: =$E6*$B$22 -> 0.2885913363 | X23: =$E5*$B$23 -> 0 | Z23: 146.0249917
A24: 20 | B24: ='P(t) Distribution 10yr'!AP24 -> 0.04951561184 | D24: 114 | E24: =UH_Qp*((Q10_2!D24/UH_Tp)*EXP(1-Q10_2!D24/UH_Tp))^('WS & UH Data & Runoff Results'!$H$6-1) -> 22.71632631 | F24: 0 | G24: 0 | H24: 0.004385422754 | I24: 0.2724392698 | J24: 0.7858514812 | K24: 2.225788856 | L24: 3.517381417 | M24: 6.516271273 | N24: 11.55857354 | O24: 24.54513343 | P24: 47.83278278 | Q24: 17.03926875 | R24: 12.07497164 | S24: 8.251608444 | T24: 6.905933834 | U24: 3.497683053 | V24: 2.234134491 | W24: =$E7*$B$22 -> 1.063337318 | X24: =$E6*$B$23 -> 0.2584765088 | Y24: =$E5*$B$24 -> 0 | Z24: 148.5840215
A25: Sum = | B25: =SUM(B5:B24) -> 2.402779397 | D25: 120 | E25: =UH_Qp*((Q10_2!D25/UH_Tp)*EXP(1-Q10_2!D25/UH_Tp))^('WS & UH Data & Runoff Results'!$H$6-1) -> 19.18048765 | F25: 0 | G25: 0 | H25: 0.003753012133 | I25: 0.2350139729 | J25: 0.6840159547 | K25: 1.95726791 | L25: 3.129572646 | M25: 5.877343656 | N25: 10.59334847 | O25: 22.92807107 | P25: 45.72429121 | Q25: 16.75931785 | R25: 12.31377155 | S25: 8.822649351 | T25: 7.877101813 | U25: 4.381472369 | V25: 3.24554473 | W25: 2.024266237 | X25: =$E7*$B$23 -> 0.952376884 | Y25: =$E6*$B$24 -> 0.2284503239 | Z25: 147.737629
D26: 126 | E26: =UH_Qp*((Q10_2!D26/UH_Tp)*EXP(1-Q10_2!D26/UH_Tp))^('WS & UH Data & Runoff Results'!$H$6-1) -> 16.10222208 | F26: 0 | G26: 0 | H26: 0.003189090555 | I26: 0.2011232078 | J26: 0.5900518937 | K26: 1.703632951 | L26: 2.752018501 | M26: 5.229337327 | N26: 9.554658922 | O26: 21.01341017 | P26: 42.71192094 | Q26: 16.02055923 | R26: 12.11145938 | S26: 8.997129921 | T26: 8.422225517 | U26: 4.997630266 | V26: 4.065624112 | W26: 2.940667467 | X26: 1.813031799 | Y26: =$E7*$B$24 -> 0.8417430606 | Z26: 143.9694138
D27: 132 | E27: =UH_Qp*((Q10_2!D27/UH_Tp)*EXP(1-Q10_2!D27/UH_Tp))^('WS & UH Data & Runoff Results'!$H$6-1) -> 13.4477263 | F27: 0 | G27: 0 | H27: 0.002692702648 | I27: 0.1709027575 | J27: 0.5049620163 | K27: 1.469602927 | L27: 2.395394813 | M27: 4.598465893 | N27: 8.501210321 | O27: 18.95302203 | P27: 39.14516451 | Q27: 14.96510588 | R27: 11.57758056 | S27: 8.849309339 | T27: 8.58878713 | U27: 5.343484209 | V27: 4.637364886 | W27: 3.68371092 | X27: 2.633805541 | Y27: 1.602419128 | Z27: 137.6229856
D28: 138 | E28: =UH_Qp*((Q10_2!D28/UH_Tp)*EXP(1-Q10_2!D28/UH_Tp))^('WS & UH Data & Runoff Results'!$H$6-1) -> 11.17763856 | F28: 0 | G28: 0 | H28: 0.00226055233 | I28: 0.1443014238 | J28: 0.4290872344 | K28: 1.25767524 | L28: 2.066336664 | M28: 4.002568059 | N28: 7.475617514 | O28: 16.86335722 | P28: 35.30693776 | Q28: 13.71541056 | R28: 10.81483589 | S28: 8.45922762 | T28: 8.447675518 | U28: 5.449159289 | V28: 4.958287173 | W28: 4.201743988 | X28: 3.299311581 | Y28: 2.327846858 | Z28: 129.2216401
D29: 144 | E29: =UH_Qp*((Q10_2!D29/UH_Tp)*EXP(1-Q10_2!D29/UH_Tp))^('WS & UH Data & Runoff Results'!$H$6-1) -> 9.250495038 | F29: 0 | G29: 0 | H29: 0.001887894034 | I29: 0.1211425702 | J29: 0.3622990042 | K29: 1.068698977 | L29: 1.768355528 | M29: 3.452730666 | N29: 6.506880464 | O29: 14.82894832 | P29: 31.41417252 | Q29: 12.37059936 | R29: 9.911718333 | S29: 7.901923721 | T29: 8.075298007 | U29: 5.359630972 | V29: 5.056344427 | W29: 4.492519745 | X29: 3.763287321 | Y29: 2.916043716 | Z29: 119.3724816
D30: 150 | E30: =UH_Qp*((Q10_2!D30/UH_Tp)*EXP(1-Q10_2!D30/UH_Tp))^('WS & UH Data & Runoff Results'!$H$6-1) -> 7.625136946 | F30: 0 | G30: 0 | H30: 0.001569201863 | I30: 0.1011718829 | J30: 0.3041538428 | K30: 0.9023539837 | L30: 1.502645265 | M30: 2.95482119 | N30: 5.613022786 | O30: 12.9073209 | P30: 27.62434164 | Q30: 11.00667934 | R30: 8.939863371 | S30: 7.242055547 | T30: 7.543287844 | U30: 5.123375917 | V30: 4.97326996 | W30: 4.58136578 | X30: 4.023720304 | Y30: 3.326121246 | Z30: 108.67114
D31: 156 | E31: =UH_Qp*((Q10_2!D31/UH_Tp)*EXP(1-Q10_2!D31/UH_Tp))^('WS & UH Data & Runoff Results'!$H$6-1) -> 6.262301871 | F31: 0 | G31: 0 | H31: 0.001298654807 | I31: 0.08409322996 | J31: 0.2540132417 | K31: 0.7575357054 | L31: 1.268755721 | M31: 2.510834502 | N31: 4.803583098 | O31: 11.13422733 | P31: 24.0446075 | Q31: 9.678824752 | R31: 7.954199033 | S31: 6.531963978 | T31: 6.913368378 | U31: 4.785841866 | V31: 4.75404588 | W31: 4.506095092 | X31: 4.103295156 | Y31: 3.556300768 | Z31: 97.64288388
D32: 162 | E32: =UH_Qp*((Q10_2!D32/UH_Tp)*EXP(1-Q10_2!D32/UH_Tp))^('WS & UH Data & Runoff Results'!$H$6-1) -> 5.125598085 | F32: 0 | G32: 0 | H32: 0.001070474683 | I32: 0.06959466458 | J32: 0.2111336997 | K32: 0.632653852 | L32: 1.065133836 | M32: 2.120018418 | N32: 4.081804413 | O32: 9.528588829 | P32: 20.74157202 | Q32: 8.424582394 | R32: 6.994598104 | S32: 5.811782508 | T32: 6.23550495 | U32: 4.386189219 | V32: 4.440843727 | W32: 4.3074643 | X32: 4.035879049 | Y32: 3.626631726 | Z32: 86.71504618
D33: 168 | E33: =UH_Qp*((Q10_2!D33/UH_Tp)*EXP(1-Q10_2!D33/UH_Tp))^('WS & UH Data & Runoff Results'!$H$6-1) -> 4.182025396 | F33: 0 | G33: 0 | H33: 0.0008791495366 | I33: 0.05736653508 | J33: 0.174732009 | K33: 0.5258566345 | L33: 0.8895435809 | M33: 1.779777866 | N33: 3.446463926 | O33: 8.096838368 | P33: 17.75048286 | Q33: 7.267287789 | R33: 6.088194544 | S33: 5.110644421 | T33: 5.54800956 | U33: 3.956118507 | V33: 4.070000937 | W33: 4.023683469 | X33: 3.857975601 | Y33: 3.567047079 | Z33: 76.21090284
D34: 174 | E34: =UH_Qp*((Q10_2!D34/UH_Tp)*EXP(1-Q10_2!D34/UH_Tp))^('WS & UH Data & Runoff Results'!$H$6-1) -> 3.402173136 | F34: 0 | G34: 0 | H34: 0.000719570419 | I34: 0.04711345678 | J34: 0.1440307239 | K34: 0.4351933694 | L34: 0.7393812465 | M34: 1.486376569 | N34: 2.893342888 | O34: 6.83655034 | P34: 15.08332381 | Q34: 6.219290767 | R34: 5.251852234 | S34: 4.448375305 | T34: 4.878693252 | U34: 3.519936793 | V34: 3.670932836 | W34: 3.687676598 | X34: 3.603807616 | Y34: 3.409809966 | Z34: 66.35640734
D35: 180 | E35: =UH_Qp*((Q10_2!D35/UH_Tp)*EXP(1-Q10_2!D35/UH_Tp))^('WS & UH Data & Runoff Results'!$H$6-1) -> 2.760196955 | F35: 0 | G35: 0 | H35: 0.0005871045128 | I35: 0.03856164216 | J35: 0.1182882194 | K35: 0.358727725 | L35: 0.611904072 | M35: 1.235463876 | N35: 2.416367321 | O35: 5.739356259 | P35: 12.73557626 | Q35: 5.284790121 | R35: 4.494496029 | S35: 3.837296857 | T35: 4.246481813 | U35: 3.095288805 | V35: 3.266194259 | W35: 3.326095823 | X35: 3.302863436 | Y35: 3.185167661 | Z35: 57.29350728
D36: 186 | E36: =UH_Qp*((Q10_2!D36/UH_Tp)*EXP(1-Q10_2!D36/UH_Tp))^('WS & UH Data & Runoff Results'!$H$6-1) -> 2.233651672 | F36: 0 | G36: 0 | H36: 0.0004776229248 | I36: 0.0314628194 | J36: 0.09681709432 | K36: 0.2946125846 | L36: 0.5043894762 | M36: 1.022456791 | N36: 2.008464476 | O36: 4.793207527 | P36: 10.69165086 | Q36: 4.462202659 | R36: 3.819160271 | S36: 3.283930072 | T36: 3.663137706 | U36: 2.694182015 | V36: 2.872157973 | W36: 2.959377239 | X36: 2.979014018 | Y36: 2.919182967 | Z36: 49.09588417
D37: 192 | E37: =UH_Qp*((Q10_2!D37/UH_Tp)*EXP(1-Q10_2!D37/UH_Tp))^('WS & UH Data & Runoff Results'!$H$6-1) -> 1.803237469 | F37: 0 | G37: 0 | H37: 0.0003874974289 | I37: 0.02559572188 | J37: 0.07899401016 | K37: 0.2411358843 | L37: 0.414240319 | M37: 0.8428060357 | N37: 1.662183883 | O37: 3.984074341 | P37: 8.929102684 | Q37: 3.746066289 | R37: 3.224700835 | S37: 2.790492011 | T37: 3.134885968 | U37: 2.324079122 | V37: 2.499965865 | W37: 2.602355603 | X37: 2.650562926 | Y37: 2.632953843 | Z37: =SUM(F37:Y37) -> 41.78458284
D38: 198 | E38: =UH_Qp*((Q10_2!D38/UH_Tp)*EXP(1-Q10_2!D38/UH_Tp))^('WS & UH Data & Runoff Results'!$H$6-1) -> 1.452500812 | F38: 0 | G38: =$E37*$B$6 -> 0 | H38: 0.0003135769998 | I38: 0.02076591366 | J38: 0.06426343071 | K38: 0.1967451164 | L38: 0.3390493511 | M38: 0.6921719376 | N38: 1.370129889 | O38: 3.297177639 | P38: 7.421796092 | Q38: 3.128516914 | R38: 2.70717043 | S38: 2.356146713 | T38: 2.663843035 | U38: 1.988929605 | V38: 2.156542669 | W38: 2.265126166 | X38: 2.330796897 | Y38: 2.342657605 | Z38: 35.34214298
D39: 204 | E39: =UH_Qp*((Q10_2!D39/UH_Tp)*EXP(1-Q10_2!D39/UH_Tp))^('WS & UH Data & Runoff Results'!$H$6-1) -> 1.1675191 | F39: 0 | G39: 0 | H39: =$E37*$B$7 -> 0.0002531521823 | I39: 0.0168045319 | J39: 0.0521371837 | K39: 0.1600566439 | L39: 0.2766336676 | M39: 0.5665321205 | N39: 1.125247589 | O39: 2.717847091 | P39: 6.142199673 | Q39: 2.600397311 | R39: 2.260885907 | S39: 1.978010066 | T39: 2.249210887 | U39: 1.690076235 | V39: 1.845553156 | W39: 1.95396317 | X39: 2.028757726 | Y39: 2.060037519 | Z39: 29.72460363
D40: 210 | E40: =UH_Qp*((Q10_2!D40/UH_Tp)*EXP(1-Q10_2!D40/UH_Tp))^('WS & UH Data & Runoff Results'!$H$6-1) -> 0.9365885809 | F40: 0 | G40: 0 | H40: 0.0002039131045 | I40: =$E37*$B$8 -> 0.0135663774 | J40: 0.04219130354 | K40: 0.1298546087 | L40: 0.2250478042 | M40: 0.4622390746 | N40: 0.9209979026 | O40: 2.232088295 | P40: 5.062984571 | Q40: 2.152061215 | R40: 1.879229614 | S40: 1.651929643 | T40: 1.888236309 | U40: 1.42701271 | V40: 1.568243301 | W40: 1.672187129 | X40: 1.750064937 | Y40: 1.793085034 | Z40: 24.87122374
D41: 216 | E41: =UH_Qp*((Q10_2!D41/UH_Tp)*EXP(1-Q10_2!D41/UH_Tp))^('WS & UH Data & Runoff Results'!$H$6-1) -> 0.749928039 | F41: 0 | G41: 0 | H41: 0.0001639052057 | I41: 0.01092766456 | J41: =$E37*$B$9 -> 0.03406123719 | K41: 0.1050830678 | L41: 0.1825822023 | M41: 0.3760420402 | N41: 0.7514511583 | O41: 1.826930053 | P41: 4.158081091 | Q41: 1.773933331 | R41: 1.555230483 | S41: 1.373070218 | T41: 1.576955338 | U41: 1.197992251 | V41: 1.3241433 | W41: 1.420926976 | X41: 1.497692539 | Y41: 1.546766874 | Z41: 20.71203373
D42: 222 | E42: =UH_Qp*((Q10_2!D42/UH_Tp)*EXP(1-Q10_2!D42/UH_Tp))^('WS & UH Data & Runoff Results'!$H$6-1) -> 0.5994056228 | F42: 0 | G42: 0 | H42: 0.000131485424 | I42: 0.008783648858 | J42: 0.02743619491 | K42: =$E37*$B$10 -> 0.08483405339 | L42: 0.1477521525 | M42: 0.3050844425 | N42: 0.611322673 | O42: 1.490610023 | P42: 3.403325633 | Q42: 1.456879542 | R42: 1.281968734 | S42: 1.136338339 | T42: 1.310752198 | U42: 1.000499919 | V42: 1.111632294 | W42: 1.199757036 | X42: 1.272651663 | Y42: 1.323711572 | Z42: 17.1734716
D43: 228 | E43: =UH_Qp*((Q10_2!D43/UH_Tp)*EXP(1-Q10_2!D43/UH_Tp))^('WS & UH Data & Runoff Results'!$H$6-1) -> 0.4782924983 | F43: 0 | G43: 0 | H43: 0.0001052805983 | I43: 0.007046278914 | J43: 0.02205319359 | K43: 0.06833350214 | L43: 0.1192810055 | M43: 0.2468854166 | N43: 0.4959685805 | O43: 1.212645285 | P43: 2.776806529 | Q43: 1.192433572 | R43: 1.052843413 | S43: 0.9366780281 | T43: 1.084764607 | U43: 0.8316072345 | V43: 0.9283766398 | W43: 1.007208711 | X43: 1.074561052 | Y43: 1.124812796 | Z43: 14.18241112
D44: 234 | E44: =UH_Qp*((Q10_2!D44/UH_Tp)*EXP(1-Q10_2!D44/UH_Tp))^('WS & UH Data & Runoff Results'!$H$6-1) -> 0.3810445116 | F44: 0 | G44: 0 | H44: 8.414911743e-05 | I44: 0.005641967281 | J44: 0.01769116179 | K44: 0.05492641951 | L44: =$E38*$B$11 -> 0.09608038897 | M44: 0.1993117544 | N44: 0.4013557971 | O44: 0.9838240703 | P44: 2.258995506 | Q44: 0.9729181646 | R44: 0.8617361939 | S44: 0.7692662584 | T44: 0.8941660579 | U44: 0.6882293209 | V44: 0.7716589629 | W44: 0.8411675726 | X44: 0.9021053594 | Y44: 0.9497335815 | Z44: 11.66889269
D45: 240 | E45: =UH_Qp*((Q10_2!D45/UH_Tp)*EXP(1-Q10_2!D45/UH_Tp))^('WS & UH Data & Runoff Results'!$H$6-1) -> 0.3031113579 | F45: 0 | G45: 0 | H45: 6.714633642e-05 | I45: 0.00450953523 | J45: 0.01416534275 | K45: 0.0440621976 | L45: 0.07722934705 | M45: =$E38*$B$12 -> 0.1605448479 | N45: 0.324016417 | O45: 0.7961461865 | P45: 1.832732277 | Q45: 0.7914911388 | R45: 0.7030989531 | S45: 0.6296326403 | T45: 0.7343524211 | U45: 0.5673039983 | V45: 0.6386167676 | W45: 0.6991715096 | X45: 0.7533907992 | Y45: 0.7973113785 | Z45: 9.567842904
D46: 246 | E46: =UH_Qp*((Q10_2!D46/UH_Tp)*EXP(1-Q10_2!D46/UH_Tp))^('WS & UH Data & Runoff Results'!$H$6-1) -> 0.2407717062 | F46: 0 | G46: 0 | H46: 5.349392486e-05 | I46: 0.003598359423 | J46: 0.01132213446 | K46: 0.03528067512 | L46: 0.06195369697 | M46: 0.1290458324 | N46: =$E38*$B$13 -> 0.2609939716 | O46: 0.6427325495 | P46: 1.483113554 | Q46: 0.6421399923 | R46: 0.5719870502 | S46: 0.5137234032 | T46: 0.6010561996 | U46: 0.4659101752 | V46: 0.526408618 | W46: 0.5786269206 | X46: 0.6262121836 | Y46: 0.6658723955 | Z46: 7.820031206
D47: 252 | E47: =UH_Qp*((Q10_2!D47/UH_Tp)*EXP(1-Q10_2!D47/UH_Tp))^('WS & UH Data & Runoff Results'!$H$6-1) -> 0.1909921301 | F47: 0 | G47: 0 | H47: 4.255307638e-05 | I47: 0.002866729279 | J47: 0.009034436401 | K47: 0.02819928572 | L47: 0.04960642851 | M47: 0.1035210927 | N47: 0.2097867653 | O47: =$E38*$B$14 -> 0.5177185846 | P47: 1.197324526 | Q47: 0.519643015 | R47: 0.4640554291 | S47: 0.4179257169 | T47: 0.490407607 | U47: 0.3813403364 | V47: 0.4323239959 | W47: 0.4769592862 | X47: 0.5182465567 | Y47: 0.5534676123 | Z47: 6.372469957
D48: 258 | E48: =UH_Qp*((Q10_2!D48/UH_Tp)*EXP(1-Q10_2!D48/UH_Tp))^('WS & UH Data & Runoff Results'!$H$6-1) -> 0.1513074096 | F48: 0 | G48: 0 | H48: 3.380136223e-05 | I48: 0.002280411286 | J48: 0.007197525402 | K48: 0.02250146863 | L48: 0.03964963387 | M48: 0.08288951165 | N48: 0.1682917982 | O48: 0.4161418233 | P48: =$E38*$B$15 -> 0.9644402786 | Q48: 0.4195102426 | R48: 0.3755305154 | S48: 0.3390648404 | T48: 0.3989577843 | U48: 0.3111392943 | V48: 0.3538505634 | W48: 0.3917127065 | X48: 0.4271880532 | Y48: 0.4580439216 | Z48: 5.178424174
D49: 264 | E49: =UH_Qp*((Q10_2!D49/UH_Tp)*EXP(1-Q10_2!D49/UH_Tp))^('WS & UH Data & Runoff Results'!$H$6-1) -> 0.119719699 | F49: 0 | G49: 0 | H49: 2.681292696e-05 | I49: 0.001811408586 | J49: 0.005725451048 | K49: 0.01792639683 | L49: 0.03163821245 | M49: 0.06625227591 | N49: 0.1347515235 | O49: 0.3338306667 | P49: 0.7752163973 | Q49: =$E38*$B$16 -> 0.3379138791 | R49: 0.303167546 | S49: 0.2743835893 | T49: 0.3236760793 | U49: 0.2531189193 | V49: 0.2887101209 | W49: 0.3206108456 | X49: 0.3508370491 | Y49: 0.3775633212 | Z49: 4.197160495
D50: 270 | E50: =UH_Qp*((Q10_2!D50/UH_Tp)*EXP(1-Q10_2!D50/UH_Tp))^('WS & UH Data & Runoff Results'!$H$6-1) -> 0.09461412421 | F50: 0 | G50: 0 | H50: 2.124168425e-05 | I50: 0.001436899666 | J50: 0.004547921355 | K50: 0.01425999934 | L50: 0.02520542817 | M50: 0.05286564783 | N50: 0.1077047619 | O50: 0.2672987717 | P50: 0.6218817535 | Q50: 0.2716149312 | R50: 0.2442002866 | S50: 0.2215111582 | T50: 0.2619304446 | U50: 0.2053564126 | V50: 0.2348722746 | W50: 0.2615895114 | X50: 0.2871547466 | Y50: 0.3100817087 | Z50: 3.3935339
D51: 276 | E51: =UH_Qp*((Q10_2!D51/UH_Tp)*EXP(1-Q10_2!D51/UH_Tp))^('WS & UH Data & Runoff Results'!$H$6-1) -> 0.07468852998 | F51: 0 | G51: 0 | H51: 1.680716133e-05 | I51: 0.001138337827 | J51: 0.003607638127 | K51: 0.01132720462 | L51: 0.02005028633 | M51: 0.04211683233 | N51: 0.08594243645 | O51: 0.2136476814 | P51: 0.4979417574 | Q51: 0.2178906049 | R51: 0.1962880134 | S51: 0.1784263819 | T51: 0.2114576762 | U51: 0.1661818711 | V51: 0.1905528353 | W51: 0.2128090396 | X51: 0.2342923544 | Y51: 0.2537971252 | Z51: 2.737484884
D52: 282 | E52: =UH_Qp*((Q10_2!D52/UH_Tp)*EXP(1-Q10_2!D52/UH_Tp))^('WS & UH Data & Runoff Results'!$H$6-1) -> 0.05889529645 | F52: 0 | G52: 0 | H52: 1.328264992e-05 | I52: 0.0009006925855 | J52: 0.00285803598 | K52: 0.008985303845 | L52: 0.01592662737 | M52: 0.03350288444 | N52: 0.06846834069 | O52: 0.1704790202 | P52: 0.3979969726 | Q52: 0.1744653708 | R52: 0.1574630444 | S52: 0.1434189965 | T52: 0.1703283409 | U52: 0.1341594037 | V52: 0.1542022784 | W52: 0.1726528427 | X52: 0.1906021792 | Y52: 0.2070755462 | Z52: 2.203499163
D53: 288 | E53: =UH_Qp*((Q10_2!D53/UH_Tp)*EXP(1-Q10_2!D53/UH_Tp))^('WS & UH Data & Runoff Results'!$H$6-1) -> 0.04639336979 | F53: 0 | G53: 0 | H53: 1.048534355e-05 | I53: 0.0007118146879 | J53: 0.002261377735 | K53: 0.007118319738 | L53: 0.01263379545 | M53: 0.02661248561 | N53: 0.05446484883 | O53: 0.1358166712 | P53: 0.3175795473 | Q53: 0.139447412 | R53: 0.1260809223 | S53: 0.1150513035 | T53: 0.136909797 | U53: 0.1080648812 | V53: 0.1244882224 | W53: 0.1397169539 | X53: 0.1546363262 | Y53: 0.1684606844 | Z53: 1.770065849
D54: 294 | E54: =UH_Qp*((Q10_2!D54/UH_Tp)*EXP(1-Q10_2!D54/UH_Tp))^('WS & UH Data & Runoff Results'!$H$6-1) -> 0.03650887475 | F54: 0 | G54: 0 | H54: 8.268169381e-06 | I54: 0.0005619075704 | J54: 0.001787160139 | K54: 0.005632262811 | L54: 0.01000872058 | M54: 0.02111035135 | N54: 0.04326329001 | O54: 0.1080387576 | P54: 0.2530082406 | Q54: 0.1112713137 | R54: 0.1007744875 | S54: 0.09212177064 | T54: 0.1098295972 | U54: 0.08686247323 | V54: 0.100274782 | W54: 0.112794152 | X54: 0.1251373341 | Y54: 0.136672841 | Z54: 1.41915771
D55: 300 | E55: =UH_Qp*((Q10_2!D55/UH_Tp)*EXP(1-Q10_2!D55/UH_Tp))^('WS & UH Data & Runoff Results'!$H$6-1) -> 0.02870289398 | F55: 0 | G55: 0 | H55: 6.513053889e-06 | I55: 0.0004430896276 | J55: 0.001410786865 | K55: 0.004451160651 | L55: 0.007919248754 | M55: 0.01672400102 | N55: 0.03431860015 | O55: 0.08581887593 | P55: 0.2012617136 | Q55: 0.08864726818 | R55: 0.08041246118 | S55: 0.07363147454 | T55: 0.08794074167 | U55: 0.06968143005 | V55: 0.08060079714 | W55: 0.09085525353 | X55: 0.1010239566 | Y55: 0.1106006292 | Z55: 1.135748002
D56: 306 | E56: =UH_Qp*((Q10_2!D56/UH_Tp)*EXP(1-Q10_2!D56/UH_Tp))^('WS & UH Data & Runoff Results'!$H$6-1) -> 0.02254519961 | F56: 0 | G56: 0 | H56: 5.125393343e-06 | I56: 0.0003490333216 | J56: 0.001112469487 | K56: 0.00351375282 | L56: 0.006258558881 | M56: 0.01323261282 | N56: 0.02718781391 | O56: 0.06807581411 | P56: 0.1598690545 | Q56: 0.07051667986 | R56: 0.06406273798 | S56: 0.05875383975 | T56: 0.07028964419 | U56: 0.05579403728 | V56: 0.06465828797 | W56: 0.07302938697 | X56: 0.08137440659 | Y56: 0.08928840656 | Z56: 0.9073716624
D57: 312 | E57: =UH_Qp*((Q10_2!D57/UH_Tp)*EXP(1-Q10_2!D57/UH_Tp))^('WS & UH Data & Runoff Results'!$H$6-1) -> 0.01769290446 | F57: 0 | G57: 0 | H57: 4.029530428e-06 | I57: 0.0002746688563 | J57: 0.000876321394 | K57: 0.002770753609 | L57: 0.004940515664 | M57: 0.0104576948 | N57: 0.02151194647 | O57: 0.05393088755 | P57: 0.1268161103 | Q57: 0.05601380774 | R57: 0.0509603023 | S57: 0.04680781792 | T57: 0.05608724417 | U57: 0.04459529172 | V57: 0.05177199904 | W57: 0.05858447188 | X57: 0.06540868907 | Y57: 0.0719214664 | Z57: 0.7237340184
D58: 318 | E58: =UH_Qp*((Q10_2!D58/UH_Tp)*EXP(1-Q10_2!D58/UH_Tp))^('WS & UH Data & Runoff Results'!$H$6-1) -> 0.01387316125 | F58: 0 | G58: 0 | H58: 3.165066488e-06 | I58: 0.0002159417707 | J58: 0.0006896137996 | K58: 0.002182595292 | L58: 0.00389582088 | M58: 0.008255319782 | N58: 0.01700082771 | O58: 0.04267199894 | P58: 0.1004660094 | Q58: 0.04443294698 | R58: 0.04047950898 | S58: 0.03723444589 | T58: 0.04468340322 | U58: 0.03558457357 | V58: 0.04138054015 | W58: 0.04690868436 | X58: 0.05247111696 | Y58: 0.05781042259 | Z58: 0.5763669354
D59: 324 | E59: =UH_Qp*((Q10_2!D59/UH_Tp)*EXP(1-Q10_2!D59/UH_Tp))^('WS & UH Data & Runoff Results'!$H$6-1) -> 0.0108691799 | F59: 0 | G59: 0 | H59: 2.483864412e-06 | I59: 0.0001696153123 | J59: 0.0005421671281 | K59: 0.00171757513 | L59: 0.003068840292 | M59: 0.006509694407 | N59: 0.01342047861 | O59: 0.03372355462 | P59: 0.07949221019 | Q59: 0.03520058185 | R59: 0.03211036615 | S59: 0.02957659234 | T59: 0.03554452726 | U59: 0.02834940231 | V59: 0.03301937982 | W59: 0.03749336963 | X59: 0.04201371088 | Y59: 0.04637575662 | Z59: 0.4583303064
D60: 330 | E60: =UH_Qp*((Q10_2!D60/UH_Tp)*EXP(1-Q10_2!D60/UH_Tp))^('WS & UH Data & Runoff Results'!$H$6-1) -> 0.008508954229 | F60: 0 | G60: 0 | H60: 1.947619827e-06 | I60: 0.0001331098223 | J60: 0.0004258548332 | K60: 0.001350339532 | L60: 0.002414998228 | M60: 0.005127857028 | N60: 0.01058265662 | O60: 0.02662142404 | P60: 0.06282245873 | Q60: 0.0278519279 | R60: 0.02543841111 | S60: 0.0234616287 | T60: 0.02823423224 | U60: 0.02255123895 | V60: 0.0263057721 | W60: 0.02991763298 | X60: 0.03358089474 | Y60: 0.03713314569 | Z60: 0.3639555309
D61: 336 | E61: =UH_Qp*((Q10_2!D61/UH_Tp)*EXP(1-Q10_2!D61/UH_Tp))^('WS & UH Data & Runoff Results'!$H$6-1) -> 0.006656194267 | F61: 0 | G61: 0 | H61: 1.525898091e-06 | I61: 0.0001043725768 | J61: 0.0003342001404 | K61: 0.001060648251 | L61: 0.001898646249 | M61: 0.004035324247 | N61: 0.008336236194 | O61: 0.02099220136 | P61: 0.0495921421 | Q61: 0.02201129629 | R61: 0.02012775797 | S61: 0.01858672534 | T61: 0.02239680169 | U61: 0.01791321947 | V61: 0.02092558234 | W61: 0.02383468252 | X61: 0.02679569464 | Y61: 0.02967993615 | Z61: 0.2886269934
D62: 342 | E62: =UH_Qp*((Q10_2!D62/UH_Tp)*EXP(1-Q10_2!D62/UH_Tp))^('WS & UH Data & Runoff Results'!$H$6-1) -> 0.005203048201 | F62: 0 | G62: 0 | H62: 1.194551671e-06 | I62: 8.177258906e-05 | J62: 0.0002620492554 | K62: 0.0008323700163 | L62: 0.001491325533 | M62: 0.003172529551 | N62: 0.006560131426 | O62: 0.01653610762 | P62: 0.03910565533 | Q62: 0.01737574994 | R62: 0.01590690763 | S62: 0.01470646526 | T62: 0.01774315018 | U62: 0.01420965942 | V62: 0.01662190489 | W62: 0.01895989251 | X62: 0.02134750684 | Y62: 0.02368294569 | Z62: 0.2285973182
... 77 more rows

Sheet Q10_3 (hidden)
F2: Runoff Hydrograph for a 3-Hour Storm
A3: Burst Info. | F3: Burst | G3: Burst | H3: Burst | I3: Burst | J3: Burst | K3: Burst | L3: Burst | M3: Burst | N3: Burst | O3: Burst | P3: Burst | Q3: Burst | R3: Burst | S3: Burst | T3: Burst | U3: Burst | V3: Burst | W3: Burst | X3: Burst | Y3: Burst | Z3: Burst | AA3: Burst | AB3: Burst | AC3: Burst | AD3: Burst | AE3: Burst | AF3: Burst | AG3: Burst | AH3: Burst | AI3: Burst | AJ3: Summation
A4: Burst | B4: Increment | D4: Time, min | E4: UH, cfs | F4: 1 | G4: 2 | H4: 3 | I4: 4 | J4: 5 | K4: 6 | L4: 7 | M4: 8 | N4: 9 | O4: 10 | P4: 11 | Q4: 12 | R4: 13 | S4: 14 | T4: 15 | U4: 16 | V4: 17 | W4: 18 | X4: 19 | Y4: 20 | Z4: 21 | AA4: 22 | AB4: 23 | AC4: 24 | AD4: 25 | AE4: 26 | AF4: 27 | AG4: 28 | AH4: 29 | AI4: 30
A5: 1 | B5: ='P(t) Distribution 10yr'!AH5 -> 0 | D5: 0 | E5: =UH_Qp*((Q10_3!D5/UH_Tp)*EXP(1-Q10_3!D5/UH_Tp))^('WS & UH Data & Runoff Results'!$H$6-1) -> 0 | F5: =$E5*$B$5 -> 0 | AJ5: =SUM(F5:AI5) -> 0
A6: =A5+1 -> 2 | B6: ='P(t) Distribution 10yr'!AH6 -> 0 | D6: =D5+BDur -> 6 | E6: =UH_Qp*((Q10_3!D6/UH_Tp)*EXP(1-Q10_3!D6/UH_Tp))^('WS & UH Data & Runoff Results'!$H$6-1) -> 4.61370294 | F6: =$E6*$B$5 -> 0 | G6: =$E5*$B$6 -> 0 | AJ6: 0
A7: =A6+1 -> 3 | B7: ='P(t) Distribution 10yr'!AH7 -> 0 | D7: 12 | E7: =UH_Qp*((Q10_3!D7/UH_Tp)*EXP(1-Q10_3!D7/UH_Tp))^('WS & UH Data & Runoff Results'!$H$6-1) -> 16.99954882 | F7: 0 | G7: 0 | H7: =$E5*$B$7 -> 0 | AJ7: 0
A8: 4 | B8: ='P(t) Distribution 10yr'!AH8 -> 0 | D8: 18 | E8: =UH_Qp*((Q10_3!D8/UH_Tp)*EXP(1-Q10_3!D8/UH_Tp))^('WS & UH Data & Runoff Results'!$H$6-1) -> 32.36189695 | F8: 0 | G8: 0 | H8: 0 | I8: =$E5*$B$8 -> 0 | AJ8: 0
A9: 5 | B9: ='P(t) Distribution 10yr'!AH9 -> 2.811248213e-06 | D9: 24 | E9: =UH_Qp*((Q10_3!D9/UH_Tp)*EXP(1-Q10_3!D9/UH_Tp))^('WS & UH Data & Runoff Results'!$H$6-1) -> 47.01238198 | F9: 0 | G9: 0 | H9: 0 | I9: 0 | J9: =$E5*$B$9 -> 0 | AJ9: 0
A10: 6 | B10: ='P(t) Distribution 10yr'!AH10 -> 0.002761995837 | D10: 30 | E10: =UH_Qp*((Q10_3!D10/UH_Tp)*EXP(1-Q10_3!D10/UH_Tp))^('WS & UH Data & Runoff Results'!$H$6-1) -> 58.89140027 | F10: 0 | G10: 0 | H10: 0 | I10: 0 | J10: 1.297026415e-05 | K10: =$E5*$B$10 -> 0 | AJ10: 1.297026415e-05
A11: 7 | B11: ='P(t) Distribution 10yr'!AH11 -> 0.008724031031 | D11: 36 | E11: =UH_Qp*((Q10_3!D11/UH_Tp)*EXP(1-Q10_3!D11/UH_Tp))^('WS & UH Data & Runoff Results'!$H$6-1) -> 67.1731828 | F11: 0 | G11: 0 | H11: 0 | I11: 0 | J11: 4.778995123e-05 | K11: 0.01274302831 | L11: =$E5*$B$11 -> 0 | AJ11: 0.01279081826
A12: 8 | B12: ='P(t) Distribution 10yr'!AH12 -> 0.0156873034 | D12: 42 | E12: =UH_Qp*((Q10_3!D12/UH_Tp)*EXP(1-Q10_3!D12/UH_Tp))^('WS & UH Data & Runoff Results'!$H$6-1) -> 71.82180803 | F12: 0 | G12: 0 | H12: 0 | I12: 0 | J12: 9.097732497e-05 | K12: 0.04695268306 | L12: 0.04025008762 | M12: =$E5*$B$12 -> 0 | AJ12: 0.087293748
A13: 9 | B13: ='P(t) Distribution 10yr'!AH13 -> 0.02343221211 | D13: 48 | E13: =UH_Qp*((Q10_3!D13/UH_Tp)*EXP(1-Q10_3!D13/UH_Tp))^('WS & UH Data & Runoff Results'!$H$6-1) -> 73.2421875 | F13: 0 | G13: 0 | H13: 0 | I13: 0 | J13: 0.0001321634748 | K13: 0.08938342465 | L13: 0.1483045914 | M13: 0.07237655783 | N13: =$E5*$B$13 -> 0 | AJ13: 0.3101967373
A14: 10 | B14: ='P(t) Distribution 10yr'!AH14 -> 0.03126305472 | D14: 54 | E14: =UH_Qp*((Q10_3!D14/UH_Tp)*EXP(1-Q10_3!D14/UH_Tp))^('WS & UH Data & Runoff Results'!$H$6-1) -> 72.03883678 | F14: 0 | G14: 0 | H14: 0 | I14: 0 | J14: 0.0001655583438 | K14: 0.1298480033 | L14: 0.2823261932 | M14: 0.26667708 | N14: 0.1081092659 | O14: =$E5*$B$14 -> 0 | AJ14: 0.7871261007
A15: 11 | B15: ='P(t) Distribution 10yr'!AH15 -> 0.05956549444 | D15: 60 | E15: =UH_Qp*((Q10_3!D15/UH_Tp)*EXP(1-Q10_3!D15/UH_Tp))^('WS & UH Data & Runoff Results'!$H$6-1) -> 68.86333096 | F15: 0 | G15: 0 | H15: 0 | I15: 0 | J15: 0.0001888404901 | K15: 0.1626578024 | L15: 0.4101374792 | M15: 0.5076708962 | N15: 0.3983370336 | O15: 0.1442384475 | P15: =$E5*$B$15 -> 0 | AJ15: 1.623230499
A16: 12 | B16: ='P(t) Distribution 10yr'!AH16 -> 0.07315522919 | D16: 66 | E16: =UH_Qp*((Q10_3!D16/UH_Tp)*EXP(1-Q10_3!D16/UH_Tp))^('WS & UH Data & Runoff Results'!$H$6-1) -> 64.32653345 | F16: 0 | G16: 0 | H16: 0 | I16: 0 | J16: 0.0002019089295 | K16: 0.1855320512 | L16: 0.5137704034 | M16: 0.7374974998 | N16: 0.7583108335 | O16: 0.5314578249 | P16: 0.2748174968 | Q16: =$E5*$B$16 -> 0 | AJ16: 3.001588019
A17: 13 | B17: ='P(t) Distribution 10yr'!AH17 -> 0.1138665044 | D17: 72 | E17: =UH_Qp*((Q10_3!D17/UH_Tp)*EXP(1-Q10_3!D17/UH_Tp))^('WS & UH Data & Runoff Results'!$H$6-1) -> 58.95479947 | F17: 0 | G17: 0 | H17: 0 | I17: 0 | J17: 0.0002059019687 | K17: 0.1983715348 | L17: 0.5860209312 | M17: 0.9238472638 | N17: 1.101604106 | O17: 1.011731755 | P17: 1.01258653 | Q17: 0.337516496 | R17: =$E5*$B$17 -> 0 | AJ17: 5.17188452
A18: 14 | B18: ='P(t) Distribution 10yr'!AH18 -> 0.177417883 | D18: 78 | E18: =UH_Qp*((Q10_3!D18/UH_Tp)*EXP(1-Q10_3!D18/UH_Tp))^('WS & UH Data & Runoff Results'!$H$6-1) -> 53.17421607 | F18: 0 | G18: 0 | H18: 0 | I18: 0 | J18: 0.0002025190512 | K18: 0.202294617 | L18: 0.626575682 | M18: 1.053766099 | N18: 1.379955782 | O18: 1.46975067 | P18: 1.927652393 | Q18: 1.24360589 | R18: =$E6*$B$17 -> 0.5253462261 | S18: =$E5*$B$18 -> 0 | AJ18: 8.429149879
A19: 15 | B19: ='P(t) Distribution 10yr'!AH19 -> 0.3434472302 | D19: 84 | E19: =UH_Qp*((Q10_3!D19/UH_Tp)*EXP(1-Q10_3!D19/UH_Tp))^('WS & UH Data & Runoff Results'!$H$6-1) -> 47.31149466 | F19: 0 | G19: 0 | H19: 0 | I19: 0 | J19: 0.0001935919161 | K19: 0.1989709673 | L19: 0.6389671166 | M19: 1.126690494 | N19: 1.574016267 | O19: 1.841125069 | P19: 2.800315777 | Q19: 2.367441989 | R19: =$E7*$B$17 -> 1.9356792 | S19: =$E6*$B$18 -> 0.8185534084 | T19: =$E5*$B$7 -> 0 | AJ19: 13.30195388
A20: 16 | B20: ='P(t) Distribution 10yr'!AH20 -> 0.6331828919 | D20: 90 | E20: =UH_Qp*((Q10_3!D20/UH_Tp)*EXP(1-Q10_3!D20/UH_Tp))^('WS & UH Data & Runoff Results'!$H$6-1) -> 41.60379813 | F20: 0 | G20: 0 | H20: 0 | I20: 0 | J20: 0.0001808378522 | K20: 0.1902002334 | L20: 0.6284690475 | M20: 1.148972417 | N20: 1.68294384 | O20: 2.10003889 | P20: 3.507895375 | Q20: 3.439201579 | R20: 3.684936082 | S20: =$E7*$B$18 -> 3.016023963 | T20: =$E6*$B$19 -> 1.584563495 | U20: =$E5*$B$8 -> 0 | AJ20: 20.98342576
A21: 17 | B21: ='P(t) Distribution 10yr'!AH21 -> 0.2214864019 | D21: 96 | E21: =UH_Qp*((Q10_3!D21/UH_Tp)*EXP(1-Q10_3!D21/UH_Tp))^('WS & UH Data & Runoff Results'!$H$6-1) -> 36.212519 | F21: 0 | G21: 0 | H21: 0 | I21: 0 | J21: 0.0001657365747 | K21: 0.1776696176 | L21: 0.6007658362 | M21: 1.130095089 | N21: 1.716226473 | O21: 2.245369115 | P21: 4.001203847 | Q21: 4.308213884 | R21: 5.3531356 | S21: 5.741579247 | T21: =$E7*$B$19 -> 5.838447955 | U21: =$E6*$B$20 -> 2.92131777 | V21: =$E5*$B$9 -> 0 | AJ21: 34.03419017
A22: 18 | B22: ='P(t) Distribution 10yr'!AH22 -> 0.1600643995 | D22: 102 | E22: =UH_Qp*((Q10_3!D22/UH_Tp)*EXP(1-Q10_3!D22/UH_Tp))^('WS & UH Data & Runoff Results'!$H$6-1) -> 31.23796348 | F22: 0 | G22: 0 | H22: 0 | I22: 0 | J22: 0.0001494859199 | K22: 0.1628329107 | L22: 0.561186674 | M22: 1.080279966 | N22: 1.688029303 | O22: 2.289774516 | P22: 4.278101507 | Q22: 4.914069583 | R22: 6.705757888 | S22: 8.340837286 | T22: 11.11460387 | U22: =$E7*$B$20 -> 10.76382348 | V22: =$E6*$B$21 -> 1.021872464 | W22: =$E5*$B$10 -> 0 | AJ22: 52.92131893
A23: 19 | B23: ='P(t) Distribution 10yr'!AH23 -> 0.1169643666 | D23: 108 | E23: =UH_Qp*((Q10_3!D23/UH_Tp)*EXP(1-Q10_3!D23/UH_Tp))^('WS & UH Data & Runoff Results'!$H$6-1) -> 26.7332165 | F23: 0 | G23: 0 | H23: 0 | I23: 0 | J23: 0.0001330043548 | K23: 0.1468669634 | L23: 0.5143235 | M23: 1.009109847 | N23: 1.613620178 | O23: 2.252154096 | P23: 4.362707112 | Q23: 5.254140827 | R23: 7.648775515 | S23: 10.44838756 | T23: 16.14627237 | U23: 20.4909995 | V23: =$E7*$B$21 -> 3.765168901 | W23: =$E6*$B$22 -> 0.7384895907 | X23: =$E5*$B$23 -> 0 | AJ23: 74.39114897
A24: 20 | B24: ='P(t) Distribution 10yr'!AH24 -> 0.1116695701 | D24: 114 | E24: =UH_Qp*((Q10_3!D24/UH_Tp)*EXP(1-Q10_3!D24/UH_Tp))^('WS & UH Data & Runoff Results'!$H$6-1) -> 22.71632631 | F24: 0 | G24: 0 | H24: 0 | I24: 0 | J24: 0.0001169586031 | K24: 0.1306741513 | L24: 0.4638935111 | M24: 0.9248418264 | N24: 1.507312976 | O24: 2.152878084 | P24: 4.291028932 | Q24: 5.358049013 | R24: 8.17809822 | S24: 11.91772389 | T24: 20.2260883 | U24: 29.76743598 | V24: 7.167720114 | W24: =$E7*$B$22 -> 2.721022574 | X24: =$E6*$B$23 -> 0.5396388422 | Y24: =$E5*$B$24 -> 0 | AJ24: 95.34652337
A25: 21 | B25: ='P(t) Distribution 10yr'!AH25 -> 0.07085679345 | D25: 120 | E25: =UH_Qp*((Q10_3!D25/UH_Tp)*EXP(1-Q10_3!D25/UH_Tp))^('WS & UH Data & Runoff Results'!$H$6-1) -> 19.18048765 | F25: 0 | G25: 0 | H25: 0 | I25: 0 | J25: 0.0001018023793 | K25: 0.1149095172 | L25: 0.4127469475 | M25: 0.8341600608 | N25: 1.381441366 | O25: 2.011043935 | P25: 4.101878358 | Q25: 5.270017615 | R25: 8.339831865 | S25: 12.74247313 | T25: 23.07044357 | U25: 37.28902713 | V25: 10.41260333 | W25: 5.179987603 | X25: =$E7*$B$23 -> 1.98834146 | Y25: =$E6*$B$24 -> 0.5152102241 | Z25: =$E5*$B$25 -> 0 | AJ25: 113.6642179
A26: 22 | B26: ='P(t) Distribution 10yr'!AH26 -> 0.06575489243 | D26: 126 | E26: =UH_Qp*((Q10_3!D26/UH_Tp)*EXP(1-Q10_3!D26/UH_Tp))^('WS & UH Data & Runoff Results'!$H$6-1) -> 16.10222208 | F26: 0 | G26: 0 | H26: 0 | I26: 0 | J26: 8.781766901e-05 | K26: 0.1000188267 | L26: 0.3629528259 | M26: 0.7421897711 | N26: 1.24598951 | O26: 1.843107122 | P26: 3.831641771 | Q26: 5.03771276 | R26: 8.202810525 | S26: 12.99447385 | T26: 24.66700103 | U26: 42.53291015 | V26: 13.04364435 | W26: 7.525008692 | X26: 3.78518878 | Y26: =$E7*$B$24 -> 1.898332309 | Z26: =$E6*$B$25 -> 0.3269121963 | AA26: =$E5*$B$26 -> 0 | AJ26: 128.1399823
A27: 23 | B27: ='P(t) Distribution 10yr'!AH27 -> 0.05958322615 | D27: 132 | E27: =UH_Qp*((Q10_3!D27/UH_Tp)*EXP(1-Q10_3!D27/UH_Tp))^('WS & UH Data & Runoff Results'!$H$6-1) -> 13.4477263 | F27: 0 | G27: 0 | H27: 0 | I27: 0 | J27: 7.515370712e-05 | K27: 0.08627912508 | L27: 0.3159191395 | M27: 0.6526514039 | N27: 1.108612978 | O27: 1.662388427 | P27: 3.51167178 | Q27: 4.705822298 | R27: 7.841226778 | S27: 12.78097792 | T27: 25.15482643 | U27: 45.47634011 | V27: 14.87794656 | W27: 9.426416622 | X27: 5.498773482 | Y27: 3.613839122 | Z27: =$E7*$B$25 -> 1.204533519 | AA27: =$E6*$B$26 -> 0.3033735405 | AB27: =$E5*$B$27 -> 0 | AJ27: 138.2216744
A28: =A27+1 -> 24 | B28: ='P(t) Distribution 10yr'!AH28 -> 0.05336992565 | D28: 138 | E28: =UH_Qp*((Q10_3!D28/UH_Tp)*EXP(1-Q10_3!D28/UH_Tp))^('WS & UH Data & Runoff Results'!$H$6-1) -> 11.17763856 | F28: 0 | G28: 0 | H28: 0 | I28: 0 | J28: 6.386123174e-05 | K28: 0.07383703269 | L28: 0.2725209627 | M28: 0.5680767725 | N28: 0.9748690222 | O28: 1.479101846 | P28: 3.167348472 | Q28: 4.312851867 | R28: 7.324637504 | S28: 12.2175864 | T28: 24.74153896 | U28: 46.37570009 | V28: 15.90755384 | W28: 10.75203517 | X28: 6.888195332 | Y28: 5.249852487 | Z28: 2.293060248 | AA28: =$E7*$B$26 -> 1.117803504 | AB28: =$E6*$B$27 -> 0.2748993057 | AC28: =$E5*$B$28 -> 0 | AJ28: 143.9915327
A29: =A28+1 -> 25 | B29: ='P(t) Distribution 10yr'!AH29 -> 0.04717357494 | D29: 144 | E29: =UH_Qp*((Q10_3!D29/UH_Tp)*EXP(1-Q10_3!D29/UH_Tp))^('WS & UH Data & Runoff Results'!$H$6-1) -> 9.250495038 | F29: 0 | G29: 0 | H29: 0 | I29: 0 | J29: 5.392111164e-05 | K29: 0.06274239869 | L29: 0.2332214103 | M29: 0.4900394108 | N29: 0.8485394261 | O29: 1.300661817 | P29: 2.818132572 | Q29: 3.889971964 | R29: 6.712976933 | S29: 11.41267739 | T29: 23.65092028 | U29: 45.613759 | V29: 16.22214858 | W29: 11.49611458 | X29: 7.856868781 | Y29: 6.576377353 | Z29: 3.33114664 | AA29: =$E8*$B$26 -> 2.127953053 | AB29: =$E7*$B$27 -> 1.012887962 | AC29: 0.2462329829 | AD29: =$E5*$B$29 -> 0 | AJ29: 145.9034264
A30: 26 | B30: ='P(t) Distribution 10yr'!AH30 -> 0.04089737277 | D30: 150 | E30: =UH_Qp*((Q10_3!D30/UH_Tp)*EXP(1-Q10_3!D30/UH_Tp))^('WS & UH Data & Runoff Results'!$H$6-1) -> 7.625136946 | F30: 0 | G30: 0 | H30: 0 | I30: 0 | J30: 4.526734306e-05 | K30: 0.05297642704 | L30: 0.1981779356 | M30: 0.4193720782 | N30: 0.731974586 | O30: 1.132113963 | P30: 2.478150806 | Q30: 3.461083235 | R30: 6.054762109 | S30: 10.45963572 | T30: 22.09276974 | U30: 43.60308305 | V30: 15.95562276 | W30: 11.72346676 | X30: 8.400592286 | Y30: 7.501200449 | Z30: 4.172855785 | AA30: 3.09129412 | AB30: 1.928226225 | AC30: 0.9072646564 | AD30: 0.2176448614 | AE30: =$E5*$B$30 -> 0 | AJ30: 144.5823128
A31: 27 | B31: ='P(t) Distribution 10yr'!AH31 -> 0.03774470918 | D31: 156 | E31: =UH_Qp*((Q10_3!D31/UH_Tp)*EXP(1-Q10_3!D31/UH_Tp))^('WS & UH Data & Runoff Results'!$H$6-1) -> 6.262301871 | F31: 0 | G31: 0 | H31: 0 | I31: 0 | J31: 3.780489653e-05 | K31: 0.04447427036 | L31: 0.1673311695 | M31: 0.356357903 | N31: 0.6264183994 | O31: 0.9765941616 | P31: 2.157016599 | Q31: 3.043535387 | R31: 5.387194515 | S31: 9.434056846 | T31: 20.24786258 | U31: 40.73046048 | V31: 15.2522914 | W31: 11.53085315 | X31: 8.566726071 | Y31: 8.02031043 | Z31: 4.759676339 | AA31: 3.87239769 | AB31: 2.801149387 | AC31: 1.727152034 | AD31: 0.8019294899 | AE31: =$E6*$B$30 -> 0.188688329 | AF31: =$E5*$B$31 -> 0 | AJ31: 140.6925144
A32: 28 | B32: ='P(t) Distribution 10yr'!AH32 -> 0.03463273258 | D32: 162 | E32: =UH_Qp*((Q10_3!D32/UH_Tp)*EXP(1-Q10_3!D32/UH_Tp))^('WS & UH Data & Runoff Results'!$H$6-1) -> 5.125598085 | F32: 0 | G32: 0 | H32: 0 | I32: 0 | J32: 3.142311643e-05 | K32: 0.03714256405 | L32: 0.1404762851 | M32: 0.3008901292 | N32: 0.5322937764 | O32: 0.8357620104 | P32: 1.86070474 | Q32: 2.649135127 | R32: 4.737279063 | S32: 8.393905224 | T32: 18.26253723 | U32: 37.32917042 | V32: 14.24745244 | W32: 11.02256772 | X32: 8.425976916 | Y32: 8.178923595 | Z32: 5.089063017 | AA32: 4.416965409 | AB32: 3.508939621 | AC32: 2.509047331 | AD32: 1.526626371 | AE32: =$E7*$B$30 -> 0.6952368848 | AF32: =$E6*$B$31 -> 0.1741428757 | AG32: =$E5*$B$32 -> 0 | AJ32: 134.8742702
A33: 29 | B33: ='P(t) Distribution 10yr'!AH33 -> 0.03151130749 | D33: 168 | E33: =UH_Qp*((Q10_3!D33/UH_Tp)*EXP(1-Q10_3!D33/UH_Tp))^('WS & UH Data & Runoff Results'!$H$6-1) -> 4.182025396 | F33: 0 | G33: 0 | H33: 0 | I33: 0 | J33: 2.600543765e-05 | K33: 0.03087259117 | L33: 0.1173183815 | M33: 0.2526004433 | N33: 0.449441255 | O33: 0.7101817525 | P33: 1.592377259 | Q33: 2.285220378 | R33: 4.123392954 | S33: 7.381257789 | T33: 16.24900179 | U33: 33.66900391 | V33: 13.05768641 | W33: 10.29638795 | X33: 8.05455589 | Y33: 8.044545937 | Z33: 5.189706552 | AA33: 4.722635261 | AB33: 4.002394942 | AC33: 3.143029654 | AD33: 2.217742124 | AE33: 1.323516563 | AF33: 0.6416430262 | AG33: =$E6*$B$32 -> 0.1597851401 | AH33: =$E5*$B$33 -> 0 | AJ33: 127.714324
A34: 30 | B34: ='P(t) Distribution 10yr'!AH34 -> 0.02832992812 | D34: 174 | E34: =UH_Qp*((Q10_3!D34/UH_Tp)*EXP(1-Q10_3!D34/UH_Tp))^('WS & UH Data & Runoff Results'!$H$6-1) -> 3.402173136 | F34: 0 | G34: 0 | H34: 0 | I34: 0 | J34: 2.143615261e-05 | K34: 0.02554982878 | L34: 0.09751406567 | M34: 0.2109585625 | N34: 0.3773106833 | O34: 0.5996406351 | P34: 1.353109208 | Q34: 1.95567458 | R34: 3.556957706 | S34: 6.424748459 | T34: 14.28870923 | U34: 29.95682901 | V34: 11.77736579 | W34: 9.436564577 | X34: 7.523912242 | Y34: 7.689938568 | Z34: 5.104440978 | AA34: 4.81603216 | AB34: 4.279375031 | AC34: 3.585027772 | AD34: 2.778117884 | AE34: 1.92268291 | AF34: 1.221490389 | AG34: 0.5887408281 | AH34: =$E6*$B$33 -> 0.145383812 | AI34: =$E5*$B$34 -> 0 | AJ34: 119.7160963
A35: Sum = | B35: =SUM(B5:B34) -> 2.562545842 | D35: 180 | E35: =UH_Qp*((Q10_3!D35/UH_Tp)*EXP(1-Q10_3!D35/UH_Tp))^('WS & UH Data & Runoff Results'!$H$6-1) -> 2.760196955 | F35: 0 | G35: 0 | H35: 0 | I35: 0 | J35: 1.760488494e-05 | K35: 0.0210605965 | L35: 0.08070160577 | M35: 0.1753470074 | N35: 0.315109975 | O35: 0.5034046502 | P35: 1.142495231 | Q35: 1.661818058 | R35: 3.044017915 | S35: 5.54217335 | T35: 12.43708935 | U35: 26.34281321 | V35: 10.47885272 | W35: 8.511298967 | X35: 6.89561078 | Y35: 7.18331634 | Z35: 4.879434818 | AA35: 4.736905963 | AB35: 4.364005822 | AC35: 3.833124555 | AD35: 3.168799173 | AE35: 2.40850355 | AF35: 1.774468686 | AG35: 1.120780923 | AH35: 0.5356780099 | AI35: =$E6*$B$34 -> 0.1307058727 | AJ35: 111.2875347
D36: 186 | E36: =UH_Qp*((Q10_3!D36/UH_Tp)*EXP(1-Q10_3!D36/UH_Tp))^('WS & UH Data & Runoff Results'!$H$6-1) -> 2.233651672 | F36: 0 | G36: 0 | H36: 0 | I36: 0 | J36: 1.440932846e-05 | K36: 0.0172964517 | L36: 0.06652193133 | M36: 0.1451153223 | N36: 0.2619167976 | O36: 0.4204170031 | P36: 0.95913682 | Q36: 1.40315297 | R36: 2.58662867 | S36: 4.742950678 | T36: 10.72859203 | U36: 22.9291475 | V36: 9.214675553 | W36: 7.572885984 | X36: 6.219488504 | Y36: 6.583457115 | Z36: 4.557971894 | AA36: 4.52810092 | AB36: 4.292306304 | AC36: 3.908930101 | AD36: 3.388091443 | AE36: 2.747206697 | AF36: 2.222838776 | AG36: 1.628167253 | AH36: 1.019765686 | AI36: 0.4815959961 | AJ36: 102.6263728
D37: 192 | E37: =UH_Qp*((Q10_3!D37/UH_Tp)*EXP(1-Q10_3!D37/UH_Tp))^('WS & UH Data & Runoff Results'!$H$6-1) -> 1.803237469 | F37: 0 | G37: 0 | H37: 0 | I37: 0 | J37: 1.175671142e-05 | K37: 0.01415688057 | L37: 0.05463251585 | M37: 0.1196178368 | N37: 0.2167595618 | O37: 0.349447126 | P37: 0.801020466 | Q37: 1.177961747 | R37: 2.184015082 | S37: 4.030282523 | T37: 9.181449161 | U37: 19.77934405 | V37: 8.020580537 | W37: 6.659286966 | X37: 5.533759007 | Y37: 5.937941852 | Z37: 4.177348049 | AA37: 4.229784287 | AB37: 4.103099423 | AC37: 3.844707363 | AD37: 3.45509582 | AE37: 2.937323256 | AF37: 2.535432249 | AG37: 2.039570117 | AH37: 1.481421624 | AI37: 0.9168102146 | AJ37: =SUM(F37:AI37) -> 93.78085947
D38: 198 | E38: =UH_Qp*((Q10_3!D38/UH_Tp)*EXP(1-Q10_3!D38/UH_Tp))^('WS & UH Data & Runoff Results'!$H$6-1) -> 1.452500812 | F38: 0 | G38: 0 | H38: 0 | I38: 0 | J38: 9.564353149e-06 | K38: 0.01155073673 | L38: 0.04471587675 | M38: 0.09823862945 | N38: 0.1786738263 | O38: 0.2891987326 | P38: 0.6658015676 | Q38: 0.9837714994 | R38: 1.833503742 | S38: 3.402961514 | T38: 7.80185935 | U38: 16.92701534 | V38: 6.918784134 | W38: 5.79633511 | X38: 4.866161897 | Y38: 5.283254271 | Z38: 3.767754445 | AA38: 3.876566497 | AB38: 3.83278239 | AC38: 3.675230854 | AD38: 3.398329465 | AE38: 2.995413045 | AF38: 2.710893257 | AG38: 2.326390877 | AH38: 1.855745022 | AI38: 1.331857402 | AJ38: 84.87279904
D39: 204 | E39: =UH_Qp*((Q10_3!D39/UH_Tp)*EXP(1-Q10_3!D39/UH_Tp))^('WS & UH Data & Runoff Results'!$H$6-1) -> 1.1675191 | F39: 0 | G39: 0 | H39: 0 | I39: 0 | J39: 7.759598758e-06 | K39: 0.009396788038 | L39: 0.03648411933 | M39: 0.08040681228 | N39: 0.1467395857 | O39: 0.2383850736 | P39: 0.5510103108 | Q39: 0.8177027108 | R39: 1.531245586 | S39: 2.856822154 | T39: 6.587485357 | U39: 14.38358919 | V39: 5.921043934 | W39: 5.000085867 | X39: 4.235574349 | Y39: 4.645878253 | Z39: 3.352340805 | AA39: 3.496464858 | AB39: 3.51271715 | AC39: 3.433102308 | AD39: 3.248529503 | AE39: 2.946199162 | AF39: 2.764505067 | AG39: 2.487385471 | AH39: 2.116714818 | AI39: 1.668389137 | AJ39: 76.06820612
D40: 210 | E40: =UH_Qp*((Q10_3!D40/UH_Tp)*EXP(1-Q10_3!D40/UH_Tp))^('WS & UH Data & Runoff Results'!$H$6-1) -> 0.9365885809 | F40: 0 | G40: 0 | H40: 0 | I40: 0 | J40: 6.279349273e-06 | K40: 0.007623652499 | L40: 0.02968066401 | M40: 0.06560470123 | N40: 0.1201041015 | O40: 0.1957786861 | P40: 0.4541950524 | Q40: 0.6767220847 | R40: 1.272758631 | S40: 2.385867131 | T40: 5.530263574 | U40: 12.14475664 | V40: 5.031357379 | W40: 4.279036247 | X40: 3.653728613 | Y40: 4.043836431 | Z40: 2.947911731 | AA40: 3.110962242 | AB40: 3.168291342 | AC40: 3.146413265 | AD40: 3.034512546 | AE40: 2.816329316 | AF40: 2.719084944 | AG40: 2.536577093 | AH40: 2.263199077 | AI40: 1.903011441 | AJ40: 67.53761286
D41: 216 | E41: =UH_Qp*((Q10_3!D41/UH_Tp)*EXP(1-Q10_3!D41/UH_Tp))^('WS & UH Data & Runoff Results'!$H$6-1) -> 0.749928039 | F41: 0 | G41: 0 | H41: 0 | I41: 0 | J41: 5.069348112e-06 | K41: 0.00616933662 | L41: 0.02408004389 | M41: 0.05337092221 | N41: 0.09799410612 | O41: 0.1602418534 | P41: 0.3730171073 | Q41: 0.5578186409 | R41: 1.053321534 | S41: 1.983112971 | T41: 4.618584349 | U41: 10.19565155 | V41: 4.248217197 | W41: 3.63607513 | X41: 3.126833736 | Y41: 3.488329954 | Z41: 2.565902979 | AA41: 2.73565327 | AB41: 2.818971486 | AC41: 2.837903958 | AD41: 2.781108651 | AE41: 2.630786217 | AF41: 2.5992264 | AG41: 2.49490177 | AH41: 2.307957092 | AI41: 2.034706659 | AJ41: 59.42994198
D42: 222 | E42: =UH_Qp*((Q10_3!D42/UH_Tp)*EXP(1-Q10_3!D42/UH_Tp))^('WS & UH Data & Runoff Results'!$H$6-1) -> 0.5994056228 | F42: 0 | G42: 0 | H42: 0 | I42: 0 | J42: 4.083340312e-06 | K42: 0.004980534382 | L42: 0.0194864465 | M42: 0.04330004709 | N42: 0.07972044255 | O42: 0.1307428888 | P42: 0.3053087843 | Q42: 0.4581201286 | R42: 0.8682476896 | S42: 1.641203246 | T42: 3.838929004 | U42: 8.514870227 | V42: 3.566423232 | W42: 3.070113239 | X42: 2.657000719 | Y42: 2.985286796 | Z42: 2.213421926 | AA42: 2.381150291 | AB42: 2.478888513 | AC42: 2.525010952 | AD42: =$E18*$B$29 -> 2.508417867 | AE42: 2.41109641 | AF42: 2.427986298 | AG42: 2.384925326 | AH42: 2.270037937 | AI42: 2.074945908 | AJ42: 51.85961894
D43: 228 | E43: =UH_Qp*((Q10_3!D43/UH_Tp)*EXP(1-Q10_3!D43/UH_Tp))^('WS & UH Data & Runoff Results'!$H$6-1) -> 0.4782924983 | F43: 0 | G43: 0 | H43: 0 | I43: 0 | J43: 3.282185985e-06 | K43: 0.004011801195 | L43: 0.01573149963 | M43: 0.03503997148 | N43: 0.06467752051 | O43: 0.1063623249 | P43: 0.2491044105 | Q43: 0.3749643027 | R43: 0.7130664236 | S43: 1.352835655 | T43: 3.177056898 | U43: 7.07748951 | V43: 2.978488512 | W43: 2.577392509 | X43: 2.24343359 | Y43: 2.536722394 | Z43: 1.89423 | AA43: 2.054048928 | AB43: 2.157658709 | AC43: 2.220391613 | AD43: 2.231852338 | AE43: 2.174685736 | AF43: 2.225231761 | AG43: 2.227803631 | AH43: 2.169973597 | AI43: 2.040855068 | AJ43: 44.90311199
D44: 234 | E44: =UH_Qp*((Q10_3!D44/UH_Tp)*EXP(1-Q10_3!D44/UH_Tp))^('WS & UH Data & Runoff Results'!$H$6-1) -> 0.3810445116 | F44: 0 | G44: 0 | H44: 0 | I44: 0 | J44: 2.632982974e-06 | K44: 0.003224682895 | L44: 0.01267166216 | M44: 0.02828793328 | N44: 0.05233939976 | O44: 0.08629218846 | P44: 0.202652125 | Q44: 0.3059370263 | R44: 0.5836339369 | S44: 1.111044341 | T44: 2.618832164 | U44: 5.8572552 | V44: 2.475694947 | W44: 2.152502235 | X44: 1.883386207 | Y44: 2.141876811 | Z44: 1.609606041 | AA44: 1.757839775 | AB44: 1.861258643 | AC44: 1.932659447 | AD44: 1.962599889 | AE44: 1.934915833 | AF44: 2.007045322 | AG44: 2.041765804 | AH44: 2.027013175 | AI44: 1.950893217 | AJ44: 38.60123064
D45: 240 | E45: =UH_Qp*((Q10_3!D45/UH_Tp)*EXP(1-Q10_3!D45/UH_Tp))^('WS & UH Data & Runoff Results'!$H$6-1) -> 0.3031113579 | F45: 0 | G45: 0 | H45: 0 | I45: 0 | J45: 2.10823386e-06 | K45: 0.002586853761 | L45: 0.01018547286 | M45: 0.02278582093 | N45: 0.04225384285 | O45: 0.06983077446 | P45: 0.1644124964 | Q45: 0.2488867555 | R45: 0.4761926132 | S45: 0.9093727614 | T45: 2.150770232 | U45: 4.828106263 | V45: 2.048858862 | W45: 1.789142005 | X45: 1.572904789 | Y45: 1.798128219 | Z45: 1.359067852 | AA45: 1.493709593 | AB45: 1.592851285 | AC45: 1.667167788 | AD45: 1.708273979 | AE45: 1.701486041 | AF45: 1.785758607 | AG45: 1.841568405 | AH45: 1.857742814 | AI45: 1.822366069 | AJ45: 32.9644123
D46: 246 | E46: =UH_Qp*((Q10_3!D46/UH_Tp)*EXP(1-Q10_3!D46/UH_Tp))^('WS & UH Data & Runoff Results'!$H$6-1) -> 0.2407717062 | F46: 0 | G46: 0 | H46: 0 | I46: 0 | J46: 1.685077986e-06 | K46: 0.002071298122 | L46: 0.008170827843 | M46: 0.01831522636 | N46: 0.03403530711 | O46: 0.05637471166 | P46: 0.1330485663 | Q46: 0.2019228409 | R46: 0.3873935624 | S46: 0.7419660924 | T46: 1.760372465 | U46: 3.965182409 | V46: 1.688864146 | W46: 1.480674934 | X46: 1.307385415 | Y46: 1.501701815 | Z46: 1.140951824 | AA46: 1.261210902 | AB46: 1.353512008 | AC46: 1.426749777 | AD46: 1.473606411 | AE46: 1.480996888 | AF46: 1.570323261 | AG46: 1.638526342 | AH46: 1.675589073 | AI46: 1.670185232 | AJ46: 27.97913302
D47: 252 | E47: =UH_Qp*((Q10_3!D47/UH_Tp)*EXP(1-Q10_3!D47/UH_Tp))^('WS & UH Data & Runoff Results'!$H$6-1) -> 0.1909921301 | F47: 0 | G47: 0 | H47: 0 | I47: 0 | J47: 1.344598931e-06 | K47: 0.001655555835 | L47: 0.006542395484 | M47: 0.01469254923 | N47: 0.0273575552 | O47: 0.04540961237 | P47: 0.1074107314 | Q47: 0.1634033 | R47: 0.3142939788 | S47: 0.6036063554 | T47: 1.436305039 | U47: 3.245441018 | V47: 1.387014709 | W47: 1.220512967 | X47: 1.081978293 | Y47: 1.248202093 | Z47: 0.9528627647 | AA47: 1.058799881 | AB47: 1.142835334 | AC47: 1.212368646 | AD47: 1.261101392 | AE47: 1.277550637 | AF47: 1.366830998 | AG47: 1.440853215 | AH47: 1.490847056 | AI47: 1.506421719 | AJ47: 23.61429914
D48: 258 | E48: =UH_Qp*((Q10_3!D48/UH_Tp)*EXP(1-Q10_3!D48/UH_Tp))^('WS & UH Data & Runoff Results'!$H$6-1) -> 0.1513074096 | F48: 0 | G48: 0 | H48: 0 | I48: 0 | J48: 1.071210702e-06 | K48: 0.001321041889 | L48: 0.005229233254 | M48: 0.01176434868 | N48: 0.02194634228 | O48: 0.03650021352 | P48: 0.08651892904 | Q48: 0.1319162503 | R48: 0.254338108 | S48: 0.4897083005 | T48: 1.16846694 | U48: 2.647986934 | V48: 1.135250277 | W48: 1.002371589 | X48: 0.8918693133 | Y48: 1.032998805 | Z48: 0.7920116269 | AA48: 0.8842537961 | AB48: 0.95942234 | AC48: 1.0236612 | AD48: 1.071610321 | AE48: 1.093318321 | AF48: 1.179067847 | AG48: 1.254138487 | AH48: 1.310990076 | AI48: 1.340331243 | AJ48: 19.82699295
D49: 264 | E49: =UH_Qp*((Q10_3!D49/UH_Tp)*EXP(1-Q10_3!D49/UH_Tp))^('WS & UH Data & Runoff Results'!$H$6-1) -> 0.119719699 | F49: 0 | G49: 0 | H49: 0 | I49: 0 | J49: 8.521212633e-07 | K49: 0.001052443355 | L49: 0.004172638597 | M49: 0.009403057867 | N49: 0.01757247288 | O49: 0.02928062006 | P49: 0.06954385248 | Q49: 0.1062580298 | R49: 0.2053283472 | S49: 0.3962897511 | T49: 0.947981999 | U49: 2.154197825 | V49: 0.9262617576 | W49: 0.8204257798 | X49: 0.7324661719 | Y49: 0.8514957651 | Z49: 0.6554604162 | AA49: 0.7349844212 | AB49: 0.8012589173 | AC49: 0.8593743955 | AD49: 0.9048121716 | AE49: 0.929038065 | AF49: 1.009037482 | AG49: 1.081856035 | AH49: 1.141103821 | AI49: 1.178632611 | AJ49: 16.5672897
D50: 270 | E50: =UH_Qp*((Q10_3!D50/UH_Tp)*EXP(1-Q10_3!D50/UH_Tp))^('WS & UH Data & Runoff Results'!$H$6-1) -> 0.09461412421 | F50: 0 | G50: 0 | H50: 0 | I50: 0 | J50: 6.768690289e-07 | K50: 0.0008371923086 | L50: 0.003324244143 | M50: 0.007503119536 | N50: 0.01404539969 | O50: 0.02344504132 | P50: 0.05578836191 | Q50: 0.08541012737 | R50: 0.1653911901 | S50: 0.3199265743 | T50: 0.76714148 | U50: 1.74770949 | V50: 0.7535350865 | W50: 0.6693933839 | X50: 0.5995123336 | Y50: 0.6993085581 | Z50: 0.5402927536 | AA50: 0.6082653061 | AB50: 0.6659997663 | AC50: 0.7177041527 | AD50: 0.7595993801 | AE50: 0.7844315534 | AF50: 0.8574211301 | AG50: 0.9258443381 | AH50: 0.9843490725 | AI50: 1.02589806 | AJ50: 13.78207777
D51: 276 | E51: =UH_Qp*((Q10_3!D51/UH_Tp)*EXP(1-Q10_3!D51/UH_Tp))^('WS & UH Data & Runoff Results'!$H$6-1) -> 0.07468852998 | F51: 0 | G51: 0 | H51: 0 | I51: 0 | J51: 5.369262845e-07 | K51: 0.0006650104502 | L51: 0.002644352892 | M51: 0.005977560863 | N51: 0.01120745127 | O51: 0.01873925079 | P51: 0.04466983444 | Q51: 0.06851635229 | R51: 0.1329413188 | S51: 0.2576996191 | T51: 0.619316914 | U51: 1.414310026 | V51: 0.6113460922 | W51: 0.5445668001 | X51: 0.4891479517 | Y51: 0.5723733349 | Z51: 0.4437266302 | AA51: 0.5013900596 | AB51: 0.5511743379 | AC51: 0.596549739 | AD51: 0.6343773242 | AE51: 0.658538579 | AF51: 0.7239619283 | AG51: 0.7867284542 | AH51: 0.8423986054 | AI51: 0.8849692601 | AJ51: 11.41793732
D52: 282 | E52: =UH_Qp*((Q10_3!D52/UH_Tp)*EXP(1-Q10_3!D52/UH_Tp))^('WS & UH Data & Runoff Results'!$H$6-1) -> 0.05889529645 | F52: 0 | G52: 0 | H52: 0 | I52: 0 | J52: 4.253626849e-07 | K52: 0.0005275194682 | L52: 0.002100499837 | M52: 0.004754999836 | N52: 0.008928715817 | O52: 0.01495288455 | P52: 0.0357038923 | Q52: 0.05486115757 | R52: 0.1066460678 | S52: 0.2071387672 | T52: 0.4988573806 | U52: 1.141779115 | V52: 0.494723472 | W52: 0.4418092683 | X52: 0.397933026 | Y52: 0.4670049783 | Z52: 0.3631834448 | AA52: 0.4117769859 | AB52: 0.4543302591 | AC52: 0.4936982324 | AD52: 0.5272891703 | AE52: 0.5499766753 | AF52: 0.6077736897 | AG52: 0.6642726996 | AH52: 0.7158211433 | AI52: 0.7573501021 | AJ52: 9.423194573
D53: 288 | E53: =UH_Qp*((Q10_3!D53/UH_Tp)*EXP(1-Q10_3!D53/UH_Tp))^('WS & UH Data & Runoff Results'!$H$6-1) -> 0.04639336979 | F53: 0 | G53: 0 | H53: 0 | I53: 0 | J53: 3.365617898e-07 | K53: 0.0004179104354 | L53: 0.00166622127 | M53: 0.003777058806 | N53: 0.00710256963 | O53: 0.01191261542 | P53: 0.02848972915 | Q53: 0.04384965572 | R53: 0.08539168436 | S53: 0.1661675633 | T53: 0.4009812012 | U53: 0.9196986646 | V53: 0.3993925787 | W53: 0.3575281137 | X53: 0.3228446886 | Y53: 0.3799192117 | Z53: 0.2963249097 | AA53: 0.3370331507 | AB53: 0.3731281486 | AC53: 0.4069529919 | AD53: 0.4363789209 | AE53: 0.4571360509 | AF53: 0.5075805182 | AG53: 0.5576639514 | AH53: 0.6044022442 | AI53: 0.6435518916 | AJ53: 7.749292581
D54: 294 | E54: =UH_Qp*((Q10_3!D54/UH_Tp)*EXP(1-Q10_3!D54/UH_Tp))^('WS & UH Data & Runoff Results'!$H$6-1) -> 0.03650887475 | F54: 0 | G54: 0 | H54: 0 | I54: 0 | J54: 2.659837876e-07 | K54: 0.0003306653101 | L54: 0.001320010537 | M54: 0.002996151493 | N54: 0.005641813689 | O54: 0.009476186969 | P54: 0.02269710474 | Q54: 0.03498959733 | R54: 0.06825222299 | S54: 0.1330506451 | T54: 0.3216687539 | U54: 0.7392531204 | V54: 0.3217091786 | W54: 0.2886341227 | X54: 0.2612576531 | Y54: 0.3082300075 | Z54: 0.2410670792 | AA54: 0.2749886301 | AB54: 0.3053996699 | AC54: 0.3342185853 | AD54: 0.3597049691 | AE54: 0.3783209439 | AF54: 0.4218967168 | AG54: 0.4657315087 | AH54: 0.5074020714 | AI54: 0.5433818366 | AJ54: 6.351619511
D55: 300 | E55: =UH_Qp*((Q10_3!D55/UH_Tp)*EXP(1-Q10_3!D55/UH_Tp))^('WS & UH Data & Runoff Results'!$H$6-1) -> 0.02870289398 | F55: 0 | G55: 0 | H55: 0 | I55: 0 | J55: 2.099679965e-07 | K55: 0.0002613238172 | L55: 0.001044438369 | M55: 0.002373605242 | N55: 0.004475368103 | O55: 0.007527259027 | P55: 0.0180549779 | Q55: 0.02787539858 | R55: 0.05446149486 | S55: 0.1063452767 | T55: 0.2575607078 | U55: 0.5930318662 | V55: 0.2585896047 | W55: 0.2324936703 | X55: 0.2109145284 | Y55: 0.2494309221 | Z55: 0.1955787055 | AA55: 0.2237095286 | AB55: 0.249178565 | AC55: 0.2735527887 | AD55: 0.2954151666 | AE55: 0.3118480681 | AF55: 0.349157245 | AG55: 0.3871121672 | AH55: 0.4237554384 | AI55: 0.4561747943 | AJ55: 5.189923119
D56: 306 | E56: =UH_Qp*((Q10_3!D56/UH_Tp)*EXP(1-Q10_3!D56/UH_Tp))^('WS & UH Data & Runoff Results'!$H$6-1) -> 0.02254519961 | F56: 0 | G56: 0 | H56: 0 | I56: 0 | J56: 1.655692969e-07 | K56: 0.0002062894089 | L56: 0.0008254165556 | M56: 0.001878079241 | N56: 0.003545467316 | O56: 0.005970997415 | P56: 0.01434168573 | Q56: 0.02217418086 | R56: 0.04338820655 | S56: 0.0848576425 | T56: 0.2058642009 | U56: 0.4748416045 | V56: 0.2074416348 | W56: 0.1868782438 | X56: 0.1698908375 | Y56: 0.201366753 | Z56: 0.1582693952 | AA56: 0.1814964539 | AB56: 0.2027124514 | AC56: 0.2231943845 | AD56: 0.2417927854 | AE56: 0.256111694 | AF56: 0.2878085765 | AG56: 0.3203699209 | AH56: 0.3522220057 | AI56: 0.3809731195 | AJ56: 4.228422192
D57: 312 | E57: =UH_Qp*((Q10_3!D57/UH_Tp)*EXP(1-Q10_3!D57/UH_Tp))^('WS & UH Data & Runoff Results'!$H$6-1) -> 0.01769290446 | F57: 0 | G57: 0 | H57: 0 | I57: 0 | J57: 1.304232779e-07 | K57: 0.0001626685636 | L57: 0.0006515850533 | M57: 0.001484240473 | N57: 0.00280529738 | O57: 0.004730331827 | P57: 0.01137654066 | Q57: 0.01761370935 | R57: 0.03451423077 | S57: 0.06760411057 | T57: 0.1642682337 | U57: 0.3795333857 | V57: 0.1660988631 | W57: 0.1499144888 | X57: 0.1365581321 | Y57: 0.1622001413 | Z57: 0.1277716249 | AA57: 0.1468735254 | AB57: 0.1644614394 | AC57: 0.1815737273 | AD57: 0.1972810884 | AE57: 0.2096234955 | AF57: 0.2363687629 | AG57: 0.2640793287 | AH57: 0.2914951936 | AI57: 0.3166616971 | AJ57: 3.435705973
D58: 318 | E58: =UH_Qp*((Q10_3!D58/UH_Tp)*EXP(1-Q10_3!D58/UH_Tp))^('WS & UH Data & Runoff Results'!$H$6-1) -> 0.01387316125 | F58: 0 | G58: 0 | H58: 0 | I58: 0 | J58: 1.026355089e-07 | K58: 0.0001281382942 | L58: 0.0005138043938 | M58: 0.001171661631 | N58: 0.002217018227 | O58: 0.0037428035 | P58: 0.009012700667 | Q58: 0.01397207305 | R58: 0.02741583255 | S58: 0.05377737543 | T58: 0.1308686821 | U58: 0.3028466272 | V58: 0.1327601947 | W58: 0.1200367813 | X58: 0.1095474901 | Y58: 0.1303763561 | Z58: 0.10291955 | AA58: 0.1185716858 | AB58: 0.1330881727 | AC58: 0.1473115063 | AD58: 0.1604926694 | AE58: 0.1710338515 | AF58: 0.1934642091 | AG58: 0.216880626 | AH58: 0.2402780349 | AI58: 0.2620658596 | AJ58: 2.784493807
D59: 324 | E59: =UH_Qp*((Q10_3!D59/UH_Tp)*EXP(1-Q10_3!D59/UH_Tp))^('WS & UH Data & Runoff Results'!$H$6-1) -> 0.0108691799 | F59: 0 | G59: 0 | H59: 0 | I59: 0 | J59: 8.069095941e-08 | K59: 0.0001008373601 | L59: 0.0004047371977 | M59: 0.0009239083845 | N59: 0.001750117477 | O59: 0.002957926543 | P59: 0.007131163064 | Q59: 0.01106892823 | R59: 0.02174760622 | S59: 0.0427172064 | T59: 0.1041027563 | U59: 0.2412708658 | V59: 0.1059352845 | W59: 0.0959435011 | X59: 0.0877148581 | Y59: 0.1045884442 | Z59: 0.08272665975 | AA59: 0.09550903464 | AB59: 0.1074427059 | AC59: 0.1192098237 | AD59: 0.1302083579 | AE59: 0.139139943 | AF59: 0.1578493324 | AG59: 0.1775134678 | AH59: 0.1973333198 | AI59: 0.2160195816 | AJ59: 2.251310448
D60: 330 | E60: =UH_Qp*((Q10_3!D60/UH_Tp)*EXP(1-Q10_3!D60/UH_Tp))^('WS & UH Data & Runoff Results'!$H$6-1) -> 0.008508954229 | F60: 0 | G60: 0 | H60: 0 | I60: 0 | J60: 6.338015213e-08 | K60: 7.927727367e-05 | L60: 0.0003185045563 | M60: 0.0007277868678 | N60: 0.001380047079 | O60: 0.0023349916 | P60: 0.00563573709 | Q60: 0.008758122017 | R60: 0.01722884582 | S60: 0.03388541939 | T60: 0.0826923756 | U60: 0.1919249262 | V60: 0.08439617783 | W60: 0.07655760154 | X60: 0.07010909903 | Y60: 0.08374414176 | Z60: 0.06636366362 | AA60: 0.07677009285 | AB60: 0.08654468436 | AC60: 0.09623864964 | AD60: 0.1053693345 | AE60: 0.1128848038 | AF60: 0.1284140356 | AG60: 0.1448349672 | AH60: 0.1615142973 | AI60: 0.1774105619 | AJ60: 1.816118208
D61: 336 | E61: =UH_Qp*((Q10_3!D61/UH_Tp)*EXP(1-Q10_3!D61/UH_Tp))^('WS & UH Data & Runoff Results'!$H$6-1) -> 0.006656194267 | F61: 0 | G61: 0 | H61: 0 | I61: 0 | J61: 4.973914604e-08 | K61: 6.226974747e-05 | L61: 0.0002504049378 | M61: 0.0005727257952 | N61: 0.001087099281 | O61: 0.001841246876 | P61: 0.004448859218 | Q61: 0.006921517942 | R61: 0.01363206363 | S61: 0.0268446403 | T61: 0.06559571807 | U61: 0.1524525252 | V61: 0.06713504404 | W61: 0.06099166094 | X61: 0.05594317912 | Y61: 0.06693536825 | Z61: 0.05313749616 | AA61: 0.06158528138 | AB61: 0.0695645546 | AC61: 0.07751986034 | AD61: 0.08506515786 | AE61: 0.09135048508 | AF61: 0.1041828314 | AG61: 0.1178265524 | AH61: 0.1317810882 | AI61: 0.1452078253 | AJ61: 1.461935506
D62: 342 | E62: =UH_Qp*((Q10_3!D62/UH_Tp)*EXP(1-Q10_3!D62/UH_Tp))^('WS & UH Data & Runoff Results'!$H$6-1) -> 0.005203048201 | F62: 0 | G62: 0 | H62: 0 | I62: 0 | J62: 3.900089979e-08 | K62: 4.886772845e-05 | L62: 0.000196685021 | M62: 0.0004502710064 | N62: 0.000855483697 | O62: 0.001450398459 | P62: 0.003508127453 | Q62: 0.005463856529 | R62: 0.01077337959 | S62: 0.02124041555 | T62: 0.05196611074 | U62: 0.1209329493 | V62: 0.05332765889 | W62: 0.0485173375 | X62: 0.04456862995 | Y62: 0.05341071769 | Z62: 0.04247196041 | AA62: 0.04931143754 | AB62: 0.05580496923 | AC62: 0.06231040758 | AD62: 0.06851965589 | AE62: 0.07374767495 | AF62: 0.08430853278 | AG62: 0.09559316302 | AH62: 0.1072069238 | AI62: 0.1184764789 | AJ62: 1.174462132
... 77 more rows

Sheet Q10_6 (hidden)
F2: Runoff Hydrograph for a 6-Hour Storm
A3: Burst Info. | F3: Burst | G3: Burst | H3: Burst | I3: Burst | J3: Burst | K3: Burst | L3: Burst | M3: Burst | N3: Burst | O3: Burst | P3: Burst | Q3: Burst | R3: Burst | S3: Burst | T3: Burst | U3: Burst | V3: Burst | W3: Burst | X3: Burst | Y3: Burst | Z3: Burst | AA3: Burst | AB3: Burst | AC3: Burst | AD3: Burst | AE3: Burst | AF3: Burst | AG3: Burst | AH3: Burst | AI3: Burst | AJ3: Burst | AK3: Burst | AL3: Burst | AM3: Burst | AN3: Burst | AO3: Burst | AP3: Burst | AQ3: Burst | AR3: Burst | AS3: Burst | AT3: Burst | AU3: Burst | AV3: Burst | AW3: Burst | AX3: Burst | AY3: Burst | AZ3: Burst | BA3: Burst | BB3: Burst | BC3: Burst | BD3: Burst | BE3: Burst | BF3: Burst | BG3: Burst | BH3: Burst | BI3: Burst | BJ3: Burst | BK3: Burst | BL3: Burst | BM3: Burst | BN3: Summation
A4: Burst | B4: Increment | D4: Time, min | E4: UH, cfs | F4: 1 | G4: 2 | H4: 3 | I4: 4 | J4: 5 | K4: 6 | L4: 7 | M4: 8 | N4: 9 | O4: 10 | P4: 11 | Q4: 12 | R4: 13 | S4: 14 | T4: 15 | U4: 16 | V4: 17 | W4: 18 | X4: 19 | Y4: 20 | Z4: 21 | AA4: 22 | AB4: 23 | AC4: 24 | AD4: 25 | AE4: 26 | AF4: 27 | AG4: 28 | AH4: 29 | AI4: 30 | AJ4: 31 | AK4: 32 | AL4: 33 | AM4: 34 | AN4: 35 | AO4: 36 | AP4: 37 | AQ4: 38 | AR4: 39 | AS4: 40 | AT4: 41 | AU4: 42 | AV4: 43 | AW4: 44 | AX4: 45 | AY4: 46 | AZ4: 47 | BA4: 48 | BB4: 49 | BC4: 50 | BD4: 51 | BE4: 52 | BF4: 53 | BG4: 54 | BH4: 55 | BI4: 56 | BJ4: 57 | BK4: 58 | BL4: 59 | BM4: 60
A5: 1 | B5: ='P(t) Distribution 10yr'!Y5 -> 0 | D5: 0 | E5: =UH_Qp*((Q10_6!D5/UH_Tp)*EXP(1-Q10_6!D5/UH_Tp))^('WS & UH Data & Runoff Results'!$H$6-1) -> 0 | F5: =$E5*$B$5 -> 0 | BN5: =SUM(F5:BM5) -> 0 | BO5: =SUM(BN$5:BN6)*12*BDur*60/(Area*43560) -> 0
A6: 2 | B6: ='P(t) Distribution 10yr'!Y6 -> 0 | D6: =D5+6 -> 6 | E6: =UH_Qp*((Q10_6!D6/UH_Tp)*EXP(1-Q10_6!D6/UH_Tp))^('WS & UH Data & Runoff Results'!$H$6-1) -> 4.61370294 | F6: 0 | G6: =$E5*$B$6 -> 0 | BN6: =SUM(F6:BM6) -> 0 | BO6: =SUM(BN$5:BN7)*12*BDur*60/(Area*43560) -> 0
A7: 3 | B7: ='P(t) Distribution 10yr'!Y7 -> 0 | D7: =D6+6 -> 12 | E7: =UH_Qp*((Q10_6!D7/UH_Tp)*EXP(1-Q10_6!D7/UH_Tp))^('WS & UH Data & Runoff Results'!$H$6-1) -> 16.99954882 | F7: 0 | G7: 0 | H7: =$E5*$B$7 -> 0 | BN7: 0 | BO7: =SUM(BN$5:BN8)*12*BDur*60/(Area*43560) -> 0
A8: 4 | B8: ='P(t) Distribution 10yr'!Y8 -> 0 | D8: 18 | E8: =UH_Qp*((Q10_6!D8/UH_Tp)*EXP(1-Q10_6!D8/UH_Tp))^('WS & UH Data & Runoff Results'!$H$6-1) -> 32.36189695 | F8: 0 | G8: 0 | H8: 0 | I8: =$E5*$B$8 -> 0 | BN8: 0 | BO8: =SUM(BN$5:BN9)*12*BDur*60/(Area*43560) -> 0
A9: 5 | B9: ='P(t) Distribution 10yr'!Y9 -> 0 | D9: 24 | E9: =UH_Qp*((Q10_6!D9/UH_Tp)*EXP(1-Q10_6!D9/UH_Tp))^('WS & UH Data & Runoff Results'!$H$6-1) -> 47.01238198 | F9: 0 | G9: 0 | H9: 0 | I9: 0 | J9: =$E5*$B$9 -> 0 | BN9: 0 | BO9: =SUM(BN$5:BN10)*12*BDur*60/(Area*43560) -> 0
A10: 6 | B10: ='P(t) Distribution 10yr'!Y10 -> 0 | D10: 30 | E10: =UH_Qp*((Q10_6!D10/UH_Tp)*EXP(1-Q10_6!D10/UH_Tp))^('WS & UH Data & Runoff Results'!$H$6-1) -> 58.89140027 | F10: 0 | G10: 0 | H10: 0 | I10: 0 | J10: 0 | K10: =$E5*$B$10 -> 0 | BN10: 0 | BO10: =SUM(BN$5:BN11)*12*BDur*60/(Area*43560) -> 0
A11: 7 | B11: ='P(t) Distribution 10yr'!Y11 -> 0 | D11: 36 | E11: =UH_Qp*((Q10_6!D11/UH_Tp)*EXP(1-Q10_6!D11/UH_Tp))^('WS & UH Data & Runoff Results'!$H$6-1) -> 67.1731828 | F11: 0 | G11: 0 | H11: 0 | I11: 0 | J11: 0 | K11: 0 | L11: =$E5*$B$11 -> 0 | BN11: 0 | BO11: =SUM(BN$5:BN12)*12*BDur*60/(Area*43560) -> 0
A12: 8 | B12: ='P(t) Distribution 10yr'!Y12 -> 0 | D12: 42 | E12: =UH_Qp*((Q10_6!D12/UH_Tp)*EXP(1-Q10_6!D12/UH_Tp))^('WS & UH Data & Runoff Results'!$H$6-1) -> 71.82180803 | F12: 0 | G12: 0 | H12: 0 | I12: 0 | J12: 0 | K12: 0 | L12: 0 | M12: =$E5*$B$12 -> 0 | BN12: 0 | BO12: =SUM(BN$5:BN13)*12*BDur*60/(Area*43560) -> 0
A13: 9 | B13: ='P(t) Distribution 10yr'!Y13 -> 0 | D13: 48 | E13: =UH_Qp*((Q10_6!D13/UH_Tp)*EXP(1-Q10_6!D13/UH_Tp))^('WS & UH Data & Runoff Results'!$H$6-1) -> 73.2421875 | F13: 0 | G13: 0 | H13: 0 | I13: 0 | J13: 0 | K13: 0 | L13: 0 | M13: 0 | N13: =$E5*$B$13 -> 0 | BN13: 0 | BO13: =SUM(BN$5:BN14)*12*BDur*60/(Area*43560) -> 0
A14: 10 | B14: ='P(t) Distribution 10yr'!Y14 -> 0 | D14: 54 | E14: =UH_Qp*((Q10_6!D14/UH_Tp)*EXP(1-Q10_6!D14/UH_Tp))^('WS & UH Data & Runoff Results'!$H$6-1) -> 72.03883678 | F14: 0 | G14: 0 | H14: 0 | I14: 0 | J14: 0 | K14: 0 | L14: 0 | M14: 0 | N14: 0 | O14: =$E5*$B$14 -> 0 | BN14: 0 | BO14: =SUM(BN$5:BN15)*12*BDur*60/(Area*43560) -> 0
A15: 11 | B15: ='P(t) Distribution 10yr'!Y15 -> 0 | D15: 60 | E15: =UH_Qp*((Q10_6!D15/UH_Tp)*EXP(1-Q10_6!D15/UH_Tp))^('WS & UH Data & Runoff Results'!$H$6-1) -> 68.86333096 | F15: 0 | G15: 0 | H15: 0 | I15: 0 | J15: 0 | K15: 0 | L15: 0 | M15: 0 | N15: 0 | O15: 0 | P15: =$E5*$B$15 -> 0 | BN15: 0 | BO15: =SUM(BN$5:BN16)*12*BDur*60/(Area*43560) -> 0
A16: 12 | B16: ='P(t) Distribution 10yr'!Y16 -> 0 | D16: 66 | E16: =UH_Qp*((Q10_6!D16/UH_Tp)*EXP(1-Q10_6!D16/UH_Tp))^('WS & UH Data & Runoff Results'!$H$6-1) -> 64.32653345 | F16: 0 | G16: 0 | H16: 0 | I16: 0 | J16: 0 | K16: 0 | L16: 0 | M16: 0 | N16: 0 | O16: 0 | P16: 0 | Q16: =$E5*$B$16 -> 0 | BN16: 0 | BO16: =SUM(BN$5:BN17)*12*BDur*60/(Area*43560) -> 0
A17: 13 | B17: ='P(t) Distribution 10yr'!Y17 -> 0.0004882690523 | D17: 72 | E17: =UH_Qp*((Q10_6!D17/UH_Tp)*EXP(1-Q10_6!D17/UH_Tp))^('WS & UH Data & Runoff Results'!$H$6-1) -> 58.95479947 | F17: 0 | G17: 0 | H17: 0 | I17: 0 | J17: 0 | K17: 0 | L17: 0 | M17: 0 | N17: 0 | O17: 0 | P17: 0 | Q17: 0 | R17: =$E5*$B$17 -> 0 | BN17: 0 | BO17: =SUM(BN$5:BN18)*12*BDur*60/(Area*43560) -> 2.234110772e-06
A18: 14 | B18: ='P(t) Distribution 10yr'!Y18 -> 0.001546752048 | D18: 78 | E18: =UH_Qp*((Q10_6!D18/UH_Tp)*EXP(1-Q10_6!D18/UH_Tp))^('WS & UH Data & Runoff Results'!$H$6-1) -> 53.17421607 | F18: 0 | G18: 0 | H18: 0 | I18: 0 | J18: 0 | K18: 0 | L18: 0 | M18: 0 | N18: 0 | O18: 0 | P18: 0 | Q18: 0 | R18: 0.002252728362 | S18: =$E5*$B$18 -> 0 | BN18: 0.002252728362 | BO18: =SUM(BN$5:BN19)*12*BDur*60/(Area*43560) -> 1.754314356e-05
A19: 15 | B19: ='P(t) Distribution 10yr'!Y19 -> 0.00263799947 | D19: 84 | E19: =UH_Qp*((Q10_6!D19/UH_Tp)*EXP(1-Q10_6!D19/UH_Tp))^('WS & UH Data & Runoff Results'!$H$6-1) -> 47.31149466 | F19: 0 | G19: 0 | H19: 0 | I19: 0 | J19: 0 | K19: 0 | L19: 0 | M19: 0 | N19: 0 | O19: 0 | P19: 0 | Q19: 0 | R19: 0.008300353589 | S19: 0.007136254473 | T19: =$E5*$B$19 -> 0 | BN19: 0.01543660806 | BO19: =SUM(BN$5:BN20)*12*BDur*60/(Area*43560) -> 7.136100698e-05
A20: 16 | B20: ='P(t) Distribution 10yr'!Y20 -> 0.00416206977 | D20: 90 | E20: =UH_Qp*((Q10_6!D20/UH_Tp)*EXP(1-Q10_6!D20/UH_Tp))^('WS & UH Data & Runoff Results'!$H$6-1) -> 41.60379813 | F20: 0 | G20: 0 | H20: 0 | I20: 0 | J20: 0 | K20: 0 | L20: 0 | M20: 0 | N20: 0 | O20: 0 | P20: 0 | Q20: 0 | R20: 0.01580131275 | S20: 0.02629408695 | T20: 0.01217094591 | U20: =$E5*$B$20 -> 0 | BN20: 0.05426634562 | BO20: =SUM(BN$5:BN21)*12*BDur*60/(Area*43560) -> 0.0002072861732
A21: 17 | B21: ='P(t) Distribution 10yr'!Y21 -> 0.006011686451 | D21: 96 | E21: =UH_Qp*((Q10_6!D21/UH_Tp)*EXP(1-Q10_6!D21/UH_Tp))^('WS & UH Data & Runoff Results'!$H$6-1) -> 36.212519 | F21: 0 | G21: 0 | H21: 0 | I21: 0 | J21: 0 | K21: 0 | L21: 0 | M21: 0 | N21: 0 | O21: 0 | P21: 0 | Q21: 0 | R21: 0.02295469119 | S21: 0.0500558304 | T21: 0.04484480077 | U21: 0.01920255353 | V21: =$E5*$B$21 -> 0 | BN21: 0.1370578759 | BO21: =SUM(BN$5:BN22)*12*BDur*60/(Area*43560) -> 0.0004902595189
A22: 18 | B22: ='P(t) Distribution 10yr'!Y22 -> 0.00816582957 | D22: 102 | E22: =UH_Qp*((Q10_6!D22/UH_Tp)*EXP(1-Q10_6!D22/UH_Tp))^('WS & UH Data & Runoff Results'!$H$6-1) -> 31.23796348 | F22: 0 | G22: 0 | H22: 0 | I22: 0 | J22: 0 | K22: 0 | L22: 0 | M22: 0 | N22: 0 | O22: 0 | P22: 0 | Q22: 0 | R22: 0.02875484819 | S22: 0.07271649812 | T22: 0.08537066701 | U22: 0.07075330823 | V22: 0.02773613545 | W22: =$E5*$B$22 -> 0 | BN22: 0.285331457 | BO22: =SUM(BN$5:BN23)*12*BDur*60/(Area*43560) -> 0.00100841234
A23: 19 | B23: ='P(t) Distribution 10yr'!Y23 -> 0.01061625835 | D23: 108 | E23: =UH_Qp*((Q10_6!D23/UH_Tp)*EXP(1-Q10_6!D23/UH_Tp))^('WS & UH Data & Runoff Results'!$H$6-1) -> 26.7332165 | F23: 0 | G23: 0 | H23: 0 | I23: 0 | J23: 0 | K23: 0 | L23: 0 | M23: 0 | N23: 0 | O23: 0 | P23: 0 | Q23: 0 | R23: 0.0327985863 | S23: 0.09109039399 | T23: 0.1240186388 | U23: 0.134692473 | V23: 0.1021959573 | W23: 0.03767471189 | X23: =$E5*$B$23 -> 0 | BN23: 0.5224707612 | BO23: =SUM(BN$5:BN24)*12*BDur*60/(Area*43560) -> 0.001873541112
A24: 20 | B24: ='P(t) Distribution 10yr'!Y24 -> 0.0133612001 | D24: 114 | E24: =UH_Qp*((Q10_6!D24/UH_Tp)*EXP(1-Q10_6!D24/UH_Tp))^('WS & UH Data & Runoff Results'!$H$6-1) -> 22.71632631 | F24: 0 | G24: 0 | H24: 0 | I24: 0 | J24: 0 | K24: 0 | L24: 0 | M24: 0 | N24: 0 | O24: 0 | P24: 0 | Q24: 0 | R24: 0.03506836614 | S24: 0.1039002581 | T24: 0.1553554827 | U24: 0.1956688138 | V24: 0.1945495774 | W24: 0.1388154184 | X24: 0.04898026234 | Y24: =$E5*$B$24 -> 0 | BN24: 0.8723381789 | BO24: =SUM(BN$5:BN25)*12*BDur*60/(Area*43560) -> 0.003220483596
A25: 21 | B25: ='P(t) Distribution 10yr'!Y25 -> 0.01760523349 | D25: 120 | E25: =UH_Qp*((Q10_6!D25/UH_Tp)*EXP(1-Q10_6!D25/UH_Tp))^('WS & UH Data & Runoff Results'!$H$6-1) -> 19.18048765 | F25: 0 | G25: 0 | H25: 0 | I25: 0 | J25: 0 | K25: 0 | L25: 0 | M25: 0 | N25: 0 | O25: 0 | P25: 0 | Q25: 0 | R25: 0.03576189348 | S25: 0.1110905287 | T25: 0.1772028206 | U25: 0.2451101168 | V25: 0.2826236998 | W25: 0.264261735 | X25: 0.180471602 | Y25: 0.06164460819 | Z25: =$E5*$B$25 -> 0 | BN25: 1.358167005 | BO25: =SUM(BN$5:BN26)*12*BDur*60/(Area*43560) -> 0.005211254721
A26: 22 | B26: ='P(t) Distribution 10yr'!Y26 -> 0.02248797377 | D26: 126 | E26: =UH_Qp*((Q10_6!D26/UH_Tp)*EXP(1-Q10_6!D26/UH_Tp))^('WS & UH Data & Runoff Results'!$H$6-1) -> 16.10222208 | F26: 0 | G26: 0 | H26: 0 | I26: 0 | J26: 0 | K26: 0 | L26: 0 | M26: 0 | N26: 0 | O26: 0 | P26: 0 | Q26: 0 | R26: 0.03517433456 | S26: 0.1132875035 | T26: 0.1894658915 | U26: 0.2795794735 | V26: 0.3540366331 | W26: 0.3838950989 | X26: 0.3435622586 | Y26: 0.2271343734 | Z26: 0.08122531753 | AA26: =$E5*$B$26 -> 0 | BN26: 2.007360885 | BO26: =SUM(BN$5:BN27)*12*BDur*60/(Area*43560) -> 0.008044082583
A27: 23 | B27: ='P(t) Distribution 10yr'!Y27 -> 0.02800647103 | D27: 132 | E27: =UH_Qp*((Q10_6!D27/UH_Tp)*EXP(1-Q10_6!D27/UH_Tp))^('WS & UH Data & Runoff Results'!$H$6-1) -> 13.4477263 | F27: 0 | G27: 0 | H27: 0 | I27: 0 | J27: 0 | K27: 0 | L27: 0 | M27: 0 | N27: 0 | O27: 0 | P27: 0 | Q27: 0 | R27: 0.03362383334 | S27: 0.1114262184 | T27: 0.1932128518 | U27: 0.298927376 | V27: 0.4038241129 | W27: 0.4808971377 | X27: 0.4990955925 | Y27: 0.4323937808 | Z27: 0.2992810262 | AA27: 0.1037528307 | AB27: =$E5*$B$27 -> 0 | BN27: 2.85643476 | BO27: =SUM(BN$5:BN28)*12*BDur*60/(Area*43560) -> 0.01195913859
A28: 24 | B28: ='P(t) Distribution 10yr'!Y28 -> 0.0340817636 | D28: 138 | E28: =UH_Qp*((Q10_6!D28/UH_Tp)*EXP(1-Q10_6!D28/UH_Tp))^('WS & UH Data & Runoff Results'!$H$6-1) -> 11.17763856 | F28: 0 | G28: 0 | H28: 0 | I28: 0 | J28: 0 | K28: 0 | L28: 0 | M28: 0 | N28: 0 | O28: 0 | P28: 0 | Q28: 0 | R28: 0.03140865552 | S28: 0.1065144982 | T28: 0.1900384133 | U28: 0.3048390945 | V28: 0.4317701902 | W28: 0.5485247624 | X28: 0.6252063195 | Y28: 0.6281418429 | Z28: 0.5697387521 | AA28: 0.3822854079 | AB28: 0.1292135377 | AC28: =$E5*$B$28 -> 0 | BN28: 3.947681474 | BO28: =SUM(BN$5:BN29)*12*BDur*60/(Area*43560) -> 0.01724044214
A29: 25 | B29: ='P(t) Distribution 10yr'!Y29 -> 0.04004307648 | D29: 144 | E29: =UH_Qp*((Q10_6!D29/UH_Tp)*EXP(1-Q10_6!D29/UH_Tp))^('WS & UH Data & Runoff Results'!$H$6-1) -> 9.250495038 | F29: 0 | G29: 0 | H29: 0 | I29: 0 | J29: 0 | K29: 0 | L29: 0 | M29: 0 | N29: 0 | O29: 0 | P29: 0 | Q29: 0 | R29: 0.02878580406 | S29: 0.09949719738 | T29: 0.1816614306 | U29: 0.2998306648 | V29: 0.4403090662 | W29: 0.5864846438 | X29: 0.7131278625 | Y29: 0.7868597832 | Z29: 0.8276639618 | AA29: 0.7277534899 | AB29: 0.4760973713 | AC29: 0.1572431329 | AD29: =$E5*$B$29 -> 0 | BN29: 5.325314409 | BO29: =SUM(BN$5:BN30)*12*BDur*60/(Area*43560) -> 0.02421143504
A30: 26 | B30: ='P(t) Distribution 10yr'!Y30 -> 0.06919358677 | D30: 150 | E30: =UH_Qp*((Q10_6!D30/UH_Tp)*EXP(1-Q10_6!D30/UH_Tp))^('WS & UH Data & Runoff Results'!$H$6-1) -> 7.625136946 | F30: 0 | G30: 0 | H30: 0 | I30: 0 | J30: 0 | K30: 0 | L30: 0 | M30: 0 | N30: 0 | O30: 0 | P30: 0 | Q30: 0 | R30: 0.02596332409 | S30: 0.09118845684 | T30: 0.1696933612 | U30: 0.2866139881 | V30: 0.433074899 | W30: 0.5980832204 | X30: 0.7624788689 | Y30: 0.8975143369 | Z30: 1.036796852 | AA30: 1.057213213 | AB30: 0.9063425293 | AC30: 0.579374604 | AD30: 0.1847468597 | AE30: =$E5*$B$30 -> 0 | BN30: 7.029084514 | BO30: =SUM(BN$5:BN31)*12*BDur*60/(Area*43560) -> 0.03332997682
A31: 27 | B31: ='P(t) Distribution 10yr'!Y31 -> 0.07932825458 | D31: 156 | E31: =UH_Qp*((Q10_6!D31/UH_Tp)*EXP(1-Q10_6!D31/UH_Tp))^('WS & UH Data & Runoff Results'!$H$6-1) -> 6.262301871 | F31: 0 | G31: 0 | H31: 0 | I31: 0 | J31: 0 | K31: 0 | L31: 0 | M31: 0 | N31: 0 | O31: 0 | P31: 0 | Q31: 0 | R31: 0.02310073866 | S31: 0.08224732763 | T31: 0.1555227298 | U31: 0.2677315203 | V31: 0.4139847537 | W31: 0.5882568635 | X31: 0.7775579843 | Y31: 0.9596255487 | Z31: 1.182599568 | AA31: 1.324348265 | AB31: 1.316650914 | AC31: 1.102950522 | AD31: 0.6807142333 | AE31: 0.3192386547 | AF31: =$E5*$B$31 -> 0 | BN31: 9.194529622 | BO31: =SUM(BN$5:BN32)*12*BDur*60/(Area*43560) -> 0.04526682753
A32: 28 | B32: ='P(t) Distribution 10yr'!Y32 -> 0.1180836031 | D32: 162 | E32: =UH_Qp*((Q10_6!D32/UH_Tp)*EXP(1-Q10_6!D32/UH_Tp))^('WS & UH Data & Runoff Results'!$H$6-1) -> 5.125598085 | F32: 0 | G32: 0 | H32: 0 | I32: 0 | J32: 0 | K32: 0 | L32: 0 | M32: 0 | N32: 0 | O32: 0 | P32: 0 | Q32: 0 | R32: 0.02031384708 | S32: 0.07317915127 | T32: 0.1402735538 | U32: 0.2453739887 | V32: 0.3867109496 | W32: 0.5623262242 | X32: 0.7647829021 | Y32: 0.9786035231 | Z32: 1.2644397 | AA32: 1.510588773 | AB32: 1.649340295 | AC32: 1.602264889 | AD32: 1.295869915 | AE32: 1.176259756 | AF32: 0.3659970014 | AG32: =$E5*$B$32 -> 0 | BN32: 12.03632447 | BO32: =SUM(BN$5:BN33)*12*BDur*60/(Area*43560) -> 0.06094570112
A33: 29 | B33: ='P(t) Distribution 10yr'!Y33 -> 0.1784381288 | D33: 168 | E33: =UH_Qp*((Q10_6!D33/UH_Tp)*EXP(1-Q10_6!D33/UH_Tp))^('WS & UH Data & Runoff Results'!$H$6-1) -> 4.182025396 | F33: 0 | G33: 0 | H33: 0 | I33: 0 | J33: 0 | K33: 0 | L33: 0 | M33: 0 | N33: 0 | O33: 0 | P33: 0 | Q33: 0 | R33: 0.01768145233 | S33: 0.06435075997 | T33: 0.1248076978 | U33: 0.2213147973 | V33: 0.3544177692 | W33: 0.525279509 | X33: 0.731070912 | Y33: 0.9625253133 | Z33: 1.289445813 | AA33: 1.615126935 | AB33: 1.881283798 | AC33: 2.007122782 | AD33: 1.882520407 | AE33: 2.239235725 | AF33: 1.348544536 | AG33: 0.5448026667 | AH33: =$E5*$B$33 -> 0 | BN33: 15.80953087 | BO33: =SUM(BN$5:BN34)*12*BDur*60/(Area*43560) -> 0.08177927658
A34: 30 | B34: ='P(t) Distribution 10yr'!Y34 -> 0.3389886427 | D34: 174 | E34: =UH_Qp*((Q10_6!D34/UH_Tp)*EXP(1-Q10_6!D34/UH_Tp))^('WS & UH Data & Runoff Results'!$H$6-1) -> 3.402173136 | F34: 0 | G34: 0 | H34: 0 | I34: 0 | J34: 0 | K34: 0 | L34: 0 | M34: 0 | N34: 0 | O34: 0 | P34: 0 | Q34: 0 | R34: 0.01525253082 | S34: 0.05601178794 | T34: 0.1097507974 | U34: 0.1969137417 | V34: 0.3196667143 | W34: 0.4814148448 | X34: 0.6829070976 | Y34: 0.9200967446 | Z34: 1.268260542 | AA34: 1.647068392 | AB34: 2.011475386 | AC34: 2.289380537 | AD34: 2.358192845 | AE34: 3.252955332 | AF34: 2.5672128 | AG34: 2.007367975 | AH34: 0.8232605195 | AI34: =$E5*$B$34 -> 0 | BN34: 21.00718859 | BO34: =SUM(BN$5:BN35)*12*BDur*60/(Area*43560) -> 0.1103198279
A35: 31 | B35: ='P(t) Distribution 10yr'!Y35 -> 0.6208651446 | D35: 180 | E35: =UH_Qp*((Q10_6!D35/UH_Tp)*EXP(1-Q10_6!D35/UH_Tp))^('WS & UH Data & Runoff Results'!$H$6-1) -> 2.760196955 | F35: 0 | G35: 0 | H35: 0 | I35: 0 | J35: 0 | K35: 0 | L35: 0 | M35: 0 | N35: 0 | O35: 0 | P35: 0 | Q35: 0 | R35: 0.01305300229 | S35: 0.048317384 | T35: 0.09552860593 | U35: 0.1731579105 | V35: 0.2844218714 | W35: 0.434211586 | X35: 0.6258793819 | Y35: 0.8594796853 | Z35: 1.212355021 | AA35: 1.620007472 | AB35: 2.051255202 | AC35: 2.447813883 | AD35: 2.689820896 | AE35: 4.074907214 | AF35: 3.729410206 | AG35: 3.821409394 | AH35: 3.033367681 | AI35: 1.563992897 | AJ35: =$E5*$B$35 -> 0 | BN35: 28.77838929 | BO35: =SUM(BN$5:BN36)*12*BDur*60/(Area*43560) -> 0.1515937669
A36: 32 | B36: ='P(t) Distribution 10yr'!Y36 -> 0.2173222844 | D36: 186 | E36: =UH_Qp*((Q10_6!D36/UH_Tp)*EXP(1-Q10_6!D36/UH_Tp))^('WS & UH Data & Runoff Results'!$H$6-1) -> 2.233651672 | F36: 0 | G36: 0 | H36: 0 | I36: 0 | J36: 0 | K36: 0 | L36: 0 | M36: 0 | N36: 0 | O36: 0 | P36: 0 | Q36: 0 | R36: 0.01109167912 | S36: 0.04134965738 | T36: 0.08240573111 | U36: 0.1507190306 | V36: 0.2501089895 | W36: 0.386337602 | X36: 0.5645112152 | Y36: 0.7877068727 | Z36: 1.132483641 | AA36: 1.548596781 | AB36: 2.017553595 | AC36: 2.49622292 | AD36: 2.875966152 | AE36: 4.647953453 | AF36: 4.671751993 | AG36: 5.551391453 | AH36: 5.774596337 | AI36: 5.762653979 | AJ36: 2.864487343 | AK36: =$E5*$B$36 -> 0 | BN36: 41.61788842 | BO36: =SUM(BN$5:BN37)*12*BDur*60/(Area*43560) -> 0.2110830435
A37: 33 | B37: ='P(t) Distribution 10yr'!Y37 -> 0.157194178 | D37: 192 | E37: =UH_Qp*((Q10_6!D37/UH_Tp)*EXP(1-Q10_6!D37/UH_Tp))^('WS & UH Data & Runoff Results'!$H$6-1) -> 1.803237469 | F37: 0 | G37: 0 | H37: 0 | I37: 0 | J37: 0 | K37: 0 | L37: 0 | M37: 0 | N37: 0 | O37: 0 | P37: 0 | Q37: 0 | R37: 0.009365238528 | S37: 0.03513652425 | T37: 0.07052221097 | U37: 0.1300145835 | V37: 0.2176983098 | W37: 0.339729525 | X37: 0.50227105 | Y37: 0.7104713412 | Z37: 1.03791301 | AA37: 1.446573397 | AB37: 1.928618883 | AC37: 2.455210605 | AD37: 2.932842516 | AE37: 4.969608506 | AF37: 5.328731346 | AG37: 6.954108734 | AH37: 8.388801472 | AI37: 10.97031552 | AJ37: 10.55442733 | AK37: 1.002660462 | AL37: =$E5*$B$37 -> 0 | BN37: =SUM(F37:BM37) -> 59.98502057 | BO37: =SUM(BN$5:BN38)*12*BDur*60/(Area*43560) -> 0.2911316998
A38: 34 | B38: ='P(t) Distribution 10yr'!Y38 -> 0.1149462991 | D38: 198 | E38: =UH_Qp*((Q10_6!D38/UH_Tp)*EXP(1-Q10_6!D38/UH_Tp))^('WS & UH Data & Runoff Results'!$H$6-1) -> 1.452500812 | F38: 0 | G38: 0 | H38: 0 | I38: 0 | J38: 0 | K38: 0 | L38: 0 | M38: 0 | N38: 0 | O38: 0 | P38: 0 | Q38: 0 | R38: 0.007862216716 | S38: 0.02966745856 | T38: 0.05992565677 | U38: 0.1112655123 | V38: 0.1877928418 | W38: 0.2957052584 | X38: 0.4416766691 | Y38: 0.6321383472 | Z38: 0.9361444898 | AA38: 1.325773984 | AB38: 1.801559195 | AC38: 2.346983767 | AD38: 2.884656651 | AE38: 5.067889656 | AF38: 5.697498672 | AG38: 7.932051455 | AH38: 10.50847127 | AI38: 15.93666356 | AJ38: 20.09237383 | AK38: 3.694380782 | AL38: 0.7252472412 | AM38: =$E5*$B$38 -> 0 | BN38: =SUM(F38:BM38) -> 80.71572851 | BO38: =SUM(BN$5:BN39)*12*BDur*60/(Area*43560) -> 0.3911103827
A39: 35 | B39: ='P(t) Distribution 10yr'!Y39 -> 0.1098062983 | D39: 204 | E39: =UH_Qp*((Q10_6!D39/UH_Tp)*EXP(1-Q10_6!D39/UH_Tp))^('WS & UH Data & Runoff Results'!$H$6-1) -> 1.1675191 | F39: 0 | G39: 0 | H39: 0 | I39: 0 | J39: 0 | K39: 0 | L39: 0 | M39: 0 | N39: 0 | O39: 0 | P39: 0 | Q39: 0 | R39: 0.006566108574 | S39: 0.02490614499 | T39: 0.05059811627 | U39: 0.09454693501 | V39: 0.1607117154 | W39: 0.2550838859 | X39: 0.384441457 | Y39: 0.5558766718 | Z39: 0.8329299103 | AA39: 1.195780377 | AB39: 1.651115883 | AC39: 2.192361706 | AD39: 2.757499628 | AE39: 4.984625503 | AF39: 5.810174896 | AG39: 8.480977872 | AH39: 11.98625705 | AI39: 19.96351584 | AJ39: 29.18834934 | AK39: 7.032961372 | AL39: 2.672230102 | AM39: 0.5303280779 | AN39: =$E5*$B$39 -> 0 | BN39: 100.8118386 | BO39: =SUM(BN$5:BN40)*12*BDur*60/(Area*43560) -> 0.5083660947
A40: 36 | B40: ='P(t) Distribution 10yr'!Y40 -> 0.06970656403 | D40: 210 | E40: =UH_Qp*((Q10_6!D40/UH_Tp)*EXP(1-Q10_6!D40/UH_Tp))^('WS & UH Data & Runoff Results'!$H$6-1) -> 0.9365885809 | F40: 0 | G40: 0 | H40: 0 | I40: 0 | J40: 0 | K40: 0 | L40: 0 | M40: 0 | N40: 0 | O40: 0 | P40: 0 | Q40: 0 | R40: 0.005457694987 | S40: 0.0208002982 | T40: 0.04247765333 | U40: 0.07983052783 | V40: 0.1365634311 | W40: 0.2182988898 | X40: 0.3316302905 | Y40: 0.4838427125 | Z40: 0.7324445802 | AA40: 1.063939651 | AB40: 1.489222142 | AC40: 2.009283539 | AD40: 2.575832299 | AE40: 4.764900866 | AF40: 5.714715184 | AG40: 8.648701397 | AH40: 12.81574903 | AI40: 22.77094606 | AJ40: 36.56361774 | AK40: 10.21683825 | AL40: 5.08710179 | AM40: 1.954035222 | AN40: 0.5066136413 | AO40: =$E5*$B$40 -> 0 | BN40: 118.2328429 | BO40: =SUM(BN$5:BN41)*12*BDur*60/(Area*43560) -> 0.6391124651
A41: 37 | B41: ='P(t) Distribution 10yr'!Y41 -> 0.06470955653 | D41: 216 | E41: =UH_Qp*((Q10_6!D41/UH_Tp)*EXP(1-Q10_6!D41/UH_Tp))^('WS & UH Data & Runoff Results'!$H$6-1) -> 0.749928039 | F41: 0 | G41: 0 | H41: 0 | I41: 0 | J41: 0 | K41: 0 | L41: 0 | M41: 0 | N41: 0 | O41: 0 | P41: 0 | Q41: 0 | R41: 0.004516730445 | S41: 0.01728903534 | T41: 0.03547509485 | U41: 0.06701857176 | V41: 0.1153070777 | W41: 0.1854976491 | X41: 0.2838067328 | Y41: 0.4173766808 | Z41: 0.6375298524 | AA41: 0.9355851212 | AB41: 1.325028004 | AC41: 1.812271062 | AD41: 2.360731544 | AE41: 4.450983574 | AF41: 5.46280785 | AG41: 8.506605408 | AH41: 13.06919889 | AI41: 24.34677722 | AJ41: 41.70548786 | AK41: 12.79841364 | AL41: 7.390072741 | AM41: 3.719880285 | AN41: 1.866657528 | AO41: 0.3216053794 | AP41: =$E5*$B$41 -> 0 | BN41: 131.8359235 | BO41: =SUM(BN$5:BN42)*12*BDur*60/(Area*43560) -> 0.7790575358
A42: 38 | B42: ='P(t) Distribution 10yr'!Y42 -> 0.05865416795 | D42: 222 | E42: =UH_Qp*((Q10_6!D42/UH_Tp)*EXP(1-Q10_6!D42/UH_Tp))^('WS & UH Data & Runoff Results'!$H$6-1) -> 0.5994056228 | F42: 0 | G42: 0 | H42: 0 | I42: 0 | J42: 0 | K42: 0 | L42: 0 | M42: 0 | N42: 0 | O42: 0 | P42: 0 | Q42: 0 | R42: 0.00372311839 | S42: 0.01430822215 | T42: 0.0294866046 | U42: 0.0559703751 | V42: 0.09680151033 | W42: 0.1566245932 | X42: 0.2411623887 | Y42: 0.357187855 | Z42: 0.5499516409 | AA42: 0.8143461776 | AB42: 1.165175567 | AC42: 1.612459176 | AD42: 2.129259201 | AE42: 4.079294033 | AF42: 5.102911622 | AG42: 8.13163024 | AH42: 12.85447524 | AI42: 24.82826973 | AJ42: 44.59165723 | AK42: 14.59822954 | AL42: 9.257385256 | AM42: 5.403899318 | AN42: 3.553540111 | AO42: 1.184980138 | AP42: 0.2985506712 | AQ42: =$E5*$B$42 -> 0 | BN42: 141.1112795 | BO42: =SUM(BN$5:BN43)*12*BDur*60/(Area*43560) -> 0.9240140691
A43: 39 | B43: ='P(t) Distribution 10yr'!Y43 -> 0.05255224511 | D43: 228 | E43: =UH_Qp*((Q10_6!D43/UH_Tp)*EXP(1-Q10_6!D43/UH_Tp))^('WS & UH Data & Runoff Results'!$H$6-1) -> 0.4782924983 | F43: 0 | G43: 0 | H43: 0 | I43: 0 | J43: 0 | K43: 0 | L43: 0 | M43: 0 | N43: 0 | O43: 0 | P43: 0 | Q43: 0 | R43: 0.003057688199 | S43: 0.01179419619 | T43: 0.02440280101 | U43: 0.04652211156 | V43: 0.08084351398 | W43: 0.1314880012 | X43: 0.2036250121 | Y43: 0.3035173814 | Z43: 0.4706445186 | AA43: 0.7024785035 | AB43: 1.014184864 | AC43: 1.417930813 | AD43: 1.894497799 | AE43: 3.679314734 | AF43: 4.676781341 | AG43: 7.595908843 | AH43: 12.28784392 | AI43: 24.4203475 | AJ43: 45.47352133 | AK43: 15.60847939 | AL43: 10.55923325 | AM43: 6.769348507 | AN43: 5.16225564 | AO43: 2.255836642 | AP43: 1.100033265 | AQ43: 0.2706129071 | AR43: =$E5*$B$43 -> 0 | BN43: 146.1645045 | BO43: =SUM(BN$5:BN44)*12*BDur*60/(Area*43560) -> 1.070254427
A44: 40 | B44: ='P(t) Distribution 10yr'!Y44 -> 0.04646210234 | D44: 234 | E44: =UH_Qp*((Q10_6!D44/UH_Tp)*EXP(1-Q10_6!D44/UH_Tp))^('WS & UH Data & Runoff Results'!$H$6-1) -> 0.3810445116 | F44: 0 | G44: 0 | H44: 0 | I44: 0 | J44: 0 | K44: 0 | L44: 0 | M44: 0 | N44: 0 | O44: 0 | P44: 0 | Q44: 0 | R44: 0.002502670919 | S44: 0.009686228246 | T44: 0.02011510722 | U44: 0.03850120575 | V44: 0.06719645829 | W44: 0.109811841 | X44: 0.1709453496 | Y44: 0.2562743336 | Z44: 0.3999262288 | AA44: 0.6011758716 | AB44: 0.874865119 | AC44: 1.234186512 | AD44: 1.66594407 | AE44: 3.273652011 | AF44: 4.21821775 | AG44: 6.96159514 | AH44: 11.47830626 | AI44: 23.34388709 | AJ44: 44.72640282 | AK44: 15.9171595 | AL44: 11.28997008 | AM44: 7.721308759 | AN44: 6.466646666 | AO44: 3.277071615 | AP44: 2.094124 | AQ44: 0.9970943913 | AR44: 0.2424604477 | AS44: =$E5*$B$44 -> 0 | BN44: 147.4590275 | BO44: =SUM(BN$5:BN45)*12*BDur*60/(Area*43560) -> 1.214671088
A45: 41 | B45: ='P(t) Distribution 10yr'!Y45 -> 0.0402890238 | D45: 240 | E45: =UH_Qp*((Q10_6!D45/UH_Tp)*EXP(1-Q10_6!D45/UH_Tp))^('WS & UH Data & Runoff Results'!$H$6-1) -> 0.3031113579 | F45: 0 | G45: 0 | H45: 0 | I45: 0 | J45: 0 | K45: 0 | L45: 0 | M45: 0 | N45: 0 | O45: 0 | P45: 0 | Q45: 0 | R45: 0.002041953577 | S45: 0.007928029337 | T45: 0.01651994902 | U45: 0.03173635197 | V45: 0.05561107568 | W45: 0.09127469149 | X45: 0.1427645365 | Y45: 0.2151450113 | Z45: 0.3376769636 | AA45: 0.5108441503 | AB45: 0.7487030534 | AC45: 1.064644887 | AD45: 1.450060668 | AE45: 2.878716016 | AF45: 3.753138293 | AG45: 6.279003025 | AH45: 10.5197841 | AI45: 21.80596426 | AJ45: 42.75484194 | AK45: 15.65564457 | AL45: 11.51324546 | AM45: 8.255651025 | AN45: 7.376038549 | AO45: 4.105117164 | AP45: 3.042150389 | AQ45: 1.898160139 | AR45: 0.893364456 | AS45: 0.2143623381 | AT45: =$E5*$B$45 -> 0 | BN45: 145.620133 | BO45: =SUM(BN$5:BN46)*12*BDur*60/(Area*43560) -> 1.354810011
A46: 42 | B46: ='P(t) Distribution 10yr'!Y46 -> 0.03719015901 | D46: 246 | E46: =UH_Qp*((Q10_6!D46/UH_Tp)*EXP(1-Q10_6!D46/UH_Tp))^('WS & UH Data & Runoff Results'!$H$6-1) -> 0.2407717062 | F46: 0 | G46: 0 | H46: 0 | I46: 0 | J46: 0 | K46: 0 | L46: 0 | M46: 0 | N46: 0 | O46: 0 | P46: 0 | Q46: 0 | R46: 0.001661175853 | S46: 0.006468556348 | T46: 0.01352132503 | U46: 0.02606413731 | V46: 0.04583993246 | W46: 0.07553796592 | X46: 0.1186646987 | Y46: 0.179677762 | Z46: 0.2834833796 | AA46: 0.4313303033 | AB46: 0.6362041346 | AC46: 0.9111151651 | AD46: 1.250864161 | AE46: 2.505674075 | AF46: 3.300356689 | AG46: 5.586711756 | AH46: 9.488307618 | AI46: 19.98500745 | AJ46: 39.93810249 | AK46: 14.96553639 | AL46: 11.32408573 | AM46: 8.418918388 | AN46: 7.886486878 | AO46: 4.682411768 | AP46: 3.810836395 | AQ46: 2.757472148 | AR46: 1.700690341 | AS46: 0.7898347767 | AT46: 0.1858815875 | AU46: =$E5*$B$46 -> 0 | BN46: 141.3067472 | BO46: =SUM(BN$5:BN47)*12*BDur*60/(Area*43560) -> 1.488843379
A47: 43 | B47: ='P(t) Distribution 10yr'!Y47 -> 0.03412967483 | D47: 252 | E47: =UH_Qp*((Q10_6!D47/UH_Tp)*EXP(1-Q10_6!D47/UH_Tp))^('WS & UH Data & Runoff Results'!$H$6-1) -> 0.1909921301 | F47: 0 | G47: 0 | H47: 0 | I47: 0 | J47: 0 | K47: 0 | L47: 0 | M47: 0 | N47: 0 | O47: 0 | P47: 0 | Q47: 0 | R47: 0.001347718751 | S47: 0.005262318267 | T47: 0.01103218078 | U47: 0.02133309684 | V47: 0.03764699531 | W47: 0.06226556874 | X47: 0.09820564515 | Y47: 0.1493466655 | Z47: 0.2367503614 | AA47: 0.3621063479 | AB47: 0.5371777717 | AC47: 0.7742124631 | AD47: 1.070480233 | AE47: 2.161466736 | AF47: 2.872675926 | AG47: 4.912726384 | AH47: 8.442174578 | AI47: 18.02545533 | AJ47: 36.6029801 | AK47: 13.9795892 | AL47: 10.8249147 | AM47: 8.280597677 | AN47: 8.04245349 | AO47: 5.00645146 | AP47: 4.34674687 | AQ47: 3.454226082 | AR47: 2.470606221 | AS47: 1.503601768 | AT47: 0.6848952267 | AU47: 0.171584346 | AV47: =$E5*$B$47 -> 0 | BN47: 135.1503135 | BO47: =SUM(BN$5:BN48)*12*BDur*60/(Area*43560) -> 1.615514765
A48: 44 | B48: ='P(t) Distribution 10yr'!Y48 -> 0.03105834271 | D48: 258 | E48: =UH_Qp*((Q10_6!D48/UH_Tp)*EXP(1-Q10_6!D48/UH_Tp))^('WS & UH Data & Runoff Results'!$H$6-1) -> 0.1513074096 | F48: 0 | G48: 0 | H48: 0 | I48: 0 | J48: 0 | K48: 0 | L48: 0 | M48: 0 | N48: 0 | O48: 0 | P48: 0 | Q48: 0 | R48: 0.001090622985 | S48: 0.004269340294 | T48: 0.00897493093 | U48: 0.01740588148 | V48: 0.03081348856 | W48: 0.05113688979 | X48: 0.08095042373 | Y48: 0.1235977152 | Z48: 0.1967849368 | AA48: 0.3024121163 | AB48: 0.4509664162 | AC48: 0.6537048459 | AD48: 0.9096315917 | AE48: 1.849767136 | AF48: 2.478053119 | AG48: 4.27610472 | AH48: 7.42370389 | AI48: 16.03805936 | AJ48: 33.01401735 | AK48: 12.8121917 | AL48: 10.11175655 | AM48: 7.915585035 | AN48: 7.910318002 | AO48: 5.105461233 | AP48: 4.647557347 | AQ48: 3.939987146 | AR48: 3.094875301 | AS48: 2.184294103 | AT48: 1.303829236 | AU48: 0.6322159236 | AV48: 0.1574641811 | AW48: =$E5*$B$48 -> 0 | BN48: 127.7269805 | BO48: =SUM(BN$5:BN49)*12*BDur*60/(Area*43560) -> 1.734056065
A49: 45 | B49: ='P(t) Distribution 10yr'!Y49 -> 0.02792652574 | D49: 264 | E49: =UH_Qp*((Q10_6!D49/UH_Tp)*EXP(1-Q10_6!D49/UH_Tp))^('WS & UH Data & Runoff Results'!$H$6-1) -> 0.119719699 | F49: 0 | G49: 0 | H49: 0 | I49: 0 | J49: 0 | K49: 0 | L49: 0 | M49: 0 | N49: 0 | O49: 0 | P49: 0 | Q49: 0 | R49: 0.0008804650499 | S49: 0.0034549053 | T49: 0.007281398106 | U49: 0.01416008196 | V49: 0.02514102541 | W49: 0.04185476041 | X49: 0.0664822145 | Y49: 0.1018809805 | Z49: 0.1628571251 | AA49: 0.2513624428 | AB49: 0.3766233569 | AC49: 0.5487921265 | AD49: 0.768045734 | AE49: 1.571824095 | AF49: 2.120699405 | AG49: 3.68869128 | AH49: 6.46169413 | AI49: 14.10321506 | AJ49: 29.37405797 | AK49: 11.55594211 | AL49: 9.267351242 | AM49: 7.394096952 | AN49: 7.561627463 | AO49: 5.021579789 | AP49: 4.739469472 | AQ49: 4.212648391 | AR49: 3.530101567 | AS49: 2.736218266 | AT49: 1.894082976 | AU49: 1.203544094 | AV49: 0.5801890733 | AW49: 0.1432939671 | AX49: =$E5*$B$49 -> 0 | BN49: 119.5291439 | BO49: =SUM(BN$5:BN50)*12*BDur*60/(Area*43560) -> 1.84409327
A50: 46 | B50: ='P(t) Distribution 10yr'!Y50 -> 0.02478632561 | D50: 270 | E50: =UH_Qp*((Q10_6!D50/UH_Tp)*EXP(1-Q10_6!D50/UH_Tp))^('WS & UH Data & Runoff Results'!$H$6-1) -> 0.09461412421 | F50: 0 | G50: 0 | H50: 0 | I50: 0 | J50: 0 | K50: 0 | L50: 0 | M50: 0 | N50: 0 | O50: 0 | P50: 0 | Q50: 0 | R50: 0.0007092111948 | S50: 0.002789161248 | T50: 0.005892371928 | U50: 0.01148813231 | V50: 0.02045279814 | W50: 0.03414970664 | X50: 0.05441467345 | Y50: 0.08367186839 | Z50: 0.1342423163 | AA50: 0.2080248898 | AB50: 0.3130462105 | AC50: 0.4583222286 | AD50: 0.6447825104 | AE50: 1.327166737 | AF50: 1.802046517 | AG50: 3.156754526 | AH50: 5.574043751 | AI50: 12.27563266 | AJ50: 25.83034814 | AK50: 10.2818421 | AL50: 8.358677186 | AM50: 6.776636011 | AN50: 7.063458522 | AO50: 4.800226189 | AP50: 4.661601181 | AQ50: 4.295959567 | AR50: 3.774397259 | AS50: 3.121007294 | AT50: 2.372677027 | AU50: 1.748397961 | AV50: 1.10450102 | AW50: 0.5279778131 | AX50: 0.1288446939 | AY50: =$E5*$B$50 -> 0 | BN50: 110.9541822 | BO50: =SUM(BN$5:BN51)*12*BDur*60/(Area*43560) -> 1.945553974
A51: 47 | B51: ='P(t) Distribution 10yr'!Y51 -> 0.02403839061 | D51: 276 | E51: =UH_Qp*((Q10_6!D51/UH_Tp)*EXP(1-Q10_6!D51/UH_Tp))^('WS & UH Data & Runoff Results'!$H$6-1) -> 0.07468852998 | F51: 0 | G51: 0 | H51: 0 | I51: 0 | J51: 0 | K51: 0 | L51: 0 | M51: 0 | N51: 0 | O51: 0 | P51: 0 | Q51: 0 | R51: 0.0005700634446 | S51: 0.002246658606 | T51: 0.004756939487 | U51: 0.009296614102 | V51: 0.01659343864 | W51: 0.02778156599 | X51: 0.04439746201 | Y51: 0.06848414166 | Z51: 0.1102492866 | AA51: 0.1714738797 | AB51: 0.2590737213 | AC51: 0.3809536351 | AD51: 0.5384883326 | AE51: 1.114170501 | AF51: 1.521554608 | AG51: 2.682425659 | AH51: 4.77022513 | AI51: 10.58931484 | AJ51: 22.48309085 | AK51: 9.041432448 | AL51: 7.437091512 | AM51: 6.112179343 | AN51: 6.473608298 | AO51: 4.483981623 | AP51: 4.456115608 | AQ51: 4.225378032 | AR51: 3.84904139 | AS51: 3.336992195 | AT51: 2.70634196 | AU51: 2.190180541 | AV51: 1.60451731 | AW51: 1.005106886 | AX51: 0.4747383376 | AY51: 0.1143567433 | AZ51: =$E5*$B$51 -> 0 | BN51: 102.3062095 | BO51: =SUM(BN$5:BN52)*12*BDur*60/(Area*43560) -> 2.038595401
A52: 48 | B52: ='P(t) Distribution 10yr'!Y52 -> 0.02328859205 | D52: 282 | E52: =UH_Qp*((Q10_6!D52/UH_Tp)*EXP(1-Q10_6!D52/UH_Tp))^('WS & UH Data & Runoff Results'!$H$6-1) -> 0.05889529645 | F52: 0 | G52: 0 | H52: 0 | I52: 0 | J52: 0 | K52: 0 | L52: 0 | M52: 0 | N52: 0 | O52: 0 | P52: 0 | Q52: 0 | R52: 0.0004573072187 | S52: 0.00180586256 | T52: 0.003831696372 | U52: 0.007505200157 | V52: 0.01342801349 | W52: 0.02253929792 | X52: 0.03611834895 | Y52: 0.05587687815 | Z52: 0.09023735108 | AA52: 0.1408264802 | AB52: 0.2135531769 | AC52: 0.3152731851 | AD52: 0.4475870358 | AE52: 0.9304964164 | AF52: 1.277361173 | AG52: 2.264901091 | AH52: 4.05345876 | AI52: 9.062256776 | AJ52: 19.39456271 | AK52: 7.869787352 | AL52: 6.539874848 | AM52: 5.438281214 | AN52: 5.838863833 | AO52: 4.109536504 | AP52: 4.162541453 | AQ52: 4.03912138 | AR52: 3.785802608 | AS52: 3.402986011 | AT52: 2.893630533 | AU52: 2.49818135 | AV52: 2.009944341 | AW52: 1.460126671 | AX52: 0.9037553483 | AY52: 0.4213563521 | AZ52: 0.1109059934 | BA52: =$E5*$B$52 -> 0 | BN52: 93.81677255 | BO52: =SUM(BN$5:BN53)*12*BDur*60/(Area*43560) -> 2.123552874
A53: 49 | B53: ='P(t) Distribution 10yr'!Y53 -> 0.02248591486 | D53: 288 | E53: =UH_Qp*((Q10_6!D53/UH_Tp)*EXP(1-Q10_6!D53/UH_Tp))^('WS & UH Data & Runoff Results'!$H$6-1) -> 0.04639336979 | F53: 0 | G53: 0 | H53: 0 | I53: 0 | J53: 0 | K53: 0 | L53: 0 | M53: 0 | N53: 0 | O53: 0 | P53: 0 | Q53: 0 | R53: 0.0003661666529 | S53: 0.001448670306 | T53: 0.003079914768 | U53: 0.00604540972 | V53: 0.01084049826 | W53: 0.01823961887 | X53: 0.02930296396 | Y53: 0.04545711605 | Z53: 0.07362553357 | AA53: 0.1152643153 | AB53: 0.1753849759 | AC53: 0.2598781148 | AD53: 0.3704182803 | AE53: 0.7734209037 | AF53: 1.066784655 | AG53: 1.901408401 | AH53: 3.422530327 | AI53: 7.700576621 | AJ53: 16.59772233 | AK53: 6.788705582 | AL53: 5.692397157 | AM53: 4.782202622 | AN53: 5.195100096 | AO53: 3.706591898 | AP53: 3.814938929 | AQ53: 3.773019297 | AR53: 3.618922648 | AS53: 3.347075807 | AT53: 2.950856235 | AU53: 2.671064461 | AV53: 2.292598886 | AW53: 1.829069292 | AX53: 1.312892496 | AY53: 0.8021325151 | AZ53: 0.4086417947 | BA53: 0.1074466456 | BB53: =$E5*$B$53 -> 0 | BN53: 85.66545118 | BO53: =SUM(BN$5:BN54)*12*BDur*60/(Area*43560) -> 2.200890267
A54: 50 | B54: ='P(t) Distribution 10yr'!Y54 -> 0.02173263832 | D54: 294 | E54: =UH_Qp*((Q10_6!D54/UH_Tp)*EXP(1-Q10_6!D54/UH_Tp))^('WS & UH Data & Runoff Results'!$H$6-1) -> 0.03650887475 | F54: 0 | G54: 0 | H54: 0 | I54: 0 | J54: 0 | K54: 0 | L54: 0 | M54: 0 | N54: 0 | O54: 0 | P54: 0 | Q54: 0 | R54: 0.0002926712154 | S54: 0.00115995273 | T54: 0.00247072018 | U54: 0.004859295953 | V54: 0.008731979451 | W54: 0.01472492984 | X54: 0.02371302321 | Y54: 0.03687954384 | Z54: 0.05989605244 | AA54: 0.09404527743 | AB54: 0.1435499143 | AC54: 0.213430292 | AD54: 0.3053339419 | AE54: 0.6400749311 | AF54: 0.8867025575 | AG54: 1.587955974 | AH54: 2.873250379 | AI54: 6.501967475 | AJ54: 14.10377522 | AK54: 5.809723679 | AL54: 4.910425991 | AM54: 4.162495039 | AN54: 4.568359068 | AO54: 3.297921732 | AP54: 3.440879941 | AQ54: 3.45794471 | AR54: 3.380503753 | AS54: 3.19953513 | AT54: 2.902374409 | AU54: 2.7238886 | AV54: 2.451254954 | AW54: 2.086287733 | AX54: 1.644632206 | AY54: 1.165264207 | AZ54: 0.7779279199 | BA54: 0.3958955575 | BB54: 0.1037433315 | BC54: =$E5*$B$54 -> 0 | BN54: 77.98187209 | BO54: =SUM(BN$5:BN55)*12*BDur*60/(Area*43560) -> 2.271154595
A55: 51 | B55: ='P(t) Distribution 10yr'!Y55 -> 0.02092662216 | D55: 300 | E55: =UH_Qp*((Q10_6!D55/UH_Tp)*EXP(1-Q10_6!D55/UH_Tp))^('WS & UH Data & Runoff Results'!$H$6-1) -> 0.02870289398 | F55: 0 | G55: 0 | H55: 0 | I55: 0 | J55: 0 | K55: 0 | L55: 0 | M55: 0 | N55: 0 | O55: 0 | P55: 0 | Q55: 0 | R55: 0.0002335354248 | S55: 0.0009271318749 | T55: 0.00197830977 | U55: 0.003898147019 | V55: 0.007018758757 | W55: 0.01186087408 | X55: 0.01914363483 | Y55: 0.02984426695 | Z55: 0.04859391189 | AA55: 0.07650798026 | AB55: 0.1171237731 | AC55: 0.1746894222 | AD55: 0.2507618328 | AE55: 0.5276105749 | AF55: 0.7338256254 | AG55: 1.319895835 | AH55: 2.399587117 | AI55: 5.458470408 | AJ55: 11.90849624 | AK55: 4.936763926 | AL55: 4.202305993 | AM55: 3.590688292 | AN55: 3.976362664 | AO55: 2.900057818 | AP55: 3.061505838 | AQ55: 3.1188894 | AR55: 3.098207072 | AS55: 2.98874598 | AT55: 2.77443638 | AU55: 2.679135795 | AV55: 2.499732043 | AW55: 2.230666328 | AX55: 1.875913619 | AY55: 1.459701422 | AZ55: 1.130102002 | BA55: 0.7536630162 | BB55: 0.3822504073 | BC55: 0.1002679373 | BD55: =$E5*$B$55 -> 0 | BN55: 70.84986331 | BO55: =SUM(BN$5:BN56)*12*BDur*60/(Area*43560) -> 2.334937099
A56: 52 | B56: ='P(t) Distribution 10yr'!Y56 -> 0.02017026019 | D56: 306 | E56: =UH_Qp*((Q10_6!D56/UH_Tp)*EXP(1-Q10_6!D56/UH_Tp))^('WS & UH Data & Runoff Results'!$H$6-1) -> 0.02254519961 | F56: 0 | G56: 0 | H56: 0 | I56: 0 | J56: 0 | K56: 0 | L56: 0 | M56: 0 | N56: 0 | O56: 0 | P56: 0 | Q56: 0 | R56: 0.0001860522425 | S56: 0.0007397999014 | T56: 0.001581231715 | U56: 0.003121252821 | V56: 0.005630476882 | W56: 0.009533761993 | X56: 0.01542012387 | Y56: 0.02409341665 | Z56: 0.03932395924 | AA56: 0.06207123674 | AB56: 0.09528286335 | AC56: 0.1425308009 | AD56: 0.2052447161 | AE56: 0.4333111279 | AF56: 0.6048888049 | AG56: 1.092331784 | AH56: 1.99451691 | AI56: 4.558626485 | AJ56: 9.997308443 | AK56: 4.168347392 | AL56: 3.570874241 | AM56: 3.072884299 | AN56: 3.430125136 | AO56: 2.524250274 | AP56: 2.692163327 | AQ56: 2.775016354 | AR56: 2.794424436 | AS56: 2.739163926 | AT56: 2.591653237 | AU56: 2.561038229 | AV56: 2.458662074 | AW56: 2.27478096 | AX56: 2.005733571 | AY56: 1.664976381 | AZ56: 1.415654483 | BA56: 1.094852185 | BB56: 0.7276868595 | BC56: 0.369445046 | BD56: 0.09654921818 | BE56: =$E5*$B$56 -> 0 | BN56: 64.31402488 | BO56: =SUM(BN$5:BN57)*12*BDur*60/(Area*43560) -> 2.392841798
A57: 53 | B57: ='P(t) Distribution 10yr'!Y57 -> 0.01936128329 | D57: 312 | E57: =UH_Qp*((Q10_6!D57/UH_Tp)*EXP(1-Q10_6!D57/UH_Tp))^('WS & UH Data & Runoff Results'!$H$6-1) -> 0.01769290446 | F57: 0 | G57: 0 | H57: 0 | I57: 0 | J57: 0 | K57: 0 | L57: 0 | M57: 0 | N57: 0 | O57: 0 | P57: 0 | Q57: 0 | R57: 0.0001479998954 | S57: 0.0005893813788 | T57: 0.001261735357 | U57: 0.002494768023 | V57: 0.004508332231 | W57: 0.007648022728 | X57: 0.01239468439 | Y57: 0.019407154 | Z57: 0.03174641668 | AA57: 0.05023030023 | AB57: 0.07730337605 | AC57: 0.1159520605 | AD57: 0.1674611628 | AE57: 0.3546585158 | AF57: 0.4967774771 | AG57: 0.9004036445 | AH57: 1.650641025 | AI57: 3.789092524 | AJ57: 8.349224533 | AK57: 3.499371687 | AL57: 3.01506099 | AM57: 2.611157637 | AN57: 2.935475546 | AO57: 2.177491101 | AP57: 2.343296045 | AQ57: 2.440236163 | AR57: 2.486325263 | AS57: 2.470585869 | AT57: 2.375231319 | AU57: 2.392314008 | AV57: 2.350283093 | AW57: 2.237406881 | AX57: 2.045399835 | AY57: 1.78019872 | AZ57: 1.614735207 | BA57: 1.371497796 | BB57: 1.057116419 | BC57: 0.7033094018 | BD57: 0.3557431349 | BE57: 0.09305958875 | BF57: =$E5*$B$57 -> 0 | BN57: 58.38723882 | BO57: =SUM(BN$5:BN58)*12*BDur*60/(Area*43560) -> 2.445461581
A58: 54 | B58: ='P(t) Distribution 10yr'!Y58 -> 0.01860218914 | D58: 318 | E58: =UH_Qp*((Q10_6!D58/UH_Tp)*EXP(1-Q10_6!D58/UH_Tp))^('WS & UH Data & Runoff Results'!$H$6-1) -> 0.01387316125 | F58: 0 | G58: 0 | H58: 0 | I58: 0 | J58: 0 | K58: 0 | L58: 0 | M58: 0 | N58: 0 | O58: 0 | P58: 0 | Q58: 0 | R58: 0.0001175613728 | S58: 0.0004688381137 | T58: 0.00100519522 | U58: 0.001990686748 | V58: 0.003603438661 | W58: 0.006123784556 | X58: 0.009943066338 | Y58: 0.01559945632 | Z58: 0.02557161594 | AA58: 0.04055115691 | AB58: 0.06255670084 | AC58: 0.09407238012 | AD58: 0.1362334791 | AE58: 0.2893693371 | AF58: 0.4066047498 | AG58: 0.7394751685 | AH58: 1.360615169 | AI58: 3.135812757 | AJ58: 6.939806182 | AK58: 2.922490599 | AL58: 2.531175564 | AM58: 2.20472607 | AN58: 2.494395703 | AO58: 1.863480668 | AP58: 2.021394764 | AQ58: 2.124015171 | AR58: 2.186372996 | AS58: 2.198191506 | AT58: 2.142337257 | AU58: 2.192538367 | AV58: 2.195443669 | AW58: 2.138780933 | AX58: 2.01179443 | AY58: 1.815404708 | AZ58: 1.726480676 | BA58: 1.564368851 | BB58: 1.324227012 | BC58: 1.021703094 | BD58: 0.6772251899 | BE58: 0.3428853228 | BF58: 0.08932720964 | BG58: =$E5*$B$58 -> 0 | BN58: 53.05828049 | BO58: =SUM(BN$5:BN59)*12*BDur*60/(Area*43560) -> 2.493361071
A59: 55 | B59: ='P(t) Distribution 10yr'!Y59 -> 0.01779059295 | D59: 324 | E59: =UH_Qp*((Q10_6!D59/UH_Tp)*EXP(1-Q10_6!D59/UH_Tp))^('WS & UH Data & Runoff Results'!$H$6-1) -> 0.0108691799 | F59: 0 | G59: 0 | H59: 0 | I59: 0 | J59: 0 | K59: 0 | L59: 0 | M59: 0 | N59: 0 | O59: 0 | P59: 0 | Q59: 0 | R59: 9.325554636e-05 | S59: 0.0003724141298 | T59: 0.0007996076015 | U59: 0.001585933843 | V59: 0.002875344531 | W59: 0.004894644159 | X59: 0.007961429803 | Y59: 0.01251394744 | Z59: 0.02055444637 | AA59: 0.03266380017 | AB59: 0.05050231792 | AC59: 0.07612678826 | AD59: 0.1105267778 | AE59: 0.2354085621 | AF59: 0.3317527753 | AG59: 0.6052490898 | AH59: 1.117433428 | AI59: 2.584834823 | AJ59: 5.74330994 | AK59: 2.429149946 | AL59: 2.113904281 | AM59: 1.850890835 | AN59: 2.106138349 | AO59: 1.583477054 | AP59: 1.729894584 | AQ59: 1.832236756 | AR59: 1.903049174 | AS59: 1.932999926 | AT59: 1.906133934 | AU59: 1.977557551 | AV59: 2.012108135 | AW59: 1.997875521 | AX59: 1.923113585 | AY59: 1.785578065 | AZ59: 1.760624313 | BA59: 1.672628788 | BB59: 1.510450469 | BC59: 1.279865502 | BD59: 0.9838103545 | BE59: 0.6527478819 | BF59: 0.3291330804 | BG59: 0.0858249747 | BH59: =$E5*$B$59 -> 0 | BN59: 48.29865239 | BO59: =SUM(BN$5:BN60)*12*BDur*60/(Area*43560) -> 2.537065387
A60: 56 | B60: ='P(t) Distribution 10yr'!Y60 -> 0.01702908622 | D60: 330 | E60: =UH_Qp*((Q10_6!D60/UH_Tp)*EXP(1-Q10_6!D60/UH_Tp))^('WS & UH Data & Runoff Results'!$H$6-1) -> 0.008508954229 | F60: 0 | G60: 0 | H60: 0 | I60: 0 | J60: 0 | K60: 0 | L60: 0 | M60: 0 | N60: 0 | O60: 0 | P60: 0 | Q60: 0 | R60: 7.387872549e-05 | S60: 0.0002954174685 | T60: 0.0006351556334 | U60: 0.00126157062 | V60: 0.002290720127 | W60: 0.003905655025 | X60: 0.006363444946 | Y60: 0.01001993859 | Z60: 0.01648886065 | AA60: 0.02625513891 | AB60: 0.0406794219 | AC60: 0.06145751313 | AD60: 0.08944228475 | AE60: 0.1909879275 | AF60: 0.2698884567 | AG60: 0.4938286269 | AH60: 0.9146021314 | AI60: 2.122849211 | AJ60: 4.734181753 | AK60: 2.010338713 | AL60: 1.757059706 | AM60: 1.545766369 | AN60: 1.768125402 | AO60: 1.337005891 | AP60: 1.469963401 | AQ60: 1.568014571 | AR60: 1.641625113 | AS60: 1.682509764 | AT60: 1.676176413 | AU60: 1.759522009 | AV60: 1.814818704 | AW60: 1.831038366 | AX60: 1.796416592 | AY60: 1.706868944 | AZ60: 1.731697698 | BA60: 1.705707426 | BB60: 1.61497906 | BC60: 1.459850487 | BD60: 1.232398082 | BE60: 0.9482519768 | BF60: 0.6265678547 | BG60: 0.3162288223 | BH60: 0.08208051102 | BI60: =$E5*$B$60 -> 0 | BN60: 44.06851898 | BO60: =SUM(BN$5:BN61)*12*BDur*60/(Area*43560) -> 2.577053573
A61: 57 | B61: ='P(t) Distribution 10yr'!Y61 -> 0.01626650505 | D61: 336 | E61: =UH_Qp*((Q10_6!D61/UH_Tp)*EXP(1-Q10_6!D61/UH_Tp))^('WS & UH Data & Runoff Results'!$H$6-1) -> 0.006656194267 | F61: 0 | G61: 0 | H61: 0 | I61: 0 | J61: 0 | K61: 0 | L61: 0 | M61: 0 | N61: 0 | O61: 0 | P61: 0 | Q61: 0 | R61: 5.845542395e-05 | S61: 0.0002340350458 | T61: 0.000503837138 | U61: 0.00100210864 | V61: 0.001822210443 | W61: 0.00311154454 | X61: 0.005077676726 | Y61: 0.008008778469 | Z61: 0.01320265823 | AA61: 0.02106197944 | AB61: 0.03269808986 | AC61: 0.0495037893 | AD61: 0.07220717587 | AE61: 0.1545543708 | AF61: 0.2189616068 | AG61: 0.4017408622 | AH61: 0.7462327863 | AI61: 1.737519538 | AJ61: 3.888044957 | AK61: 1.65711218 | AL61: 1.454123964 | AM61: 1.284828185 | AN61: 1.476645046 | AO61: 1.122430575 | AP61: 1.24116085 | AQ61: 1.332407219 | AR61: 1.404890546 | AS61: 1.451381456 | AT61: 1.45896704 | AU61: 1.547251868 | AV61: 1.614725928 | AW61: 1.651503026 | AX61: 1.646402725 | AY61: 1.594418403 | AZ61: 1.655363649 | BA61: 1.677683082 | BB61: 1.646917592 | BC61: 1.560877378 | BD61: 1.405707816 | BE61: 1.187854867 | BF61: 0.9102200457 | BG61: 0.6020021278 | BH61: 0.3024320534 | BI61: 0.07856714516 | BJ61: =$E5*$B$61 -> 0 | BN61: 40.32142122 | BO61: =SUM(BN$5:BN62)*12*BDur*60/(Area*43560) -> 2.613755979
A62: 58 | B62: ='P(t) Distribution 10yr'!Y62 -> 0.01545157193 | D62: 342 | E62: =UH_Qp*((Q10_6!D62/UH_Tp)*EXP(1-Q10_6!D62/UH_Tp))^('WS & UH Data & Runoff Results'!$H$6-1) -> 0.005203048201 | F62: 0 | G62: 0 | H62: 0 | I62: 0 | J62: 0 | K62: 0 | L62: 0 | M62: 0 | N62: 0 | O62: 0 | P62: 0 | Q62: 0 | R62: 4.619714876e-05 | S62: 0.0001851766896 | T62: 0.0003991488664 | U62: 0.000794922571 | V62: 0.001447444004 | W62: 0.002475155689 | X62: 0.004045266976 | Y62: 0.006390561776 | Z62: 0.01055267595 | AA62: 0.01686436207 | AB62: 0.02623054095 | AC62: 0.03979110998 | AD62: 0.0581626011 | AE62: 0.1247724683 | AF62: 0.1771916885 | AG62: 0.3259340017 | AH62: 0.6070774083 | AI62: 1.417659113 | AJ62: 3.182305196 | AK62: 1.360937748 | AL62: 1.198627134 | AM62: 1.063310169 | AN62: 1.227375114 | AO62: 0.9373947943 | AP62: 1.04196765 | AQ62: 1.125015544 | AR62: 1.193793948 | AS62: 1.242081441 | AT62: 1.258547054 | AU62: 1.34674934 | AV62: 1.419924102 | AW62: 1.469416615 | AX62: 1.484971114 | AY62: 1.461272856 | AZ62: 1.546306338 | BA62: 1.603730022 | BB62: 1.61985915 | BC62: 1.591745971 | BD62: 1.502987839 | BE62: 1.354900575 | BF62: 1.140213084 | BG62: 0.8745332213 | BH62: 0.5757373359 | BI62: 0.2894867825 | BJ62: 0.07504882215 | BK62: =$E5*$B$62 -> 0 | BN62: 37.00825881 | BO62: =SUM(BN$5:BN63)*12*BDur*60/(Area*43560) -> 2.647553983
... 77 more rows

Sheet Q10_12 (hidden)
F2: Runoff Hydrograph for a 12-Hour Storm
A3: Burst Info. | F3: Burst | G3: Burst | H3: Burst | I3: Burst | J3: Burst | K3: Burst | L3: Burst | M3: Burst | N3: Burst | O3: Burst | P3: Burst | Q3: Burst | R3: Burst | S3: Burst | T3: Burst | U3: Burst | V3: Burst | W3: Burst | X3: Burst | Y3: Burst | Z3: Burst | AA3: Burst | AB3: Burst | AC3: Burst | AD3: Burst | AE3: Burst | AF3: Burst | AG3: Burst | AH3: Burst | AI3: Burst | AJ3: Burst | AK3: Burst | AL3: Burst | AM3: Burst | AN3: Burst | AO3: Burst | AP3: Burst | AQ3: Burst | AR3: Burst | AS3: Burst | AT3: Burst | AU3: Burst | AV3: Burst | AW3: Burst | AX3: Burst | AY3: Burst | AZ3: Burst | BA3: Burst | BB3: Burst | BC3: Burst | BD3: Burst | BE3: Burst | BF3: Burst | BG3: Burst | BH3: Burst | BI3: Burst | BJ3: Burst | BK3: Burst | BL3: Burst | BM3: Burst | BN3: Burst | BO3: Burst | BP3: Burst | BQ3: Burst | BR3: Burst | BS3: Burst | BT3: Burst | BU3: Burst | BV3: Burst | BW3: Burst | BX3: Burst | BY3: Burst | BZ3: Burst | CA3: Burst | CB3: Burst | CC3: Burst | CD3: Burst | CE3: Burst | CF3: Burst | CG3: Burst | CH3: Burst | CI3: Burst | CJ3: Burst | CK3: Burst | CL3: Burst | CM3: Burst | CN3: Burst | CO3: Burst | CP3: Burst | CQ3: Burst | CR3: Burst | CS3: Burst | CT3: Burst | CU3: Burst | CV3: Burst | CW3: Burst | CX3: Burst | CY3: Burst | CZ3: Burst | DA3: Burst | DB3: Burst | DC3: Burst | DD3: Burst | DE3: Burst | DF3: Burst | DG3: Burst | DH3: Burst | DI3: Burst | DJ3: Burst | DK3: Burst | DL3: Burst | DM3: Burst | DN3: Burst | DO3: Burst | DP3: Burst | DQ3: Burst | DR3: Burst | DS3: Burst | DT3: Burst | DU3: Burst | DV3: Summation
A4: Burst | B4: Increment | D4: Time, min | E4: UH, cfs | F4: 1 | G4: 2 | H4: 3 | I4: 4 | J4: 5 | K4: 6 | L4: 7 | M4: 8 | N4: 9 | O4: 10 | P4: 11 | Q4: 12 | R4: 13 | S4: 14 | T4: 15 | U4: 16 | V4: 17 | W4: 18 | X4: 19 | Y4: 20 | Z4: 21 | AA4: 22 | AB4: 23 | AC4: 24 | AD4: 25 | AE4: 26 | AF4: 27 | AG4: 28 | AH4: 29 | AI4: 30 | AJ4: 31 | AK4: 32 | AL4: 33 | AM4: 34 | AN4: 35 | AO4: 36 | AP4: 37 | AQ4: 38 | AR4: 39 | AS4: 40 | AT4: 41 | AU4: 42 | AV4: 43 | AW4: 44 | AX4: 45 | AY4: 46 | AZ4: 47 | BA4: 48 | BB4: 49 | BC4: 50 | BD4: 51 | BE4: 52 | BF4: 53 | BG4: 54 | BH4: 55 | BI4: 56 | BJ4: 57 | BK4: 58 | BL4: 59 | BM4: 60 | BN4: 61 | BO4: 62 | BP4: 63 | BQ4: 64 | BR4: 65 | BS4: 66 | BT4: 67 | BU4: 68 | BV4: 69 | BW4: 70 | BX4: 71 | BY4: 72 | BZ4: 73 | CA4: 74 | CB4: 75 | CC4: 76 | CD4: 77 | CE4: 78 | CF4: 79 | CG4: 80 | CH4: 81 | CI4: 82 | CJ4: 83 | CK4: 84 | CL4: 85 | CM4: 86 | CN4: 87 | CO4: 88 | CP4: 89 | CQ4: 90 | CR4: 91 | CS4: 92 | CT4: 93 | CU4: 94 | CV4: 95 | CW4: 96 | CX4: 97 | CY4: 98 | CZ4: 99 | DA4: 100 | DB4: 101 | DC4: 102 | DD4: 103 | DE4: 104 | DF4: 105 | DG4: 106 | DH4: 107 | DI4: 108 | DJ4: 109 | DK4: 110 | DL4: 111 | DM4: 112 | DN4: 113 | DO4: 114 | DP4: 115 | DQ4: 116 | DR4: 117 | DS4: 118 | DT4: 119 | DU4: 120
A5: 1 | B5: ='P(t) Distribution 10yr'!P5 -> 0 | D5: 0 | E5: =UH_Qp*((Q10_12!D5/UH_Tp)*EXP(1-Q10_12!D5/UH_Tp))^('WS & UH Data & Runoff Results'!$H$6-1) -> 0 | F5: =$E5*$B$5 -> 0 | DV5: =SUM(F5:DU5) -> 0
A6: 2 | B6: ='P(t) Distribution 10yr'!P6 -> 0 | D6: =D5+BDur -> 6 | E6: =UH_Qp*((Q10_12!D6/UH_Tp)*EXP(1-Q10_12!D6/UH_Tp))^('WS & UH Data & Runoff Results'!$H$6-1) -> 4.61370294 | F6: 0 | G6: =$E5*$B$6 -> 0 | DV6: 0
A7: 3 | B7: ='P(t) Distribution 10yr'!P7 -> 0 | D7: 12 | E7: =UH_Qp*((Q10_12!D7/UH_Tp)*EXP(1-Q10_12!D7/UH_Tp))^('WS & UH Data & Runoff Results'!$H$6-1) -> 16.99954882 | F7: 0 | G7: 0 | H7: =$E5*$B$7 -> 0 | DV7: 0
A8: 4 | B8: ='P(t) Distribution 10yr'!P8 -> 0 | D8: 18 | E8: =UH_Qp*((Q10_12!D8/UH_Tp)*EXP(1-Q10_12!D8/UH_Tp))^('WS & UH Data & Runoff Results'!$H$6-1) -> 32.36189695 | F8: 0 | G8: 0 | H8: 0 | I8: =$E5*$B$8 -> 0 | DV8: 0
A9: 5 | B9: ='P(t) Distribution 10yr'!P9 -> 0 | D9: 24 | E9: =UH_Qp*((Q10_12!D9/UH_Tp)*EXP(1-Q10_12!D9/UH_Tp))^('WS & UH Data & Runoff Results'!$H$6-1) -> 47.01238198 | F9: 0 | G9: 0 | H9: 0 | I9: 0 | J9: =$E5*$B$9 -> 0 | DV9: 0
A10: 6 | B10: ='P(t) Distribution 10yr'!P10 -> 0 | D10: 30 | E10: =UH_Qp*((Q10_12!D10/UH_Tp)*EXP(1-Q10_12!D10/UH_Tp))^('WS & UH Data & Runoff Results'!$H$6-1) -> 58.89140027 | F10: 0 | G10: 0 | H10: 0 | I10: 0 | J10: 0 | K10: =$E5*$B$10 -> 0 | DV10: 0
A11: 7 | B11: ='P(t) Distribution 10yr'!P11 -> 0 | D11: 36 | E11: =UH_Qp*((Q10_12!D11/UH_Tp)*EXP(1-Q10_12!D11/UH_Tp))^('WS & UH Data & Runoff Results'!$H$6-1) -> 67.1731828 | F11: 0 | G11: 0 | H11: 0 | I11: 0 | J11: 0 | K11: 0 | L11: =$E5*$B$11 -> 0 | DV11: 0
A12: 8 | B12: ='P(t) Distribution 10yr'!P12 -> 0 | D12: 42 | E12: =UH_Qp*((Q10_12!D12/UH_Tp)*EXP(1-Q10_12!D12/UH_Tp))^('WS & UH Data & Runoff Results'!$H$6-1) -> 71.82180803 | F12: 0 | G12: 0 | H12: 0 | I12: 0 | J12: 0 | K12: 0 | L12: 0 | M12: =$E5*$B$12 -> 0 | DV12: 0
A13: 9 | B13: ='P(t) Distribution 10yr'!P13 -> 0 | D13: 48 | E13: =UH_Qp*((Q10_12!D13/UH_Tp)*EXP(1-Q10_12!D13/UH_Tp))^('WS & UH Data & Runoff Results'!$H$6-1) -> 73.2421875 | F13: 0 | G13: 0 | H13: 0 | I13: 0 | J13: 0 | K13: 0 | L13: 0 | M13: 0 | N13: =$E5*$B$13 -> 0 | DV13: 0
A14: 10 | B14: ='P(t) Distribution 10yr'!P14 -> 0 | D14: 54 | E14: =UH_Qp*((Q10_12!D14/UH_Tp)*EXP(1-Q10_12!D14/UH_Tp))^('WS & UH Data & Runoff Results'!$H$6-1) -> 72.03883678 | F14: 0 | G14: 0 | H14: 0 | I14: 0 | J14: 0 | K14: 0 | L14: 0 | M14: 0 | N14: 0 | O14: =$E5*$B$14 -> 0 | DV14: 0
A15: 11 | B15: ='P(t) Distribution 10yr'!P15 -> 0 | D15: 60 | E15: =UH_Qp*((Q10_12!D15/UH_Tp)*EXP(1-Q10_12!D15/UH_Tp))^('WS & UH Data & Runoff Results'!$H$6-1) -> 68.86333096 | F15: 0 | G15: 0 | H15: 0 | I15: 0 | J15: 0 | K15: 0 | L15: 0 | M15: 0 | N15: 0 | O15: 0 | P15: =$E5*$B$15 -> 0 | DV15: 0
A16: 12 | B16: ='P(t) Distribution 10yr'!P16 -> 0 | D16: 66 | E16: =UH_Qp*((Q10_12!D16/UH_Tp)*EXP(1-Q10_12!D16/UH_Tp))^('WS & UH Data & Runoff Results'!$H$6-1) -> 64.32653345 | F16: 0 | G16: 0 | H16: 0 | I16: 0 | J16: 0 | K16: 0 | L16: 0 | M16: 0 | N16: 0 | O16: 0 | P16: 0 | Q16: =$E5*$B$16 -> 0 | DV16: 0
A17: 13 | B17: ='P(t) Distribution 10yr'!P17 -> 0 | D17: 72 | E17: =UH_Qp*((Q10_12!D17/UH_Tp)*EXP(1-Q10_12!D17/UH_Tp))^('WS & UH Data & Runoff Results'!$H$6-1) -> 58.95479947 | F17: 0 | G17: 0 | H17: 0 | I17: 0 | J17: 0 | K17: 0 | L17: 0 | M17: 0 | N17: 0 | O17: 0 | P17: 0 | Q17: 0 | R17: =$E5*$B$17 -> 0 | DV17: 0
A18: 14 | B18: ='P(t) Distribution 10yr'!P18 -> 0 | D18: 78 | E18: =UH_Qp*((Q10_12!D18/UH_Tp)*EXP(1-Q10_12!D18/UH_Tp))^('WS & UH Data & Runoff Results'!$H$6-1) -> 53.17421607 | F18: 0 | G18: 0 | H18: 0 | I18: 0 | J18: 0 | K18: 0 | L18: 0 | M18: 0 | N18: 0 | O18: 0 | P18: 0 | Q18: 0 | R18: 0 | S18: =$E5*$B$18 -> 0 | DV18: 0
A19: 15 | B19: ='P(t) Distribution 10yr'!P19 -> 0 | D19: 84 | E19: =UH_Qp*((Q10_12!D19/UH_Tp)*EXP(1-Q10_12!D19/UH_Tp))^('WS & UH Data & Runoff Results'!$H$6-1) -> 47.31149466 | F19: 0 | G19: 0 | H19: 0 | I19: 0 | J19: 0 | K19: 0 | L19: 0 | M19: 0 | N19: 0 | O19: 0 | P19: 0 | Q19: 0 | R19: 0 | S19: 0 | T19: =$E5*$B$19 -> 0 | DV19: 0
A20: 16 | B20: ='P(t) Distribution 10yr'!P20 -> 0 | D20: 90 | E20: =UH_Qp*((Q10_12!D20/UH_Tp)*EXP(1-Q10_12!D20/UH_Tp))^('WS & UH Data & Runoff Results'!$H$6-1) -> 41.60379813 | F20: 0 | G20: 0 | H20: 0 | I20: 0 | J20: 0 | K20: 0 | L20: 0 | M20: 0 | N20: 0 | O20: 0 | P20: 0 | Q20: 0 | R20: 0 | S20: 0 | T20: 0 | U20: =$E5*$B$20 -> 0 | DV20: 0
A21: 17 | B21: ='P(t) Distribution 10yr'!P21 -> 0 | D21: 96 | E21: =UH_Qp*((Q10_12!D21/UH_Tp)*EXP(1-Q10_12!D21/UH_Tp))^('WS & UH Data & Runoff Results'!$H$6-1) -> 36.212519 | F21: 0 | G21: 0 | H21: 0 | I21: 0 | J21: 0 | K21: 0 | L21: 0 | M21: 0 | N21: 0 | O21: 0 | P21: 0 | Q21: 0 | R21: 0 | S21: 0 | T21: 0 | U21: 0 | V21: =$E5*$B$21 -> 0 | DV21: 0
A22: 18 | B22: ='P(t) Distribution 10yr'!P22 -> 0 | D22: 102 | E22: =UH_Qp*((Q10_12!D22/UH_Tp)*EXP(1-Q10_12!D22/UH_Tp))^('WS & UH Data & Runoff Results'!$H$6-1) -> 31.23796348 | F22: 0 | G22: 0 | H22: 0 | I22: 0 | J22: 0 | K22: 0 | L22: 0 | M22: 0 | N22: 0 | O22: 0 | P22: 0 | Q22: 0 | R22: 0 | S22: 0 | T22: 0 | U22: 0 | V22: 0 | W22: =$E5*$B$22 -> 0 | DV22: 0
A23: 19 | B23: ='P(t) Distribution 10yr'!P23 -> 0 | D23: 108 | E23: =UH_Qp*((Q10_12!D23/UH_Tp)*EXP(1-Q10_12!D23/UH_Tp))^('WS & UH Data & Runoff Results'!$H$6-1) -> 26.7332165 | F23: 0 | G23: 0 | H23: 0 | I23: 0 | J23: 0 | K23: 0 | L23: 0 | M23: 0 | N23: 0 | O23: 0 | P23: 0 | Q23: 0 | R23: 0 | S23: 0 | T23: 0 | U23: 0 | V23: 0 | W23: 0 | X23: =$E5*$B$23 -> 0 | DV23: 0
A24: 20 | B24: ='P(t) Distribution 10yr'!P24 -> 0 | D24: 114 | E24: =UH_Qp*((Q10_12!D24/UH_Tp)*EXP(1-Q10_12!D24/UH_Tp))^('WS & UH Data & Runoff Results'!$H$6-1) -> 22.71632631 | F24: 0 | G24: 0 | H24: 0 | I24: 0 | J24: 0 | K24: 0 | L24: 0 | M24: 0 | N24: 0 | O24: 0 | P24: 0 | Q24: 0 | R24: 0 | S24: 0 | T24: 0 | U24: 0 | V24: 0 | W24: 0 | X24: 0 | Y24: =$E5*$B$24 -> 0 | DV24: 0
A25: 21 | B25: ='P(t) Distribution 10yr'!P25 -> 0 | D25: 120 | E25: =UH_Qp*((Q10_12!D25/UH_Tp)*EXP(1-Q10_12!D25/UH_Tp))^('WS & UH Data & Runoff Results'!$H$6-1) -> 19.18048765 | F25: 0 | G25: 0 | H25: 0 | I25: 0 | J25: 0 | K25: 0 | L25: 0 | M25: 0 | N25: 0 | O25: 0 | P25: 0 | Q25: 0 | R25: 0 | S25: 0 | T25: 0 | U25: 0 | V25: 0 | W25: 0 | X25: 0 | Y25: 0 | Z25: =$E5*$B$25 -> 0 | DV25: 0
A26: 22 | B26: ='P(t) Distribution 10yr'!P26 -> 0 | D26: 126 | E26: =UH_Qp*((Q10_12!D26/UH_Tp)*EXP(1-Q10_12!D26/UH_Tp))^('WS & UH Data & Runoff Results'!$H$6-1) -> 16.10222208 | F26: 0 | G26: 0 | H26: 0 | I26: 0 | J26: 0 | K26: 0 | L26: 0 | M26: 0 | N26: 0 | O26: 0 | P26: 0 | Q26: 0 | R26: 0 | S26: 0 | T26: 0 | U26: 0 | V26: 0 | W26: 0 | X26: 0 | Y26: 0 | Z26: 0 | AA26: =$E5*$B$26 -> 0 | DV26: 0
A27: 23 | B27: ='P(t) Distribution 10yr'!P27 -> 0 | D27: 132 | E27: =UH_Qp*((Q10_12!D27/UH_Tp)*EXP(1-Q10_12!D27/UH_Tp))^('WS & UH Data & Runoff Results'!$H$6-1) -> 13.4477263 | F27: 0 | G27: 0 | H27: 0 | I27: 0 | J27: 0 | K27: 0 | L27: 0 | M27: 0 | N27: 0 | O27: 0 | P27: 0 | Q27: 0 | R27: 0 | S27: 0 | T27: 0 | U27: 0 | V27: 0 | W27: 0 | X27: 0 | Y27: 0 | Z27: 0 | AA27: 0 | AB27: =$E5*$B$27 -> 0 | DV27: 0
A28: 24 | B28: ='P(t) Distribution 10yr'!P28 -> 0 | D28: 138 | E28: =UH_Qp*((Q10_12!D28/UH_Tp)*EXP(1-Q10_12!D28/UH_Tp))^('WS & UH Data & Runoff Results'!$H$6-1) -> 11.17763856 | F28: 0 | G28: 0 | H28: 0 | I28: 0 | J28: 0 | K28: 0 | L28: 0 | M28: 0 | N28: 0 | O28: 0 | P28: 0 | Q28: 0 | R28: 0 | S28: 0 | T28: 0 | U28: 0 | V28: 0 | W28: 0 | X28: 0 | Y28: 0 | Z28: 0 | AA28: 0 | AB28: 0 | AC28: =$E5*$B$28 -> 0 | DV28: 0
A29: 25 | B29: ='P(t) Distribution 10yr'!P29 -> 0 | D29: 144 | E29: =UH_Qp*((Q10_12!D29/UH_Tp)*EXP(1-Q10_12!D29/UH_Tp))^('WS & UH Data & Runoff Results'!$H$6-1) -> 9.250495038 | F29: 0 | G29: 0 | H29: 0 | I29: 0 | J29: 0 | K29: 0 | L29: 0 | M29: 0 | N29: 0 | O29: 0 | P29: 0 | Q29: 0 | R29: 0 | S29: 0 | T29: 0 | U29: 0 | V29: 0 | W29: 0 | X29: 0 | Y29: 0 | Z29: 0 | AA29: 0 | AB29: 0 | AC29: 0 | AD29: =$E5*$B$29 -> 0 | DV29: 0
A30: 26 | B30: ='P(t) Distribution 10yr'!P30 -> 0 | D30: 150 | E30: =UH_Qp*((Q10_12!D30/UH_Tp)*EXP(1-Q10_12!D30/UH_Tp))^('WS & UH Data & Runoff Results'!$H$6-1) -> 7.625136946 | F30: 0 | G30: 0 | H30: 0 | I30: 0 | J30: 0 | K30: 0 | L30: 0 | M30: 0 | N30: 0 | O30: 0 | P30: 0 | Q30: 0 | R30: 0 | S30: 0 | T30: 0 | U30: 0 | V30: 0 | W30: 0 | X30: 0 | Y30: 0 | Z30: 0 | AA30: 0 | AB30: 0 | AC30: 0 | AD30: 0 | AE30: =$E5*$B$30 -> 0 | DV30: 0
A31: 27 | B31: ='P(t) Distribution 10yr'!P31 -> 0 | D31: 156 | E31: =UH_Qp*((Q10_12!D31/UH_Tp)*EXP(1-Q10_12!D31/UH_Tp))^('WS & UH Data & Runoff Results'!$H$6-1) -> 6.262301871 | F31: 0 | G31: 0 | H31: 0 | I31: 0 | J31: 0 | K31: 0 | L31: 0 | M31: 0 | N31: 0 | O31: 0 | P31: 0 | Q31: 0 | R31: 0 | S31: 0 | T31: 0 | U31: 0 | V31: 0 | W31: 0 | X31: 0 | Y31: 0 | Z31: 0 | AA31: 0 | AB31: 0 | AC31: 0 | AD31: 0 | AE31: 0 | AF31: =$E5*$B$31 -> 0 | DV31: 0
A32: 28 | B32: ='P(t) Distribution 10yr'!P32 -> 0 | D32: 162 | E32: =UH_Qp*((Q10_12!D32/UH_Tp)*EXP(1-Q10_12!D32/UH_Tp))^('WS & UH Data & Runoff Results'!$H$6-1) -> 5.125598085 | F32: 0 | G32: 0 | H32: 0 | I32: 0 | J32: 0 | K32: 0 | L32: 0 | M32: 0 | N32: 0 | O32: 0 | P32: 0 | Q32: 0 | R32: 0 | S32: 0 | T32: 0 | U32: 0 | V32: 0 | W32: 0 | X32: 0 | Y32: 0 | Z32: 0 | AA32: 0 | AB32: 0 | AC32: 0 | AD32: 0 | AE32: 0 | AF32: 0 | AG32: =$E5*$B$32 -> 0 | DV32: 0
A33: 29 | B33: ='P(t) Distribution 10yr'!P33 -> 0 | D33: 168 | E33: =UH_Qp*((Q10_12!D33/UH_Tp)*EXP(1-Q10_12!D33/UH_Tp))^('WS & UH Data & Runoff Results'!$H$6-1) -> 4.182025396 | F33: 0 | G33: 0 | H33: 0 | I33: 0 | J33: 0 | K33: 0 | L33: 0 | M33: 0 | N33: 0 | O33: 0 | P33: 0 | Q33: 0 | R33: 0 | S33: 0 | T33: 0 | U33: 0 | V33: 0 | W33: 0 | X33: 0 | Y33: 0 | Z33: 0 | AA33: 0 | AB33: 0 | AC33: 0 | AD33: 0 | AE33: 0 | AF33: 0 | AG33: 0 | AH33: =$E5*$B$33 -> 0 | DV33: 0
A34: 30 | B34: ='P(t) Distribution 10yr'!P34 -> 0 | D34: 174 | E34: =UH_Qp*((Q10_12!D34/UH_Tp)*EXP(1-Q10_12!D34/UH_Tp))^('WS & UH Data & Runoff Results'!$H$6-1) -> 3.402173136 | F34: 0 | G34: 0 | H34: 0 | I34: 0 | J34: 0 | K34: 0 | L34: 0 | M34: 0 | N34: 0 | O34: 0 | P34: 0 | Q34: 0 | R34: 0 | S34: 0 | T34: 0 | U34: 0 | V34: 0 | W34: 0 | X34: 0 | Y34: 0 | Z34: 0 | AA34: 0 | AB34: 0 | AC34: 0 | AD34: 0 | AE34: 0 | AF34: 0 | AG34: 0 | AH34: 0 | AI34: =$E5*$B$34 -> 0 | DV34: 0
A35: 31 | B35: ='P(t) Distribution 10yr'!P35 -> 0 | D35: 180 | E35: =UH_Qp*((Q10_12!D35/UH_Tp)*EXP(1-Q10_12!D35/UH_Tp))^('WS & UH Data & Runoff Results'!$H$6-1) -> 2.760196955 | F35: 0 | G35: 0 | H35: 0 | I35: 0 | J35: 0 | K35: 0 | L35: 0 | M35: 0 | N35: 0 | O35: 0 | P35: 0 | Q35: 0 | R35: 0 | S35: 0 | T35: 0 | U35: 0 | V35: 0 | W35: 0 | X35: 0 | Y35: 0 | Z35: 0 | AA35: 0 | AB35: 0 | AC35: 0 | AD35: 0 | AE35: 0 | AF35: 0 | AG35: 0 | AH35: 0 | AI35: 0 | AJ35: =$E5*$B$35 -> 0 | DV35: 0
A36: 32 | B36: ='P(t) Distribution 10yr'!P36 -> 0 | D36: 186 | E36: =UH_Qp*((Q10_12!D36/UH_Tp)*EXP(1-Q10_12!D36/UH_Tp))^('WS & UH Data & Runoff Results'!$H$6-1) -> 2.233651672 | F36: 0 | G36: 0 | H36: 0 | I36: 0 | J36: 0 | K36: 0 | L36: 0 | M36: 0 | N36: 0 | O36: 0 | P36: 0 | Q36: 0 | R36: 0 | S36: 0 | T36: 0 | U36: 0 | V36: 0 | W36: 0 | X36: 0 | Y36: 0 | Z36: 0 | AA36: 0 | AB36: 0 | AC36: 0 | AD36: 0 | AE36: 0 | AF36: 0 | AG36: 0 | AH36: 0 | AI36: 0 | AJ36: 0 | AK36: =$E5*$B$36 -> 0 | DV36: 0
A37: 33 | B37: ='P(t) Distribution 10yr'!P37 -> 0.0001430154109 | D37: 192 | E37: =UH_Qp*((Q10_12!D37/UH_Tp)*EXP(1-Q10_12!D37/UH_Tp))^('WS & UH Data & Runoff Results'!$H$6-1) -> 1.803237469 | F37: 0 | G37: 0 | H37: 0 | I37: 0 | J37: 0 | K37: 0 | L37: 0 | M37: 0 | N37: 0 | O37: 0 | P37: 0 | Q37: 0 | R37: 0 | S37: 0 | T37: 0 | U37: 0 | V37: 0 | W37: 0 | X37: 0 | Y37: 0 | Z37: 0 | AA37: 0 | AB37: 0 | AC37: 0 | AD37: 0 | AE37: 0 | AF37: 0 | AG37: 0 | AH37: 0 | AI37: 0 | AJ37: 0 | AK37: 0 | AL37: =$E5*$B$37 -> 0 | DV37: 0
A38: 34 | B38: ='P(t) Distribution 10yr'!P38 -> 0.0004725828812 | D38: 198 | E38: =UH_Qp*((Q10_12!D38/UH_Tp)*EXP(1-Q10_12!D38/UH_Tp))^('WS & UH Data & Runoff Results'!$H$6-1) -> 1.452500812 | F38: 0 | G38: 0 | H38: 0 | I38: 0 | J38: 0 | K38: 0 | L38: 0 | M38: 0 | N38: 0 | O38: 0 | P38: 0 | Q38: 0 | R38: 0 | S38: 0 | T38: 0 | U38: 0 | V38: 0 | W38: 0 | X38: 0 | Y38: 0 | Z38: 0 | AA38: 0 | AB38: 0 | AC38: 0 | AD38: 0 | AE38: 0 | AF38: 0 | AG38: 0 | AH38: 0 | AI38: 0 | AJ38: 0 | AK38: 0 | AL38: 0.0006598306216 | AM38: =$E5*$B$38 -> 0 | DV38: 0.0006598306216
A39: 35 | B39: ='P(t) Distribution 10yr'!P39 -> 0.000839169265 | D39: 204 | E39: =UH_Qp*((Q10_12!D39/UH_Tp)*EXP(1-Q10_12!D39/UH_Tp))^('WS & UH Data & Runoff Results'!$H$6-1) -> 1.1675191 | F39: 0 | G39: 0 | H39: 0 | I39: 0 | J39: 0 | K39: 0 | L39: 0 | M39: 0 | N39: 0 | O39: 0 | P39: 0 | Q39: 0 | R39: 0 | S39: 0 | T39: 0 | U39: 0 | V39: 0 | W39: 0 | X39: 0 | Y39: 0 | Z39: 0 | AA39: 0 | AB39: 0 | AC39: 0 | AD39: 0 | AE39: 0 | AF39: 0 | AG39: 0 | AH39: 0 | AI39: 0 | AJ39: 0 | AK39: 0 | AL39: 0.002431197459 | AM39: 0.002180357028 | AN39: =$E5*$B$39 -> 0 | DV39: 0.004611554487
A40: 36 | B40: ='P(t) Distribution 10yr'!P40 -> 0.001242421106 | D40: 210 | E40: =UH_Qp*((Q10_12!D40/UH_Tp)*EXP(1-Q10_12!D40/UH_Tp))^('WS & UH Data & Runoff Results'!$H$6-1) -> 0.9365885809 | F40: 0 | G40: 0 | H40: 0 | I40: 0 | J40: 0 | K40: 0 | L40: 0 | M40: 0 | N40: 0 | O40: 0 | P40: 0 | Q40: 0 | R40: 0 | S40: 0 | T40: 0 | U40: 0 | V40: 0 | W40: 0 | X40: 0 | Y40: 0 | Z40: 0 | AA40: 0 | AB40: 0 | AC40: 0 | AD40: 0 | AE40: 0 | AF40: 0 | AG40: 0 | AH40: 0 | AI40: 0 | AJ40: 0 | AK40: 0 | AL40: 0.004628249989 | AM40: 0.008033695758 | AN40: 0.003871677705 | AO40: =$E5*$B$40 -> 0 | DV40: 0.01653362345
A41: 37 | B41: ='P(t) Distribution 10yr'!P41 -> 0.001687175106 | D41: 216 | E41: =UH_Qp*((Q10_12!D41/UH_Tp)*EXP(1-Q10_12!D41/UH_Tp))^('WS & UH Data & Runoff Results'!$H$6-1) -> 0.749928039 | F41: 0 | G41: 0 | H41: 0 | I41: 0 | J41: 0 | K41: 0 | L41: 0 | M41: 0 | N41: 0 | O41: 0 | P41: 0 | Q41: 0 | R41: 0 | S41: 0 | T41: 0 | U41: 0 | V41: 0 | W41: 0 | X41: 0 | Y41: 0 | Z41: 0 | AA41: 0 | AB41: 0 | AC41: 0 | AD41: 0 | AE41: 0 | AF41: 0 | AG41: 0 | AH41: 0 | AI41: 0 | AJ41: 0 | AK41: 0 | AL41: 0.006723495125 | AM41: 0.0152936785 | AN41: 0.01426549888 | AO41: 0.005732161908 | AP41: =$E5*$B$41 -> 0 | DV41: 0.04201483442
A42: 38 | B42: ='P(t) Distribution 10yr'!P42 -> 0.002164749016 | D42: 222 | E42: =UH_Qp*((Q10_12!D42/UH_Tp)*EXP(1-Q10_12!D42/UH_Tp))^('WS & UH Data & Runoff Results'!$H$6-1) -> 0.5994056228 | F42: 0 | G42: 0 | H42: 0 | I42: 0 | J42: 0 | K42: 0 | L42: 0 | M42: 0 | N42: 0 | O42: 0 | P42: 0 | Q42: 0 | R42: 0 | S42: 0 | T42: 0 | U42: 0 | V42: 0 | W42: 0 | X42: 0 | Y42: 0 | Z42: 0 | AA42: 0 | AB42: 0 | AC42: 0 | AD42: 0 | AE42: 0 | AF42: 0 | AG42: 0 | AH42: 0 | AI42: 0 | AJ42: 0 | AK42: 0 | AL42: 0.008422377807 | AM42: 0.02221724693 | AN42: 0.02715710928 | AO42: 0.02112059824 | AP42: 0.007784124744 | AQ42: =$E5*$B$42 -> 0 | DV42: 0.08670145699
A43: 39 | B43: ='P(t) Distribution 10yr'!P43 -> 0.002684921367 | D43: 228 | E43: =UH_Qp*((Q10_12!D43/UH_Tp)*EXP(1-Q10_12!D43/UH_Tp))^('WS & UH Data & Runoff Results'!$H$6-1) -> 0.4782924983 | F43: 0 | G43: 0 | H43: 0 | I43: 0 | J43: 0 | K43: 0 | L43: 0 | M43: 0 | N43: 0 | O43: 0 | P43: 0 | Q43: 0 | R43: 0 | S43: 0 | T43: 0 | U43: 0 | V43: 0 | W43: 0 | X43: 0 | Y43: 0 | Z43: 0 | AA43: 0 | AB43: 0 | AC43: 0 | AD43: 0 | AE43: 0 | AF43: 0 | AG43: 0 | AH43: 0 | AI43: 0 | AJ43: 0 | AK43: 0 | AL43: 0.009606800339 | AM43: 0.02783106761 | AN43: 0.03945134603 | AO43: 0.04020710379 | AP43: 0.02868121557 | AQ43: 0.0099875089 | AR43: =$E5*$B$43 -> 0 | DV43: 0.1557650422
A44: 40 | B44: ='P(t) Distribution 10yr'!P44 -> 0.003234428171 | D44: 234 | E44: =UH_Qp*((Q10_12!D44/UH_Tp)*EXP(1-Q10_12!D44/UH_Tp))^('WS & UH Data & Runoff Results'!$H$6-1) -> 0.3810445116 | F44: 0 | G44: 0 | H44: 0 | I44: 0 | J44: 0 | K44: 0 | L44: 0 | M44: 0 | N44: 0 | O44: 0 | P44: 0 | Q44: 0 | R44: 0 | S44: 0 | T44: 0 | U44: 0 | V44: 0 | W44: 0 | X44: 0 | Y44: 0 | Z44: 0 | AA44: 0 | AB44: 0 | AC44: 0 | AD44: 0 | AE44: 0 | AF44: 0 | AG44: 0 | AH44: 0 | AI44: 0 | AJ44: 0 | AK44: 0 | AL44: 0.01027162539 | AM44: 0.03174489626 | AN44: 0.04941985307 | AO44: 0.0584091756 | AP44: 0.0546001869 | AQ44: 0.03679975657 | AR44: 0.0123874296 | AS44: =$E5*$B$44 -> 0 | DV44: 0.2536329234
A45: 41 | B45: ='P(t) Distribution 10yr'!P45 -> 0.003827146601 | D45: 240 | E45: =UH_Qp*((Q10_12!D45/UH_Tp)*EXP(1-Q10_12!D45/UH_Tp))^('WS & UH Data & Runoff Results'!$H$6-1) -> 0.3031113579 | F45: 0 | G45: 0 | H45: 0 | I45: 0 | J45: 0 | K45: 0 | L45: 0 | M45: 0 | N45: 0 | O45: 0 | P45: 0 | Q45: 0 | R45: 0 | S45: 0 | T45: 0 | U45: 0 | V45: 0 | W45: 0 | X45: 0 | Y45: 0 | Z45: 0 | AA45: 0 | AB45: 0 | AC45: 0 | AD45: 0 | AE45: 0 | AF45: 0 | AG45: 0 | AH45: 0 | AI45: 0 | AJ45: 0 | AK45: 0 | AL45: 0.01047476154 | AM45: 0.03394175697 | AN45: 0.05636967044 | AO45: 0.07316791864 | AP45: 0.07931812053 | AQ45: 0.07005538459 | AR45: 0.04564245184 | AS45: 0.01492269076 | AT45: =$E5*$B$45 -> 0 | DV45: 0.3838927553
A46: 42 | B46: ='P(t) Distribution 10yr'!P46 -> 0.004445223973 | D46: 246 | E46: =UH_Qp*((Q10_12!D46/UH_Tp)*EXP(1-Q10_12!D46/UH_Tp))^('WS & UH Data & Runoff Results'!$H$6-1) -> 0.2407717062 | F46: 0 | G46: 0 | H46: 0 | I46: 0 | J46: 0 | K46: 0 | L46: 0 | M46: 0 | N46: 0 | O46: 0 | P46: 0 | Q46: 0 | R46: 0 | S46: 0 | T46: 0 | U46: 0 | V46: 0 | W46: 0 | X46: 0 | Y46: 0 | Z46: 0 | AA46: 0 | AB46: 0 | AC46: 0 | AD46: 0 | AE46: 0 | AF46: 0 | AG46: 0 | AH46: 0 | AI46: 0 | AJ46: 0 | AK46: 0 | AL46: 0.01030266384 | AM46: 0.03461300399 | AN46: 0.06027065385 | AO46: 0.08345738005 | AP46: 0.09936010446 | AQ46: 0.1017700076 | AR46: 0.08688914858 | AS46: 0.05498381959 | AT46: =$E6*$B$45 -> 0.01765731752 | AU46: =$E5*$B$46 -> 0 | DV46: 0.5493040995
A47: 43 | B47: ='P(t) Distribution 10yr'!P47 -> 0.005106726039 | D47: 252 | E47: =UH_Qp*((Q10_12!D47/UH_Tp)*EXP(1-Q10_12!D47/UH_Tp))^('WS & UH Data & Runoff Results'!$H$6-1) -> 0.1909921301 | F47: 0 | G47: 0 | H47: 0 | I47: 0 | J47: 0 | K47: 0 | L47: 0 | M47: 0 | N47: 0 | O47: 0 | P47: 0 | Q47: 0 | R47: 0 | S47: 0 | T47: 0 | U47: 0 | V47: 0 | W47: 0 | X47: 0 | Y47: 0 | Z47: 0 | AA47: 0 | AB47: 0 | AC47: 0 | AD47: 0 | AE47: 0 | AF47: 0 | AG47: 0 | AH47: 0 | AI47: 0 | AJ47: 0 | AK47: 0 | AL47: 0.009848517573 | AM47: 0.03404432104 | AN47: 0.06146259265 | AO47: 0.08923293015 | AP47: 0.1133329218 | AQ47: 0.1274851008 | AR47: 0.1262245489 | AS47: 0.1046722312 | AT47: 0.06505976547 | AU47: 0.02050894291 | AV47: =$E5*$B$47 -> 0 | DV47: 0.7518718724
A48: 44 | B48: ='P(t) Distribution 10yr'!P48 -> 0.005789246273 | D48: 258 | E48: =UH_Qp*((Q10_12!D48/UH_Tp)*EXP(1-Q10_12!D48/UH_Tp))^('WS & UH Data & Runoff Results'!$H$6-1) -> 0.1513074096 | F48: 0 | G48: 0 | H48: 0 | I48: 0 | J48: 0 | K48: 0 | L48: 0 | M48: 0 | N48: 0 | O48: 0 | P48: 0 | Q48: 0 | R48: 0 | S48: 0 | T48: 0 | U48: 0 | V48: 0 | W48: 0 | X48: 0 | Y48: 0 | Z48: 0 | AA48: 0 | AB48: 0 | AC48: 0 | AD48: 0 | AE48: 0 | AF48: 0 | AG48: 0 | AH48: 0 | AI48: 0 | AJ48: 0 | AK48: 0 | AL48: 0.009199685612 | AM48: 0.03254363135 | AN48: 0.06045277771 | AO48: 0.09099763958 | AP48: 0.1211759665 | AQ48: 0.1454130814 | AR48: 0.1581187789 | AS48: 0.1520581727 | AT48: 0.1238537239 | AU48: 0.07556680192 | AV48: 0.02356091694 | AW48: =$E5*$B$48 -> 0 | DV48: 0.9929411765
A49: 45 | B49: ='P(t) Distribution 10yr'!P49 -> 0.006501172441 | D49: 264 | E49: =UH_Qp*((Q10_12!D49/UH_Tp)*EXP(1-Q10_12!D49/UH_Tp))^('WS & UH Data & Runoff Results'!$H$6-1) -> 0.119719699 | F49: 0 | G49: 0 | H49: 0 | I49: 0 | J49: 0 | K49: 0 | L49: 0 | M49: 0 | N49: 0 | O49: 0 | P49: 0 | Q49: 0 | R49: 0 | S49: 0 | T49: 0 | U49: 0 | V49: 0 | W49: 0 | X49: 0 | Y49: 0 | Z49: 0 | AA49: 0 | AB49: 0 | AC49: 0 | AD49: 0 | AE49: 0 | AF49: 0 | AG49: 0 | AH49: 0 | AI49: 0 | AJ49: 0 | AK49: 0 | AL49: 0.00843144487 | AM49: 0.03039961851 | AN49: 0.05778799083 | AO49: 0.08950257125 | AP49: 0.1235723954 | AQ49: 0.1554761883 | AR49: 0.1803547138 | AS49: 0.1904800041 | AT49: 0.1799232779 | AU49: 0.1438558801 | AV49: 0.08681203858 | AW49: 0.02670986255 | AX49: =$E5*$B$49 -> 0 | DV49: 1.273305986
A50: 46 | B50: ='P(t) Distribution 10yr'!P50 -> 0.007947961435 | D50: 270 | E50: =UH_Qp*((Q10_12!D50/UH_Tp)*EXP(1-Q10_12!D50/UH_Tp))^('WS & UH Data & Runoff Results'!$H$6-1) -> 0.09461412421 | F50: 0 | G50: 0 | H50: 0 | I50: 0 | J50: 0 | K50: 0 | L50: 0 | M50: 0 | N50: 0 | O50: 0 | P50: 0 | Q50: 0 | R50: 0 | S50: 0 | T50: 0 | U50: 0 | V50: 0 | W50: 0 | X50: 0 | Y50: 0 | Z50: 0 | AA50: 0 | AB50: 0 | AC50: 0 | AD50: 0 | AE50: 0 | AF50: 0 | AG50: 0 | AH50: 0 | AI50: 0 | AJ50: 0 | AK50: 0 | AL50: 0.00760473236 | AM50: 0.02786102899 | AN50: 0.05398084979 | AO50: 0.0855572558 | AP50: 0.121542132 | AQ50: 0.1585509533 | AR50: 0.192835907 | AS50: 0.2172668348 | AT50: 0.2253860224 | AU50: 0.2089805674 | AV50: 0.1652633418 | AW50: 0.09841457462 | AX50: 0.0299944784 | AY50: =$E5*$B$50 -> 0 | DV50: 1.593238679
A51: 47 | B51: ='P(t) Distribution 10yr'!P51 -> 0.009584305384 | D51: 276 | E51: =UH_Qp*((Q10_12!D51/UH_Tp)*EXP(1-Q10_12!D51/UH_Tp))^('WS & UH Data & Runoff Results'!$H$6-1) -> 0.07468852998 | F51: 0 | G51: 0 | H51: 0 | I51: 0 | J51: 0 | K51: 0 | L51: 0 | M51: 0 | N51: 0 | O51: 0 | P51: 0 | Q51: 0 | R51: 0 | S51: 0 | T51: 0 | U51: 0 | V51: 0 | W51: 0 | X51: 0 | Y51: 0 | Z51: 0 | AA51: 0 | AB51: 0 | AC51: 0 | AD51: 0 | AE51: 0 | AF51: 0 | AG51: 0 | AH51: 0 | AI51: 0 | AJ51: 0 | AK51: 0 | AL51: 0.006766272848 | AM51: 0.02512922424 | AN51: 0.04947305574 | AO51: 0.07992064282 | AP51: 0.1161844977 | AQ51: 0.155946001 | AR51: 0.1966495142 | AS51: 0.2323024792 | AT51: 0.2570816182 | AU51: 0.2617854643 | AV51: 0.2400793552 | AW51: 0.1873509913 | AX51: 0.1105169983 | AY51: 0.03666953304 | AZ51: =$E5*$B$51 -> 0 | DV51: 1.955855648
A52: 48 | B52: ='P(t) Distribution 10yr'!P52 -> 0.01139818135 | D52: 282 | E52: =UH_Qp*((Q10_12!D52/UH_Tp)*EXP(1-Q10_12!D52/UH_Tp))^('WS & UH Data & Runoff Results'!$H$6-1) -> 0.05889529645 | F52: 0 | G52: 0 | H52: 0 | I52: 0 | J52: 0 | K52: 0 | L52: 0 | M52: 0 | N52: 0 | O52: 0 | P52: 0 | Q52: 0 | R52: 0 | S52: 0 | T52: 0 | U52: 0 | V52: 0 | W52: 0 | X52: 0 | Y52: 0 | Z52: 0 | AA52: 0 | AB52: 0 | AC52: 0 | AD52: 0 | AE52: 0 | AF52: 0 | AG52: 0 | AH52: 0 | AI52: 0 | AJ52: 0 | AK52: 0 | AL52: 0.005949984284 | AM52: 0.02235860246 | AN52: 0.04462216782 | AO52: 0.07324668715 | AP52: 0.1085301259 | AQ52: 0.149071828 | AR52: 0.1934186121 | AS52: 0.2368965946 | AT52: 0.2748725885 | AU52: 0.2985998425 | AV52: 0.3007422472 | AW52: 0.2721662571 | AX52: 0.2103902726 | AY52: 0.1351117584 | AZ52: 0.04421913793 | BA52: =$E5*$B$52 -> 0 | DV52: 2.370196706
A53: 49 | B53: ='P(t) Distribution 10yr'!P53 -> 0.01340535306 | D53: 288 | E53: =UH_Qp*((Q10_12!D53/UH_Tp)*EXP(1-Q10_12!D53/UH_Tp))^('WS & UH Data & Runoff Results'!$H$6-1) -> 0.04639336979 | F53: 0 | G53: 0 | H53: 0 | I53: 0 | J53: 0 | K53: 0 | L53: 0 | M53: 0 | N53: 0 | O53: 0 | P53: 0 | Q53: 0 | R53: 0 | S53: 0 | T53: 0 | U53: 0 | V53: 0 | W53: 0 | X53: 0 | Y53: 0 | Z53: 0 | AA53: 0 | AB53: 0 | AC53: 0 | AD53: 0 | AE53: 0 | AF53: 0 | AG53: 0 | AH53: 0 | AI53: 0 | AJ53: 0 | AK53: 0 | AL53: 0.005178948284 | AM53: 0.01966124279 | AN53: 0.03970235219 | AO53: 0.06606476833 | AP53: 0.09946707002 | AQ53: 0.1392508 | AR53: 0.1848926287 | AS53: 0.2330044431 | AT53: 0.2803085889 | AU53: 0.3192640228 | AV53: 0.3430350417 | AW53: 0.3409368195 | AX53: 0.3056356021 | AY53: 0.2572111089 | AZ53: 0.1629288672 | BA53: 0.05258782279 | BB53: =$E5*$B$53 -> 0 | DV53: 2.849130127
A54: 50 | B54: ='P(t) Distribution 10yr'!P54 -> 0.01562500917 | D54: 294 | E54: =UH_Qp*((Q10_12!D54/UH_Tp)*EXP(1-Q10_12!D54/UH_Tp))^('WS & UH Data & Runoff Results'!$H$6-1) -> 0.03650887475 | F54: 0 | G54: 0 | H54: 0 | I54: 0 | J54: 0 | K54: 0 | L54: 0 | M54: 0 | N54: 0 | O54: 0 | P54: 0 | Q54: 0 | R54: 0 | S54: 0 | T54: 0 | U54: 0 | V54: 0 | W54: 0 | X54: 0 | Y54: 0 | Z54: 0 | AA54: 0 | AB54: 0 | AC54: 0 | AD54: 0 | AE54: 0 | AF54: 0 | AG54: 0 | AH54: 0 | AI54: 0 | AJ54: 0 | AK54: 0 | AL54: 0.004467510182 | AM54: 0.01711341656 | AN54: 0.03491262869 | AO54: 0.0587807995 | AP54: 0.08971421362 | AQ54: 0.1276223442 | AR54: 0.1727116841 | AS54: 0.2227334976 | AT54: 0.2757031893 | AU54: 0.3255779277 | AV54: 0.3667742972 | AW54: 0.3888820982 | AX54: 0.3828631484 | AY54: 0.3736525989 | AZ54: 0.3101663032 | BA54: 0.1937639402 | BB54: 0.06184831684 | BC54: =$E5*$B$54 -> 0 | DV54: 3.407287914
A55: 51 | B55: ='P(t) Distribution 10yr'!P55 -> 0.019367762 | D55: 300 | E55: =UH_Qp*((Q10_12!D55/UH_Tp)*EXP(1-Q10_12!D55/UH_Tp))^('WS & UH Data & Runoff Results'!$H$6-1) -> 0.02870289398 | F55: 0 | G55: 0 | H55: 0 | I55: 0 | J55: 0 | K55: 0 | L55: 0 | M55: 0 | N55: 0 | O55: 0 | P55: 0 | Q55: 0 | R55: 0 | S55: 0 | T55: 0 | U55: 0 | V55: 0 | W55: 0 | X55: 0 | Y55: 0 | Z55: 0 | AA55: 0 | AB55: 0 | AC55: 0 | AD55: 0 | AE55: 0 | AF55: 0 | AG55: 0 | AH55: 0 | AI55: 0 | AJ55: 0 | AK55: 0 | AL55: 0.003823261942 | AM55: 0.01476252678 | AN55: 0.03038843295 | AO55: 0.05168943687 | AP55: 0.07982277599 | AQ55: 0.1151088319 | AR55: 0.1582890008 | AS55: 0.2080595519 | AT55: 0.263550063 | AU55: 0.3202287642 | AV55: 0.374027786 | AW55: 0.4157941344 | AX55: 0.4367044448 | AY55: 0.4680665781 | AZ55: 0.4505810257 | BA55: 0.3688667702 | BB55: 0.2278849538 | BC55: 0.07208915072 | BD55: =$E5*$B$55 -> 0 | DV55: 4.05973749
A56: 52 | B56: ='P(t) Distribution 10yr'!P56 -> 0.02354765983 | D56: 306 | E56: =UH_Qp*((Q10_12!D56/UH_Tp)*EXP(1-Q10_12!D56/UH_Tp))^('WS & UH Data & Runoff Results'!$H$6-1) -> 0.02254519961 | F56: 0 | G56: 0 | H56: 0 | I56: 0 | J56: 0 | K56: 0 | L56: 0 | M56: 0 | N56: 0 | O56: 0 | P56: 0 | Q56: 0 | R56: 0 | S56: 0 | T56: 0 | U56: 0 | V56: 0 | W56: 0 | X56: 0 | Y56: 0 | Z56: 0 | AA56: 0 | AB56: 0 | AC56: 0 | AD56: 0 | AE56: 0 | AF56: 0 | AG56: 0 | AH56: 0 | AI56: 0 | AJ56: 0 | AK56: 0 | AL56: 0.003248784741 | AM56: 0.01263366048 | AN56: 0.02621393885 | AO56: 0.0449911979 | AP56: 0.0701928925 | AQ56: 0.1024175115 | AR56: 0.1427685889 | AS56: 0.1906850642 | AT56: 0.2461870738 | AU56: 0.3061129296 | AV56: 0.3678826036 | AW56: 0.424017061 | AX56: 0.466925959 | AY56: 0.5338898663 | AZ56: 0.5644331646 | BA56: 0.5358556554 | BB56: 0.4338226544 | BC56: 0.2656181061 | BD56: 0.08935710047 | BE56: =$E5*$B$56 -> 0 | DV56: 4.827253813
A57: 53 | B57: ='P(t) Distribution 10yr'!P57 -> 0.02821038503 | D57: 312 | E57: =UH_Qp*((Q10_12!D57/UH_Tp)*EXP(1-Q10_12!D57/UH_Tp))^('WS & UH Data & Runoff Results'!$H$6-1) -> 0.01769290446 | F57: 0 | G57: 0 | H57: 0 | I57: 0 | J57: 0 | K57: 0 | L57: 0 | M57: 0 | N57: 0 | O57: 0 | P57: 0 | Q57: 0 | R57: 0 | S57: 0 | T57: 0 | U57: 0 | V57: 0 | W57: 0 | X57: 0 | Y57: 0 | Z57: 0 | AA57: 0 | AB57: 0 | AC57: 0 | AD57: 0 | AE57: 0 | AF57: 0 | AG57: 0 | AH57: 0 | AI57: 0 | AJ57: 0 | AK57: 0 | AL57: 0.002743105323 | AM57: 0.01073534694 | AN57: 0.02243369364 | AO57: 0.03881070513 | AP57: 0.06109686056 | AQ57: 0.09006178107 | AR57: 0.1270276429 | AS57: 0.1719881824 | AT57: 0.2256286604 | AU57: 0.2859458486 | AV57: 0.3516661653 | AW57: 0.4170505673 | AX57: 0.4761600909 | AY57: 0.5708369604 | AZ57: 0.6438082976 | BA57: 0.67125486 | BB57: 0.6302175788 | BC57: 0.5056549365 | BD57: 0.3292432155 | BE57: 0.1086419074 | BF57: =$E5*$B$57 -> 0 | DV57: 5.741006407
A58: 54 | B58: ='P(t) Distribution 10yr'!P58 -> 0.03332500009 | D58: 318 | E58: =UH_Qp*((Q10_12!D58/UH_Tp)*EXP(1-Q10_12!D58/UH_Tp))^('WS & UH Data & Runoff Results'!$H$6-1) -> 0.01387316125 | F58: 0 | G58: 0 | H58: 0 | I58: 0 | J58: 0 | K58: 0 | L58: 0 | M58: 0 | N58: 0 | O58: 0 | P58: 0 | Q58: 0 | R58: 0 | S58: 0 | T58: 0 | U58: 0 | V58: 0 | W58: 0 | X58: 0 | Y58: 0 | Z58: 0 | AA58: 0 | AB58: 0 | AC58: 0 | AD58: 0 | AE58: 0 | AF58: 0 | AG58: 0 | AH58: 0 | AI58: 0 | AJ58: 0 | AK58: 0 | AL58: 0.002302865908 | AM58: 0.009064370117 | AN58: 0.01906284285 | AO58: 0.03321391241 | AP58: 0.05270391433 | AQ58: 0.07839101488 | AR58: 0.1117029265 | AS58: 0.1530256311 | AT58: 0.2035055203 | AU58: 0.2620672879 | AV58: 0.3284979833 | AW58: 0.3986667821 | AX58: 0.4683369003 | AY58: 0.5821260816 | AZ58: 0.6883621414 | BA58: 0.7656521192 | BB58: 0.7894600129 | BC58: 0.7345688993 | BD58: 0.6267775179 | BE58: 0.4002995928 | BF58: 0.1301543364 | BG58: =$E5*$B$58 -> 0 | DV58: 6.837942654
A59: 55 | B59: ='P(t) Distribution 10yr'!P59 -> 0.03830198279 | D59: 324 | E59: =UH_Qp*((Q10_12!D59/UH_Tp)*EXP(1-Q10_12!D59/UH_Tp))^('WS & UH Data & Runoff Results'!$H$6-1) -> 0.0108691799 | F59: 0 | G59: 0 | H59: 0 | I59: 0 | J59: 0 | K59: 0 | L59: 0 | M59: 0 | N59: 0 | O59: 0 | P59: 0 | Q59: 0 | R59: 0 | S59: 0 | T59: 0 | U59: 0 | V59: 0 | W59: 0 | X59: 0 | Y59: 0 | Z59: 0 | AA59: 0 | AB59: 0 | AC59: 0 | AD59: 0 | AE59: 0 | AF59: 0 | AG59: 0 | AH59: 0 | AI59: 0 | AJ59: 0 | AK59: 0 | AL59: 0.001923232102 | AM59: 0.007609634506 | AN59: 0.01609567572 | AO59: 0.02822324325 | AP59: 0.04510361737 | AQ59: 0.06762235071 | AR59: 0.097227766 | AS59: 0.1345644967 | AT59: 0.181068026 | AU59: 0.2363713 | AV59: 0.3010660096 | AW59: 0.372402144 | AX59: 0.4476923894 | AY59: 0.5725618965 | AZ59: 0.701975492 | BA59: 0.8186379926 | BB59: 0.9004802318 | BC59: 0.9201786689 | BD59: 0.9105246251 | BE59: 0.7620469409 | BF59: 0.4795638174 | BG59: 0.1537516509 | BH59: =$E5*$B$59 -> 0 | DV59: 8.156691202
A60: 56 | B60: ='P(t) Distribution 10yr'!P60 -> 0.06497373187 | D60: 330 | E60: =UH_Qp*((Q10_12!D60/UH_Tp)*EXP(1-Q10_12!D60/UH_Tp))^('WS & UH Data & Runoff Results'!$H$6-1) -> 0.008508954229 | F60: 0 | G60: 0 | H60: 0 | I60: 0 | J60: 0 | K60: 0 | L60: 0 | M60: 0 | N60: 0 | O60: 0 | P60: 0 | Q60: 0 | R60: 0 | S60: 0 | T60: 0 | U60: 0 | V60: 0 | W60: 0 | X60: 0 | Y60: 0 | Z60: 0 | AA60: 0 | AB60: 0 | AC60: 0 | AD60: 0 | AE60: 0 | AF60: 0 | AG60: 0 | AH60: 0 | AI60: 0 | AJ60: 0 | AK60: 0 | AL60: 0.001598574572 | AM60: 0.006355165239 | AN60: 0.01351248987 | AO60: 0.02383024268 | AP60: 0.03832642024 | AQ60: 0.05787070412 | AR60: 0.08387147559 | AS60: 0.1171267916 | AT60: 0.1592238346 | AU60: 0.2103101902 | AV60: 0.2715461538 | AW60: 0.3413038531 | AX60: 0.4181978865 | AY60: 0.5473230988 | AZ60: 0.6904422112 | BA60: 0.8348277354 | BB60: 0.9627966943 | BC60: 1.049581597 | BD60: 1.140594624 | BE60: 1.107031579 | BF60: 0.9129415733 | BG60: 0.5665099658 | BH60: 0.1767139706 | BI60: =$E5*$B$60 -> 0 | DV60: 9.731836831
A61: 57 | B61: ='P(t) Distribution 10yr'!P61 -> 0.07353456477 | D61: 336 | E61: =UH_Qp*((Q10_12!D61/UH_Tp)*EXP(1-Q10_12!D61/UH_Tp))^('WS & UH Data & Runoff Results'!$H$6-1) -> 0.006656194267 | F61: 0 | G61: 0 | H61: 0 | I61: 0 | J61: 0 | K61: 0 | L61: 0 | M61: 0 | N61: 0 | O61: 0 | P61: 0 | Q61: 0 | R61: 0 | S61: 0 | T61: 0 | U61: 0 | V61: 0 | W61: 0 | X61: 0 | Y61: 0 | Z61: 0 | AA61: 0 | AB61: 0 | AC61: 0 | AD61: 0 | AE61: 0 | AF61: 0 | AG61: 0 | AH61: 0 | AI61: 0 | AJ61: 0 | AK61: 0 | AL61: 0.001322963349 | AM61: 0.005282360636 | AN61: 0.01128491859 | AO61: 0.02000574057 | AP61: 0.03236084128 | AQ61: 0.04917514503 | AR61: 0.07177658418 | AS61: 0.1010369491 | AT61: 0.138590619 | AU61: 0.1849382008 | AV61: 0.2416068417 | AW61: 0.3078386322 | AX61: 0.3832753176 | AY61: 0.5112648071 | AZ61: 0.6600071937 | BA61: 0.8211117257 | BB61: 0.9818373825 | BC61: 1.122216409 | BD61: 1.300994217 | BE61: 1.386754661 | BF61: 1.326237397 | BG61: 1.078460219 | BH61: 0.6511164261 | BI61: 0.2997694978 | BJ61: =$E5*$B$61 -> 0 | DV61: 11.68826505
A62: 58 | B62: ='P(t) Distribution 10yr'!P62 -> 0.1087317851 | D62: 342 | E62: =UH_Qp*((Q10_12!D62/UH_Tp)*EXP(1-Q10_12!D62/UH_Tp))^('WS & UH Data & Runoff Results'!$H$6-1) -> 0.005203048201 | F62: 0 | G62: 0 | H62: 0 | I62: 0 | J62: 0 | K62: 0 | L62: 0 | M62: 0 | N62: 0 | O62: 0 | P62: 0 | Q62: 0 | R62: 0 | S62: 0 | T62: 0 | U62: 0 | V62: 0 | W62: 0 | X62: 0 | Y62: 0 | Z62: 0 | AA62: 0 | AB62: 0 | AC62: 0 | AD62: 0 | AE62: 0 | AF62: 0 | AG62: 0 | AH62: 0 | AI62: 0 | AJ62: 0 | AK62: 0 | AL62: 0.001090512093 | AM62: 0.004371625597 | AN62: 0.009379930736 | AO62: 0.01670773898 | AP62: 0.02716726824 | AQ62: 0.04152094178 | AR62: 0.06099154987 | AS62: 0.08646666856 | AT62: 0.1195522657 | AU62: 0.1609727576 | AV62: 0.2124591992 | AW62: 0.2738978941 | AX62: 0.3456947481 | AY62: 0.4685704726 | AZ62: 0.6165251409 | BA62: 0.7849167345 | BB62: 0.9657060413 | BC62: 1.144409851 | BD62: 1.391027684 | BE62: 1.581771258 | BF62: 1.661349077 | BG62: 1.566687634 | BH62: 1.23952482 | BI62: 1.104524127 | BJ62: 0.3392666377 | BK62: =$E5*$B$62 -> 0 | DV62: 14.22455258
... 77 more rows

Sheet Q10_24 (hidden)
F2: Runoff Hydrograph for a 24-Hour Storm
A3: Burst Info. | F3: Burst | G3: Burst | H3: Burst | I3: Burst | J3: Burst | K3: Burst | L3: Burst | M3: Burst | N3: Burst | O3: Burst | P3: Burst | Q3: Burst | R3: Burst | S3: Burst | T3: Burst | U3: Burst | V3: Burst | W3: Burst | X3: Burst | Y3: Burst | Z3: Burst | AA3: Burst | AB3: Burst | AC3: Burst | AD3: Burst | AE3: Burst | AF3: Burst | AG3: Burst | AH3: Burst | AI3: Burst | AJ3: Burst | AK3: Burst | AL3: Burst | AM3: Burst | AN3: Burst | AO3: Burst | AP3: Burst | AQ3: Burst | AR3: Burst | AS3: Burst | AT3: Burst | AU3: Burst | AV3: Burst | AW3: Burst | AX3: Burst | AY3: Burst | AZ3: Burst | BA3: Burst | BB3: Burst | BC3: Burst | BD3: Burst | BE3: Burst | BF3: Burst | BG3: Burst | BH3: Burst | BI3: Burst | BJ3: Burst | BK3: Burst | BL3: Burst | BM3: Burst | BN3: Burst | BO3: Burst | BP3: Burst | BQ3: Burst | BR3: Burst | BS3: Burst | BT3: Burst | BU3: Burst | BV3: Burst | BW3: Burst | BX3: Burst | BY3: Burst | BZ3: Burst | CA3: Burst | CB3: Burst | CC3: Burst | CD3: Burst | CE3: Burst | CF3: Burst | CG3: Burst | CH3: Burst | CI3: Burst | CJ3: Burst | CK3: Burst | CL3: Burst | CM3: Burst | CN3: Burst | CO3: Burst | CP3: Burst | CQ3: Burst | CR3: Burst | CS3: Burst | CT3: Burst | CU3: Burst | CV3: Burst | CW3: Burst | CX3: Burst | CY3: Burst | CZ3: Burst | DA3: Burst | DB3: Burst | DC3: Burst | DD3: Burst | DE3: Burst | DF3: Burst | DG3: Burst | DH3: Burst | DI3: Burst | DJ3: Burst | DK3: Burst | DL3: Burst | DM3: Burst | DN3: Burst | DO3: Burst | DP3: Burst | DQ3: Burst | DR3: Burst | DS3: Burst | DT3: Burst | DU3: Burst | DV3: Burst | DW3: Burst | DX3: Burst | DY3: Burst | DZ3: Burst | EA3: Burst | EB3: Burst | EC3: Burst | ED3: Burst | EE3: Burst | EF3: Burst | EG3: Burst | EH3: Burst | EI3: Burst | EJ3: Burst | EK3: Burst | EL3: Burst | EM3: Burst | EN3: Burst | EO3: Burst | EP3: Burst | EQ3: Burst | ER3: Burst | ES3: Burst | ET3: Burst | EU3: Burst | EV3: Burst | EW3: Burst | EX3: Burst | EY3: Burst | EZ3: Burst | FA3: Burst | FB3: Burst | FC3: Burst | FD3: Burst | FE3: Burst | FF3: Burst | FG3: Burst | FH3: Burst | FI3: Burst | FJ3: Burst | FK3: Burst | FL3: Burst | FM3: Burst | FN3: Burst | FO3: Burst | FP3: Burst | FQ3: Burst | FR3: Burst | FS3: Burst | FT3: Burst | FU3: Burst | FV3: Burst | FW3: Burst | FX3: Burst | FY3: Burst | FZ3: Burst | GA3: Burst | GB3: Burst | GC3: Burst | GD3: Burst | GE3: Burst | GF3: Burst | GG3: Burst | GH3: Burst | GI3: Burst | GJ3: Burst | GK3: Burst | GL3: Burst | GM3: Burst | GN3: Burst | GO3: Burst | GP3: Burst | GQ3: Burst | GR3: Burst | GS3: Burst | GT3: Burst | GU3: Burst | GV3: Burst | GW3: Burst | GX3: Burst | GY3: Burst | GZ3: Burst | HA3: Burst | HB3: Burst | HC3: Burst | HD3: Burst | HE3: Burst | HF3: Burst | HG3: Burst | HH3: Burst | HI3: Burst | HJ3: Burst | HK3: Burst | HL3: Burst | HM3: Burst | HN3: Burst | HO3: Burst | HP3: Burst | HQ3: Burst | HR3: Burst | HS3: Burst | HT3: Burst | HU3: Burst | HV3: Burst | HW3: Burst | HX3: Burst | HY3: Burst | HZ3: Burst | IA3: Burst | IB3: Burst | IC3: Burst | ID3: Burst | IE3: Burst | IF3: Burst | IG3: Burst | IH3: Burst | II3: Burst | IJ3: Burst | IK3: Burst | IL3: Summation
A4: Burst | B4: Increment | D4: Time, min | E4: UH, cfs | F4: 1 | G4: 2 | H4: 3 | I4: 4 | J4: 5 | K4: 6 | L4: 7 | M4: 8 | N4: 9 | O4: 10 | P4: 11 | Q4: 12 | R4: 13 | S4: 14 | T4: 15 | U4: 16 | V4: 17 | W4: 18 | X4: 19 | Y4: 20 | Z4: 21 | AA4: 22 | AB4: 23 | AC4: 24 | AD4: 25 | AE4: 26 | AF4: 27 | AG4: 28 | AH4: 29 | AI4: 30 | AJ4: 31 | AK4: 32 | AL4: 33 | AM4: 34 | AN4: 35 | AO4: 36 | AP4: 37 | AQ4: 38 | AR4: 39 | AS4: 40 | AT4: 41 | AU4: 42 | AV4: 43 | AW4: 44 | AX4: 45 | AY4: 46 | AZ4: 47 | BA4: 48 | BB4: 49 | BC4: 50 | BD4: 51 | BE4: 52 | BF4: 53 | BG4: 54 | BH4: 55 | BI4: 56 | BJ4: 57 | BK4: 58 | BL4: 59 | BM4: 60 | BN4: 61 | BO4: 62 | BP4: 63 | BQ4: 64 | BR4: 65 | BS4: 66 | BT4: 67 | BU4: 68 | BV4: 69 | BW4: 70 | BX4: 71 | BY4: 72 | BZ4: 73 | CA4: 74 | CB4: 75 | CC4: 76 | CD4: 77 | CE4: 78 | CF4: 79 | CG4: 80 | CH4: 81 | CI4: 82 | CJ4: 83 | CK4: 84 | CL4: 85 | CM4: 86 | CN4: 87 | CO4: 88 | CP4: 89 | CQ4: 90 | CR4: 91 | CS4: 92 | CT4: 93 | CU4: 94 | CV4: 95 | CW4: 96 | CX4: 97 | CY4: 98 | CZ4: 99 | DA4: 100 | DB4: 101 | DC4: 102 | DD4: 103 | DE4: 104 | DF4: 105 | DG4: 106 | DH4: 107 | DI4: 108 | DJ4: 109 | DK4: 110 | DL4: 111 | DM4: 112 | DN4: 113 | DO4: 114 | DP4: 115 | DQ4: 116 | DR4: 117 | DS4: 118 | DT4: 119 | DU4: 120 | DV4: 121 | DW4: 122 | DX4: 123 | DY4: 124 | DZ4: 125 | EA4: 126 | EB4: 127 | EC4: 128 | ED4: 129 | EE4: 130 | EF4: 131 | EG4: 132 | EH4: 133 | EI4: 134 | EJ4: 135 | EK4: 136 | EL4: 137 | EM4: 138 | EN4: 139 | EO4: 140 | EP4: 141 | EQ4: 142 | ER4: 143 | ES4: 144 | ET4: 145 | EU4: 146 | EV4: 147 | EW4: 148 | EX4: 149 | EY4: 150 | EZ4: 151 | FA4: 152 | FB4: 153 | FC4: 154 | FD4: 155 | FE4: 156 | FF4: 157 | FG4: 158 | FH4: 159 | FI4: 160 | FJ4: 161 | FK4: 162 | FL4: 163 | FM4: 164 | FN4: 165 | FO4: 166 | FP4: 167 | FQ4: 168 | FR4: 169 | FS4: 170 | FT4: 171 | FU4: 172 | FV4: 173 | FW4: 174 | FX4: 175 | FY4: 176 | FZ4: 177 | GA4: 178 | GB4: 179 | GC4: 180 | GD4: 181 | GE4: 182 | GF4: 183 | GG4: 184 | GH4: 185 | GI4: 186 | GJ4: 187 | GK4: 188 | GL4: 189 | GM4: 190 | GN4: 191 | GO4: 192 | GP4: 193 | GQ4: 194 | GR4: 195 | GS4: 196 | GT4: 197 | GU4: 198 | GV4: 199 | GW4: 200 | GX4: 201 | GY4: 202 | GZ4: 203 | HA4: 204 | HB4: 205 | HC4: 206 | HD4: 207 | HE4: 208 | HF4: 209 | HG4: 210 | HH4: 211 | HI4: 212 | HJ4: 213 | HK4: 214 | HL4: 215 | HM4: 216 | HN4: 217 | HO4: 218 | HP4: 219 | HQ4: 220 | HR4: 221 | HS4: 222 | HT4: 223 | HU4: 224 | HV4: 225 | HW4: 226 | HX4: 227 | HY4: 228 | HZ4: 229 | IA4: 230 | IB4: 231 | IC4: 232 | ID4: 233 | IE4: 234 | IF4: 235 | IG4: 236 | IH4: 237 | II4: 238 | IJ4: 239 | IK4: 240
A5: 1 | B5: ='P(t) Distribution 10yr'!G5 -> 0 | D5: 0 | E5: =UH_Qp*((Q10_24!D5/UH_Tp)*EXP(1-Q10_24!D5/UH_Tp))^('WS & UH Data & Runoff Results'!$H$6-1) -> 0 | F5: =$E5*$B$5 -> 0 | IL5: =SUM(F5:IK5) -> 0
A6: 2 | B6: ='P(t) Distribution 10yr'!G6 -> 0 | D6: =D5+BDur -> 6 | E6: =UH_Qp*((Q10_24!D6/UH_Tp)*EXP(1-Q10_24!D6/UH_Tp))^('WS & UH Data & Runoff Results'!$H$6-1) -> 4.61370294 | F6: =$E6*$B$5 -> 0 | G6: =$E5*$B$6 -> 0 | IL6: =SUM(F6:IK6) -> 0
A7: 3 | B7: ='P(t) Distribution 10yr'!G7 -> 0 | D7: 12 | E7: =UH_Qp*((Q10_24!D7/UH_Tp)*EXP(1-Q10_24!D7/UH_Tp))^('WS & UH Data & Runoff Results'!$H$6-1) -> 16.99954882 | F7: 0 | G7: 0 | H7: =$E5*$B$7 -> 0 | IL7: 0
A8: 4 | B8: ='P(t) Distribution 10yr'!G8 -> 0 | D8: 18 | E8: =UH_Qp*((Q10_24!D8/UH_Tp)*EXP(1-Q10_24!D8/UH_Tp))^('WS & UH Data & Runoff Results'!$H$6-1) -> 32.36189695 | F8: 0 | G8: 0 | H8: 0 | I8: =$E5*$B$8 -> 0 | IL8: 0
A9: 5 | B9: ='P(t) Distribution 10yr'!G9 -> 0 | D9: 24 | E9: =UH_Qp*((Q10_24!D9/UH_Tp)*EXP(1-Q10_24!D9/UH_Tp))^('WS & UH Data & Runoff Results'!$H$6-1) -> 47.01238198 | F9: 0 | G9: 0 | H9: 0 | I9: 0 | J9: =$E5*$B$9 -> 0 | IL9: 0
A10: 6 | B10: ='P(t) Distribution 10yr'!G10 -> 0 | D10: 30 | E10: =UH_Qp*((Q10_24!D10/UH_Tp)*EXP(1-Q10_24!D10/UH_Tp))^('WS & UH Data & Runoff Results'!$H$6-1) -> 58.89140027 | F10: 0 | G10: 0 | H10: 0 | I10: 0 | J10: 0 | K10: =$E5*$B$10 -> 0 | IL10: 0
A11: 7 | B11: ='P(t) Distribution 10yr'!G11 -> 0 | D11: 36 | E11: =UH_Qp*((Q10_24!D11/UH_Tp)*EXP(1-Q10_24!D11/UH_Tp))^('WS & UH Data & Runoff Results'!$H$6-1) -> 67.1731828 | F11: 0 | G11: 0 | H11: 0 | I11: 0 | J11: 0 | K11: 0 | L11: =$E5*$B$11 -> 0 | IL11: 0
A12: 8 | B12: ='P(t) Distribution 10yr'!G12 -> 0 | D12: 42 | E12: =UH_Qp*((Q10_24!D12/UH_Tp)*EXP(1-Q10_24!D12/UH_Tp))^('WS & UH Data & Runoff Results'!$H$6-1) -> 71.82180803 | F12: 0 | G12: 0 | H12: 0 | I12: 0 | J12: 0 | K12: 0 | L12: 0 | M12: =$E5*$B$12 -> 0 | IL12: 0
A13: 9 | B13: ='P(t) Distribution 10yr'!G13 -> 0 | D13: 48 | E13: =UH_Qp*((Q10_24!D13/UH_Tp)*EXP(1-Q10_24!D13/UH_Tp))^('WS & UH Data & Runoff Results'!$H$6-1) -> 73.2421875 | F13: 0 | G13: 0 | H13: 0 | I13: 0 | J13: 0 | K13: 0 | L13: 0 | M13: 0 | N13: =$E5*$B$13 -> 0 | IL13: 0
A14: 10 | B14: ='P(t) Distribution 10yr'!G14 -> 0 | D14: 54 | E14: =UH_Qp*((Q10_24!D14/UH_Tp)*EXP(1-Q10_24!D14/UH_Tp))^('WS & UH Data & Runoff Results'!$H$6-1) -> 72.03883678 | F14: 0 | G14: 0 | H14: 0 | I14: 0 | J14: 0 | K14: 0 | L14: 0 | M14: 0 | N14: 0 | O14: =$E5*$B$14 -> 0 | IL14: 0
A15: 11 | B15: ='P(t) Distribution 10yr'!G15 -> 0 | D15: 60 | E15: =UH_Qp*((Q10_24!D15/UH_Tp)*EXP(1-Q10_24!D15/UH_Tp))^('WS & UH Data & Runoff Results'!$H$6-1) -> 68.86333096 | F15: 0 | G15: 0 | H15: 0 | I15: 0 | J15: 0 | K15: 0 | L15: 0 | M15: 0 | N15: 0 | O15: 0 | P15: =$E5*$B$15 -> 0 | IL15: 0
A16: 12 | B16: ='P(t) Distribution 10yr'!G16 -> 0 | D16: 66 | E16: =UH_Qp*((Q10_24!D16/UH_Tp)*EXP(1-Q10_24!D16/UH_Tp))^('WS & UH Data & Runoff Results'!$H$6-1) -> 64.32653345 | F16: 0 | G16: 0 | H16: 0 | I16: 0 | J16: 0 | K16: 0 | L16: 0 | M16: 0 | N16: 0 | O16: 0 | P16: 0 | Q16: =$E5*$B$16 -> 0 | IL16: 0
A17: 13 | B17: ='P(t) Distribution 10yr'!G17 -> 0 | D17: 72 | E17: =UH_Qp*((Q10_24!D17/UH_Tp)*EXP(1-Q10_24!D17/UH_Tp))^('WS & UH Data & Runoff Results'!$H$6-1) -> 58.95479947 | F17: 0 | G17: 0 | H17: 0 | I17: 0 | J17: 0 | K17: 0 | L17: 0 | M17: 0 | N17: 0 | O17: 0 | P17: 0 | Q17: 0 | R17: =$E5*$B$17 -> 0 | IL17: 0
A18: 14 | B18: ='P(t) Distribution 10yr'!G18 -> 0 | D18: 78 | E18: =UH_Qp*((Q10_24!D18/UH_Tp)*EXP(1-Q10_24!D18/UH_Tp))^('WS & UH Data & Runoff Results'!$H$6-1) -> 53.17421607 | F18: 0 | G18: 0 | H18: 0 | I18: 0 | J18: 0 | K18: 0 | L18: 0 | M18: 0 | N18: 0 | O18: 0 | P18: 0 | Q18: 0 | R18: 0 | S18: =$E5*$B$18 -> 0 | IL18: 0
A19: 15 | B19: ='P(t) Distribution 10yr'!G19 -> 0 | D19: 84 | E19: =UH_Qp*((Q10_24!D19/UH_Tp)*EXP(1-Q10_24!D19/UH_Tp))^('WS & UH Data & Runoff Results'!$H$6-1) -> 47.31149466 | F19: 0 | G19: 0 | H19: 0 | I19: 0 | J19: 0 | K19: 0 | L19: 0 | M19: 0 | N19: 0 | O19: 0 | P19: 0 | Q19: 0 | R19: 0 | S19: 0 | T19: =$E5*$B$19 -> 0 | IL19: 0
A20: 16 | B20: ='P(t) Distribution 10yr'!G20 -> 0 | D20: 90 | E20: =UH_Qp*((Q10_24!D20/UH_Tp)*EXP(1-Q10_24!D20/UH_Tp))^('WS & UH Data & Runoff Results'!$H$6-1) -> 41.60379813 | F20: 0 | G20: 0 | H20: 0 | I20: 0 | J20: 0 | K20: 0 | L20: 0 | M20: 0 | N20: 0 | O20: 0 | P20: 0 | Q20: 0 | R20: 0 | S20: 0 | T20: 0 | U20: =$E5*$B$20 -> 0 | IL20: 0
A21: 17 | B21: ='P(t) Distribution 10yr'!G21 -> 0 | D21: 96 | E21: =UH_Qp*((Q10_24!D21/UH_Tp)*EXP(1-Q10_24!D21/UH_Tp))^('WS & UH Data & Runoff Results'!$H$6-1) -> 36.212519 | F21: 0 | G21: 0 | H21: 0 | I21: 0 | J21: 0 | K21: 0 | L21: 0 | M21: 0 | N21: 0 | O21: 0 | P21: 0 | Q21: 0 | R21: 0 | S21: 0 | T21: 0 | U21: 0 | V21: =$E5*$B$21 -> 0 | IL21: 0
A22: 18 | B22: ='P(t) Distribution 10yr'!G22 -> 0 | D22: 102 | E22: =UH_Qp*((Q10_24!D22/UH_Tp)*EXP(1-Q10_24!D22/UH_Tp))^('WS & UH Data & Runoff Results'!$H$6-1) -> 31.23796348 | F22: 0 | G22: 0 | H22: 0 | I22: 0 | J22: 0 | K22: 0 | L22: 0 | M22: 0 | N22: 0 | O22: 0 | P22: 0 | Q22: 0 | R22: 0 | S22: 0 | T22: 0 | U22: 0 | V22: 0 | W22: =$E5*$B$22 -> 0 | IL22: 0
A23: 19 | B23: ='P(t) Distribution 10yr'!G23 -> 0 | D23: 108 | E23: =UH_Qp*((Q10_24!D23/UH_Tp)*EXP(1-Q10_24!D23/UH_Tp))^('WS & UH Data & Runoff Results'!$H$6-1) -> 26.7332165 | F23: 0 | G23: 0 | H23: 0 | I23: 0 | J23: 0 | K23: 0 | L23: 0 | M23: 0 | N23: 0 | O23: 0 | P23: 0 | Q23: 0 | R23: 0 | S23: 0 | T23: 0 | U23: 0 | V23: 0 | W23: 0 | X23: =$E5*$B$23 -> 0 | IL23: 0
A24: 20 | B24: ='P(t) Distribution 10yr'!G24 -> 0 | D24: 114 | E24: =UH_Qp*((Q10_24!D24/UH_Tp)*EXP(1-Q10_24!D24/UH_Tp))^('WS & UH Data & Runoff Results'!$H$6-1) -> 22.71632631 | F24: 0 | G24: 0 | H24: 0 | I24: 0 | J24: 0 | K24: 0 | L24: 0 | M24: 0 | N24: 0 | O24: 0 | P24: 0 | Q24: 0 | R24: 0 | S24: 0 | T24: 0 | U24: 0 | V24: 0 | W24: 0 | X24: 0 | Y24: =$E5*$B$24 -> 0 | IL24: 0
A25: 21 | B25: ='P(t) Distribution 10yr'!G25 -> 0 | D25: 120 | E25: =UH_Qp*((Q10_24!D25/UH_Tp)*EXP(1-Q10_24!D25/UH_Tp))^('WS & UH Data & Runoff Results'!$H$6-1) -> 19.18048765 | F25: 0 | G25: 0 | H25: 0 | I25: 0 | J25: 0 | K25: 0 | L25: 0 | M25: 0 | N25: 0 | O25: 0 | P25: 0 | Q25: 0 | R25: 0 | S25: 0 | T25: 0 | U25: 0 | V25: 0 | W25: 0 | X25: 0 | Y25: 0 | Z25: =$E5*$B$25 -> 0 | IL25: 0
A26: 22 | B26: ='P(t) Distribution 10yr'!G26 -> 0 | D26: 126 | E26: =UH_Qp*((Q10_24!D26/UH_Tp)*EXP(1-Q10_24!D26/UH_Tp))^('WS & UH Data & Runoff Results'!$H$6-1) -> 16.10222208 | F26: 0 | G26: 0 | H26: 0 | I26: 0 | J26: 0 | K26: 0 | L26: 0 | M26: 0 | N26: 0 | O26: 0 | P26: 0 | Q26: 0 | R26: 0 | S26: 0 | T26: 0 | U26: 0 | V26: 0 | W26: 0 | X26: 0 | Y26: 0 | Z26: 0 | AA26: =$E5*$B$26 -> 0 | IL26: 0
A27: 23 | B27: ='P(t) Distribution 10yr'!G27 -> 0 | D27: 132 | E27: =UH_Qp*((Q10_24!D27/UH_Tp)*EXP(1-Q10_24!D27/UH_Tp))^('WS & UH Data & Runoff Results'!$H$6-1) -> 13.4477263 | F27: 0 | G27: 0 | H27: 0 | I27: 0 | J27: 0 | K27: 0 | L27: 0 | M27: 0 | N27: 0 | O27: 0 | P27: 0 | Q27: 0 | R27: 0 | S27: 0 | T27: 0 | U27: 0 | V27: 0 | W27: 0 | X27: 0 | Y27: 0 | Z27: 0 | AA27: 0 | AB27: =$E5*$B$27 -> 0 | IL27: 0
A28: 24 | B28: ='P(t) Distribution 10yr'!G28 -> 0 | D28: 138 | E28: =UH_Qp*((Q10_24!D28/UH_Tp)*EXP(1-Q10_24!D28/UH_Tp))^('WS & UH Data & Runoff Results'!$H$6-1) -> 11.17763856 | F28: 0 | G28: 0 | H28: 0 | I28: 0 | J28: 0 | K28: 0 | L28: 0 | M28: 0 | N28: 0 | O28: 0 | P28: 0 | Q28: 0 | R28: 0 | S28: 0 | T28: 0 | U28: 0 | V28: 0 | W28: 0 | X28: 0 | Y28: 0 | Z28: 0 | AA28: 0 | AB28: 0 | AC28: =$E5*$B$28 -> 0 | IL28: 0
A29: 25 | B29: ='P(t) Distribution 10yr'!G29 -> 0 | D29: 144 | E29: =UH_Qp*((Q10_24!D29/UH_Tp)*EXP(1-Q10_24!D29/UH_Tp))^('WS & UH Data & Runoff Results'!$H$6-1) -> 9.250495038 | F29: 0 | G29: 0 | H29: 0 | I29: 0 | J29: 0 | K29: 0 | L29: 0 | M29: 0 | N29: 0 | O29: 0 | P29: 0 | Q29: 0 | R29: 0 | S29: 0 | T29: 0 | U29: 0 | V29: 0 | W29: 0 | X29: 0 | Y29: 0 | Z29: 0 | AA29: 0 | AB29: 0 | AC29: 0 | AD29: =$E5*$B$29 -> 0 | IL29: 0
A30: 26 | B30: ='P(t) Distribution 10yr'!G30 -> 0 | D30: 150 | E30: =UH_Qp*((Q10_24!D30/UH_Tp)*EXP(1-Q10_24!D30/UH_Tp))^('WS & UH Data & Runoff Results'!$H$6-1) -> 7.625136946 | F30: 0 | G30: 0 | H30: 0 | I30: 0 | J30: 0 | K30: 0 | L30: 0 | M30: 0 | N30: 0 | O30: 0 | P30: 0 | Q30: 0 | R30: 0 | S30: 0 | T30: 0 | U30: 0 | V30: 0 | W30: 0 | X30: 0 | Y30: 0 | Z30: 0 | AA30: 0 | AB30: 0 | AC30: 0 | AD30: 0 | AE30: =$E5*$B$30 -> 0 | IL30: 0
A31: 27 | B31: ='P(t) Distribution 10yr'!G31 -> 0 | D31: 156 | E31: =UH_Qp*((Q10_24!D31/UH_Tp)*EXP(1-Q10_24!D31/UH_Tp))^('WS & UH Data & Runoff Results'!$H$6-1) -> 6.262301871 | F31: 0 | G31: 0 | H31: 0 | I31: 0 | J31: 0 | K31: 0 | L31: 0 | M31: 0 | N31: 0 | O31: 0 | P31: 0 | Q31: 0 | R31: 0 | S31: 0 | T31: 0 | U31: 0 | V31: 0 | W31: 0 | X31: 0 | Y31: 0 | Z31: 0 | AA31: 0 | AB31: 0 | AC31: 0 | AD31: 0 | AE31: 0 | AF31: =$E5*$B$31 -> 0 | IL31: 0
A32: 28 | B32: ='P(t) Distribution 10yr'!G32 -> 0 | D32: 162 | E32: =UH_Qp*((Q10_24!D32/UH_Tp)*EXP(1-Q10_24!D32/UH_Tp))^('WS & UH Data & Runoff Results'!$H$6-1) -> 5.125598085 | F32: 0 | G32: 0 | H32: 0 | I32: 0 | J32: 0 | K32: 0 | L32: 0 | M32: 0 | N32: 0 | O32: 0 | P32: 0 | Q32: 0 | R32: 0 | S32: 0 | T32: 0 | U32: 0 | V32: 0 | W32: 0 | X32: 0 | Y32: 0 | Z32: 0 | AA32: 0 | AB32: 0 | AC32: 0 | AD32: 0 | AE32: 0 | AF32: 0 | AG32: =$E5*$B$32 -> 0 | IL32: 0
A33: 29 | B33: ='P(t) Distribution 10yr'!G33 -> 0 | D33: 168 | E33: =UH_Qp*((Q10_24!D33/UH_Tp)*EXP(1-Q10_24!D33/UH_Tp))^('WS & UH Data & Runoff Results'!$H$6-1) -> 4.182025396 | F33: 0 | G33: 0 | H33: 0 | I33: 0 | J33: 0 | K33: 0 | L33: 0 | M33: 0 | N33: 0 | O33: 0 | P33: 0 | Q33: 0 | R33: 0 | S33: 0 | T33: 0 | U33: 0 | V33: 0 | W33: 0 | X33: 0 | Y33: 0 | Z33: 0 | AA33: 0 | AB33: 0 | AC33: 0 | AD33: 0 | AE33: 0 | AF33: 0 | AG33: 0 | AH33: =$E5*$B$33 -> 0 | IL33: 0
A34: 30 | B34: ='P(t) Distribution 10yr'!G34 -> 0 | D34: 174 | E34: =UH_Qp*((Q10_24!D34/UH_Tp)*EXP(1-Q10_24!D34/UH_Tp))^('WS & UH Data & Runoff Results'!$H$6-1) -> 3.402173136 | F34: 0 | G34: 0 | H34: 0 | I34: 0 | J34: 0 | K34: 0 | L34: 0 | M34: 0 | N34: 0 | O34: 0 | P34: 0 | Q34: 0 | R34: 0 | S34: 0 | T34: 0 | U34: 0 | V34: 0 | W34: 0 | X34: 0 | Y34: 0 | Z34: 0 | AA34: 0 | AB34: 0 | AC34: 0 | AD34: 0 | AE34: 0 | AF34: 0 | AG34: 0 | AH34: 0 | AI34: =$E5*$B$34 -> 0 | IL34: 0
A35: 31 | B35: ='P(t) Distribution 10yr'!G35 -> 0 | D35: 180 | E35: =UH_Qp*((Q10_24!D35/UH_Tp)*EXP(1-Q10_24!D35/UH_Tp))^('WS & UH Data & Runoff Results'!$H$6-1) -> 2.760196955 | F35: 0 | G35: 0 | H35: 0 | I35: 0 | J35: 0 | K35: 0 | L35: 0 | M35: 0 | N35: 0 | O35: 0 | P35: 0 | Q35: 0 | R35: 0 | S35: 0 | T35: 0 | U35: 0 | V35: 0 | W35: 0 | X35: 0 | Y35: 0 | Z35: 0 | AA35: 0 | AB35: 0 | AC35: 0 | AD35: 0 | AE35: 0 | AF35: 0 | AG35: 0 | AH35: 0 | AI35: 0 | AJ35: =$E5*$B$35 -> 0 | IL35: 0
A36: 32 | B36: ='P(t) Distribution 10yr'!G36 -> 0 | D36: 186 | E36: =UH_Qp*((Q10_24!D36/UH_Tp)*EXP(1-Q10_24!D36/UH_Tp))^('WS & UH Data & Runoff Results'!$H$6-1) -> 2.233651672 | F36: 0 | G36: 0 | H36: 0 | I36: 0 | J36: 0 | K36: 0 | L36: 0 | M36: 0 | N36: 0 | O36: 0 | P36: 0 | Q36: 0 | R36: 0 | S36: 0 | T36: 0 | U36: 0 | V36: 0 | W36: 0 | X36: 0 | Y36: 0 | Z36: 0 | AA36: 0 | AB36: 0 | AC36: 0 | AD36: 0 | AE36: 0 | AF36: 0 | AG36: 0 | AH36: 0 | AI36: 0 | AJ36: 0 | AK36: =$E5*$B$36 -> 0 | IL36: 0
A37: 33 | B37: ='P(t) Distribution 10yr'!G37 -> 0 | D37: 192 | E37: =UH_Qp*((Q10_24!D37/UH_Tp)*EXP(1-Q10_24!D37/UH_Tp))^('WS & UH Data & Runoff Results'!$H$6-1) -> 1.803237469 | F37: 0 | G37: 0 | H37: 0 | I37: 0 | J37: 0 | K37: 0 | L37: 0 | M37: 0 | N37: 0 | O37: 0 | P37: 0 | Q37: 0 | R37: 0 | S37: 0 | T37: 0 | U37: 0 | V37: 0 | W37: 0 | X37: 0 | Y37: 0 | Z37: 0 | AA37: 0 | AB37: 0 | AC37: 0 | AD37: 0 | AE37: 0 | AF37: 0 | AG37: 0 | AH37: 0 | AI37: 0 | AJ37: 0 | AK37: 0 | AL37: =$E5*$B$37 -> 0 | IL37: 0
A38: 34 | B38: ='P(t) Distribution 10yr'!G38 -> 0 | D38: 198 | E38: =UH_Qp*((Q10_24!D38/UH_Tp)*EXP(1-Q10_24!D38/UH_Tp))^('WS & UH Data & Runoff Results'!$H$6-1) -> 1.452500812 | F38: 0 | G38: 0 | H38: 0 | I38: 0 | J38: 0 | K38: 0 | L38: 0 | M38: 0 | N38: 0 | O38: 0 | P38: 0 | Q38: 0 | R38: 0 | S38: 0 | T38: 0 | U38: 0 | V38: 0 | W38: 0 | X38: 0 | Y38: 0 | Z38: 0 | AA38: 0 | AB38: 0 | AC38: 0 | AD38: 0 | AE38: 0 | AF38: 0 | AG38: 0 | AH38: 0 | AI38: 0 | AJ38: 0 | AK38: 0 | AL38: 0 | AM38: =$E5*$B$38 -> 0 | IL38: 0
A39: 35 | B39: ='P(t) Distribution 10yr'!G39 -> 0 | D39: 204 | E39: =UH_Qp*((Q10_24!D39/UH_Tp)*EXP(1-Q10_24!D39/UH_Tp))^('WS & UH Data & Runoff Results'!$H$6-1) -> 1.1675191 | F39: 0 | G39: 0 | H39: 0 | I39: 0 | J39: 0 | K39: 0 | L39: 0 | M39: 0 | N39: 0 | O39: 0 | P39: 0 | Q39: 0 | R39: 0 | S39: 0 | T39: 0 | U39: 0 | V39: 0 | W39: 0 | X39: 0 | Y39: 0 | Z39: 0 | AA39: 0 | AB39: 0 | AC39: 0 | AD39: 0 | AE39: 0 | AF39: 0 | AG39: 0 | AH39: 0 | AI39: 0 | AJ39: 0 | AK39: 0 | AL39: 0 | AM39: 0 | AN39: =$E5*$B$39 -> 0 | IL39: 0
A40: 36 | B40: ='P(t) Distribution 10yr'!G40 -> 0 | D40: 210 | E40: =UH_Qp*((Q10_24!D40/UH_Tp)*EXP(1-Q10_24!D40/UH_Tp))^('WS & UH Data & Runoff Results'!$H$6-1) -> 0.9365885809 | F40: 0 | G40: 0 | H40: 0 | I40: 0 | J40: 0 | K40: 0 | L40: 0 | M40: 0 | N40: 0 | O40: 0 | P40: 0 | Q40: 0 | R40: 0 | S40: 0 | T40: 0 | U40: 0 | V40: 0 | W40: 0 | X40: 0 | Y40: 0 | Z40: 0 | AA40: 0 | AB40: 0 | AC40: 0 | AD40: 0 | AE40: 0 | AF40: 0 | AG40: 0 | AH40: 0 | AI40: 0 | AJ40: 0 | AK40: 0 | AL40: 0 | AM40: 0 | AN40: 0 | AO40: =$E5*$B$40 -> 0 | IL40: 0
A41: 37 | B41: ='P(t) Distribution 10yr'!G41 -> 0 | D41: 216 | E41: =UH_Qp*((Q10_24!D41/UH_Tp)*EXP(1-Q10_24!D41/UH_Tp))^('WS & UH Data & Runoff Results'!$H$6-1) -> 0.749928039 | F41: 0 | G41: 0 | H41: 0 | I41: 0 | J41: 0 | K41: 0 | L41: 0 | M41: 0 | N41: 0 | O41: 0 | P41: 0 | Q41: 0 | R41: 0 | S41: 0 | T41: 0 | U41: 0 | V41: 0 | W41: 0 | X41: 0 | Y41: 0 | Z41: 0 | AA41: 0 | AB41: 0 | AC41: 0 | AD41: 0 | AE41: 0 | AF41: 0 | AG41: 0 | AH41: 0 | AI41: 0 | AJ41: 0 | AK41: 0 | AL41: 0 | AM41: 0 | AN41: 0 | AO41: =$E6*$B$40 -> 0 | AP41: =$E5*$B$41 -> 0 | IL41: 0
A42: 38 | B42: ='P(t) Distribution 10yr'!G42 -> 0 | D42: 222 | E42: =UH_Qp*((Q10_24!D42/UH_Tp)*EXP(1-Q10_24!D42/UH_Tp))^('WS & UH Data & Runoff Results'!$H$6-1) -> 0.5994056228 | F42: 0 | G42: 0 | H42: 0 | I42: 0 | J42: 0 | K42: 0 | L42: 0 | M42: 0 | N42: 0 | O42: 0 | P42: 0 | Q42: 0 | R42: 0 | S42: 0 | T42: 0 | U42: 0 | V42: 0 | W42: 0 | X42: 0 | Y42: 0 | Z42: 0 | AA42: 0 | AB42: 0 | AC42: 0 | AD42: 0 | AE42: 0 | AF42: 0 | AG42: 0 | AH42: 0 | AI42: 0 | AJ42: 0 | AK42: 0 | AL42: 0 | AM42: 0 | AN42: 0 | AO42: 0 | AP42: 0 | AQ42: =$E5*$B$42 -> 0 | IL42: 0
A43: 39 | B43: ='P(t) Distribution 10yr'!G43 -> 0 | D43: 228 | E43: =UH_Qp*((Q10_24!D43/UH_Tp)*EXP(1-Q10_24!D43/UH_Tp))^('WS & UH Data & Runoff Results'!$H$6-1) -> 0.4782924983 | F43: 0 | G43: 0 | H43: 0 | I43: 0 | J43: 0 | K43: 0 | L43: 0 | M43: 0 | N43: 0 | O43: 0 | P43: 0 | Q43: 0 | R43: 0 | S43: 0 | T43: 0 | U43: 0 | V43: 0 | W43: 0 | X43: 0 | Y43: 0 | Z43: 0 | AA43: 0 | AB43: 0 | AC43: 0 | AD43: 0 | AE43: 0 | AF43: 0 | AG43: 0 | AH43: 0 | AI43: 0 | AJ43: 0 | AK43: 0 | AL43: 0 | AM43: 0 | AN43: 0 | AO43: 0 | AP43: 0 | AQ43: 0 | AR43: =$E5*$B$43 -> 0 | IL43: 0
A44: 40 | B44: ='P(t) Distribution 10yr'!G44 -> 0 | D44: 234 | E44: =UH_Qp*((Q10_24!D44/UH_Tp)*EXP(1-Q10_24!D44/UH_Tp))^('WS & UH Data & Runoff Results'!$H$6-1) -> 0.3810445116 | F44: 0 | G44: 0 | H44: 0 | I44: 0 | J44: 0 | K44: 0 | L44: 0 | M44: 0 | N44: 0 | O44: 0 | P44: 0 | Q44: 0 | R44: 0 | S44: 0 | T44: 0 | U44: 0 | V44: 0 | W44: 0 | X44: 0 | Y44: 0 | Z44: 0 | AA44: 0 | AB44: 0 | AC44: 0 | AD44: 0 | AE44: 0 | AF44: 0 | AG44: 0 | AH44: 0 | AI44: 0 | AJ44: 0 | AK44: 0 | AL44: 0 | AM44: 0 | AN44: 0 | AO44: 0 | AP44: 0 | AQ44: 0 | AR44: 0 | AS44: =$E5*$B$44 -> 0 | IL44: 0
A45: 41 | B45: ='P(t) Distribution 10yr'!G45 -> 0 | D45: 240 | E45: =UH_Qp*((Q10_24!D45/UH_Tp)*EXP(1-Q10_24!D45/UH_Tp))^('WS & UH Data & Runoff Results'!$H$6-1) -> 0.3031113579 | F45: 0 | G45: 0 | H45: 0 | I45: 0 | J45: 0 | K45: 0 | L45: 0 | M45: 0 | N45: 0 | O45: 0 | P45: 0 | Q45: 0 | R45: 0 | S45: 0 | T45: 0 | U45: 0 | V45: 0 | W45: 0 | X45: 0 | Y45: 0 | Z45: 0 | AA45: 0 | AB45: 0 | AC45: 0 | AD45: 0 | AE45: 0 | AF45: 0 | AG45: 0 | AH45: 0 | AI45: 0 | AJ45: 0 | AK45: 0 | AL45: 0 | AM45: 0 | AN45: 0 | AO45: 0 | AP45: 0 | AQ45: 0 | AR45: 0 | AS45: 0 | AT45: =$E5*$B$45 -> 0 | IL45: 0
A46: 42 | B46: ='P(t) Distribution 10yr'!G46 -> 0 | D46: 246 | E46: =UH_Qp*((Q10_24!D46/UH_Tp)*EXP(1-Q10_24!D46/UH_Tp))^('WS & UH Data & Runoff Results'!$H$6-1) -> 0.2407717062 | F46: 0 | G46: 0 | H46: 0 | I46: 0 | J46: 0 | K46: 0 | L46: 0 | M46: 0 | N46: 0 | O46: 0 | P46: 0 | Q46: 0 | R46: 0 | S46: 0 | T46: 0 | U46: 0 | V46: 0 | W46: 0 | X46: 0 | Y46: 0 | Z46: 0 | AA46: 0 | AB46: 0 | AC46: 0 | AD46: 0 | AE46: 0 | AF46: 0 | AG46: 0 | AH46: 0 | AI46: 0 | AJ46: 0 | AK46: 0 | AL46: 0 | AM46: 0 | AN46: 0 | AO46: 0 | AP46: 0 | AQ46: 0 | AR46: 0 | AS46: 0 | AT46: 0 | AU46: =$E5*$B$46 -> 0 | IL46: 0
A47: 43 | B47: ='P(t) Distribution 10yr'!G47 -> 0 | D47: 252 | E47: =UH_Qp*((Q10_24!D47/UH_Tp)*EXP(1-Q10_24!D47/UH_Tp))^('WS & UH Data & Runoff Results'!$H$6-1) -> 0.1909921301 | F47: 0 | G47: 0 | H47: 0 | I47: 0 | J47: 0 | K47: 0 | L47: 0 | M47: 0 | N47: 0 | O47: 0 | P47: 0 | Q47: 0 | R47: 0 | S47: 0 | T47: 0 | U47: 0 | V47: 0 | W47: 0 | X47: 0 | Y47: 0 | Z47: 0 | AA47: 0 | AB47: 0 | AC47: 0 | AD47: 0 | AE47: 0 | AF47: 0 | AG47: 0 | AH47: 0 | AI47: 0 | AJ47: 0 | AK47: 0 | AL47: 0 | AM47: 0 | AN47: 0 | AO47: 0 | AP47: 0 | AQ47: 0 | AR47: 0 | AS47: 0 | AT47: 0 | AU47: 0 | AV47: =$E5*$B$47 -> 0 | IL47: 0
A48: 44 | B48: ='P(t) Distribution 10yr'!G48 -> 0 | D48: 258 | E48: =UH_Qp*((Q10_24!D48/UH_Tp)*EXP(1-Q10_24!D48/UH_Tp))^('WS & UH Data & Runoff Results'!$H$6-1) -> 0.1513074096 | F48: 0 | G48: 0 | H48: 0 | I48: 0 | J48: 0 | K48: 0 | L48: 0 | M48: 0 | N48: 0 | O48: 0 | P48: 0 | Q48: 0 | R48: 0 | S48: 0 | T48: 0 | U48: 0 | V48: 0 | W48: 0 | X48: 0 | Y48: 0 | Z48: 0 | AA48: 0 | AB48: 0 | AC48: 0 | AD48: 0 | AE48: 0 | AF48: 0 | AG48: 0 | AH48: 0 | AI48: 0 | AJ48: 0 | AK48: 0 | AL48: 0 | AM48: 0 | AN48: 0 | AO48: 0 | AP48: 0 | AQ48: 0 | AR48: 0 | AS48: 0 | AT48: 0 | AU48: 0 | AV48: 0 | AW48: =$E5*$B$48 -> 0 | IL48: 0
A49: 45 | B49: ='P(t) Distribution 10yr'!G49 -> 0 | D49: 264 | E49: =UH_Qp*((Q10_24!D49/UH_Tp)*EXP(1-Q10_24!D49/UH_Tp))^('WS & UH Data & Runoff Results'!$H$6-1) -> 0.119719699 | F49: 0 | G49: 0 | H49: 0 | I49: 0 | J49: 0 | K49: 0 | L49: 0 | M49: 0 | N49: 0 | O49: 0 | P49: 0 | Q49: 0 | R49: 0 | S49: 0 | T49: 0 | U49: 0 | V49: 0 | W49: 0 | X49: 0 | Y49: 0 | Z49: 0 | AA49: 0 | AB49: 0 | AC49: 0 | AD49: 0 | AE49: 0 | AF49: 0 | AG49: 0 | AH49: 0 | AI49: 0 | AJ49: 0 | AK49: 0 | AL49: 0 | AM49: 0 | AN49: 0 | AO49: 0 | AP49: 0 | AQ49: 0 | AR49: 0 | AS49: 0 | AT49: 0 | AU49: 0 | AV49: 0 | AW49: 0 | AX49: =$E5*$B$49 -> 0 | IL49: 0
A50: 46 | B50: ='P(t) Distribution 10yr'!G50 -> 0 | D50: 270 | E50: =UH_Qp*((Q10_24!D50/UH_Tp)*EXP(1-Q10_24!D50/UH_Tp))^('WS & UH Data & Runoff Results'!$H$6-1) -> 0.09461412421 | F50: 0 | G50: 0 | H50: 0 | I50: 0 | J50: 0 | K50: 0 | L50: 0 | M50: 0 | N50: 0 | O50: 0 | P50: 0 | Q50: 0 | R50: 0 | S50: 0 | T50: 0 | U50: 0 | V50: 0 | W50: 0 | X50: 0 | Y50: 0 | Z50: 0 | AA50: 0 | AB50: 0 | AC50: 0 | AD50: 0 | AE50: 0 | AF50: 0 | AG50: 0 | AH50: 0 | AI50: 0 | AJ50: 0 | AK50: 0 | AL50: 0 | AM50: 0 | AN50: 0 | AO50: 0 | AP50: 0 | AQ50: 0 | AR50: 0 | AS50: 0 | AT50: 0 | AU50: 0 | AV50: 0 | AW50: 0 | AX50: 0 | AY50: =$E5*$B$50 -> 0 | IL50: 0
A51: 47 | B51: ='P(t) Distribution 10yr'!G51 -> 0 | D51: 276 | E51: =UH_Qp*((Q10_24!D51/UH_Tp)*EXP(1-Q10_24!D51/UH_Tp))^('WS & UH Data & Runoff Results'!$H$6-1) -> 0.07468852998 | F51: 0 | G51: 0 | H51: 0 | I51: 0 | J51: 0 | K51: 0 | L51: 0 | M51: 0 | N51: 0 | O51: 0 | P51: 0 | Q51: 0 | R51: 0 | S51: 0 | T51: 0 | U51: 0 | V51: 0 | W51: 0 | X51: 0 | Y51: 0 | Z51: 0 | AA51: 0 | AB51: 0 | AC51: 0 | AD51: 0 | AE51: 0 | AF51: 0 | AG51: 0 | AH51: 0 | AI51: 0 | AJ51: 0 | AK51: 0 | AL51: 0 | AM51: 0 | AN51: 0 | AO51: 0 | AP51: 0 | AQ51: 0 | AR51: 0 | AS51: 0 | AT51: 0 | AU51: 0 | AV51: 0 | AW51: 0 | AX51: 0 | AY51: 0 | AZ51: =$E5*$B$51 -> 0 | IL51: 0
A52: 48 | B52: ='P(t) Distribution 10yr'!G52 -> 0 | D52: 282 | E52: =UH_Qp*((Q10_24!D52/UH_Tp)*EXP(1-Q10_24!D52/UH_Tp))^('WS & UH Data & Runoff Results'!$H$6-1) -> 0.05889529645 | F52: 0 | G52: 0 | H52: 0 | I52: 0 | J52: 0 | K52: 0 | L52: 0 | M52: 0 | N52: 0 | O52: 0 | P52: 0 | Q52: 0 | R52: 0 | S52: 0 | T52: 0 | U52: 0 | V52: 0 | W52: 0 | X52: 0 | Y52: 0 | Z52: 0 | AA52: 0 | AB52: 0 | AC52: 0 | AD52: 0 | AE52: 0 | AF52: 0 | AG52: 0 | AH52: 0 | AI52: 0 | AJ52: 0 | AK52: 0 | AL52: 0 | AM52: 0 | AN52: 0 | AO52: 0 | AP52: 0 | AQ52: 0 | AR52: 0 | AS52: 0 | AT52: 0 | AU52: 0 | AV52: 0 | AW52: 0 | AX52: 0 | AY52: 0 | AZ52: 0 | BA52: =$E5*$B$52 -> 0 | IL52: 0
A53: 49 | B53: ='P(t) Distribution 10yr'!G53 -> 0 | D53: 288 | E53: =UH_Qp*((Q10_24!D53/UH_Tp)*EXP(1-Q10_24!D53/UH_Tp))^('WS & UH Data & Runoff Results'!$H$6-1) -> 0.04639336979 | F53: 0 | G53: 0 | H53: 0 | I53: 0 | J53: 0 | K53: 0 | L53: 0 | M53: 0 | N53: 0 | O53: 0 | P53: 0 | Q53: 0 | R53: 0 | S53: 0 | T53: 0 | U53: 0 | V53: 0 | W53: 0 | X53: 0 | Y53: 0 | Z53: 0 | AA53: 0 | AB53: 0 | AC53: 0 | AD53: 0 | AE53: 0 | AF53: 0 | AG53: 0 | AH53: 0 | AI53: 0 | AJ53: 0 | AK53: 0 | AL53: 0 | AM53: 0 | AN53: 0 | AO53: 0 | AP53: 0 | AQ53: 0 | AR53: 0 | AS53: 0 | AT53: 0 | AU53: 0 | AV53: 0 | AW53: 0 | AX53: 0 | AY53: 0 | AZ53: 0 | BA53: 0 | BB53: =$E5*$B$53 -> 0 | IL53: 0
A54: 50 | B54: ='P(t) Distribution 10yr'!G54 -> 0 | D54: 294 | E54: =UH_Qp*((Q10_24!D54/UH_Tp)*EXP(1-Q10_24!D54/UH_Tp))^('WS & UH Data & Runoff Results'!$H$6-1) -> 0.03650887475 | F54: 0 | G54: 0 | H54: 0 | I54: 0 | J54: 0 | K54: 0 | L54: 0 | M54: 0 | N54: 0 | O54: 0 | P54: 0 | Q54: 0 | R54: 0 | S54: 0 | T54: 0 | U54: 0 | V54: 0 | W54: 0 | X54: 0 | Y54: 0 | Z54: 0 | AA54: 0 | AB54: 0 | AC54: 0 | AD54: 0 | AE54: 0 | AF54: 0 | AG54: 0 | AH54: 0 | AI54: 0 | AJ54: 0 | AK54: 0 | AL54: 0 | AM54: 0 | AN54: 0 | AO54: 0 | AP54: 0 | AQ54: 0 | AR54: 0 | AS54: 0 | AT54: 0 | AU54: 0 | AV54: 0 | AW54: 0 | AX54: 0 | AY54: 0 | AZ54: 0 | BA54: 0 | BB54: 0 | BC54: =$E5*$B$54 -> 0 | IL54: 0
A55: 51 | B55: ='P(t) Distribution 10yr'!G55 -> 0 | D55: 300 | E55: =UH_Qp*((Q10_24!D55/UH_Tp)*EXP(1-Q10_24!D55/UH_Tp))^('WS & UH Data & Runoff Results'!$H$6-1) -> 0.02870289398 | F55: 0 | G55: 0 | H55: 0 | I55: 0 | J55: 0 | K55: 0 | L55: 0 | M55: 0 | N55: 0 | O55: 0 | P55: 0 | Q55: 0 | R55: 0 | S55: 0 | T55: 0 | U55: 0 | V55: 0 | W55: 0 | X55: 0 | Y55: 0 | Z55: 0 | AA55: 0 | AB55: 0 | AC55: 0 | AD55: 0 | AE55: 0 | AF55: 0 | AG55: 0 | AH55: 0 | AI55: 0 | AJ55: 0 | AK55: 0 | AL55: 0 | AM55: 0 | AN55: 0 | AO55: 0 | AP55: 0 | AQ55: 0 | AR55: 0 | AS55: 0 | AT55: 0 | AU55: 0 | AV55: 0 | AW55: 0 | AX55: 0 | AY55: 0 | AZ55: 0 | BA55: 0 | BB55: 0 | BC55: 0 | BD55: =$E5*$B$55 -> 0 | IL55: 0
A56: 52 | B56: ='P(t) Distribution 10yr'!G56 -> 0 | D56: 306 | E56: =UH_Qp*((Q10_24!D56/UH_Tp)*EXP(1-Q10_24!D56/UH_Tp))^('WS & UH Data & Runoff Results'!$H$6-1) -> 0.02254519961 | F56: 0 | G56: 0 | H56: 0 | I56: 0 | J56: 0 | K56: 0 | L56: 0 | M56: 0 | N56: 0 | O56: 0 | P56: 0 | Q56: 0 | R56: 0 | S56: 0 | T56: 0 | U56: 0 | V56: 0 | W56: 0 | X56: 0 | Y56: 0 | Z56: 0 | AA56: 0 | AB56: 0 | AC56: 0 | AD56: 0 | AE56: 0 | AF56: 0 | AG56: 0 | AH56: 0 | AI56: 0 | AJ56: 0 | AK56: 0 | AL56: 0 | AM56: 0 | AN56: 0 | AO56: 0 | AP56: 0 | AQ56: 0 | AR56: 0 | AS56: 0 | AT56: 0 | AU56: 0 | AV56: 0 | AW56: 0 | AX56: 0 | AY56: 0 | AZ56: 0 | BA56: 0 | BB56: 0 | BC56: 0 | BD56: 0 | BE56: =$E5*$B$56 -> 0 | IL56: 0
A57: 53 | B57: ='P(t) Distribution 10yr'!G57 -> 0 | D57: 312 | E57: =UH_Qp*((Q10_24!D57/UH_Tp)*EXP(1-Q10_24!D57/UH_Tp))^('WS & UH Data & Runoff Results'!$H$6-1) -> 0.01769290446 | F57: 0 | G57: 0 | H57: 0 | I57: 0 | J57: 0 | K57: 0 | L57: 0 | M57: 0 | N57: 0 | O57: 0 | P57: 0 | Q57: 0 | R57: 0 | S57: 0 | T57: 0 | U57: 0 | V57: 0 | W57: 0 | X57: 0 | Y57: 0 | Z57: 0 | AA57: 0 | AB57: 0 | AC57: 0 | AD57: 0 | AE57: 0 | AF57: 0 | AG57: 0 | AH57: 0 | AI57: 0 | AJ57: 0 | AK57: 0 | AL57: 0 | AM57: 0 | AN57: 0 | AO57: 0 | AP57: 0 | AQ57: 0 | AR57: 0 | AS57: 0 | AT57: 0 | AU57: 0 | AV57: 0 | AW57: 0 | AX57: 0 | AY57: 0 | AZ57: 0 | BA57: 0 | BB57: 0 | BC57: 0 | BD57: 0 | BE57: 0 | BF57: =$E5*$B$57 -> 0 | IL57: 0
A58: 54 | B58: ='P(t) Distribution 10yr'!G58 -> 0 | D58: 318 | E58: =UH_Qp*((Q10_24!D58/UH_Tp)*EXP(1-Q10_24!D58/UH_Tp))^('WS & UH Data & Runoff Results'!$H$6-1) -> 0.01387316125 | F58: 0 | G58: 0 | H58: 0 | I58: 0 | J58: 0 | K58: 0 | L58: 0 | M58: 0 | N58: 0 | O58: 0 | P58: 0 | Q58: 0 | R58: 0 | S58: 0 | T58: 0 | U58: 0 | V58: 0 | W58: 0 | X58: 0 | Y58: 0 | Z58: 0 | AA58: 0 | AB58: 0 | AC58: 0 | AD58: 0 | AE58: 0 | AF58: 0 | AG58: 0 | AH58: 0 | AI58: 0 | AJ58: 0 | AK58: 0 | AL58: 0 | AM58: 0 | AN58: 0 | AO58: 0 | AP58: 0 | AQ58: 0 | AR58: 0 | AS58: 0 | AT58: 0 | AU58: 0 | AV58: 0 | AW58: 0 | AX58: 0 | AY58: 0 | AZ58: 0 | BA58: 0 | BB58: 0 | BC58: 0 | BD58: 0 | BE58: 0 | BF58: 0 | BG58: =$E5*$B$58 -> 0 | IL58: 0
A59: 55 | B59: ='P(t) Distribution 10yr'!G59 -> 0 | D59: 324 | E59: =UH_Qp*((Q10_24!D59/UH_Tp)*EXP(1-Q10_24!D59/UH_Tp))^('WS & UH Data & Runoff Results'!$H$6-1) -> 0.0108691799 | F59: 0 | G59: 0 | H59: 0 | I59: 0 | J59: 0 | K59: 0 | L59: 0 | M59: 0 | N59: 0 | O59: 0 | P59: 0 | Q59: 0 | R59: 0 | S59: 0 | T59: 0 | U59: 0 | V59: 0 | W59: 0 | X59: 0 | Y59: 0 | Z59: 0 | AA59: 0 | AB59: 0 | AC59: 0 | AD59: 0 | AE59: 0 | AF59: 0 | AG59: 0 | AH59: 0 | AI59: 0 | AJ59: 0 | AK59: 0 | AL59: 0 | AM59: 0 | AN59: 0 | AO59: 0 | AP59: 0 | AQ59: 0 | AR59: 0 | AS59: 0 | AT59: 0 | AU59: 0 | AV59: 0 | AW59: 0 | AX59: 0 | AY59: 0 | AZ59: 0 | BA59: 0 | BB59: 0 | BC59: 0 | BD59: 0 | BE59: 0 | BF59: 0 | BG59: 0 | BH59: =$E5*$B$59 -> 0 | IL59: 0
A60: 56 | B60: ='P(t) Distribution 10yr'!G60 -> 0 | D60: 330 | E60: =UH_Qp*((Q10_24!D60/UH_Tp)*EXP(1-Q10_24!D60/UH_Tp))^('WS & UH Data & Runoff Results'!$H$6-1) -> 0.008508954229 | F60: 0 | G60: 0 | H60: 0 | I60: 0 | J60: 0 | K60: 0 | L60: 0 | M60: 0 | N60: 0 | O60: 0 | P60: 0 | Q60: 0 | R60: 0 | S60: 0 | T60: 0 | U60: 0 | V60: 0 | W60: 0 | X60: 0 | Y60: 0 | Z60: 0 | AA60: 0 | AB60: 0 | AC60: 0 | AD60: 0 | AE60: 0 | AF60: 0 | AG60: 0 | AH60: 0 | AI60: 0 | AJ60: 0 | AK60: 0 | AL60: 0 | AM60: 0 | AN60: 0 | AO60: 0 | AP60: 0 | AQ60: 0 | AR60: 0 | AS60: 0 | AT60: 0 | AU60: 0 | AV60: 0 | AW60: 0 | AX60: 0 | AY60: 0 | AZ60: 0 | BA60: 0 | BB60: 0 | BC60: 0 | BD60: 0 | BE60: 0 | BF60: 0 | BG60: 0 | BH60: 0 | BI60: =$E5*$B$60 -> 0 | IL60: 0
A61: 57 | B61: ='P(t) Distribution 10yr'!G61 -> 0 | D61: 336 | E61: =UH_Qp*((Q10_24!D61/UH_Tp)*EXP(1-Q10_24!D61/UH_Tp))^('WS & UH Data & Runoff Results'!$H$6-1) -> 0.006656194267 | F61: 0 | G61: 0 | H61: 0 | I61: 0 | J61: 0 | K61: 0 | L61: 0 | M61: 0 | N61: 0 | O61: 0 | P61: 0 | Q61: 0 | R61: 0 | S61: 0 | T61: 0 | U61: 0 | V61: 0 | W61: 0 | X61: 0 | Y61: 0 | Z61: 0 | AA61: 0 | AB61: 0 | AC61: 0 | AD61: 0 | AE61: 0 | AF61: 0 | AG61: 0 | AH61: 0 | AI61: 0 | AJ61: 0 | AK61: 0 | AL61: 0 | AM61: 0 | AN61: 0 | AO61: 0 | AP61: 0 | AQ61: 0 | AR61: 0 | AS61: 0 | AT61: 0 | AU61: 0 | AV61: 0 | AW61: 0 | AX61: 0 | AY61: 0 | AZ61: 0 | BA61: 0 | BB61: 0 | BC61: 0 | BD61: 0 | BE61: 0 | BF61: 0 | BG61: 0 | BH61: 0 | BI61: 0 | BJ61: =$E5*$B$61 -> 0 | IL61: 0
A62: 58 | B62: ='P(t) Distribution 10yr'!G62 -> 0 | D62: 342 | E62: =UH_Qp*((Q10_24!D62/UH_Tp)*EXP(1-Q10_24!D62/UH_Tp))^('WS & UH Data & Runoff Results'!$H$6-1) -> 0.005203048201 | F62: 0 | G62: 0 | H62: 0 | I62: 0 | J62: 0 | K62: 0 | L62: 0 | M62: 0 | N62: 0 | O62: 0 | P62: 0 | Q62: 0 | R62: 0 | S62: 0 | T62: 0 | U62: 0 | V62: 0 | W62: 0 | X62: 0 | Y62: 0 | Z62: 0 | AA62: 0 | AB62: 0 | AC62: 0 | AD62: 0 | AE62: 0 | AF62: 0 | AG62: 0 | AH62: 0 | AI62: 0 | AJ62: 0 | AK62: 0 | AL62: 0 | AM62: 0 | AN62: 0 | AO62: 0 | AP62: 0 | AQ62: 0 | AR62: 0 | AS62: 0 | AT62: 0 | AU62: 0 | AV62: 0 | AW62: 0 | AX62: 0 | AY62: 0 | AZ62: 0 | BA62: 0 | BB62: 0 | BC62: 0 | BD62: 0 | BE62: 0 | BF62: 0 | BG62: 0 | BH62: 0 | BI62: 0 | BJ62: 0 | BK62: =$E5*$B$62 -> 0 | IL62: 0
... 77 more rows

Sheet Q25_1 (hidden)
F2: Runoff Hydrograph for a 25 Year 1-Hour Storm
A3: Burst Info. | F3: Burst | G3: Burst | H3: Burst | I3: Burst | J3: Burst | K3: Burst | L3: Burst | M3: Burst | N3: Burst | O3: Burst | P3: Summation
A4: Burst | B4: Increment | D4: Time, min | E4: UH, cfs | F4: 1 | G4: 2 | H4: 3 | I4: 4 | J4: 5 | K4: 6 | L4: 7 | M4: 8 | N4: 9 | O4: 10
A5: 1 | B5: ='P(t) Distribution 25yr'!AW5 -> 0 | D5: 0 | E5: =UH_Qp*((Q25_1!D5/UH_Tp)*EXP(1-Q25_1!D5/UH_Tp))^('WS & UH Data & Runoff Results'!$H$6-1) -> 0 | F5: =$E5*$B$5 -> 0 | P5: =SUM(F5:O5) -> 0
A6: 2 | B6: ='P(t) Distribution 25yr'!AW6 -> 0.02540971773 | D6: =D5+BDur -> 6 | E6: =UH_Qp*((Q25_1!D6/UH_Tp)*EXP(1-Q25_1!D6/UH_Tp))^('WS & UH Data & Runoff Results'!$H$6-1) -> 4.61370294 | F6: =$E6*$B$5 -> 0 | G6: =$E5*$B$6 -> 0 | P6: 0
A7: 3 | B7: ='P(t) Distribution 25yr'!AW7 -> 0.09552144609 | D7: 12 | E7: =UH_Qp*((Q25_1!D7/UH_Tp)*EXP(1-Q25_1!D7/UH_Tp))^('WS & UH Data & Runoff Results'!$H$6-1) -> 16.99954882 | F7: 0 | G7: 0.1172328894 | H7: =$E5*$B$7 -> 0 | P7: 0.1172328894
A8: 4 | B8: ='P(t) Distribution 25yr'!AW8 -> 0.1961855604 | D8: 18 | E8: =UH_Qp*((Q25_1!D8/UH_Tp)*EXP(1-Q25_1!D8/UH_Tp))^('WS & UH Data & Runoff Results'!$H$6-1) -> 32.36189695 | F8: 0 | G8: 0.4319537369 | H8: 0.4407075767 | I8: =$E5*$B$8 -> 0 | P8: 0.8726613136
A9: 5 | B9: ='P(t) Distribution 25yr'!AW9 -> 0.4263030871 | D9: 24 | E9: =UH_Qp*((Q25_1!D9/UH_Tp)*EXP(1-Q25_1!D9/UH_Tp))^('WS & UH Data & Runoff Results'!$H$6-1) -> 47.01238198 | F9: 0 | G9: 0.8223066667 | H9: 1.623821486 | I9: 0.9051418969 | J9: =$E5*$B$9 -> 0 | P9: 3.351270049
A10: 6 | B10: ='P(t) Distribution 25yr'!AW10 -> 0.8175752547 | D10: 30 | E10: =UH_Qp*((Q25_1!D10/UH_Tp)*EXP(1-Q25_1!D10/UH_Tp))^('WS & UH Data & Runoff Results'!$H$6-1) -> 58.89140027 | F10: 0 | G10: 1.194571356 | H10: 3.091255195 | I10: 3.335066011 | J10: 1.966835806 | K10: =$E5*$B$10 -> 0 | P10: 9.587728369
